Workbook

Sheet Title
C25: RCP4 revenue model
C26: Aug-25
C27: Reflecting IPP determination dated 20 November 2024 and DY25/26 reopeners

Sheet Cover
A1: Transpower revenue model - Cover
A2: =Inputs!H11 -> Incremental update determined in 2025
B4: Scenario control and revenue
C6: Selected scenario: | L6: Control checks:
D8: =_xlfn.XLOOKUP(Cover!G8,Cover!H13:H17,D13:D17) -> Incremental update determined in 2025 | G8: i25 | H8: =IF(ISBLANK(Results!J3),_xlfn.XLOOKUP(Cover!$G$8,Cover!$H$13:$H$17,Cover!$C$13:$C$17),Results!J3) -> 2 | L8: Inputs | M8: TRUE
L9: Data table | M9: =AND(I13:M16<=I14:M17) -> TRUE
C10: Modelled scenarios: | L10: Data table control
D12: Scenario name | F12: Circumstances | H12: Tab | I12: SMAR (2026) | J12: SMAR (2027) | K12: SMAR (2028) | L12: SMAR (2029) | M12: SMAR (2030)
C13: 1 | D13: Forecast SMAR as set for IPP determination | F13: Set for IPP determination in Nov 24. | H13: i24 | I13: =_xlfn.XLOOKUP(Cover!$H13,Results!$E$5:$J$5,Results!$E$582:$J$582) -> 976.7170137 | J13: =_xlfn.XLOOKUP(Cover!$H13,Results!$E$5:$J$5,Results!$E$583:$J$583) -> 1135.46283 | K13: =_xlfn.XLOOKUP(Cover!$H13,Results!$E$5:$J$5,Results!$E$584:$J$584) -> 1192.235971 | L13: =_xlfn.XLOOKUP(Cover!$H13,Results!$E$5:$J$5,Results!$E$585:$J$585) -> 1251.84777 | M13: =_xlfn.XLOOKUP(Cover!$H13,Results!$E$5:$J$5,Results!$E$586:$J$586) -> 1314.440158
C14: 2 | D14: Incremental update determined in 2025 | F14: Reopens revenues in PY27, 28, 29 and 30. | H14: i25 | I14: =_xlfn.XLOOKUP(Cover!$H14,Results!$E$5:$J$5,Results!$E$582:$J$582) -> 976.7170137 | J14: =_xlfn.XLOOKUP(Cover!$H14,Results!$E$5:$J$5,Results!$E$583:$J$583) -> 1141.373687 | K14: =_xlfn.XLOOKUP(Cover!$H14,Results!$E$5:$J$5,Results!$E$584:$J$584) -> 1198.442371 | L14: =_xlfn.XLOOKUP(Cover!$H14,Results!$E$5:$J$5,Results!$E$585:$J$585) -> 1258.36449 | M14: =_xlfn.XLOOKUP(Cover!$H14,Results!$E$5:$J$5,Results!$E$586:$J$586) -> 1321.282715
C15: 3 | D15: Incremental update determined in 2026 | F15: Reopens revenues in PY28, 29 and 30. | H15: i26 | I15: =_xlfn.XLOOKUP(Cover!$H15,Results!$E$5:$J$5,Results!$E$582:$J$582) -> 976.7170137 | J15: =_xlfn.XLOOKUP(Cover!$H15,Results!$E$5:$J$5,Results!$E$583:$J$583) -> 1141.373687 | K15: =_xlfn.XLOOKUP(Cover!$H15,Results!$E$5:$J$5,Results!$E$584:$J$584) -> 1198.442371 | L15: =_xlfn.XLOOKUP(Cover!$H15,Results!$E$5:$J$5,Results!$E$585:$J$585) -> 1258.36449 | M15: =_xlfn.XLOOKUP(Cover!$H15,Results!$E$5:$J$5,Results!$E$586:$J$586) -> 1321.282715
C16: 4 | D16: Incremental update determined in 2027 | F16: Reopens revenues in PY29 and 30. | H16: i27 | I16: =_xlfn.XLOOKUP(Cover!$H16,Results!$E$5:$J$5,Results!$E$582:$J$582) -> 976.7170137 | J16: =_xlfn.XLOOKUP(Cover!$H16,Results!$E$5:$J$5,Results!$E$583:$J$583) -> 1141.373687 | K16: =_xlfn.XLOOKUP(Cover!$H16,Results!$E$5:$J$5,Results!$E$584:$J$584) -> 1198.442371 | L16: =_xlfn.XLOOKUP(Cover!$H16,Results!$E$5:$J$5,Results!$E$585:$J$585) -> 1258.36449 | M16: =_xlfn.XLOOKUP(Cover!$H16,Results!$E$5:$J$5,Results!$E$586:$J$586) -> 1321.282715
C17: 5 | D17: Incremental update determined in 2028 | F17: Reopens revenues in PY30. | H17: i28 | I17: =_xlfn.XLOOKUP(Cover!$H17,Results!$E$5:$J$5,Results!$E$582:$J$582) -> 976.7170137 | J17: =_xlfn.XLOOKUP(Cover!$H17,Results!$E$5:$J$5,Results!$E$583:$J$583) -> 1141.373687 | K17: =_xlfn.XLOOKUP(Cover!$H17,Results!$E$5:$J$5,Results!$E$584:$J$584) -> 1198.442371 | L17: =_xlfn.XLOOKUP(Cover!$H17,Results!$E$5:$J$5,Results!$E$585:$J$585) -> 1258.36449 | M17: =_xlfn.XLOOKUP(Cover!$H17,Results!$E$5:$J$5,Results!$E$586:$J$586) -> 1321.282715
C19: Model key:
D21: actual input
D22: forecast input
D23: scenario-specific input (not linked to inputs source)
D24: internal link
D25: calculation
D26: blank cell
B28: IPP determination schedules
C30: Schedule A: Summary of forecast MAR and forecast SMAR
G31: 2 | H31: 3 | I31: 4 | J31: 5
D32: Forecast MAR applied to pricing years in RCP4 ending | E32: Forecast MAR is calculated based on building block values for the disclosure year ending | F32: Initial determined value of forecast MAR for pricing year ($m) | G32: Incremental update to forecast MAR determined in 2025 ($m) | H32: Incremental update to forecast MAR determined in 2026 ($m) | I32: Incremental update to forecast MAR determined in 2027 ($m) | J32: Incremental update to forecast MAR determined in 2028 ($m) | K32: Total forecast MAR applicable to the pricing year ($m) | L32: Forecast SMAR applicable to the pricing years in RCP4 ($m)
D33: [Column 1] | E33: [Column 2] | F33: [Column 3] | G33: [Column 4] | H33: [Column 5] | I33: [Column 6] | J33: [Column 7] | K33: [Column 8] | L33: [Column 9]
D34: 2026-03-31 | E34: 2026-06-30 | F34: =Results!F567 -> 1075.999481 | G34: n/a | H34: n/a | I34: n/a | J34: n/a | K34: =SUM(F34:J34) -> 1075.999481 | L34: =_xlfn.XLOOKUP($D$8,Results!$F$4:$J$4,Results!F582:J582) -> 976.7170137
D35: 2027-03-31 | E35: 2027-06-30 | F35: =Results!F568 -> 1112.938505 | G35: =(Results!G568-Results!F568)*(G$31<=$H$8) -> 16.9799901 | H35: n/a | I35: n/a | J35: n/a | K35: =SUM(F35:J35) -> 1129.918495 | L35: =_xlfn.XLOOKUP($D$8,Results!$F$4:$J$4,Results!F583:J583) -> 1141.373687
D36: 2028-03-31 | E36: 2028-06-30 | F36: =Results!F569 -> 1161.725162 | G36: =(Results!G569-Results!F569)*(G$31<=$H$8) -> 2.090223207 | H36: =(Results!H569-Results!G569)*(H$31<=$H$8) -> 0 | I36: n/a | J36: n/a | K36: 1163.815385 | L36: =_xlfn.XLOOKUP($D$8,Results!$F$4:$J$4,Results!F584:J584) -> 1198.442371
D37: 2029-03-31 | E37: 2029-06-30 | F37: =Results!F570 -> 1230.369542 | G37: =(Results!G570-Results!F570)*(G$31<=$H$8) -> 2.378598385 | H37: =(Results!H570-Results!G570)*(H$31<=$H$8) -> 0 | I37: =(Results!I570-Results!H570)*(I$31<=$H$8) -> 0 | J37: n/a | K37: 1232.74814 | L37: =_xlfn.XLOOKUP($D$8,Results!$F$4:$J$4,Results!F585:J585) -> 1258.36449
D38: 2030-03-31 | E38: 2030-06-30 | F38: =Results!F571 -> 1271.595046 | G38: =(Results!G571-Results!F571)*(G$31<=$H$8) -> 2.562215654 | H38: =(Results!H571-Results!G571)*(H$31<=$H$8) -> 0 | I38: =(Results!I571-Results!H571)*(I$31<=$H$8) -> 0 | J38: =(Results!J571-Results!I571)*(J$31<=$H$8) -> 0 | K38: =SUM(F38:J38) -> 1274.157262 | L38: =_xlfn.XLOOKUP($D$8,Results!$F$4:$J$4,Results!F586:J586) -> 1321.282715
C40: Schedule C2: Standard incentive rate base capex summary - commissioned basis
F41: 2 | G41: 3 | H41: 4 | I41: 5
D42: Disclosure year ending | E42: Standard incentive rate base capex allowance as determined 29 August 2024 ($m) | F42: Incremental approved standard incentive rate base capex allowance determined in 2025 ($m) | G42: Incremental approved standard incentive rate base capex allowance determined in 2026 ($m) | H42: Incremental approved standard incentive rate base capex allowance determined in 2027 ($m) | I42: Incremental approved standard incentive rate base capex allowance determined in 2028 ($m) | J42: Standard incentive rate base capex allowance for purposes of forecast MAR in the disclosure year
D43: [Column 1] | E43: [Column 2] | F43: [Column 3] | G43: [Column 4] | H43: [Column 5] | I43: [Column 6] | J43: [Column 7]
D44: 2026-06-30 | E44: =Results!F162 -> 460.5291611 | F44: n/a | G44: n/a | H44: n/a | I44: n/a | J44: =SUM(E44:I44) -> 460.5291611
D45: 2027-06-30 | E45: =Results!F163 -> 585.4112295 | F45: =(Results!G163-Results!F163)*(F$41<=$H$8) -> 29.40260588 | G45: n/a | H45: n/a | I45: n/a | J45: =SUM(E45:I45) -> 614.8138354
D46: 2028-06-30 | E46: =Results!F164 -> 436.9985709 | F46: =(Results!G164-Results!F164)*(F$41<=$H$8) -> 0 | G46: =(Results!H164-Results!G164)*(G$41<=$H$8) -> 0 | H46: n/a | I46: n/a | J46: 436.9985709
D47: 2029-06-30 | E47: =Results!F165 -> 437.2001607 | F47: =(Results!G165-Results!F165)*(F$41<=$H$8) -> 0 | G47: =(Results!H165-Results!G165)*(G$41<=$H$8) -> 0 | H47: =(Results!I165-Results!H165)*(H$41<=$H$8) -> 0 | I47: n/a | J47: 437.2001607
D48: 2030-06-30 | E48: =Results!F166 -> 630.3797177 | F48: =(Results!G166-Results!F166)*(F$41<=$H$8) -> 0 | G48: =(Results!H166-Results!G166)*(G$41<=$H$8) -> 0 | H48: =(Results!I166-Results!H166)*(H$41<=$H$8) -> 0 | I48: =(Results!J166-Results!I166)*(I$41<=$H$8) -> 0 | J48: 630.3797177
C50: Schedule C4: Standard incentive rate base capex summary - expenditure basis
D52: Disclosure year ending | E52: Standard incentive rate base capex allowance as determined 29 August 2024 ($m) | F52: Incremental approved standard incentive rate base capex allowance determined in 2025 ($m) | G52: Incremental approved standard incentive rate base capex allowance determined in 2026 ($m) | H52: Incremental approved standard incentive rate base capex allowance determined in 2027 ($m) | I52: Incremental approved standard incentive rate base capex allowance determined in 2028 ($m) | J52: Standard incentive rate base capex allowance for purposes of base capex expenditure adjustments in the disclosure year
D53: [Column 1] | E53: [Column 2] | F53: [Column 3] | G53: [Column 4] | H53: [Column 5] | I53: [Column 6] | J53: [Column 7]
D54: 2026-06-30 | E54: =Results!F177 -> 490.2048935 | F54: n/a | G54: n/a | H54: n/a | I54: n/a | J54: =SUM(E54:I54) -> 490.2048935
D55: 2027-06-30 | E55: =Results!F178 -> 508.8124418 | F55: =(Results!G178-Results!F178)*(F$41<=$H$8) -> 29.44097848 | G55: n/a | H55: n/a | I55: n/a | J55: =SUM(E55:I55) -> 538.2534202
D56: 2028-06-30 | E56: =Results!F179 -> 449.4342451 | F56: =(Results!G179-Results!F179)*(F$41<=$H$8) -> 0 | G56: =(Results!H179-Results!G179)*(G$41<=$H$8) -> 0 | H56: n/a | I56: n/a | J56: 449.4342451
D57: 2029-06-30 | E57: =Results!F180 -> 451.0608516 | F57: =(Results!G180-Results!F180)*(F$41<=$H$8) -> 0 | G57: =(Results!H180-Results!G180)*(G$41<=$H$8) -> 0 | H57: =(Results!I180-Results!H180)*(H$41<=$H$8) -> 0 | I57: n/a | J57: 451.0608516
D58: 2030-06-30 | E58: =Results!F181 -> 466.6371397 | F58: =(Results!G181-Results!F181)*(F$41<=$H$8) -> 0 | G58: =(Results!H181-Results!G181)*(G$41<=$H$8) -> 0 | H58: =(Results!I181-Results!H181)*(H$41<=$H$8) -> 0 | I58: =(Results!J181-Results!I181)*(I$41<=$H$8) -> 0 | J58: 466.6371397
C60: Schedule C5: Summary of opex allowances
D62: Disclosure year ending | E62: Opex allowance as determined 29 August 2024 ($m) | F62: Incremental opex allowance determined in 2025 ($m) | G62: Incremental opex allowance determined in 2026 ($m) | H62: Incremental opex allowance determined in 2027 ($m) | I62: Incremental opex allowance determined in 2028 ($m) | J62: Opex allowance for the purposes of forecast MAR in the disclosure year
D63: [Column 1] | E63: [Column 2] | F63: [Column 3] | G63: [Column 4] | H63: [Column 5] | I63: [Column 6] | J63: [Column 7]
D64: 2026-06-30 | E64: =Results!F102 -> 421.1048209 | F64: n/a | G64: n/a | H64: n/a | I64: n/a | J64: =SUM(E64:I64) -> 421.1048209
D65: 2027-06-30 | E65: =Results!F103 -> 419.2952766 | F65: =(Results!G103-Results!F103)*(F$41<=$H$8) -> 15.450302 | G65: n/a | H65: n/a | I65: n/a | J65: =SUM(E65:I65) -> 434.7455786
D66: 2028-06-30 | E66: =Results!F104 -> 440.7941712 | F66: =(Results!G104-Results!F104)*(F$41<=$H$8) -> 0 | G66: =(Results!H104-Results!G104)*(G$41<=$H$8) -> 0 | H66: n/a | I66: n/a | J66: 440.7941712
D67: 2029-06-30 | E67: =Results!F105 -> 445.0167992 | F67: =(Results!G105-Results!F105)*(F$41<=$H$8) -> 0 | G67: =(Results!H105-Results!G105)*(G$41<=$H$8) -> 0 | H67: =(Results!I105-Results!H105)*(H$41<=$H$8) -> 0 | I67: n/a | J67: 445.0167992
D68: 2030-06-30 | E68: =Results!F106 -> 437.6284535 | F68: =(Results!G106-Results!F106)*(F$41<=$H$8) -> 0 | G68: =(Results!H106-Results!G106)*(G$41<=$H$8) -> 0 | H68: =(Results!I106-Results!H106)*(H$41<=$H$8) -> 0 | I68: =(Results!J106-Results!I106)*(I$41<=$H$8) -> 0 | J68: 437.6284535
C70: Schedule C6: Summary of forecast opex for IRIS
D72: Disclosure year ending | E72: Forecast opex for IRIS as determined 29 August 2024 ($m) | F72: Forecast opex for IRIS as determined in 2025 ($m) | G72: Forecast opex for IRIS as determined in 2026 ($m) | H72: Forecast opex for IRIS as determined in 2027 ($m) | I72: Forecast opex for IRIS as determined in 2028 ($m) | J72: Forecast opex for IRIS
D73: [Column 1] | E73: [Column 2] | F73: [Column 3] | G73: [Column 4] | H73: [Column 5] | I73: [Column 6] | J73: [Column 7]
D74: 2026-06-30 | E74: =Results!F117 -> 432.421291 | F74: n/a | G74: n/a | H74: n/a | I74: n/a | J74: =SUM(E74:I74) -> 432.421291
D75: 2027-06-30 | E75: =Results!F118 -> 432.1674181 | F75: =(Results!G118-Results!F118)*(F$41<=$H$8) -> 15.450302 | G75: n/a | H75: n/a | I75: n/a | J75: =SUM(E75:I75) -> 447.6177201
D76: 2028-06-30 | E76: =Results!F119 -> 460.1032606 | F76: =(Results!G119-Results!F119)*(F$41<=$H$8) -> 0 | G76: =(Results!H119-Results!G119)*(G$41<=$H$8) -> 0 | H76: n/a | I76: n/a | J76: 460.1032606
D77: 2029-06-30 | E77: =Results!F120 -> 456.9640699 | F77: =(Results!G120-Results!F120)*(F$41<=$H$8) -> 0 | G77: =(Results!H120-Results!G120)*(G$41<=$H$8) -> 0 | H77: =(Results!I120-Results!H120)*(H$41<=$H$8) -> 0 | I77: n/a | J77: 456.9640699
D78: 2030-06-30 | E78: =Results!F121 -> 448.7281569 | F78: =(Results!G121-Results!F121)*(F$41<=$H$8) -> 0 | G78: =(Results!H121-Results!G121)*(G$41<=$H$8) -> 0 | H78: =(Results!I121-Results!H121)*(H$41<=$H$8) -> 0 | I78: =(Results!J121-Results!I121)*(I$41<=$H$8) -> 0 | J78: 448.7281569
A80: End of sheet

Sheet Model notes
A1: Transpower revenue model - Model notes
D3: Model purpose | E3: The principal purpose of this model is to set Transpower's Maximum Allowable Revenue (MAR) and Smoothed Maximum Allowable Revenue (SMAR) ahead of and during a regulatory period. The derivation of Transpower's regulated revenue follows a building block approach inclusive of a capital charge component. These building blocks represent Transpower's prudent and efficient costs of operating across a regulatory period.
D5: Model guide | E5: Component pieces of Transpower's revenue building blocks are represented in different sheets across this workbook. Where possible, references to the respective IM and IPP determinations and cell notes are provided. All source information for these sheets is derived from the 'Inputs' tab which references an input scenario, as selected in the 'Cover' sheet. Users of this model should only vary the 'Cover' and 'Inputs master' sheets as required - all other aspects of the model should not be modified. All model outputs, for all scenarios, are represented in the 'Results' sheet.
D7: Data table function | E7: The model uses a data table to represent each scenario version, being revenue as set for the IPP and any future reopeners. The results of the data table are calculated simultaneously. This is an issue as the model iteratively passes each scenario through a reference scenario in order to calculate any incremental update to revenue (refer rows 333-334 of i25-i28). As such, as inputs are changed (including the selected scenario), the data table will calculate each scenario using the inputs of any reference scenario prior to the change in inputs. In order to allow for iterative functionality, we need to refresh the data table multiple times (maximally equal to the number of scenarios). The control in cell M10 of the 'Cover' sheet performs this automatically. The check located in M9 of the 'Cover' sheet checks that each scenario includes revenue above its reference scenario.
D9: Model notes | E9: Please note the following notes and areas of judgement, in order of appearance:
D10: 1 | E10: For the purposes of setting Transpower's maximum allowable revenue, including reopener events, users of this model should only vary the 'Inputs master' sheet. For scenario analysis, users may modify all input scenarios as required. All other sheets should not be modified.
D11: 2 | E11: All number series are presented in nominal dollars.
D12: 3 | E12: Actual inputs are to 2024.
D13: 4 | E13: Incentive outcomes for any ongoing MCPs are not forecast.
D14: 5 | E14: The service measures incentive outcome is not forecast.
D15: 6 | E15: Any assumptions forecasting the indexed RAB roll forward are detailed in the 'RAB' sheet.
D16: 7 | E16: New assets are assumed to commission mid-year and therefore depreciate for 50% of their first year.
D17: 8 | E17: The circularity between the tax allowance and revenue is solved by first calculating a profit before tax exclusive of the tax allowance, and then grossing up for this. This enables calculation of a tax allowance that is not self-referential.
D18: 9 | E18: The term credit spread differential calculation uses a pro-rata approach, noting that it is proportional to the average RAB.
D19: 10 | E19: The model also demonstrates the effect of any change in revenue following reopener events in the 'SMAR' tab.
D20: 11 | E20: Schedule E of Transpower's IPP is mathematically similar to Schedule D, notwithstanding being in year-end terms and some minor adjustments. As such, the outcome of Transpower's wash-up can follow the same logic as the forecast, with differences being resolved for in the 'Wash-up' tab.
D21: 12 | E21: The 'Wash-up' sheet includes an adjustment to correct for the fact the ex-post tax calculation (as part of the ex-post economic gain or loss) should reference actual revenue received (which can beproxied as forecast SMAR) rather than MAR. This is only an issue for forecast years and is consistent with Schedule E.
D22: 13 | E22: The model includes a calculation of Transpower's internal rate of return, which should be consistent with the prescribed vanilla WACC exclusive of any incentives and adjusted for any CPI disparity.
D23: 14 | E23: All model results are reflected in the 'Results' sheet.
A25: End of sheet

Sheet Inputs
A1: Transpower revenue model - Inputs
A2: =Cover!A2 -> Incremental update determined in 2025
H3: Global | I3: 2021 | J3: 2022 | K3: 2023 | L3: 2024 | M3: 2025 | N3: 2026 | O3: 2027 | P3: 2028 | Q3: 2029 | R3: 2030 | S3: 2031 | T3: 2032 | U3: 2033 | V3: 2034 | W3: 2035
D4: Parameter | E4: IM ref | F4: IPP ref | G4: Units | H4: n/a | I4: RCP3 | J4: RCP3 | K4: RCP3 | L4: RCP3 | M4: RCP3 | N4: RCP4 | O4: RCP4 | P4: RCP4 | Q4: RCP4 | R4: RCP4 | S4: RCP5 | T4: RCP5 | U4: RCP5 | V4: RCP5 | W4: RCP5
I5: =IF(I3<$H$12,"Actual","Forecast") -> Actual | J5: Actual | K5: Actual | L5: Actual | M5: Forecast | N5: Forecast | O5: Forecast | P5: Forecast | Q5: Forecast | R5: Forecast | S5: Forecast | T5: Forecast | U5: Forecast | V5: Forecast | W5: Forecast
B6: Global parameters
C8: Model parameters
C9: Note:
D11: Model version | G11: text | H11: =CHOOSE(Cover!$H$8, 'i24'!H11,'i25'!H11,'i26'!H11,'i27'!H11,'i28'!H11) -> Incremental update determined in 2025
D12: Current year | G12: year | H12: =CHOOSE(Cover!$H$8, 'i24'!H12,'i25'!H12,'i26'!H12,'i27'!H12,'i28'!H12) -> 2025
D13: Reopener to RCP4 forecast SMAR | G13: text | H13: =CHOOSE(Cover!$H$8, 'i24'!H13,'i25'!H13,'i26'!H13,'i27'!H13,'i28'!H13) -> Yes
D14: Starting year for reopener | G14: year | H14: =CHOOSE(Cover!$H$8, 'i24'!H14,'i25'!H14,'i26'!H14,'i27'!H14,'i28'!H14) -> 2027
C16: Cost of capital inputs
C17: Note:
D19: Nominal risk free rate | G19: % | I19: =CHOOSE(Cover!$H$8, 'i24'!I19,'i25'!I19,'i26'!I19,'i27'!I19,'i28'!I19) -> 0.0112 | J19: =CHOOSE(Cover!$H$8, 'i24'!J19,'i25'!J19,'i26'!J19,'i27'!J19,'i28'!J19) -> 0.0112 | K19: =CHOOSE(Cover!$H$8, 'i24'!K19,'i25'!K19,'i26'!K19,'i27'!K19,'i28'!K19) -> 0.0112 | L19: =CHOOSE(Cover!$H$8, 'i24'!L19,'i25'!L19,'i26'!L19,'i27'!L19,'i28'!L19) -> 0.0112 | M19: =CHOOSE(Cover!$H$8, 'i24'!M19,'i25'!M19,'i26'!M19,'i27'!M19,'i28'!M19) -> 0.0112 | N19: =CHOOSE(Cover!$H$8, 'i24'!N19,'i25'!N19,'i26'!N19,'i27'!N19,'i28'!N19) -> 0.0426 | O19: =CHOOSE(Cover!$H$8, 'i24'!O19,'i25'!O19,'i26'!O19,'i27'!O19,'i28'!O19) -> 0.0426 | P19: =CHOOSE(Cover!$H$8, 'i24'!P19,'i25'!P19,'i26'!P19,'i27'!P19,'i28'!P19) -> 0.0426 | Q19: =CHOOSE(Cover!$H$8, 'i24'!Q19,'i25'!Q19,'i26'!Q19,'i27'!Q19,'i28'!Q19) -> 0.0426 | R19: =CHOOSE(Cover!$H$8, 'i24'!R19,'i25'!R19,'i26'!R19,'i27'!R19,'i28'!R19) -> 0.0426 | S19: =CHOOSE(Cover!$H$8, 'i24'!S19,'i25'!S19,'i26'!S19,'i27'!S19,'i28'!S19) -> 0.0426 | T19: =CHOOSE(Cover!$H$8, 'i24'!T19,'i25'!T19,'i26'!T19,'i27'!T19,'i28'!T19) -> 0.0426 | U19: =CHOOSE(Cover!$H$8, 'i24'!U19,'i25'!U19,'i26'!U19,'i27'!U19,'i28'!U19) -> 0.0426 | V19: =CHOOSE(Cover!$H$8, 'i24'!V19,'i25'!V19,'i26'!V19,'i27'!V19,'i28'!V19) -> 0.0426 | W19: =CHOOSE(Cover!$H$8, 'i24'!W19,'i25'!W19,'i26'!W19,'i27'!W19,'i28'!W19) -> 0.0426
D20: Average debt premium | G20: % | I20: =CHOOSE(Cover!$H$8, 'i24'!I20,'i25'!I20,'i26'!I20,'i27'!I20,'i28'!I20) -> 0.016 | J20: =CHOOSE(Cover!$H$8, 'i24'!J20,'i25'!J20,'i26'!J20,'i27'!J20,'i28'!J20) -> 0.016 | K20: =CHOOSE(Cover!$H$8, 'i24'!K20,'i25'!K20,'i26'!K20,'i27'!K20,'i28'!K20) -> 0.016 | L20: =CHOOSE(Cover!$H$8, 'i24'!L20,'i25'!L20,'i26'!L20,'i27'!L20,'i28'!L20) -> 0.016 | M20: =CHOOSE(Cover!$H$8, 'i24'!M20,'i25'!M20,'i26'!M20,'i27'!M20,'i28'!M20) -> 0.016 | N20: =CHOOSE(Cover!$H$8, 'i24'!N20,'i25'!N20,'i26'!N20,'i27'!N20,'i28'!N20) -> 0.0128 | O20: =CHOOSE(Cover!$H$8, 'i24'!O20,'i25'!O20,'i26'!O20,'i27'!O20,'i28'!O20) -> 0.0128 | P20: =CHOOSE(Cover!$H$8, 'i24'!P20,'i25'!P20,'i26'!P20,'i27'!P20,'i28'!P20) -> 0.0128 | Q20: =CHOOSE(Cover!$H$8, 'i24'!Q20,'i25'!Q20,'i26'!Q20,'i27'!Q20,'i28'!Q20) -> 0.0128 | R20: =CHOOSE(Cover!$H$8, 'i24'!R20,'i25'!R20,'i26'!R20,'i27'!R20,'i28'!R20) -> 0.0128 | S20: =CHOOSE(Cover!$H$8, 'i24'!S20,'i25'!S20,'i26'!S20,'i27'!S20,'i28'!S20) -> 0.0128 | T20: =CHOOSE(Cover!$H$8, 'i24'!T20,'i25'!T20,'i26'!T20,'i27'!T20,'i28'!T20) -> 0.0128 | U20: =CHOOSE(Cover!$H$8, 'i24'!U20,'i25'!U20,'i26'!U20,'i27'!U20,'i28'!U20) -> 0.0128 | V20: =CHOOSE(Cover!$H$8, 'i24'!V20,'i25'!V20,'i26'!V20,'i27'!V20,'i28'!V20) -> 0.0128 | W20: =CHOOSE(Cover!$H$8, 'i24'!W20,'i25'!W20,'i26'!W20,'i27'!W20,'i28'!W20) -> 0.0128
D21: Debt issuance costs | G21: % | I21: =CHOOSE(Cover!$H$8, 'i24'!I21,'i25'!I21,'i26'!I21,'i27'!I21,'i28'!I21) -> 0.002 | J21: =CHOOSE(Cover!$H$8, 'i24'!J21,'i25'!J21,'i26'!J21,'i27'!J21,'i28'!J21) -> 0.002 | K21: =CHOOSE(Cover!$H$8, 'i24'!K21,'i25'!K21,'i26'!K21,'i27'!K21,'i28'!K21) -> 0.002 | L21: =CHOOSE(Cover!$H$8, 'i24'!L21,'i25'!L21,'i26'!L21,'i27'!L21,'i28'!L21) -> 0.002 | M21: =CHOOSE(Cover!$H$8, 'i24'!M21,'i25'!M21,'i26'!M21,'i27'!M21,'i28'!M21) -> 0.002 | N21: =CHOOSE(Cover!$H$8, 'i24'!N21,'i25'!N21,'i26'!N21,'i27'!N21,'i28'!N21) -> 0.002 | O21: =CHOOSE(Cover!$H$8, 'i24'!O21,'i25'!O21,'i26'!O21,'i27'!O21,'i28'!O21) -> 0.002 | P21: =CHOOSE(Cover!$H$8, 'i24'!P21,'i25'!P21,'i26'!P21,'i27'!P21,'i28'!P21) -> 0.002 | Q21: =CHOOSE(Cover!$H$8, 'i24'!Q21,'i25'!Q21,'i26'!Q21,'i27'!Q21,'i28'!Q21) -> 0.002 | R21: =CHOOSE(Cover!$H$8, 'i24'!R21,'i25'!R21,'i26'!R21,'i27'!R21,'i28'!R21) -> 0.002 | S21: =CHOOSE(Cover!$H$8, 'i24'!S21,'i25'!S21,'i26'!S21,'i27'!S21,'i28'!S21) -> 0.002 | T21: =CHOOSE(Cover!$H$8, 'i24'!T21,'i25'!T21,'i26'!T21,'i27'!T21,'i28'!T21) -> 0.002 | U21: =CHOOSE(Cover!$H$8, 'i24'!U21,'i25'!U21,'i26'!U21,'i27'!U21,'i28'!U21) -> 0.002 | V21: =CHOOSE(Cover!$H$8, 'i24'!V21,'i25'!V21,'i26'!V21,'i27'!V21,'i28'!V21) -> 0.002 | W21: =CHOOSE(Cover!$H$8, 'i24'!W21,'i25'!W21,'i26'!W21,'i27'!W21,'i28'!W21) -> 0.002
D22: Asset beta | G22: scalar | I22: =CHOOSE(Cover!$H$8, 'i24'!I22,'i25'!I22,'i26'!I22,'i27'!I22,'i28'!I22) -> 0.35 | J22: =CHOOSE(Cover!$H$8, 'i24'!J22,'i25'!J22,'i26'!J22,'i27'!J22,'i28'!J22) -> 0.35 | K22: =CHOOSE(Cover!$H$8, 'i24'!K22,'i25'!K22,'i26'!K22,'i27'!K22,'i28'!K22) -> 0.35 | L22: =CHOOSE(Cover!$H$8, 'i24'!L22,'i25'!L22,'i26'!L22,'i27'!L22,'i28'!L22) -> 0.35 | M22: =CHOOSE(Cover!$H$8, 'i24'!M22,'i25'!M22,'i26'!M22,'i27'!M22,'i28'!M22) -> 0.35 | N22: =CHOOSE(Cover!$H$8, 'i24'!N22,'i25'!N22,'i26'!N22,'i27'!N22,'i28'!N22) -> 0.36 | O22: =CHOOSE(Cover!$H$8, 'i24'!O22,'i25'!O22,'i26'!O22,'i27'!O22,'i28'!O22) -> 0.36 | P22: =CHOOSE(Cover!$H$8, 'i24'!P22,'i25'!P22,'i26'!P22,'i27'!P22,'i28'!P22) -> 0.36 | Q22: =CHOOSE(Cover!$H$8, 'i24'!Q22,'i25'!Q22,'i26'!Q22,'i27'!Q22,'i28'!Q22) -> 0.36 | R22: =CHOOSE(Cover!$H$8, 'i24'!R22,'i25'!R22,'i26'!R22,'i27'!R22,'i28'!R22) -> 0.36 | S22: =CHOOSE(Cover!$H$8, 'i24'!S22,'i25'!S22,'i26'!S22,'i27'!S22,'i28'!S22) -> 0.36 | T22: =CHOOSE(Cover!$H$8, 'i24'!T22,'i25'!T22,'i26'!T22,'i27'!T22,'i28'!T22) -> 0.36 | U22: =CHOOSE(Cover!$H$8, 'i24'!U22,'i25'!U22,'i26'!U22,'i27'!U22,'i28'!U22) -> 0.36 | V22: =CHOOSE(Cover!$H$8, 'i24'!V22,'i25'!V22,'i26'!V22,'i27'!V22,'i28'!V22) -> 0.36 | W22: =CHOOSE(Cover!$H$8, 'i24'!W22,'i25'!W22,'i26'!W22,'i27'!W22,'i28'!W22) -> 0.36
D23: Tax adjusted market risk premium | G23: % | I23: =CHOOSE(Cover!$H$8, 'i24'!I23,'i25'!I23,'i26'!I23,'i27'!I23,'i28'!I23) -> 0.07 | J23: =CHOOSE(Cover!$H$8, 'i24'!J23,'i25'!J23,'i26'!J23,'i27'!J23,'i28'!J23) -> 0.07 | K23: =CHOOSE(Cover!$H$8, 'i24'!K23,'i25'!K23,'i26'!K23,'i27'!K23,'i28'!K23) -> 0.07 | L23: =CHOOSE(Cover!$H$8, 'i24'!L23,'i25'!L23,'i26'!L23,'i27'!L23,'i28'!L23) -> 0.07 | M23: =CHOOSE(Cover!$H$8, 'i24'!M23,'i25'!M23,'i26'!M23,'i27'!M23,'i28'!M23) -> 0.07 | N23: =CHOOSE(Cover!$H$8, 'i24'!N23,'i25'!N23,'i26'!N23,'i27'!N23,'i28'!N23) -> 0.07 | O23: =CHOOSE(Cover!$H$8, 'i24'!O23,'i25'!O23,'i26'!O23,'i27'!O23,'i28'!O23) -> 0.07 | P23: =CHOOSE(Cover!$H$8, 'i24'!P23,'i25'!P23,'i26'!P23,'i27'!P23,'i28'!P23) -> 0.07 | Q23: =CHOOSE(Cover!$H$8, 'i24'!Q23,'i25'!Q23,'i26'!Q23,'i27'!Q23,'i28'!Q23) -> 0.07 | R23: =CHOOSE(Cover!$H$8, 'i24'!R23,'i25'!R23,'i26'!R23,'i27'!R23,'i28'!R23) -> 0.07 | S23: =CHOOSE(Cover!$H$8, 'i24'!S23,'i25'!S23,'i26'!S23,'i27'!S23,'i28'!S23) -> 0.07 | T23: =CHOOSE(Cover!$H$8, 'i24'!T23,'i25'!T23,'i26'!T23,'i27'!T23,'i28'!T23) -> 0.07 | U23: =CHOOSE(Cover!$H$8, 'i24'!U23,'i25'!U23,'i26'!U23,'i27'!U23,'i28'!U23) -> 0.07 | V23: =CHOOSE(Cover!$H$8, 'i24'!V23,'i25'!V23,'i26'!V23,'i27'!V23,'i28'!V23) -> 0.07 | W23: =CHOOSE(Cover!$H$8, 'i24'!W23,'i25'!W23,'i26'!W23,'i27'!W23,'i28'!W23) -> 0.07
D24: Average corporate tax rate | G24: % | I24: =CHOOSE(Cover!$H$8, 'i24'!I24,'i25'!I24,'i26'!I24,'i27'!I24,'i28'!I24) -> 0.28 | J24: =CHOOSE(Cover!$H$8, 'i24'!J24,'i25'!J24,'i26'!J24,'i27'!J24,'i28'!J24) -> 0.28 | K24: =CHOOSE(Cover!$H$8, 'i24'!K24,'i25'!K24,'i26'!K24,'i27'!K24,'i28'!K24) -> 0.28 | L24: =CHOOSE(Cover!$H$8, 'i24'!L24,'i25'!L24,'i26'!L24,'i27'!L24,'i28'!L24) -> 0.28 | M24: =CHOOSE(Cover!$H$8, 'i24'!M24,'i25'!M24,'i26'!M24,'i27'!M24,'i28'!M24) -> 0.28 | N24: =CHOOSE(Cover!$H$8, 'i24'!N24,'i25'!N24,'i26'!N24,'i27'!N24,'i28'!N24) -> 0.28 | O24: =CHOOSE(Cover!$H$8, 'i24'!O24,'i25'!O24,'i26'!O24,'i27'!O24,'i28'!O24) -> 0.28 | P24: =CHOOSE(Cover!$H$8, 'i24'!P24,'i25'!P24,'i26'!P24,'i27'!P24,'i28'!P24) -> 0.28 | Q24: =CHOOSE(Cover!$H$8, 'i24'!Q24,'i25'!Q24,'i26'!Q24,'i27'!Q24,'i28'!Q24) -> 0.28 | R24: =CHOOSE(Cover!$H$8, 'i24'!R24,'i25'!R24,'i26'!R24,'i27'!R24,'i28'!R24) -> 0.28 | S24: =CHOOSE(Cover!$H$8, 'i24'!S24,'i25'!S24,'i26'!S24,'i27'!S24,'i28'!S24) -> 0.28 | T24: =CHOOSE(Cover!$H$8, 'i24'!T24,'i25'!T24,'i26'!T24,'i27'!T24,'i28'!T24) -> 0.28 | U24: =CHOOSE(Cover!$H$8, 'i24'!U24,'i25'!U24,'i26'!U24,'i27'!U24,'i28'!U24) -> 0.28 | V24: =CHOOSE(Cover!$H$8, 'i24'!V24,'i25'!V24,'i26'!V24,'i27'!V24,'i28'!V24) -> 0.28 | W24: =CHOOSE(Cover!$H$8, 'i24'!W24,'i25'!W24,'i26'!W24,'i27'!W24,'i28'!W24) -> 0.28
D25: Average investor tax rate | G25: % | I25: =CHOOSE(Cover!$H$8, 'i24'!I25,'i25'!I25,'i26'!I25,'i27'!I25,'i28'!I25) -> 0.28 | J25: =CHOOSE(Cover!$H$8, 'i24'!J25,'i25'!J25,'i26'!J25,'i27'!J25,'i28'!J25) -> 0.28 | K25: =CHOOSE(Cover!$H$8, 'i24'!K25,'i25'!K25,'i26'!K25,'i27'!K25,'i28'!K25) -> 0.28 | L25: =CHOOSE(Cover!$H$8, 'i24'!L25,'i25'!L25,'i26'!L25,'i27'!L25,'i28'!L25) -> 0.28 | M25: =CHOOSE(Cover!$H$8, 'i24'!M25,'i25'!M25,'i26'!M25,'i27'!M25,'i28'!M25) -> 0.28 | N25: =CHOOSE(Cover!$H$8, 'i24'!N25,'i25'!N25,'i26'!N25,'i27'!N25,'i28'!N25) -> 0.28 | O25: =CHOOSE(Cover!$H$8, 'i24'!O25,'i25'!O25,'i26'!O25,'i27'!O25,'i28'!O25) -> 0.28 | P25: =CHOOSE(Cover!$H$8, 'i24'!P25,'i25'!P25,'i26'!P25,'i27'!P25,'i28'!P25) -> 0.28 | Q25: =CHOOSE(Cover!$H$8, 'i24'!Q25,'i25'!Q25,'i26'!Q25,'i27'!Q25,'i28'!Q25) -> 0.28 | R25: =CHOOSE(Cover!$H$8, 'i24'!R25,'i25'!R25,'i26'!R25,'i27'!R25,'i28'!R25) -> 0.28 | S25: =CHOOSE(Cover!$H$8, 'i24'!S25,'i25'!S25,'i26'!S25,'i27'!S25,'i28'!S25) -> 0.28 | T25: =CHOOSE(Cover!$H$8, 'i24'!T25,'i25'!T25,'i26'!T25,'i27'!T25,'i28'!T25) -> 0.28 | U25: =CHOOSE(Cover!$H$8, 'i24'!U25,'i25'!U25,'i26'!U25,'i27'!U25,'i28'!U25) -> 0.28 | V25: =CHOOSE(Cover!$H$8, 'i24'!V25,'i25'!V25,'i26'!V25,'i27'!V25,'i28'!V25) -> 0.28 | W25: =CHOOSE(Cover!$H$8, 'i24'!W25,'i25'!W25,'i26'!W25,'i27'!W25,'i28'!W25) -> 0.28
D26: Leverage | G26: % | I26: =CHOOSE(Cover!$H$8, 'i24'!I26,'i25'!I26,'i26'!I26,'i27'!I26,'i28'!I26) -> 0.42 | J26: =CHOOSE(Cover!$H$8, 'i24'!J26,'i25'!J26,'i26'!J26,'i27'!J26,'i28'!J26) -> 0.42 | K26: =CHOOSE(Cover!$H$8, 'i24'!K26,'i25'!K26,'i26'!K26,'i27'!K26,'i28'!K26) -> 0.42 | L26: =CHOOSE(Cover!$H$8, 'i24'!L26,'i25'!L26,'i26'!L26,'i27'!L26,'i28'!L26) -> 0.42 | M26: =CHOOSE(Cover!$H$8, 'i24'!M26,'i25'!M26,'i26'!M26,'i27'!M26,'i28'!M26) -> 0.42 | N26: =CHOOSE(Cover!$H$8, 'i24'!N26,'i25'!N26,'i26'!N26,'i27'!N26,'i28'!N26) -> 0.41 | O26: =CHOOSE(Cover!$H$8, 'i24'!O26,'i25'!O26,'i26'!O26,'i27'!O26,'i28'!O26) -> 0.41 | P26: =CHOOSE(Cover!$H$8, 'i24'!P26,'i25'!P26,'i26'!P26,'i27'!P26,'i28'!P26) -> 0.41 | Q26: =CHOOSE(Cover!$H$8, 'i24'!Q26,'i25'!Q26,'i26'!Q26,'i27'!Q26,'i28'!Q26) -> 0.41 | R26: =CHOOSE(Cover!$H$8, 'i24'!R26,'i25'!R26,'i26'!R26,'i27'!R26,'i28'!R26) -> 0.41 | S26: =CHOOSE(Cover!$H$8, 'i24'!S26,'i25'!S26,'i26'!S26,'i27'!S26,'i28'!S26) -> 0.41 | T26: =CHOOSE(Cover!$H$8, 'i24'!T26,'i25'!T26,'i26'!T26,'i27'!T26,'i28'!T26) -> 0.41 | U26: =CHOOSE(Cover!$H$8, 'i24'!U26,'i25'!U26,'i26'!U26,'i27'!U26,'i28'!U26) -> 0.41 | V26: =CHOOSE(Cover!$H$8, 'i24'!V26,'i25'!V26,'i26'!V26,'i27'!V26,'i28'!V26) -> 0.41 | W26: =CHOOSE(Cover!$H$8, 'i24'!W26,'i25'!W26,'i26'!W26,'i27'!W26,'i28'!W26) -> 0.41
D27: Standard error of mid-point WACC | G27: scalar | I27: =CHOOSE(Cover!$H$8, 'i24'!I27,'i25'!I27,'i26'!I27,'i27'!I27,'i28'!I27) -> 0.0101 | J27: =CHOOSE(Cover!$H$8, 'i24'!J27,'i25'!J27,'i26'!J27,'i27'!J27,'i28'!J27) -> 0.0101 | K27: =CHOOSE(Cover!$H$8, 'i24'!K27,'i25'!K27,'i26'!K27,'i27'!K27,'i28'!K27) -> 0.0101 | L27: =CHOOSE(Cover!$H$8, 'i24'!L27,'i25'!L27,'i26'!L27,'i27'!L27,'i28'!L27) -> 0.0101 | M27: =CHOOSE(Cover!$H$8, 'i24'!M27,'i25'!M27,'i26'!M27,'i27'!M27,'i28'!M27) -> 0.0101 | N27: =CHOOSE(Cover!$H$8, 'i24'!N27,'i25'!N27,'i26'!N27,'i27'!N27,'i28'!N27) -> 0.0108 | O27: =CHOOSE(Cover!$H$8, 'i24'!O27,'i25'!O27,'i26'!O27,'i27'!O27,'i28'!O27) -> 0.0108 | P27: =CHOOSE(Cover!$H$8, 'i24'!P27,'i25'!P27,'i26'!P27,'i27'!P27,'i28'!P27) -> 0.0108 | Q27: =CHOOSE(Cover!$H$8, 'i24'!Q27,'i25'!Q27,'i26'!Q27,'i27'!Q27,'i28'!Q27) -> 0.0108 | R27: =CHOOSE(Cover!$H$8, 'i24'!R27,'i25'!R27,'i26'!R27,'i27'!R27,'i28'!R27) -> 0.0108 | S27: =CHOOSE(Cover!$H$8, 'i24'!S27,'i25'!S27,'i26'!S27,'i27'!S27,'i28'!S27) -> 0.0108 | T27: =CHOOSE(Cover!$H$8, 'i24'!T27,'i25'!T27,'i26'!T27,'i27'!T27,'i28'!T27) -> 0.0108 | U27: =CHOOSE(Cover!$H$8, 'i24'!U27,'i25'!U27,'i26'!U27,'i27'!U27,'i28'!U27) -> 0.0108 | V27: =CHOOSE(Cover!$H$8, 'i24'!V27,'i25'!V27,'i26'!V27,'i27'!V27,'i28'!V27) -> 0.0108 | W27: =CHOOSE(Cover!$H$8, 'i24'!W27,'i25'!W27,'i26'!W27,'i27'!W27,'i28'!W27) -> 0.0108
D28: z-Score | G28: scalar | I28: =CHOOSE(Cover!$H$8, 'i24'!I28,'i25'!I28,'i26'!I28,'i27'!I28,'i28'!I28) -> 0.44 | J28: =CHOOSE(Cover!$H$8, 'i24'!J28,'i25'!J28,'i26'!J28,'i27'!J28,'i28'!J28) -> 0.44 | K28: =CHOOSE(Cover!$H$8, 'i24'!K28,'i25'!K28,'i26'!K28,'i27'!K28,'i28'!K28) -> 0.44 | L28: =CHOOSE(Cover!$H$8, 'i24'!L28,'i25'!L28,'i26'!L28,'i27'!L28,'i28'!L28) -> 0.44 | M28: =CHOOSE(Cover!$H$8, 'i24'!M28,'i25'!M28,'i26'!M28,'i27'!M28,'i28'!M28) -> 0.44 | N28: =CHOOSE(Cover!$H$8, 'i24'!N28,'i25'!N28,'i26'!N28,'i27'!N28,'i28'!N28) -> 0.385 | O28: =CHOOSE(Cover!$H$8, 'i24'!O28,'i25'!O28,'i26'!O28,'i27'!O28,'i28'!O28) -> 0.385 | P28: =CHOOSE(Cover!$H$8, 'i24'!P28,'i25'!P28,'i26'!P28,'i27'!P28,'i28'!P28) -> 0.385 | Q28: =CHOOSE(Cover!$H$8, 'i24'!Q28,'i25'!Q28,'i26'!Q28,'i27'!Q28,'i28'!Q28) -> 0.385 | R28: =CHOOSE(Cover!$H$8, 'i24'!R28,'i25'!R28,'i26'!R28,'i27'!R28,'i28'!R28) -> 0.385 | S28: =CHOOSE(Cover!$H$8, 'i24'!S28,'i25'!S28,'i26'!S28,'i27'!S28,'i28'!S28) -> 0.385 | T28: =CHOOSE(Cover!$H$8, 'i24'!T28,'i25'!T28,'i26'!T28,'i27'!T28,'i28'!T28) -> 0.385 | U28: =CHOOSE(Cover!$H$8, 'i24'!U28,'i25'!U28,'i26'!U28,'i27'!U28,'i28'!U28) -> 0.385 | V28: =CHOOSE(Cover!$H$8, 'i24'!V28,'i25'!V28,'i26'!V28,'i27'!V28,'i28'!V28) -> 0.385 | W28: =CHOOSE(Cover!$H$8, 'i24'!W28,'i25'!W28,'i26'!W28,'i27'!W28,'i28'!W28) -> 0.385
C30: Inflation indices
C31: Note: Changes in CPI (disclosure year end) is used to calculate the revaluation amount. Changes in CPI (disclosure year average) is used for the purposes of rebasing allowance and incentive outcomes for any disparity between forecast and outturn CPI.
D33: Changes in CPI (disclosure year end forecast) | N33: =CHOOSE(Cover!$H$8, 'i24'!N33,'i25'!N33,'i26'!N33,'i27'!N33,'i28'!N33) -> 0.02 | O33: =CHOOSE(Cover!$H$8, 'i24'!O33,'i25'!O33,'i26'!O33,'i27'!O33,'i28'!O33) -> 0.02 | P33: =CHOOSE(Cover!$H$8, 'i24'!P33,'i25'!P33,'i26'!P33,'i27'!P33,'i28'!P33) -> 0.02 | Q33: =CHOOSE(Cover!$H$8, 'i24'!Q33,'i25'!Q33,'i26'!Q33,'i27'!Q33,'i28'!Q33) -> 0.02 | R33: =CHOOSE(Cover!$H$8, 'i24'!R33,'i25'!R33,'i26'!R33,'i27'!R33,'i28'!R33) -> 0.02 | S33: =CHOOSE(Cover!$H$8, 'i24'!S33,'i25'!S33,'i26'!S33,'i27'!S33,'i28'!S33) -> 0.02 | T33: =CHOOSE(Cover!$H$8, 'i24'!T33,'i25'!T33,'i26'!T33,'i27'!T33,'i28'!T33) -> 0.02 | U33: =CHOOSE(Cover!$H$8, 'i24'!U33,'i25'!U33,'i26'!U33,'i27'!U33,'i28'!U33) -> 0.02 | V33: =CHOOSE(Cover!$H$8, 'i24'!V33,'i25'!V33,'i26'!V33,'i27'!V33,'i28'!V33) -> 0.02 | W33: =CHOOSE(Cover!$H$8, 'i24'!W33,'i25'!W33,'i26'!W33,'i27'!W33,'i28'!W33) -> 0.02
D34: Changes in CPI (disclosure year end actual) | N34: =CHOOSE(Cover!$H$8, 'i24'!N34,'i25'!N34,'i26'!N34,'i27'!N34,'i28'!N34) -> 0.02 | O34: =CHOOSE(Cover!$H$8, 'i24'!O34,'i25'!O34,'i26'!O34,'i27'!O34,'i28'!O34) -> 0.02 | P34: =CHOOSE(Cover!$H$8, 'i24'!P34,'i25'!P34,'i26'!P34,'i27'!P34,'i28'!P34) -> 0.02 | Q34: =CHOOSE(Cover!$H$8, 'i24'!Q34,'i25'!Q34,'i26'!Q34,'i27'!Q34,'i28'!Q34) -> 0.02 | R34: =CHOOSE(Cover!$H$8, 'i24'!R34,'i25'!R34,'i26'!R34,'i27'!R34,'i28'!R34) -> 0.02 | S34: =CHOOSE(Cover!$H$8, 'i24'!S34,'i25'!S34,'i26'!S34,'i27'!S34,'i28'!S34) -> 0.02 | T34: =CHOOSE(Cover!$H$8, 'i24'!T34,'i25'!T34,'i26'!T34,'i27'!T34,'i28'!T34) -> 0.02 | U34: =CHOOSE(Cover!$H$8, 'i24'!U34,'i25'!U34,'i26'!U34,'i27'!U34,'i28'!U34) -> 0.02 | V34: =CHOOSE(Cover!$H$8, 'i24'!V34,'i25'!V34,'i26'!V34,'i27'!V34,'i28'!V34) -> 0.02 | W34: =CHOOSE(Cover!$H$8, 'i24'!W34,'i25'!W34,'i26'!W34,'i27'!W34,'i28'!W34) -> 0.02
D35: Changes in CPI (disclosure year average) | G35: % | I35: =CHOOSE(Cover!$H$8, 'i24'!I35,'i25'!I35,'i26'!I35,'i27'!I35,'i28'!I35) -> 0.0193687231 | J35: =CHOOSE(Cover!$H$8, 'i24'!J35,'i25'!J35,'i26'!J35,'i27'!J35,'i28'!J35) -> 0.06286652592 | K35: =CHOOSE(Cover!$H$8, 'i24'!K35,'i25'!K35,'i26'!K35,'i27'!K35,'i28'!K35) -> 0.06775546237 | L35: =CHOOSE(Cover!$H$8, 'i24'!L35,'i25'!L35,'i26'!L35,'i27'!L35,'i28'!L35) -> 0.04402645721 | M35: =CHOOSE(Cover!$H$8, 'i24'!M35,'i25'!M35,'i26'!M35,'i27'!M35,'i28'!M35) -> 0.02274915858 | N35: =CHOOSE(Cover!$H$8, 'i24'!N35,'i25'!N35,'i26'!N35,'i27'!N35,'i28'!N35) -> 0.02199113592 | O35: =CHOOSE(Cover!$H$8, 'i24'!O35,'i25'!O35,'i26'!O35,'i27'!O35,'i28'!O35) -> 0.02 | P35: =CHOOSE(Cover!$H$8, 'i24'!P35,'i25'!P35,'i26'!P35,'i27'!P35,'i28'!P35) -> 0.02 | Q35: =CHOOSE(Cover!$H$8, 'i24'!Q35,'i25'!Q35,'i26'!Q35,'i27'!Q35,'i28'!Q35) -> 0.02 | R35: =CHOOSE(Cover!$H$8, 'i24'!R35,'i25'!R35,'i26'!R35,'i27'!R35,'i28'!R35) -> 0.02 | S35: =CHOOSE(Cover!$H$8, 'i24'!S35,'i25'!S35,'i26'!S35,'i27'!S35,'i28'!S35) -> 0.02 | T35: =CHOOSE(Cover!$H$8, 'i24'!T35,'i25'!T35,'i26'!T35,'i27'!T35,'i28'!T35) -> 0.02 | U35: =CHOOSE(Cover!$H$8, 'i24'!U35,'i25'!U35,'i26'!U35,'i27'!U35,'i28'!U35) -> 0.02 | V35: =CHOOSE(Cover!$H$8, 'i24'!V35,'i25'!V35,'i26'!V35,'i27'!V35,'i28'!V35) -> 0.02 | W35: =CHOOSE(Cover!$H$8, 'i24'!W35,'i25'!W35,'i26'!W35,'i27'!W35,'i28'!W35) -> 0.02
D36: RCP3 forecast CPI | G36: % | I36: =CHOOSE(Cover!$H$8, 'i24'!I36,'i25'!I36,'i26'!I36,'i27'!I36,'i28'!I36) -> 0.019 | J36: =CHOOSE(Cover!$H$8, 'i24'!J36,'i25'!J36,'i26'!J36,'i27'!J36,'i28'!J36) -> 0.021 | K36: =CHOOSE(Cover!$H$8, 'i24'!K36,'i25'!K36,'i26'!K36,'i27'!K36,'i28'!K36) -> 0.02 | L36: =CHOOSE(Cover!$H$8, 'i24'!L36,'i25'!L36,'i26'!L36,'i27'!L36,'i28'!L36) -> 0.02 | M36: =CHOOSE(Cover!$H$8, 'i24'!M36,'i25'!M36,'i26'!M36,'i27'!M36,'i28'!M36) -> 0.02
D37: RCP3 forecast CPI index (to 2021) | G37: scalar | I37: =CHOOSE(Cover!$H$8, 'i24'!I37,'i25'!I37,'i26'!I37,'i27'!I37,'i28'!I37) -> 1.052644067
D38: RCP3 actual CPI index (to 2021) | G38: scalar | I38: =CHOOSE(Cover!$H$8, 'i24'!I38,'i25'!I38,'i26'!I38,'i27'!I38,'i28'!I38) -> 1.055982165
D39: RCP4 forecast CPI | G39: % | K39: =CHOOSE(Cover!$H$8, 'i24'!K39,'i25'!K39,'i26'!K39,'i27'!K39,'i28'!K39) -> 0.06775546237 | L39: =CHOOSE(Cover!$H$8, 'i24'!L39,'i25'!L39,'i26'!L39,'i27'!L39,'i28'!L39) -> 0.04402645721 | M39: =CHOOSE(Cover!$H$8, 'i24'!M39,'i25'!M39,'i26'!M39,'i27'!M39,'i28'!M39) -> 0.02274915858 | N39: =CHOOSE(Cover!$H$8, 'i24'!N39,'i25'!N39,'i26'!N39,'i27'!N39,'i28'!N39) -> 0.02199113592 | O39: =CHOOSE(Cover!$H$8, 'i24'!O39,'i25'!O39,'i26'!O39,'i27'!O39,'i28'!O39) -> 0.02 | P39: =CHOOSE(Cover!$H$8, 'i24'!P39,'i25'!P39,'i26'!P39,'i27'!P39,'i28'!P39) -> 0.02 | Q39: =CHOOSE(Cover!$H$8, 'i24'!Q39,'i25'!Q39,'i26'!Q39,'i27'!Q39,'i28'!Q39) -> 0.02 | R39: =CHOOSE(Cover!$H$8, 'i24'!R39,'i25'!R39,'i26'!R39,'i27'!R39,'i28'!R39) -> 0.02
D40: RCP5 forecast CPI | G40: % | P40: =CHOOSE(Cover!$H$8, 'i24'!P40,'i25'!P40,'i26'!P40,'i27'!P40,'i28'!P40) -> 0.02 | Q40: =CHOOSE(Cover!$H$8, 'i24'!Q40,'i25'!Q40,'i26'!Q40,'i27'!Q40,'i28'!Q40) -> 0.02 | R40: =CHOOSE(Cover!$H$8, 'i24'!R40,'i25'!R40,'i26'!R40,'i27'!R40,'i28'!R40) -> 0.02 | S40: =CHOOSE(Cover!$H$8, 'i24'!S40,'i25'!S40,'i26'!S40,'i27'!S40,'i28'!S40) -> 0.02 | T40: =CHOOSE(Cover!$H$8, 'i24'!T40,'i25'!T40,'i26'!T40,'i27'!T40,'i28'!T40) -> 0.02 | U40: =CHOOSE(Cover!$H$8, 'i24'!U40,'i25'!U40,'i26'!U40,'i27'!U40,'i28'!U40) -> 0.02 | V40: =CHOOSE(Cover!$H$8, 'i24'!V40,'i25'!V40,'i26'!V40,'i27'!V40,'i28'!V40) -> 0.02 | W40: =CHOOSE(Cover!$H$8, 'i24'!W40,'i25'!W40,'i26'!W40,'i27'!W40,'i28'!W40) -> 0.02
C42: Other financial parameters
C43: Note:
D45: Corporate tax rate | G45: % | I45: =CHOOSE(Cover!$H$8, 'i24'!I45,'i25'!I45,'i26'!I45,'i27'!I45,'i28'!I45) -> 0.28 | J45: =CHOOSE(Cover!$H$8, 'i24'!J45,'i25'!J45,'i26'!J45,'i27'!J45,'i28'!J45) -> 0.28 | K45: =CHOOSE(Cover!$H$8, 'i24'!K45,'i25'!K45,'i26'!K45,'i27'!K45,'i28'!K45) -> 0.28 | L45: =CHOOSE(Cover!$H$8, 'i24'!L45,'i25'!L45,'i26'!L45,'i27'!L45,'i28'!L45) -> 0.28 | M45: =CHOOSE(Cover!$H$8, 'i24'!M45,'i25'!M45,'i26'!M45,'i27'!M45,'i28'!M45) -> 0.28 | N45: =CHOOSE(Cover!$H$8, 'i24'!N45,'i25'!N45,'i26'!N45,'i27'!N45,'i28'!N45) -> 0.28 | O45: =CHOOSE(Cover!$H$8, 'i24'!O45,'i25'!O45,'i26'!O45,'i27'!O45,'i28'!O45) -> 0.28 | P45: =CHOOSE(Cover!$H$8, 'i24'!P45,'i25'!P45,'i26'!P45,'i27'!P45,'i28'!P45) -> 0.28 | Q45: =CHOOSE(Cover!$H$8, 'i24'!Q45,'i25'!Q45,'i26'!Q45,'i27'!Q45,'i28'!Q45) -> 0.28 | R45: =CHOOSE(Cover!$H$8, 'i24'!R45,'i25'!R45,'i26'!R45,'i27'!R45,'i28'!R45) -> 0.28 | S45: =CHOOSE(Cover!$H$8, 'i24'!S45,'i25'!S45,'i26'!S45,'i27'!S45,'i28'!S45) -> 0.28 | T45: =CHOOSE(Cover!$H$8, 'i24'!T45,'i25'!T45,'i26'!T45,'i27'!T45,'i28'!T45) -> 0.28 | U45: =CHOOSE(Cover!$H$8, 'i24'!U45,'i25'!U45,'i26'!U45,'i27'!U45,'i28'!U45) -> 0.28 | V45: =CHOOSE(Cover!$H$8, 'i24'!V45,'i25'!V45,'i26'!V45,'i27'!V45,'i28'!V45) -> 0.28 | W45: =CHOOSE(Cover!$H$8, 'i24'!W45,'i25'!W45,'i26'!W45,'i27'!W45,'i28'!W45) -> 0.28
D46: Revenue growth rate | G46: % | I46: =CHOOSE(Cover!$H$8, 'i24'!I46,'i25'!I46,'i26'!I46,'i27'!I46,'i28'!I46) -> 0.0126 | J46: =CHOOSE(Cover!$H$8, 'i24'!J46,'i25'!J46,'i26'!J46,'i27'!J46,'i28'!J46) -> 0.0126 | K46: =CHOOSE(Cover!$H$8, 'i24'!K46,'i25'!K46,'i26'!K46,'i27'!K46,'i28'!K46) -> 0.0126 | L46: =CHOOSE(Cover!$H$8, 'i24'!L46,'i25'!L46,'i26'!L46,'i27'!L46,'i28'!L46) -> 0.0126 | M46: =CHOOSE(Cover!$H$8, 'i24'!M46,'i25'!M46,'i26'!M46,'i27'!M46,'i28'!M46) -> 0.0126 | N46: =CHOOSE(Cover!$H$8, 'i24'!N46,'i25'!N46,'i26'!N46,'i27'!N46,'i28'!N46) -> 0 | O46: =CHOOSE(Cover!$H$8, 'i24'!O46,'i25'!O46,'i26'!O46,'i27'!O46,'i28'!O46) -> 0 | P46: =CHOOSE(Cover!$H$8, 'i24'!P46,'i25'!P46,'i26'!P46,'i27'!P46,'i28'!P46) -> 0.05 | Q46: =CHOOSE(Cover!$H$8, 'i24'!Q46,'i25'!Q46,'i26'!Q46,'i27'!Q46,'i28'!Q46) -> 0.05 | R46: =CHOOSE(Cover!$H$8, 'i24'!R46,'i25'!R46,'i26'!R46,'i27'!R46,'i28'!R46) -> 0.05 | S46: =CHOOSE(Cover!$H$8, 'i24'!S46,'i25'!S46,'i26'!S46,'i27'!S46,'i28'!S46) -> 0.02 | T46: =CHOOSE(Cover!$H$8, 'i24'!T46,'i25'!T46,'i26'!T46,'i27'!T46,'i28'!T46) -> 0.02 | U46: =CHOOSE(Cover!$H$8, 'i24'!U46,'i25'!U46,'i26'!U46,'i27'!U46,'i28'!U46) -> 0.02 | V46: =CHOOSE(Cover!$H$8, 'i24'!V46,'i25'!V46,'i26'!V46,'i27'!V46,'i28'!V46) -> 0.02 | W46: =CHOOSE(Cover!$H$8, 'i24'!W46,'i25'!W46,'i26'!W46,'i27'!W46,'i28'!W46) -> 0.02
B48: Expenditure allowances
C50: Base capex allowance
C51: Note: By identified programme.
D53: Unassigned | G53: $m | I53: =CHOOSE(Cover!$H$8, 'i24'!I53,'i25'!I53,'i26'!I53,'i27'!I53,'i28'!I53) -> 222.877652 | J53: =CHOOSE(Cover!$H$8, 'i24'!J53,'i25'!J53,'i26'!J53,'i27'!J53,'i28'!J53) -> 279.197023 | K53: =CHOOSE(Cover!$H$8, 'i24'!K53,'i25'!K53,'i26'!K53,'i27'!K53,'i28'!K53) -> 293.4826477 | L53: =CHOOSE(Cover!$H$8, 'i24'!L53,'i25'!L53,'i26'!L53,'i27'!L53,'i28'!L53) -> 297.7629417 | M53: =CHOOSE(Cover!$H$8, 'i24'!M53,'i25'!M53,'i26'!M53,'i27'!M53,'i28'!M53) -> 303.7769725 | N53: =CHOOSE(Cover!$H$8, 'i24'!N53,'i25'!N53,'i26'!N53,'i27'!N53,'i28'!N53) -> 0 | O53: =CHOOSE(Cover!$H$8, 'i24'!O53,'i25'!O53,'i26'!O53,'i27'!O53,'i28'!O53) -> 0 | P53: =CHOOSE(Cover!$H$8, 'i24'!P53,'i25'!P53,'i26'!P53,'i27'!P53,'i28'!P53) -> 0 | Q53: =CHOOSE(Cover!$H$8, 'i24'!Q53,'i25'!Q53,'i26'!Q53,'i27'!Q53,'i28'!Q53) -> 0 | R53: =CHOOSE(Cover!$H$8, 'i24'!R53,'i25'!R53,'i26'!R53,'i27'!R53,'i28'!R53) -> 0 | S53: =CHOOSE(Cover!$H$8, 'i24'!S53,'i25'!S53,'i26'!S53,'i27'!S53,'i28'!S53) -> 0 | T53: =CHOOSE(Cover!$H$8, 'i24'!T53,'i25'!T53,'i26'!T53,'i27'!T53,'i28'!T53) -> 0 | U53: =CHOOSE(Cover!$H$8, 'i24'!U53,'i25'!U53,'i26'!U53,'i27'!U53,'i28'!U53) -> 0 | V53: =CHOOSE(Cover!$H$8, 'i24'!V53,'i25'!V53,'i26'!V53,'i27'!V53,'i28'!V53) -> 0 | W53: =CHOOSE(Cover!$H$8, 'i24'!W53,'i25'!W53,'i26'!W53,'i27'!W53,'i28'!W53) -> 0
D54: AC substations | G54: $m | I54: =CHOOSE(Cover!$H$8, 'i24'!I54,'i25'!I54,'i26'!I54,'i27'!I54,'i28'!I54) -> 0 | J54: =CHOOSE(Cover!$H$8, 'i24'!J54,'i25'!J54,'i26'!J54,'i27'!J54,'i28'!J54) -> 0 | K54: =CHOOSE(Cover!$H$8, 'i24'!K54,'i25'!K54,'i26'!K54,'i27'!K54,'i28'!K54) -> 0 | L54: =CHOOSE(Cover!$H$8, 'i24'!L54,'i25'!L54,'i26'!L54,'i27'!L54,'i28'!L54) -> 0 | M54: =CHOOSE(Cover!$H$8, 'i24'!M54,'i25'!M54,'i26'!M54,'i27'!M54,'i28'!M54) -> 0 | N54: =CHOOSE(Cover!$H$8, 'i24'!N54,'i25'!N54,'i26'!N54,'i27'!N54,'i28'!N54) -> 128.6596882 | O54: =CHOOSE(Cover!$H$8, 'i24'!O54,'i25'!O54,'i26'!O54,'i27'!O54,'i28'!O54) -> 104.1836388 | P54: =CHOOSE(Cover!$H$8, 'i24'!P54,'i25'!P54,'i26'!P54,'i27'!P54,'i28'!P54) -> 90.18961312 | Q54: =CHOOSE(Cover!$H$8, 'i24'!Q54,'i25'!Q54,'i26'!Q54,'i27'!Q54,'i28'!Q54) -> 117.1786723 | R54: =CHOOSE(Cover!$H$8, 'i24'!R54,'i25'!R54,'i26'!R54,'i27'!R54,'i28'!R54) -> 116.1372429 | S54: =CHOOSE(Cover!$H$8, 'i24'!S54,'i25'!S54,'i26'!S54,'i27'!S54,'i28'!S54) -> 79.35354615 | T54: =CHOOSE(Cover!$H$8, 'i24'!T54,'i25'!T54,'i26'!T54,'i27'!T54,'i28'!T54) -> 155.6490995 | U54: =CHOOSE(Cover!$H$8, 'i24'!U54,'i25'!U54,'i26'!U54,'i27'!U54,'i28'!U54) -> 150.8443449 | V54: =CHOOSE(Cover!$H$8, 'i24'!V54,'i25'!V54,'i26'!V54,'i27'!V54,'i28'!V54) -> 133.7604368 | W54: =CHOOSE(Cover!$H$8, 'i24'!W54,'i25'!W54,'i26'!W54,'i27'!W54,'i28'!W54) -> 93.28922993
D55: ACS buildings and grounds | G55: $m | I55: =CHOOSE(Cover!$H$8, 'i24'!I55,'i25'!I55,'i26'!I55,'i27'!I55,'i28'!I55) -> 0 | J55: =CHOOSE(Cover!$H$8, 'i24'!J55,'i25'!J55,'i26'!J55,'i27'!J55,'i28'!J55) -> 0 | K55: =CHOOSE(Cover!$H$8, 'i24'!K55,'i25'!K55,'i26'!K55,'i27'!K55,'i28'!K55) -> 0 | L55: =CHOOSE(Cover!$H$8, 'i24'!L55,'i25'!L55,'i26'!L55,'i27'!L55,'i28'!L55) -> 0 | M55: =CHOOSE(Cover!$H$8, 'i24'!M55,'i25'!M55,'i26'!M55,'i27'!M55,'i28'!M55) -> 0 | N55: =CHOOSE(Cover!$H$8, 'i24'!N55,'i25'!N55,'i26'!N55,'i27'!N55,'i28'!N55) -> 21.37944903 | O55: =CHOOSE(Cover!$H$8, 'i24'!O55,'i25'!O55,'i26'!O55,'i27'!O55,'i28'!O55) -> 19.03778622 | P55: =CHOOSE(Cover!$H$8, 'i24'!P55,'i25'!P55,'i26'!P55,'i27'!P55,'i28'!P55) -> 17.46939219 | Q55: =CHOOSE(Cover!$H$8, 'i24'!Q55,'i25'!Q55,'i26'!Q55,'i27'!Q55,'i28'!Q55) -> 16.76689157 | R55: =CHOOSE(Cover!$H$8, 'i24'!R55,'i25'!R55,'i26'!R55,'i27'!R55,'i28'!R55) -> 16.20799183 | S55: =CHOOSE(Cover!$H$8, 'i24'!S55,'i25'!S55,'i26'!S55,'i27'!S55,'i28'!S55) -> 12.75800255 | T55: =CHOOSE(Cover!$H$8, 'i24'!T55,'i25'!T55,'i26'!T55,'i27'!T55,'i28'!T55) -> 11.87881069 | U55: =CHOOSE(Cover!$H$8, 'i24'!U55,'i25'!U55,'i26'!U55,'i27'!U55,'i28'!U55) -> 13.7321516 | V55: =CHOOSE(Cover!$H$8, 'i24'!V55,'i25'!V55,'i26'!V55,'i27'!V55,'i28'!V55) -> 11.9037436 | W55: =CHOOSE(Cover!$H$8, 'i24'!W55,'i25'!W55,'i26'!W55,'i27'!W55,'i28'!W55) -> 15.45832062
D56: Transmission lines | G56: $m | I56: =CHOOSE(Cover!$H$8, 'i24'!I56,'i25'!I56,'i26'!I56,'i27'!I56,'i28'!I56) -> 0 | J56: =CHOOSE(Cover!$H$8, 'i24'!J56,'i25'!J56,'i26'!J56,'i27'!J56,'i28'!J56) -> 0 | K56: =CHOOSE(Cover!$H$8, 'i24'!K56,'i25'!K56,'i26'!K56,'i27'!K56,'i28'!K56) -> 0 | L56: =CHOOSE(Cover!$H$8, 'i24'!L56,'i25'!L56,'i26'!L56,'i27'!L56,'i28'!L56) -> 0 | M56: =CHOOSE(Cover!$H$8, 'i24'!M56,'i25'!M56,'i26'!M56,'i27'!M56,'i28'!M56) -> 0 | N56: =CHOOSE(Cover!$H$8, 'i24'!N56,'i25'!N56,'i26'!N56,'i27'!N56,'i28'!N56) -> 137.6660245 | O56: =CHOOSE(Cover!$H$8, 'i24'!O56,'i25'!O56,'i26'!O56,'i27'!O56,'i28'!O56) -> 156.1688954 | P56: =CHOOSE(Cover!$H$8, 'i24'!P56,'i25'!P56,'i26'!P56,'i27'!P56,'i28'!P56) -> 154.0949164 | Q56: =CHOOSE(Cover!$H$8, 'i24'!Q56,'i25'!Q56,'i26'!Q56,'i27'!Q56,'i28'!Q56) -> 161.8803067 | R56: =CHOOSE(Cover!$H$8, 'i24'!R56,'i25'!R56,'i26'!R56,'i27'!R56,'i28'!R56) -> 193.4826682 | S56: =CHOOSE(Cover!$H$8, 'i24'!S56,'i25'!S56,'i26'!S56,'i27'!S56,'i28'!S56) -> 179.1675508 | T56: =CHOOSE(Cover!$H$8, 'i24'!T56,'i25'!T56,'i26'!T56,'i27'!T56,'i28'!T56) -> 187.1806675 | U56: =CHOOSE(Cover!$H$8, 'i24'!U56,'i25'!U56,'i26'!U56,'i27'!U56,'i28'!U56) -> 202.1324681 | V56: =CHOOSE(Cover!$H$8, 'i24'!V56,'i25'!V56,'i26'!V56,'i27'!V56,'i28'!V56) -> 217.5077529 | W56: =CHOOSE(Cover!$H$8, 'i24'!W56,'i25'!W56,'i26'!W56,'i27'!W56,'i28'!W56) -> 234.9705652
D57: HVDC and reactive assets | G57: $m | I57: =CHOOSE(Cover!$H$8, 'i24'!I57,'i25'!I57,'i26'!I57,'i27'!I57,'i28'!I57) -> 0 | J57: =CHOOSE(Cover!$H$8, 'i24'!J57,'i25'!J57,'i26'!J57,'i27'!J57,'i28'!J57) -> 0 | K57: =CHOOSE(Cover!$H$8, 'i24'!K57,'i25'!K57,'i26'!K57,'i27'!K57,'i28'!K57) -> 0 | L57: =CHOOSE(Cover!$H$8, 'i24'!L57,'i25'!L57,'i26'!L57,'i27'!L57,'i28'!L57) -> 0 | M57: =CHOOSE(Cover!$H$8, 'i24'!M57,'i25'!M57,'i26'!M57,'i27'!M57,'i28'!M57) -> 0 | N57: =CHOOSE(Cover!$H$8, 'i24'!N57,'i25'!N57,'i26'!N57,'i27'!N57,'i28'!N57) -> 24.80875411 | O57: =CHOOSE(Cover!$H$8, 'i24'!O57,'i25'!O57,'i26'!O57,'i27'!O57,'i28'!O57) -> 44.09790506 | P57: =CHOOSE(Cover!$H$8, 'i24'!P57,'i25'!P57,'i26'!P57,'i27'!P57,'i28'!P57) -> 41.53829491 | Q57: =CHOOSE(Cover!$H$8, 'i24'!Q57,'i25'!Q57,'i26'!Q57,'i27'!Q57,'i28'!Q57) -> 38.99613688 | R57: =CHOOSE(Cover!$H$8, 'i24'!R57,'i25'!R57,'i26'!R57,'i27'!R57,'i28'!R57) -> 32.52567072 | S57: =CHOOSE(Cover!$H$8, 'i24'!S57,'i25'!S57,'i26'!S57,'i27'!S57,'i28'!S57) -> 35.34007294 | T57: =CHOOSE(Cover!$H$8, 'i24'!T57,'i25'!T57,'i26'!T57,'i27'!T57,'i28'!T57) -> 39.22606556 | U57: =CHOOSE(Cover!$H$8, 'i24'!U57,'i25'!U57,'i26'!U57,'i27'!U57,'i28'!U57) -> 38.79282688 | V57: =CHOOSE(Cover!$H$8, 'i24'!V57,'i25'!V57,'i26'!V57,'i27'!V57,'i28'!V57) -> 34.48953938 | W57: =CHOOSE(Cover!$H$8, 'i24'!W57,'i25'!W57,'i26'!W57,'i27'!W57,'i28'!W57) -> 37.13314669
D58: Secondary assets | G58: $m | I58: =CHOOSE(Cover!$H$8, 'i24'!I58,'i25'!I58,'i26'!I58,'i27'!I58,'i28'!I58) -> 0 | J58: =CHOOSE(Cover!$H$8, 'i24'!J58,'i25'!J58,'i26'!J58,'i27'!J58,'i28'!J58) -> 0 | K58: =CHOOSE(Cover!$H$8, 'i24'!K58,'i25'!K58,'i26'!K58,'i27'!K58,'i28'!K58) -> 0 | L58: =CHOOSE(Cover!$H$8, 'i24'!L58,'i25'!L58,'i26'!L58,'i27'!L58,'i28'!L58) -> 0 | M58: =CHOOSE(Cover!$H$8, 'i24'!M58,'i25'!M58,'i26'!M58,'i27'!M58,'i28'!M58) -> 0 | N58: =CHOOSE(Cover!$H$8, 'i24'!N58,'i25'!N58,'i26'!N58,'i27'!N58,'i28'!N58) -> 56.79336174 | O58: =CHOOSE(Cover!$H$8, 'i24'!O58,'i25'!O58,'i26'!O58,'i27'!O58,'i28'!O58) -> 76.66592489 | P58: =CHOOSE(Cover!$H$8, 'i24'!P58,'i25'!P58,'i26'!P58,'i27'!P58,'i28'!P58) -> 62.95130389 | Q58: =CHOOSE(Cover!$H$8, 'i24'!Q58,'i25'!Q58,'i26'!Q58,'i27'!Q58,'i28'!Q58) -> 59.04742798 | R58: =CHOOSE(Cover!$H$8, 'i24'!R58,'i25'!R58,'i26'!R58,'i27'!R58,'i28'!R58) -> 60.45494121 | S58: =CHOOSE(Cover!$H$8, 'i24'!S58,'i25'!S58,'i26'!S58,'i27'!S58,'i28'!S58) -> 55.36220754 | T58: =CHOOSE(Cover!$H$8, 'i24'!T58,'i25'!T58,'i26'!T58,'i27'!T58,'i28'!T58) -> 67.46388631 | U58: =CHOOSE(Cover!$H$8, 'i24'!U58,'i25'!U58,'i26'!U58,'i27'!U58,'i28'!U58) -> 66.55041915 | V58: =CHOOSE(Cover!$H$8, 'i24'!V58,'i25'!V58,'i26'!V58,'i27'!V58,'i28'!V58) -> 67.69603334 | W58: =CHOOSE(Cover!$H$8, 'i24'!W58,'i25'!W58,'i26'!W58,'i27'!W58,'i28'!W58) -> 58.33032537
D59: Enhancement and development | G59: $m | I59: =CHOOSE(Cover!$H$8, 'i24'!I59,'i25'!I59,'i26'!I59,'i27'!I59,'i28'!I59) -> 0 | J59: =CHOOSE(Cover!$H$8, 'i24'!J59,'i25'!J59,'i26'!J59,'i27'!J59,'i28'!J59) -> 0 | K59: =CHOOSE(Cover!$H$8, 'i24'!K59,'i25'!K59,'i26'!K59,'i27'!K59,'i28'!K59) -> 0 | L59: =CHOOSE(Cover!$H$8, 'i24'!L59,'i25'!L59,'i26'!L59,'i27'!L59,'i28'!L59) -> 0 | M59: =CHOOSE(Cover!$H$8, 'i24'!M59,'i25'!M59,'i26'!M59,'i27'!M59,'i28'!M59) -> 0 | N59: =CHOOSE(Cover!$H$8, 'i24'!N59,'i25'!N59,'i26'!N59,'i27'!N59,'i28'!N59) -> 17.87955694 | O59: =CHOOSE(Cover!$H$8, 'i24'!O59,'i25'!O59,'i26'!O59,'i27'!O59,'i28'!O59) -> 23.52161156 | P59: =CHOOSE(Cover!$H$8, 'i24'!P59,'i25'!P59,'i26'!P59,'i27'!P59,'i28'!P59) -> 30.23434378 | Q59: =CHOOSE(Cover!$H$8, 'i24'!Q59,'i25'!Q59,'i26'!Q59,'i27'!Q59,'i28'!Q59) -> 30.11672557 | R59: =CHOOSE(Cover!$H$8, 'i24'!R59,'i25'!R59,'i26'!R59,'i27'!R59,'i28'!R59) -> 24.89055712 | S59: =CHOOSE(Cover!$H$8, 'i24'!S59,'i25'!S59,'i26'!S59,'i27'!S59,'i28'!S59) -> 28.59030251 | T59: =CHOOSE(Cover!$H$8, 'i24'!T59,'i25'!T59,'i26'!T59,'i27'!T59,'i28'!T59) -> 29.53890241 | U59: =CHOOSE(Cover!$H$8, 'i24'!U59,'i25'!U59,'i26'!U59,'i27'!U59,'i28'!U59) -> 30.34529298 | V59: =CHOOSE(Cover!$H$8, 'i24'!V59,'i25'!V59,'i26'!V59,'i27'!V59,'i28'!V59) -> 29.87855133 | W59: =CHOOSE(Cover!$H$8, 'i24'!W59,'i25'!W59,'i26'!W59,'i27'!W59,'i28'!W59) -> 29.52898764
D60: Resilience (base) | G60: $m | I60: =CHOOSE(Cover!$H$8, 'i24'!I60,'i25'!I60,'i26'!I60,'i27'!I60,'i28'!I60) -> 0 | J60: =CHOOSE(Cover!$H$8, 'i24'!J60,'i25'!J60,'i26'!J60,'i27'!J60,'i28'!J60) -> 0 | K60: =CHOOSE(Cover!$H$8, 'i24'!K60,'i25'!K60,'i26'!K60,'i27'!K60,'i28'!K60) -> 0 | L60: =CHOOSE(Cover!$H$8, 'i24'!L60,'i25'!L60,'i26'!L60,'i27'!L60,'i28'!L60) -> 0 | M60: =CHOOSE(Cover!$H$8, 'i24'!M60,'i25'!M60,'i26'!M60,'i27'!M60,'i28'!M60) -> 0 | N60: =CHOOSE(Cover!$H$8, 'i24'!N60,'i25'!N60,'i26'!N60,'i27'!N60,'i28'!N60) -> 33.47634961 | O60: =CHOOSE(Cover!$H$8, 'i24'!O60,'i25'!O60,'i26'!O60,'i27'!O60,'i28'!O60) -> 34.14754776 | P60: =CHOOSE(Cover!$H$8, 'i24'!P60,'i25'!P60,'i26'!P60,'i27'!P60,'i28'!P60) -> 24.87086436 | Q60: =CHOOSE(Cover!$H$8, 'i24'!Q60,'i25'!Q60,'i26'!Q60,'i27'!Q60,'i28'!Q60) -> 25.25226091 | R60: =CHOOSE(Cover!$H$8, 'i24'!R60,'i25'!R60,'i26'!R60,'i27'!R60,'i28'!R60) -> 25.6560825 | S60: =CHOOSE(Cover!$H$8, 'i24'!S60,'i25'!S60,'i26'!S60,'i27'!S60,'i28'!S60) -> 45.9276211 | T60: =CHOOSE(Cover!$H$8, 'i24'!T60,'i25'!T60,'i26'!T60,'i27'!T60,'i28'!T60) -> 46.97163779 | U60: =CHOOSE(Cover!$H$8, 'i24'!U60,'i25'!U60,'i26'!U60,'i27'!U60,'i28'!U60) -> 48.0251726 | V60: =CHOOSE(Cover!$H$8, 'i24'!V60,'i25'!V60,'i26'!V60,'i27'!V60,'i28'!V60) -> 49.11591326 | W60: =CHOOSE(Cover!$H$8, 'i24'!W60,'i25'!W60,'i26'!W60,'i27'!W60,'i28'!W60) -> 50.18117185
D61: ICT | G61: $m | I61: =CHOOSE(Cover!$H$8, 'i24'!I61,'i25'!I61,'i26'!I61,'i27'!I61,'i28'!I61) -> 0 | J61: =CHOOSE(Cover!$H$8, 'i24'!J61,'i25'!J61,'i26'!J61,'i27'!J61,'i28'!J61) -> 0 | K61: =CHOOSE(Cover!$H$8, 'i24'!K61,'i25'!K61,'i26'!K61,'i27'!K61,'i28'!K61) -> 0 | L61: =CHOOSE(Cover!$H$8, 'i24'!L61,'i25'!L61,'i26'!L61,'i27'!L61,'i28'!L61) -> 0 | M61: =CHOOSE(Cover!$H$8, 'i24'!M61,'i25'!M61,'i26'!M61,'i27'!M61,'i28'!M61) -> 0 | N61: =CHOOSE(Cover!$H$8, 'i24'!N61,'i25'!N61,'i26'!N61,'i27'!N61,'i28'!N61) -> 59.49864785 | O61: =CHOOSE(Cover!$H$8, 'i24'!O61,'i25'!O61,'i26'!O61,'i27'!O61,'i28'!O61) -> 68.22976551 | P61: =CHOOSE(Cover!$H$8, 'i24'!P61,'i25'!P61,'i26'!P61,'i27'!P61,'i28'!P61) -> 53.61591762 | Q61: =CHOOSE(Cover!$H$8, 'i24'!Q61,'i25'!Q61,'i26'!Q61,'i27'!Q61,'i28'!Q61) -> 31.01113982 | R61: =CHOOSE(Cover!$H$8, 'i24'!R61,'i25'!R61,'i26'!R61,'i27'!R61,'i28'!R61) -> 23.18231267 | S61: =CHOOSE(Cover!$H$8, 'i24'!S61,'i25'!S61,'i26'!S61,'i27'!S61,'i28'!S61) -> 37.51826201 | T61: =CHOOSE(Cover!$H$8, 'i24'!T61,'i25'!T61,'i26'!T61,'i27'!T61,'i28'!T61) -> 38.26862672 | U61: =CHOOSE(Cover!$H$8, 'i24'!U61,'i25'!U61,'i26'!U61,'i27'!U61,'i28'!U61) -> 39.03400099 | V61: =CHOOSE(Cover!$H$8, 'i24'!V61,'i25'!V61,'i26'!V61,'i27'!V61,'i28'!V61) -> 39.81468013 | W61: =CHOOSE(Cover!$H$8, 'i24'!W61,'i25'!W61,'i26'!W61,'i27'!W61,'i28'!W61) -> 40.61097308
D62: Business support | G62: $m | I62: =CHOOSE(Cover!$H$8, 'i24'!I62,'i25'!I62,'i26'!I62,'i27'!I62,'i28'!I62) -> 0 | J62: =CHOOSE(Cover!$H$8, 'i24'!J62,'i25'!J62,'i26'!J62,'i27'!J62,'i28'!J62) -> 0 | K62: =CHOOSE(Cover!$H$8, 'i24'!K62,'i25'!K62,'i26'!K62,'i27'!K62,'i28'!K62) -> 0 | L62: =CHOOSE(Cover!$H$8, 'i24'!L62,'i25'!L62,'i26'!L62,'i27'!L62,'i28'!L62) -> 0 | M62: =CHOOSE(Cover!$H$8, 'i24'!M62,'i25'!M62,'i26'!M62,'i27'!M62,'i28'!M62) -> 0 | N62: =CHOOSE(Cover!$H$8, 'i24'!N62,'i25'!N62,'i26'!N62,'i27'!N62,'i28'!N62) -> 8.194422916 | O62: =CHOOSE(Cover!$H$8, 'i24'!O62,'i25'!O62,'i26'!O62,'i27'!O62,'i28'!O62) -> 10.4086219 | P62: =CHOOSE(Cover!$H$8, 'i24'!P62,'i25'!P62,'i26'!P62,'i27'!P62,'i28'!P62) -> 4.106661121 | Q62: =CHOOSE(Cover!$H$8, 'i24'!Q62,'i25'!Q62,'i26'!Q62,'i27'!Q62,'i28'!Q62) -> 4.930875807 | R62: =CHOOSE(Cover!$H$8, 'i24'!R62,'i25'!R62,'i26'!R62,'i27'!R62,'i28'!R62) -> 5.02945716 | S62: =CHOOSE(Cover!$H$8, 'i24'!S62,'i25'!S62,'i26'!S62,'i27'!S62,'i28'!S62) -> 6.893587751 | T62: =CHOOSE(Cover!$H$8, 'i24'!T62,'i25'!T62,'i26'!T62,'i27'!T62,'i28'!T62) -> 6.235368097 | U62: =CHOOSE(Cover!$H$8, 'i24'!U62,'i25'!U62,'i26'!U62,'i27'!U62,'i28'!U62) -> 6.489027103 | V62: =CHOOSE(Cover!$H$8, 'i24'!V62,'i25'!V62,'i26'!V62,'i27'!V62,'i28'!V62) -> 6.754285252 | W62: =CHOOSE(Cover!$H$8, 'i24'!W62,'i25'!W62,'i26'!W62,'i27'!W62,'i28'!W62) -> 7.031702488
D63: RPE and timing adjustment | G63: $m | I63: =CHOOSE(Cover!$H$8, 'i24'!I63,'i25'!I63,'i26'!I63,'i27'!I63,'i28'!I63) -> 0 | J63: =CHOOSE(Cover!$H$8, 'i24'!J63,'i25'!J63,'i26'!J63,'i27'!J63,'i28'!J63) -> 0 | K63: =CHOOSE(Cover!$H$8, 'i24'!K63,'i25'!K63,'i26'!K63,'i27'!K63,'i28'!K63) -> 0 | L63: =CHOOSE(Cover!$H$8, 'i24'!L63,'i25'!L63,'i26'!L63,'i27'!L63,'i28'!L63) -> 0 | M63: =CHOOSE(Cover!$H$8, 'i24'!M63,'i25'!M63,'i26'!M63,'i27'!M63,'i28'!M63) -> 0 | N63: =CHOOSE(Cover!$H$8, 'i24'!N63,'i25'!N63,'i26'!N63,'i27'!N63,'i28'!N63) -> 3.374991839 | O63: =CHOOSE(Cover!$H$8, 'i24'!O63,'i25'!O63,'i26'!O63,'i27'!O63,'i28'!O63) -> 1.791723096 | P63: =CHOOSE(Cover!$H$8, 'i24'!P63,'i25'!P63,'i26'!P63,'i27'!P63,'i28'!P63) -> 2.626416173 | Q63: =CHOOSE(Cover!$H$8, 'i24'!Q63,'i25'!Q63,'i26'!Q63,'i27'!Q63,'i28'!Q63) -> -1.596476903 | R63: =CHOOSE(Cover!$H$8, 'i24'!R63,'i25'!R63,'i26'!R63,'i27'!R63,'i28'!R63) -> -0.154665676 | S63: =CHOOSE(Cover!$H$8, 'i24'!S63,'i25'!S63,'i26'!S63,'i27'!S63,'i28'!S63) -> 0 | T63: =CHOOSE(Cover!$H$8, 'i24'!T63,'i25'!T63,'i26'!T63,'i27'!T63,'i28'!T63) -> 0 | U63: =CHOOSE(Cover!$H$8, 'i24'!U63,'i25'!U63,'i26'!U63,'i27'!U63,'i28'!U63) -> 0 | V63: =CHOOSE(Cover!$H$8, 'i24'!V63,'i25'!V63,'i26'!V63,'i27'!V63,'i28'!V63) -> 0 | W63: =CHOOSE(Cover!$H$8, 'i24'!W63,'i25'!W63,'i26'!W63,'i27'!W63,'i28'!W63) -> 0
D64: Deliverability adjustment | G64: $m | I64: =CHOOSE(Cover!$H$8, 'i24'!I64,'i25'!I64,'i26'!I64,'i27'!I64,'i28'!I64) -> 0 | J64: =CHOOSE(Cover!$H$8, 'i24'!J64,'i25'!J64,'i26'!J64,'i27'!J64,'i28'!J64) -> 0 | K64: =CHOOSE(Cover!$H$8, 'i24'!K64,'i25'!K64,'i26'!K64,'i27'!K64,'i28'!K64) -> 0 | L64: =CHOOSE(Cover!$H$8, 'i24'!L64,'i25'!L64,'i26'!L64,'i27'!L64,'i28'!L64) -> 0 | M64: =CHOOSE(Cover!$H$8, 'i24'!M64,'i25'!M64,'i26'!M64,'i27'!M64,'i28'!M64) -> 0 | N64: =CHOOSE(Cover!$H$8, 'i24'!N64,'i25'!N64,'i26'!N64,'i27'!N64,'i28'!N64) -> -1.526353267 | O64: =CHOOSE(Cover!$H$8, 'i24'!O64,'i25'!O64,'i26'!O64,'i27'!O64,'i28'!O64) -> 0 | P64: =CHOOSE(Cover!$H$8, 'i24'!P64,'i25'!P64,'i26'!P64,'i27'!P64,'i28'!P64) -> -32.26347855 | Q64: =CHOOSE(Cover!$H$8, 'i24'!Q64,'i25'!Q64,'i26'!Q64,'i27'!Q64,'i28'!Q64) -> -32.52310907 | R64: =CHOOSE(Cover!$H$8, 'i24'!R64,'i25'!R64,'i26'!R64,'i27'!R64,'i28'!R64) -> -30.77511885 | S64: =CHOOSE(Cover!$H$8, 'i24'!S64,'i25'!S64,'i26'!S64,'i27'!S64,'i28'!S64) -> 0 | T64: =CHOOSE(Cover!$H$8, 'i24'!T64,'i25'!T64,'i26'!T64,'i27'!T64,'i28'!T64) -> 0 | U64: =CHOOSE(Cover!$H$8, 'i24'!U64,'i25'!U64,'i26'!U64,'i27'!U64,'i28'!U64) -> 0 | V64: =CHOOSE(Cover!$H$8, 'i24'!V64,'i25'!V64,'i26'!V64,'i27'!V64,'i28'!V64) -> 0 | W64: =CHOOSE(Cover!$H$8, 'i24'!W64,'i25'!W64,'i26'!W64,'i27'!W64,'i28'!W64) -> 0
D65: Total base capex allowance | G65: $m | I65: =CHOOSE(Cover!$H$8, 'i24'!I65,'i25'!I65,'i26'!I65,'i27'!I65,'i28'!I65) -> 222.877652 | J65: =CHOOSE(Cover!$H$8, 'i24'!J65,'i25'!J65,'i26'!J65,'i27'!J65,'i28'!J65) -> 279.197023 | K65: =CHOOSE(Cover!$H$8, 'i24'!K65,'i25'!K65,'i26'!K65,'i27'!K65,'i28'!K65) -> 293.4826477 | L65: =CHOOSE(Cover!$H$8, 'i24'!L65,'i25'!L65,'i26'!L65,'i27'!L65,'i28'!L65) -> 297.7629417 | M65: =CHOOSE(Cover!$H$8, 'i24'!M65,'i25'!M65,'i26'!M65,'i27'!M65,'i28'!M65) -> 303.7769725 | N65: =CHOOSE(Cover!$H$8, 'i24'!N65,'i25'!N65,'i26'!N65,'i27'!N65,'i28'!N65) -> 490.2048935 | O65: =CHOOSE(Cover!$H$8, 'i24'!O65,'i25'!O65,'i26'!O65,'i27'!O65,'i28'!O65) -> 538.2534202 | P65: =CHOOSE(Cover!$H$8, 'i24'!P65,'i25'!P65,'i26'!P65,'i27'!P65,'i28'!P65) -> 449.4342451 | Q65: =CHOOSE(Cover!$H$8, 'i24'!Q65,'i25'!Q65,'i26'!Q65,'i27'!Q65,'i28'!Q65) -> 451.0608516 | R65: =CHOOSE(Cover!$H$8, 'i24'!R65,'i25'!R65,'i26'!R65,'i27'!R65,'i28'!R65) -> 466.6371397 | S65: =CHOOSE(Cover!$H$8, 'i24'!S65,'i25'!S65,'i26'!S65,'i27'!S65,'i28'!S65) -> 480.9111534 | T65: =CHOOSE(Cover!$H$8, 'i24'!T65,'i25'!T65,'i26'!T65,'i27'!T65,'i28'!T65) -> 582.4130646 | U65: =CHOOSE(Cover!$H$8, 'i24'!U65,'i25'!U65,'i26'!U65,'i27'!U65,'i28'!U65) -> 595.9457043 | V65: =CHOOSE(Cover!$H$8, 'i24'!V65,'i25'!V65,'i26'!V65,'i27'!V65,'i28'!V65) -> 590.920936 | W65: =CHOOSE(Cover!$H$8, 'i24'!W65,'i25'!W65,'i26'!W65,'i27'!W65,'i28'!W65) -> 566.5344229
D67: Standard incentive rate base capex allowance | G67: $m | I67: =CHOOSE(Cover!$H$8, 'i24'!I67,'i25'!I67,'i26'!I67,'i27'!I67,'i28'!I67) -> 222.877652 | J67: =CHOOSE(Cover!$H$8, 'i24'!J67,'i25'!J67,'i26'!J67,'i27'!J67,'i28'!J67) -> 279.197023 | K67: =CHOOSE(Cover!$H$8, 'i24'!K67,'i25'!K67,'i26'!K67,'i27'!K67,'i28'!K67) -> 293.4826477 | L67: =CHOOSE(Cover!$H$8, 'i24'!L67,'i25'!L67,'i26'!L67,'i27'!L67,'i28'!L67) -> 297.7629417 | M67: =CHOOSE(Cover!$H$8, 'i24'!M67,'i25'!M67,'i26'!M67,'i27'!M67,'i28'!M67) -> 303.7769725 | N67: =CHOOSE(Cover!$H$8, 'i24'!N67,'i25'!N67,'i26'!N67,'i27'!N67,'i28'!N67) -> 490.2048935 | O67: =CHOOSE(Cover!$H$8, 'i24'!O67,'i25'!O67,'i26'!O67,'i27'!O67,'i28'!O67) -> 538.2534202 | P67: =CHOOSE(Cover!$H$8, 'i24'!P67,'i25'!P67,'i26'!P67,'i27'!P67,'i28'!P67) -> 449.4342451 | Q67: =CHOOSE(Cover!$H$8, 'i24'!Q67,'i25'!Q67,'i26'!Q67,'i27'!Q67,'i28'!Q67) -> 451.0608516 | R67: =CHOOSE(Cover!$H$8, 'i24'!R67,'i25'!R67,'i26'!R67,'i27'!R67,'i28'!R67) -> 466.6371397 | S67: =CHOOSE(Cover!$H$8, 'i24'!S67,'i25'!S67,'i26'!S67,'i27'!S67,'i28'!S67) -> 480.9111534 | T67: =CHOOSE(Cover!$H$8, 'i24'!T67,'i25'!T67,'i26'!T67,'i27'!T67,'i28'!T67) -> 582.4130646 | U67: =CHOOSE(Cover!$H$8, 'i24'!U67,'i25'!U67,'i26'!U67,'i27'!U67,'i28'!U67) -> 595.9457043 | V67: =CHOOSE(Cover!$H$8, 'i24'!V67,'i25'!V67,'i26'!V67,'i27'!V67,'i28'!V67) -> 590.920936 | W67: =CHOOSE(Cover!$H$8, 'i24'!W67,'i25'!W67,'i26'!W67,'i27'!W67,'i28'!W67) -> 566.5344229
D68: Low incentive rate base capex allowance | G68: $m | I68: =CHOOSE(Cover!$H$8, 'i24'!I68,'i25'!I68,'i26'!I68,'i27'!I68,'i28'!I68) -> 0 | J68: =CHOOSE(Cover!$H$8, 'i24'!J68,'i25'!J68,'i26'!J68,'i27'!J68,'i28'!J68) -> 0 | K68: =CHOOSE(Cover!$H$8, 'i24'!K68,'i25'!K68,'i26'!K68,'i27'!K68,'i28'!K68) -> 0 | L68: =CHOOSE(Cover!$H$8, 'i24'!L68,'i25'!L68,'i26'!L68,'i27'!L68,'i28'!L68) -> 0 | M68: =CHOOSE(Cover!$H$8, 'i24'!M68,'i25'!M68,'i26'!M68,'i27'!M68,'i28'!M68) -> 0 | N68: =CHOOSE(Cover!$H$8, 'i24'!N68,'i25'!N68,'i26'!N68,'i27'!N68,'i28'!N68) -> 0 | O68: =CHOOSE(Cover!$H$8, 'i24'!O68,'i25'!O68,'i26'!O68,'i27'!O68,'i28'!O68) -> 0 | P68: =CHOOSE(Cover!$H$8, 'i24'!P68,'i25'!P68,'i26'!P68,'i27'!P68,'i28'!P68) -> 0 | Q68: =CHOOSE(Cover!$H$8, 'i24'!Q68,'i25'!Q68,'i26'!Q68,'i27'!Q68,'i28'!Q68) -> 0 | R68: =CHOOSE(Cover!$H$8, 'i24'!R68,'i25'!R68,'i26'!R68,'i27'!R68,'i28'!R68) -> 0 | S68: =CHOOSE(Cover!$H$8, 'i24'!S68,'i25'!S68,'i26'!S68,'i27'!S68,'i28'!S68) -> 0 | T68: =CHOOSE(Cover!$H$8, 'i24'!T68,'i25'!T68,'i26'!T68,'i27'!T68,'i28'!T68) -> 0 | U68: =CHOOSE(Cover!$H$8, 'i24'!U68,'i25'!U68,'i26'!U68,'i27'!U68,'i28'!U68) -> 0 | V68: =CHOOSE(Cover!$H$8, 'i24'!V68,'i25'!V68,'i26'!V68,'i27'!V68,'i28'!V68) -> 0 | W68: =CHOOSE(Cover!$H$8, 'i24'!W68,'i25'!W68,'i26'!W68,'i27'!W68,'i28'!W68) -> 0
C70: Operating expenditure allowance
C71: Note:
D73: Unassigned | G73: $m | I73: =CHOOSE(Cover!$H$8, 'i24'!I73,'i25'!I73,'i26'!I73,'i27'!I73,'i28'!I73) -> 276.4926485 | J73: =CHOOSE(Cover!$H$8, 'i24'!J73,'i25'!J73,'i26'!J73,'i27'!J73,'i28'!J73) -> 280.2916113 | K73: =CHOOSE(Cover!$H$8, 'i24'!K73,'i25'!K73,'i26'!K73,'i27'!K73,'i28'!K73) -> 289.9396883 | L73: =CHOOSE(Cover!$H$8, 'i24'!L73,'i25'!L73,'i26'!L73,'i27'!L73,'i28'!L73) -> 299.4271376 | M73: =CHOOSE(Cover!$H$8, 'i24'!M73,'i25'!M73,'i26'!M73,'i27'!M73,'i28'!M73) -> 299.369778 | N73: =CHOOSE(Cover!$H$8, 'i24'!N73,'i25'!N73,'i26'!N73,'i27'!N73,'i28'!N73) -> 0 | O73: =CHOOSE(Cover!$H$8, 'i24'!O73,'i25'!O73,'i26'!O73,'i27'!O73,'i28'!O73) -> 0 | P73: =CHOOSE(Cover!$H$8, 'i24'!P73,'i25'!P73,'i26'!P73,'i27'!P73,'i28'!P73) -> 0 | Q73: =CHOOSE(Cover!$H$8, 'i24'!Q73,'i25'!Q73,'i26'!Q73,'i27'!Q73,'i28'!Q73) -> 0 | R73: =CHOOSE(Cover!$H$8, 'i24'!R73,'i25'!R73,'i26'!R73,'i27'!R73,'i28'!R73) -> 0 | S73: =CHOOSE(Cover!$H$8, 'i24'!S73,'i25'!S73,'i26'!S73,'i27'!S73,'i28'!S73) -> 0 | T73: =CHOOSE(Cover!$H$8, 'i24'!T73,'i25'!T73,'i26'!T73,'i27'!T73,'i28'!T73) -> 0 | U73: =CHOOSE(Cover!$H$8, 'i24'!U73,'i25'!U73,'i26'!U73,'i27'!U73,'i28'!U73) -> 0 | V73: =CHOOSE(Cover!$H$8, 'i24'!V73,'i25'!V73,'i26'!V73,'i27'!V73,'i28'!V73) -> 0 | W73: =CHOOSE(Cover!$H$8, 'i24'!W73,'i25'!W73,'i26'!W73,'i27'!W73,'i28'!W73) -> 0
D74: Preventive maintenance | G74: $m | I74: =CHOOSE(Cover!$H$8, 'i24'!I74,'i25'!I74,'i26'!I74,'i27'!I74,'i28'!I74) -> 0 | J74: =CHOOSE(Cover!$H$8, 'i24'!J74,'i25'!J74,'i26'!J74,'i27'!J74,'i28'!J74) -> 0 | K74: =CHOOSE(Cover!$H$8, 'i24'!K74,'i25'!K74,'i26'!K74,'i27'!K74,'i28'!K74) -> 0 | L74: =CHOOSE(Cover!$H$8, 'i24'!L74,'i25'!L74,'i26'!L74,'i27'!L74,'i28'!L74) -> 0 | M74: =CHOOSE(Cover!$H$8, 'i24'!M74,'i25'!M74,'i26'!M74,'i27'!M74,'i28'!M74) -> 0 | N74: =CHOOSE(Cover!$H$8, 'i24'!N74,'i25'!N74,'i26'!N74,'i27'!N74,'i28'!N74) -> 50.97185318 | O74: =CHOOSE(Cover!$H$8, 'i24'!O74,'i25'!O74,'i26'!O74,'i27'!O74,'i28'!O74) -> 49.18227815 | P74: =CHOOSE(Cover!$H$8, 'i24'!P74,'i25'!P74,'i26'!P74,'i27'!P74,'i28'!P74) -> 51.99619238 | Q74: =CHOOSE(Cover!$H$8, 'i24'!Q74,'i25'!Q74,'i26'!Q74,'i27'!Q74,'i28'!Q74) -> 53.07662949 | R74: =CHOOSE(Cover!$H$8, 'i24'!R74,'i25'!R74,'i26'!R74,'i27'!R74,'i28'!R74) -> 53.97589405 | S74: =CHOOSE(Cover!$H$8, 'i24'!S74,'i25'!S74,'i26'!S74,'i27'!S74,'i28'!S74) -> 55.45426265 | T74: =CHOOSE(Cover!$H$8, 'i24'!T74,'i25'!T74,'i26'!T74,'i27'!T74,'i28'!T74) -> 55.99032731 | U74: =CHOOSE(Cover!$H$8, 'i24'!U74,'i25'!U74,'i26'!U74,'i27'!U74,'i28'!U74) -> 58.5723009 | V74: =CHOOSE(Cover!$H$8, 'i24'!V74,'i25'!V74,'i26'!V74,'i27'!V74,'i28'!V74) -> 58.19274621 | W74: =CHOOSE(Cover!$H$8, 'i24'!W74,'i25'!W74,'i26'!W74,'i27'!W74,'i28'!W74) -> 58.77777966
D75: Predictive maintenance | G75: $m | I75: =CHOOSE(Cover!$H$8, 'i24'!I75,'i25'!I75,'i26'!I75,'i27'!I75,'i28'!I75) -> 0 | J75: =CHOOSE(Cover!$H$8, 'i24'!J75,'i25'!J75,'i26'!J75,'i27'!J75,'i28'!J75) -> 0 | K75: =CHOOSE(Cover!$H$8, 'i24'!K75,'i25'!K75,'i26'!K75,'i27'!K75,'i28'!K75) -> 0 | L75: =CHOOSE(Cover!$H$8, 'i24'!L75,'i25'!L75,'i26'!L75,'i27'!L75,'i28'!L75) -> 0 | M75: =CHOOSE(Cover!$H$8, 'i24'!M75,'i25'!M75,'i26'!M75,'i27'!M75,'i28'!M75) -> 0 | N75: =CHOOSE(Cover!$H$8, 'i24'!N75,'i25'!N75,'i26'!N75,'i27'!N75,'i28'!N75) -> 94.77418691 | O75: =CHOOSE(Cover!$H$8, 'i24'!O75,'i25'!O75,'i26'!O75,'i27'!O75,'i28'!O75) -> 93.97371369 | P75: =CHOOSE(Cover!$H$8, 'i24'!P75,'i25'!P75,'i26'!P75,'i27'!P75,'i28'!P75) -> 102.7451009 | Q75: =CHOOSE(Cover!$H$8, 'i24'!Q75,'i25'!Q75,'i26'!Q75,'i27'!Q75,'i28'!Q75) -> 100.8943834 | R75: =CHOOSE(Cover!$H$8, 'i24'!R75,'i25'!R75,'i26'!R75,'i27'!R75,'i28'!R75) -> 98.21108755 | S75: =CHOOSE(Cover!$H$8, 'i24'!S75,'i25'!S75,'i26'!S75,'i27'!S75,'i28'!S75) -> 99.72403263 | T75: =CHOOSE(Cover!$H$8, 'i24'!T75,'i25'!T75,'i26'!T75,'i27'!T75,'i28'!T75) -> 99.38941864 | U75: =CHOOSE(Cover!$H$8, 'i24'!U75,'i25'!U75,'i26'!U75,'i27'!U75,'i28'!U75) -> 103.8115864 | V75: =CHOOSE(Cover!$H$8, 'i24'!V75,'i25'!V75,'i26'!V75,'i27'!V75,'i28'!V75) -> 107.2397736 | W75: =CHOOSE(Cover!$H$8, 'i24'!W75,'i25'!W75,'i26'!W75,'i27'!W75,'i28'!W75) -> 104.8886142
D76: Corrective maintenance | G76: $m | I76: =CHOOSE(Cover!$H$8, 'i24'!I76,'i25'!I76,'i26'!I76,'i27'!I76,'i28'!I76) -> 0 | J76: =CHOOSE(Cover!$H$8, 'i24'!J76,'i25'!J76,'i26'!J76,'i27'!J76,'i28'!J76) -> 0 | K76: =CHOOSE(Cover!$H$8, 'i24'!K76,'i25'!K76,'i26'!K76,'i27'!K76,'i28'!K76) -> 0 | L76: =CHOOSE(Cover!$H$8, 'i24'!L76,'i25'!L76,'i26'!L76,'i27'!L76,'i28'!L76) -> 0 | M76: =CHOOSE(Cover!$H$8, 'i24'!M76,'i25'!M76,'i26'!M76,'i27'!M76,'i28'!M76) -> 0 | N76: =CHOOSE(Cover!$H$8, 'i24'!N76,'i25'!N76,'i26'!N76,'i27'!N76,'i28'!N76) -> 5.315418931 | O76: =CHOOSE(Cover!$H$8, 'i24'!O76,'i25'!O76,'i26'!O76,'i27'!O76,'i28'!O76) -> 5.388271703 | P76: =CHOOSE(Cover!$H$8, 'i24'!P76,'i25'!P76,'i26'!P76,'i27'!P76,'i28'!P76) -> 5.479427761 | Q76: =CHOOSE(Cover!$H$8, 'i24'!Q76,'i25'!Q76,'i26'!Q76,'i27'!Q76,'i28'!Q76) -> 5.550999302 | R76: =CHOOSE(Cover!$H$8, 'i24'!R76,'i25'!R76,'i26'!R76,'i27'!R76,'i28'!R76) -> 5.639424563 | S76: =CHOOSE(Cover!$H$8, 'i24'!S76,'i25'!S76,'i26'!S76,'i27'!S76,'i28'!S76) -> 5.730133612 | T76: =CHOOSE(Cover!$H$8, 'i24'!T76,'i25'!T76,'i26'!T76,'i27'!T76,'i28'!T76) -> 5.814206777 | U76: =CHOOSE(Cover!$H$8, 'i24'!U76,'i25'!U76,'i26'!U76,'i27'!U76,'i28'!U76) -> 5.914401305 | V76: =CHOOSE(Cover!$H$8, 'i24'!V76,'i25'!V76,'i26'!V76,'i27'!V76,'i28'!V76) -> 5.994822978 | W76: =CHOOSE(Cover!$H$8, 'i24'!W76,'i25'!W76,'i26'!W76,'i27'!W76,'i28'!W76) -> 6.075109527
D77: Proactive maintenance | G77: $m | I77: =CHOOSE(Cover!$H$8, 'i24'!I77,'i25'!I77,'i26'!I77,'i27'!I77,'i28'!I77) -> 0 | J77: =CHOOSE(Cover!$H$8, 'i24'!J77,'i25'!J77,'i26'!J77,'i27'!J77,'i28'!J77) -> 0 | K77: =CHOOSE(Cover!$H$8, 'i24'!K77,'i25'!K77,'i26'!K77,'i27'!K77,'i28'!K77) -> 0 | L77: =CHOOSE(Cover!$H$8, 'i24'!L77,'i25'!L77,'i26'!L77,'i27'!L77,'i28'!L77) -> 0 | M77: =CHOOSE(Cover!$H$8, 'i24'!M77,'i25'!M77,'i26'!M77,'i27'!M77,'i28'!M77) -> 0 | N77: =CHOOSE(Cover!$H$8, 'i24'!N77,'i25'!N77,'i26'!N77,'i27'!N77,'i28'!N77) -> 1.192897935 | O77: =CHOOSE(Cover!$H$8, 'i24'!O77,'i25'!O77,'i26'!O77,'i27'!O77,'i28'!O77) -> 1.208552704 | P77: =CHOOSE(Cover!$H$8, 'i24'!P77,'i25'!P77,'i26'!P77,'i27'!P77,'i28'!P77) -> 1.22861592 | Q77: =CHOOSE(Cover!$H$8, 'i24'!Q77,'i25'!Q77,'i26'!Q77,'i27'!Q77,'i28'!Q77) -> 1.24403398 | R77: =CHOOSE(Cover!$H$8, 'i24'!R77,'i25'!R77,'i26'!R77,'i27'!R77,'i28'!R77) -> 1.262821478 | S77: =CHOOSE(Cover!$H$8, 'i24'!S77,'i25'!S77,'i26'!S77,'i27'!S77,'i28'!S77) -> 1.282522399 | T77: =CHOOSE(Cover!$H$8, 'i24'!T77,'i25'!T77,'i26'!T77,'i27'!T77,'i28'!T77) -> 1.300744027 | U77: =CHOOSE(Cover!$H$8, 'i24'!U77,'i25'!U77,'i26'!U77,'i27'!U77,'i28'!U77) -> 1.322577679 | V77: =CHOOSE(Cover!$H$8, 'i24'!V77,'i25'!V77,'i26'!V77,'i27'!V77,'i28'!V77) -> 1.339995805 | W77: =CHOOSE(Cover!$H$8, 'i24'!W77,'i25'!W77,'i26'!W77,'i27'!W77,'i28'!W77) -> 1.357391982
D78: Resilience | G78: $m | I78: =CHOOSE(Cover!$H$8, 'i24'!I78,'i25'!I78,'i26'!I78,'i27'!I78,'i28'!I78) -> 0 | J78: =CHOOSE(Cover!$H$8, 'i24'!J78,'i25'!J78,'i26'!J78,'i27'!J78,'i28'!J78) -> 0 | K78: =CHOOSE(Cover!$H$8, 'i24'!K78,'i25'!K78,'i26'!K78,'i27'!K78,'i28'!K78) -> 0 | L78: =CHOOSE(Cover!$H$8, 'i24'!L78,'i25'!L78,'i26'!L78,'i27'!L78,'i28'!L78) -> 0 | M78: =CHOOSE(Cover!$H$8, 'i24'!M78,'i25'!M78,'i26'!M78,'i27'!M78,'i28'!M78) -> 0 | N78: =CHOOSE(Cover!$H$8, 'i24'!N78,'i25'!N78,'i26'!N78,'i27'!N78,'i28'!N78) -> 1.495137934 | O78: =CHOOSE(Cover!$H$8, 'i24'!O78,'i25'!O78,'i26'!O78,'i27'!O78,'i28'!O78) -> 0.9824461295 | P78: =CHOOSE(Cover!$H$8, 'i24'!P78,'i25'!P78,'i26'!P78,'i27'!P78,'i28'!P78) -> 2.537044791 | Q78: =CHOOSE(Cover!$H$8, 'i24'!Q78,'i25'!Q78,'i26'!Q78,'i27'!Q78,'i28'!Q78) -> 1.992880136 | R78: =CHOOSE(Cover!$H$8, 'i24'!R78,'i25'!R78,'i26'!R78,'i27'!R78,'i28'!R78) -> 1.721238721 | S78: =CHOOSE(Cover!$H$8, 'i24'!S78,'i25'!S78,'i26'!S78,'i27'!S78,'i28'!S78) -> 1.566851702 | T78: =CHOOSE(Cover!$H$8, 'i24'!T78,'i25'!T78,'i26'!T78,'i27'!T78,'i28'!T78) -> 1.598572791 | U78: =CHOOSE(Cover!$H$8, 'i24'!U78,'i25'!U78,'i26'!U78,'i27'!U78,'i28'!U78) -> 3.303658499 | V78: =CHOOSE(Cover!$H$8, 'i24'!V78,'i25'!V78,'i26'!V78,'i27'!V78,'i28'!V78) -> 2.730494038 | W78: =CHOOSE(Cover!$H$8, 'i24'!W78,'i25'!W78,'i26'!W78,'i27'!W78,'i28'!W78) -> 1.697524687
D79: Asset management and operations | G79: $m | I79: =CHOOSE(Cover!$H$8, 'i24'!I79,'i25'!I79,'i26'!I79,'i27'!I79,'i28'!I79) -> 0 | J79: =CHOOSE(Cover!$H$8, 'i24'!J79,'i25'!J79,'i26'!J79,'i27'!J79,'i28'!J79) -> 0 | K79: =CHOOSE(Cover!$H$8, 'i24'!K79,'i25'!K79,'i26'!K79,'i27'!K79,'i28'!K79) -> 0 | L79: =CHOOSE(Cover!$H$8, 'i24'!L79,'i25'!L79,'i26'!L79,'i27'!L79,'i28'!L79) -> 0 | M79: =CHOOSE(Cover!$H$8, 'i24'!M79,'i25'!M79,'i26'!M79,'i27'!M79,'i28'!M79) -> 0 | N79: =CHOOSE(Cover!$H$8, 'i24'!N79,'i25'!N79,'i26'!N79,'i27'!N79,'i28'!N79) -> 101.0352286 | O79: =CHOOSE(Cover!$H$8, 'i24'!O79,'i25'!O79,'i26'!O79,'i27'!O79,'i28'!O79) -> 105.0406791 | P79: =CHOOSE(Cover!$H$8, 'i24'!P79,'i25'!P79,'i26'!P79,'i27'!P79,'i28'!P79) -> 107.8625593 | Q79: =CHOOSE(Cover!$H$8, 'i24'!Q79,'i25'!Q79,'i26'!Q79,'i27'!Q79,'i28'!Q79) -> 109.2323294 | R79: =CHOOSE(Cover!$H$8, 'i24'!R79,'i25'!R79,'i26'!R79,'i27'!R79,'i28'!R79) -> 108.4718931 | S79: =CHOOSE(Cover!$H$8, 'i24'!S79,'i25'!S79,'i26'!S79,'i27'!S79,'i28'!S79) -> 107.1136695 | T79: =CHOOSE(Cover!$H$8, 'i24'!T79,'i25'!T79,'i26'!T79,'i27'!T79,'i28'!T79) -> 110.0874177 | U79: =CHOOSE(Cover!$H$8, 'i24'!U79,'i25'!U79,'i26'!U79,'i27'!U79,'i28'!U79) -> 113.1271962 | V79: =CHOOSE(Cover!$H$8, 'i24'!V79,'i25'!V79,'i26'!V79,'i27'!V79,'i28'!V79) -> 116.2343724 | W79: =CHOOSE(Cover!$H$8, 'i24'!W79,'i25'!W79,'i26'!W79,'i27'!W79,'i28'!W79) -> 119.4103378
D80: Business support | G80: $m | I80: =CHOOSE(Cover!$H$8, 'i24'!I80,'i25'!I80,'i26'!I80,'i27'!I80,'i28'!I80) -> 0 | J80: =CHOOSE(Cover!$H$8, 'i24'!J80,'i25'!J80,'i26'!J80,'i27'!J80,'i28'!J80) -> 0 | K80: =CHOOSE(Cover!$H$8, 'i24'!K80,'i25'!K80,'i26'!K80,'i27'!K80,'i28'!K80) -> 0 | L80: =CHOOSE(Cover!$H$8, 'i24'!L80,'i25'!L80,'i26'!L80,'i27'!L80,'i28'!L80) -> 0 | M80: =CHOOSE(Cover!$H$8, 'i24'!M80,'i25'!M80,'i26'!M80,'i27'!M80,'i28'!M80) -> 0 | N80: =CHOOSE(Cover!$H$8, 'i24'!N80,'i25'!N80,'i26'!N80,'i27'!N80,'i28'!N80) -> 69.28359173 | O80: =CHOOSE(Cover!$H$8, 'i24'!O80,'i25'!O80,'i26'!O80,'i27'!O80,'i28'!O80) -> 74.10022597 | P80: =CHOOSE(Cover!$H$8, 'i24'!P80,'i25'!P80,'i26'!P80,'i27'!P80,'i28'!P80) -> 75.17866643 | Q80: =CHOOSE(Cover!$H$8, 'i24'!Q80,'i25'!Q80,'i26'!Q80,'i27'!Q80,'i28'!Q80) -> 74.70806284 | R80: =CHOOSE(Cover!$H$8, 'i24'!R80,'i25'!R80,'i26'!R80,'i27'!R80,'i28'!R80) -> 74.17543364 | S80: =CHOOSE(Cover!$H$8, 'i24'!S80,'i25'!S80,'i26'!S80,'i27'!S80,'i28'!S80) -> 74.99192585 | T80: =CHOOSE(Cover!$H$8, 'i24'!T80,'i25'!T80,'i26'!T80,'i27'!T80,'i28'!T80) -> 76.91466247 | U80: =CHOOSE(Cover!$H$8, 'i24'!U80,'i25'!U80,'i26'!U80,'i27'!U80,'i28'!U80) -> 78.87670439 | V80: =CHOOSE(Cover!$H$8, 'i24'!V80,'i25'!V80,'i26'!V80,'i27'!V80,'i28'!V80) -> 80.8801735 | W80: =CHOOSE(Cover!$H$8, 'i24'!W80,'i25'!W80,'i26'!W80,'i27'!W80,'i28'!W80) -> 82.92587343
D81: ICT | G81: $m | I81: =CHOOSE(Cover!$H$8, 'i24'!I81,'i25'!I81,'i26'!I81,'i27'!I81,'i28'!I81) -> 0 | J81: =CHOOSE(Cover!$H$8, 'i24'!J81,'i25'!J81,'i26'!J81,'i27'!J81,'i28'!J81) -> 0 | K81: =CHOOSE(Cover!$H$8, 'i24'!K81,'i25'!K81,'i26'!K81,'i27'!K81,'i28'!K81) -> 0 | L81: =CHOOSE(Cover!$H$8, 'i24'!L81,'i25'!L81,'i26'!L81,'i27'!L81,'i28'!L81) -> 0 | M81: =CHOOSE(Cover!$H$8, 'i24'!M81,'i25'!M81,'i26'!M81,'i27'!M81,'i28'!M81) -> 0 | N81: =CHOOSE(Cover!$H$8, 'i24'!N81,'i25'!N81,'i26'!N81,'i27'!N81,'i28'!N81) -> 63.26919502 | O81: =CHOOSE(Cover!$H$8, 'i24'!O81,'i25'!O81,'i26'!O81,'i27'!O81,'i28'!O81) -> 66.30567686 | P81: =CHOOSE(Cover!$H$8, 'i24'!P81,'i25'!P81,'i26'!P81,'i27'!P81,'i28'!P81) -> 69.57708028 | Q81: =CHOOSE(Cover!$H$8, 'i24'!Q81,'i25'!Q81,'i26'!Q81,'i27'!Q81,'i28'!Q81) -> 73.79172336 | R81: =CHOOSE(Cover!$H$8, 'i24'!R81,'i25'!R81,'i26'!R81,'i27'!R81,'i28'!R81) -> 65.13093612 | S81: =CHOOSE(Cover!$H$8, 'i24'!S81,'i25'!S81,'i26'!S81,'i27'!S81,'i28'!S81) -> 66.80159164 | T81: =CHOOSE(Cover!$H$8, 'i24'!T81,'i25'!T81,'i26'!T81,'i27'!T81,'i28'!T81) -> 68.97749788 | U81: =CHOOSE(Cover!$H$8, 'i24'!U81,'i25'!U81,'i26'!U81,'i27'!U81,'i28'!U81) -> 72.46950155 | V81: =CHOOSE(Cover!$H$8, 'i24'!V81,'i25'!V81,'i26'!V81,'i27'!V81,'i28'!V81) -> 73.20650282 | W81: =CHOOSE(Cover!$H$8, 'i24'!W81,'i25'!W81,'i26'!W81,'i27'!W81,'i28'!W81) -> 75.5089679
D82: Insurance | G82: $m | I82: =CHOOSE(Cover!$H$8, 'i24'!I82,'i25'!I82,'i26'!I82,'i27'!I82,'i28'!I82) -> 0 | J82: =CHOOSE(Cover!$H$8, 'i24'!J82,'i25'!J82,'i26'!J82,'i27'!J82,'i28'!J82) -> 0 | K82: =CHOOSE(Cover!$H$8, 'i24'!K82,'i25'!K82,'i26'!K82,'i27'!K82,'i28'!K82) -> 0 | L82: =CHOOSE(Cover!$H$8, 'i24'!L82,'i25'!L82,'i26'!L82,'i27'!L82,'i28'!L82) -> 0 | M82: =CHOOSE(Cover!$H$8, 'i24'!M82,'i25'!M82,'i26'!M82,'i27'!M82,'i28'!M82) -> 0 | N82: =CHOOSE(Cover!$H$8, 'i24'!N82,'i25'!N82,'i26'!N82,'i27'!N82,'i28'!N82) -> 36.33415195 | O82: =CHOOSE(Cover!$H$8, 'i24'!O82,'i25'!O82,'i26'!O82,'i27'!O82,'i28'!O82) -> 38.54126173 | P82: =CHOOSE(Cover!$H$8, 'i24'!P82,'i25'!P82,'i26'!P82,'i27'!P82,'i28'!P82) -> 41.0124936 | Q82: =CHOOSE(Cover!$H$8, 'i24'!Q82,'i25'!Q82,'i26'!Q82,'i27'!Q82,'i28'!Q82) -> 43.65570016 | R82: =CHOOSE(Cover!$H$8, 'i24'!R82,'i25'!R82,'i26'!R82,'i27'!R82,'i28'!R82) -> 46.45433318 | S82: =CHOOSE(Cover!$H$8, 'i24'!S82,'i25'!S82,'i26'!S82,'i27'!S82,'i28'!S82) -> 49.45419505 | T82: =CHOOSE(Cover!$H$8, 'i24'!T82,'i25'!T82,'i26'!T82,'i27'!T82,'i28'!T82) -> 51.97530667 | U82: =CHOOSE(Cover!$H$8, 'i24'!U82,'i25'!U82,'i26'!U82,'i27'!U82,'i28'!U82) -> 54.9179448 | V82: =CHOOSE(Cover!$H$8, 'i24'!V82,'i25'!V82,'i26'!V82,'i27'!V82,'i28'!V82) -> 58.51361506 | W82: =CHOOSE(Cover!$H$8, 'i24'!W82,'i25'!W82,'i26'!W82,'i27'!W82,'i28'!W82) -> 61.87008488
D83: Deliverability adjustment | G83: $m | I83: =CHOOSE(Cover!$H$8, 'i24'!I83,'i25'!I83,'i26'!I83,'i27'!I83,'i28'!I83) -> 0 | J83: =CHOOSE(Cover!$H$8, 'i24'!J83,'i25'!J83,'i26'!J83,'i27'!J83,'i28'!J83) -> 0 | K83: =CHOOSE(Cover!$H$8, 'i24'!K83,'i25'!K83,'i26'!K83,'i27'!K83,'i28'!K83) -> 0 | L83: =CHOOSE(Cover!$H$8, 'i24'!L83,'i25'!L83,'i26'!L83,'i27'!L83,'i28'!L83) -> 0 | M83: =CHOOSE(Cover!$H$8, 'i24'!M83,'i25'!M83,'i26'!M83,'i27'!M83,'i28'!M83) -> 0 | N83: =CHOOSE(Cover!$H$8, 'i24'!N83,'i25'!N83,'i26'!N83,'i27'!N83,'i28'!N83) -> -2.566841193 | O83: =CHOOSE(Cover!$H$8, 'i24'!O83,'i25'!O83,'i26'!O83,'i27'!O83,'i28'!O83) -> 0.02247261339 | P83: =CHOOSE(Cover!$H$8, 'i24'!P83,'i25'!P83,'i26'!P83,'i27'!P83,'i28'!P83) -> -16.82301012 | Q83: =CHOOSE(Cover!$H$8, 'i24'!Q83,'i25'!Q83,'i26'!Q83,'i27'!Q83,'i28'!Q83) -> -19.12994279 | R83: =CHOOSE(Cover!$H$8, 'i24'!R83,'i25'!R83,'i26'!R83,'i27'!R83,'i28'!R83) -> -17.41460896 | S83: =CHOOSE(Cover!$H$8, 'i24'!S83,'i25'!S83,'i26'!S83,'i27'!S83,'i28'!S83) -> 0 | T83: =CHOOSE(Cover!$H$8, 'i24'!T83,'i25'!T83,'i26'!T83,'i27'!T83,'i28'!T83) -> 0 | U83: =CHOOSE(Cover!$H$8, 'i24'!U83,'i25'!U83,'i26'!U83,'i27'!U83,'i28'!U83) -> 0 | V83: =CHOOSE(Cover!$H$8, 'i24'!V83,'i25'!V83,'i26'!V83,'i27'!V83,'i28'!V83) -> 0 | W83: =CHOOSE(Cover!$H$8, 'i24'!W83,'i25'!W83,'i26'!W83,'i27'!W83,'i28'!W83) -> 0
D84: Total operating expenditure allowance | G84: $m | I84: =CHOOSE(Cover!$H$8, 'i24'!I84,'i25'!I84,'i26'!I84,'i27'!I84,'i28'!I84) -> 276.4926485 | J84: =CHOOSE(Cover!$H$8, 'i24'!J84,'i25'!J84,'i26'!J84,'i27'!J84,'i28'!J84) -> 280.2916113 | K84: =CHOOSE(Cover!$H$8, 'i24'!K84,'i25'!K84,'i26'!K84,'i27'!K84,'i28'!K84) -> 289.9396883 | L84: =CHOOSE(Cover!$H$8, 'i24'!L84,'i25'!L84,'i26'!L84,'i27'!L84,'i28'!L84) -> 299.4271376 | M84: =CHOOSE(Cover!$H$8, 'i24'!M84,'i25'!M84,'i26'!M84,'i27'!M84,'i28'!M84) -> 299.369778 | N84: =CHOOSE(Cover!$H$8, 'i24'!N84,'i25'!N84,'i26'!N84,'i27'!N84,'i28'!N84) -> 421.1048209 | O84: =CHOOSE(Cover!$H$8, 'i24'!O84,'i25'!O84,'i26'!O84,'i27'!O84,'i28'!O84) -> 434.7455786 | P84: =CHOOSE(Cover!$H$8, 'i24'!P84,'i25'!P84,'i26'!P84,'i27'!P84,'i28'!P84) -> 440.7941712 | Q84: =CHOOSE(Cover!$H$8, 'i24'!Q84,'i25'!Q84,'i26'!Q84,'i27'!Q84,'i28'!Q84) -> 445.0167992 | R84: =CHOOSE(Cover!$H$8, 'i24'!R84,'i25'!R84,'i26'!R84,'i27'!R84,'i28'!R84) -> 437.6284535 | S84: =CHOOSE(Cover!$H$8, 'i24'!S84,'i25'!S84,'i26'!S84,'i27'!S84,'i28'!S84) -> 462.119185 | T84: =CHOOSE(Cover!$H$8, 'i24'!T84,'i25'!T84,'i26'!T84,'i27'!T84,'i28'!T84) -> 472.0481543 | U84: =CHOOSE(Cover!$H$8, 'i24'!U84,'i25'!U84,'i26'!U84,'i27'!U84,'i28'!U84) -> 492.3158717 | V84: =CHOOSE(Cover!$H$8, 'i24'!V84,'i25'!V84,'i26'!V84,'i27'!V84,'i28'!V84) -> 504.3324964 | W84: =CHOOSE(Cover!$H$8, 'i24'!W84,'i25'!W84,'i26'!W84,'i27'!W84,'i28'!W84) -> 512.5116841
B86: Actual expenditure
C88: Base capex actuals
C89: Note:
D91: Unassigned | G91: $m | I91: =CHOOSE(Cover!$H$8, 'i24'!I91,'i25'!I91,'i26'!I91,'i27'!I91,'i28'!I91) -> -0.23553142 | J91: =CHOOSE(Cover!$H$8, 'i24'!J91,'i25'!J91,'i26'!J91,'i27'!J91,'i28'!J91) -> -1.0930416 | K91: =CHOOSE(Cover!$H$8, 'i24'!K91,'i25'!K91,'i26'!K91,'i27'!K91,'i28'!K91) -> 0.3903179272 | L91: =CHOOSE(Cover!$H$8, 'i24'!L91,'i25'!L91,'i26'!L91,'i27'!L91,'i28'!L91) -> 382.6776964 | M91: =CHOOSE(Cover!$H$8, 'i24'!M91,'i25'!M91,'i26'!M91,'i27'!M91,'i28'!M91) -> 0 | N91: =CHOOSE(Cover!$H$8, 'i24'!N91,'i25'!N91,'i26'!N91,'i27'!N91,'i28'!N91) -> 0 | O91: =CHOOSE(Cover!$H$8, 'i24'!O91,'i25'!O91,'i26'!O91,'i27'!O91,'i28'!O91) -> 0 | P91: =CHOOSE(Cover!$H$8, 'i24'!P91,'i25'!P91,'i26'!P91,'i27'!P91,'i28'!P91) -> 0 | Q91: =CHOOSE(Cover!$H$8, 'i24'!Q91,'i25'!Q91,'i26'!Q91,'i27'!Q91,'i28'!Q91) -> 0 | R91: =CHOOSE(Cover!$H$8, 'i24'!R91,'i25'!R91,'i26'!R91,'i27'!R91,'i28'!R91) -> 0 | S91: =CHOOSE(Cover!$H$8, 'i24'!S91,'i25'!S91,'i26'!S91,'i27'!S91,'i28'!S91) -> 0 | T91: =CHOOSE(Cover!$H$8, 'i24'!T91,'i25'!T91,'i26'!T91,'i27'!T91,'i28'!T91) -> 0 | U91: =CHOOSE(Cover!$H$8, 'i24'!U91,'i25'!U91,'i26'!U91,'i27'!U91,'i28'!U91) -> 0 | V91: =CHOOSE(Cover!$H$8, 'i24'!V91,'i25'!V91,'i26'!V91,'i27'!V91,'i28'!V91) -> 0 | W91: =CHOOSE(Cover!$H$8, 'i24'!W91,'i25'!W91,'i26'!W91,'i27'!W91,'i28'!W91) -> 0
D92: AC substations | G92: $m | I92: =CHOOSE(Cover!$H$8, 'i24'!I92,'i25'!I92,'i26'!I92,'i27'!I92,'i28'!I92) -> 76.243201 | J92: =CHOOSE(Cover!$H$8, 'i24'!J92,'i25'!J92,'i26'!J92,'i27'!J92,'i28'!J92) -> 50.723066 | K92: =CHOOSE(Cover!$H$8, 'i24'!K92,'i25'!K92,'i26'!K92,'i27'!K92,'i28'!K92) -> 54.488772 | L92: =CHOOSE(Cover!$H$8, 'i24'!L92,'i25'!L92,'i26'!L92,'i27'!L92,'i28'!L92) -> 0 | M92: =CHOOSE(Cover!$H$8, 'i24'!M92,'i25'!M92,'i26'!M92,'i27'!M92,'i28'!M92) -> 119.090073 | N92: =CHOOSE(Cover!$H$8, 'i24'!N92,'i25'!N92,'i26'!N92,'i27'!N92,'i28'!N92) -> 128.6596882 | O92: =CHOOSE(Cover!$H$8, 'i24'!O92,'i25'!O92,'i26'!O92,'i27'!O92,'i28'!O92) -> 104.1836388 | P92: =CHOOSE(Cover!$H$8, 'i24'!P92,'i25'!P92,'i26'!P92,'i27'!P92,'i28'!P92) -> 90.18961312 | Q92: =CHOOSE(Cover!$H$8, 'i24'!Q92,'i25'!Q92,'i26'!Q92,'i27'!Q92,'i28'!Q92) -> 117.1786723 | R92: =CHOOSE(Cover!$H$8, 'i24'!R92,'i25'!R92,'i26'!R92,'i27'!R92,'i28'!R92) -> 116.1372429 | S92: =CHOOSE(Cover!$H$8, 'i24'!S92,'i25'!S92,'i26'!S92,'i27'!S92,'i28'!S92) -> 79.35354615 | T92: =CHOOSE(Cover!$H$8, 'i24'!T92,'i25'!T92,'i26'!T92,'i27'!T92,'i28'!T92) -> 155.6490995 | U92: =CHOOSE(Cover!$H$8, 'i24'!U92,'i25'!U92,'i26'!U92,'i27'!U92,'i28'!U92) -> 150.8443449 | V92: =CHOOSE(Cover!$H$8, 'i24'!V92,'i25'!V92,'i26'!V92,'i27'!V92,'i28'!V92) -> 133.7604368 | W92: =CHOOSE(Cover!$H$8, 'i24'!W92,'i25'!W92,'i26'!W92,'i27'!W92,'i28'!W92) -> 93.28922993
D93: ACS buildings and grounds | G93: $m | I93: =CHOOSE(Cover!$H$8, 'i24'!I93,'i25'!I93,'i26'!I93,'i27'!I93,'i28'!I93) -> 7.27712288 | J93: =CHOOSE(Cover!$H$8, 'i24'!J93,'i25'!J93,'i26'!J93,'i27'!J93,'i28'!J93) -> 7.85061572 | K93: =CHOOSE(Cover!$H$8, 'i24'!K93,'i25'!K93,'i26'!K93,'i27'!K93,'i28'!K93) -> 10.41192828 | L93: =CHOOSE(Cover!$H$8, 'i24'!L93,'i25'!L93,'i26'!L93,'i27'!L93,'i28'!L93) -> 0 | M93: =CHOOSE(Cover!$H$8, 'i24'!M93,'i25'!M93,'i26'!M93,'i27'!M93,'i28'!M93) -> 39.04239972 | N93: =CHOOSE(Cover!$H$8, 'i24'!N93,'i25'!N93,'i26'!N93,'i27'!N93,'i28'!N93) -> 21.37944903 | O93: =CHOOSE(Cover!$H$8, 'i24'!O93,'i25'!O93,'i26'!O93,'i27'!O93,'i28'!O93) -> 19.03778622 | P93: =CHOOSE(Cover!$H$8, 'i24'!P93,'i25'!P93,'i26'!P93,'i27'!P93,'i28'!P93) -> 17.46939219 | Q93: =CHOOSE(Cover!$H$8, 'i24'!Q93,'i25'!Q93,'i26'!Q93,'i27'!Q93,'i28'!Q93) -> 16.76689157 | R93: =CHOOSE(Cover!$H$8, 'i24'!R93,'i25'!R93,'i26'!R93,'i27'!R93,'i28'!R93) -> 16.20799183 | S93: =CHOOSE(Cover!$H$8, 'i24'!S93,'i25'!S93,'i26'!S93,'i27'!S93,'i28'!S93) -> 12.75800255 | T93: =CHOOSE(Cover!$H$8, 'i24'!T93,'i25'!T93,'i26'!T93,'i27'!T93,'i28'!T93) -> 11.87881069 | U93: =CHOOSE(Cover!$H$8, 'i24'!U93,'i25'!U93,'i26'!U93,'i27'!U93,'i28'!U93) -> 13.7321516 | V93: =CHOOSE(Cover!$H$8, 'i24'!V93,'i25'!V93,'i26'!V93,'i27'!V93,'i28'!V93) -> 11.9037436 | W93: =CHOOSE(Cover!$H$8, 'i24'!W93,'i25'!W93,'i26'!W93,'i27'!W93,'i28'!W93) -> 15.45832062
D94: Transmission lines | G94: $m | I94: =CHOOSE(Cover!$H$8, 'i24'!I94,'i25'!I94,'i26'!I94,'i27'!I94,'i28'!I94) -> 81.376597 | J94: =CHOOSE(Cover!$H$8, 'i24'!J94,'i25'!J94,'i26'!J94,'i27'!J94,'i28'!J94) -> 77.227605 | K94: =CHOOSE(Cover!$H$8, 'i24'!K94,'i25'!K94,'i26'!K94,'i27'!K94,'i28'!K94) -> 91.817862 | L94: =CHOOSE(Cover!$H$8, 'i24'!L94,'i25'!L94,'i26'!L94,'i27'!L94,'i28'!L94) -> 0 | M94: =CHOOSE(Cover!$H$8, 'i24'!M94,'i25'!M94,'i26'!M94,'i27'!M94,'i28'!M94) -> 129.770286 | N94: =CHOOSE(Cover!$H$8, 'i24'!N94,'i25'!N94,'i26'!N94,'i27'!N94,'i28'!N94) -> 137.6660245 | O94: =CHOOSE(Cover!$H$8, 'i24'!O94,'i25'!O94,'i26'!O94,'i27'!O94,'i28'!O94) -> 156.1688954 | P94: =CHOOSE(Cover!$H$8, 'i24'!P94,'i25'!P94,'i26'!P94,'i27'!P94,'i28'!P94) -> 154.0949164 | Q94: =CHOOSE(Cover!$H$8, 'i24'!Q94,'i25'!Q94,'i26'!Q94,'i27'!Q94,'i28'!Q94) -> 161.8803067 | R94: =CHOOSE(Cover!$H$8, 'i24'!R94,'i25'!R94,'i26'!R94,'i27'!R94,'i28'!R94) -> 193.4826682 | S94: =CHOOSE(Cover!$H$8, 'i24'!S94,'i25'!S94,'i26'!S94,'i27'!S94,'i28'!S94) -> 179.1675508 | T94: =CHOOSE(Cover!$H$8, 'i24'!T94,'i25'!T94,'i26'!T94,'i27'!T94,'i28'!T94) -> 187.1806675 | U94: =CHOOSE(Cover!$H$8, 'i24'!U94,'i25'!U94,'i26'!U94,'i27'!U94,'i28'!U94) -> 202.1324681 | V94: =CHOOSE(Cover!$H$8, 'i24'!V94,'i25'!V94,'i26'!V94,'i27'!V94,'i28'!V94) -> 217.5077529 | W94: =CHOOSE(Cover!$H$8, 'i24'!W94,'i25'!W94,'i26'!W94,'i27'!W94,'i28'!W94) -> 234.9705652
D95: HVDC and reactive assets | G95: $m | I95: =CHOOSE(Cover!$H$8, 'i24'!I95,'i25'!I95,'i26'!I95,'i27'!I95,'i28'!I95) -> 9.170968 | J95: =CHOOSE(Cover!$H$8, 'i24'!J95,'i25'!J95,'i26'!J95,'i27'!J95,'i28'!J95) -> 4.414523 | K95: =CHOOSE(Cover!$H$8, 'i24'!K95,'i25'!K95,'i26'!K95,'i27'!K95,'i28'!K95) -> 18.449503 | L95: =CHOOSE(Cover!$H$8, 'i24'!L95,'i25'!L95,'i26'!L95,'i27'!L95,'i28'!L95) -> 0 | M95: =CHOOSE(Cover!$H$8, 'i24'!M95,'i25'!M95,'i26'!M95,'i27'!M95,'i28'!M95) -> 32.87714 | N95: =CHOOSE(Cover!$H$8, 'i24'!N95,'i25'!N95,'i26'!N95,'i27'!N95,'i28'!N95) -> 24.80875411 | O95: =CHOOSE(Cover!$H$8, 'i24'!O95,'i25'!O95,'i26'!O95,'i27'!O95,'i28'!O95) -> 44.09790506 | P95: =CHOOSE(Cover!$H$8, 'i24'!P95,'i25'!P95,'i26'!P95,'i27'!P95,'i28'!P95) -> 41.53829491 | Q95: =CHOOSE(Cover!$H$8, 'i24'!Q95,'i25'!Q95,'i26'!Q95,'i27'!Q95,'i28'!Q95) -> 38.99613688 | R95: =CHOOSE(Cover!$H$8, 'i24'!R95,'i25'!R95,'i26'!R95,'i27'!R95,'i28'!R95) -> 32.52567072 | S95: =CHOOSE(Cover!$H$8, 'i24'!S95,'i25'!S95,'i26'!S95,'i27'!S95,'i28'!S95) -> 35.34007294 | T95: =CHOOSE(Cover!$H$8, 'i24'!T95,'i25'!T95,'i26'!T95,'i27'!T95,'i28'!T95) -> 39.22606556 | U95: =CHOOSE(Cover!$H$8, 'i24'!U95,'i25'!U95,'i26'!U95,'i27'!U95,'i28'!U95) -> 38.79282688 | V95: =CHOOSE(Cover!$H$8, 'i24'!V95,'i25'!V95,'i26'!V95,'i27'!V95,'i28'!V95) -> 34.48953938 | W95: =CHOOSE(Cover!$H$8, 'i24'!W95,'i25'!W95,'i26'!W95,'i27'!W95,'i28'!W95) -> 37.13314669
D96: Secondary assets | G96: $m | I96: =CHOOSE(Cover!$H$8, 'i24'!I96,'i25'!I96,'i26'!I96,'i27'!I96,'i28'!I96) -> 47.294819 | J96: =CHOOSE(Cover!$H$8, 'i24'!J96,'i25'!J96,'i26'!J96,'i27'!J96,'i28'!J96) -> 37.902285 | K96: =CHOOSE(Cover!$H$8, 'i24'!K96,'i25'!K96,'i26'!K96,'i27'!K96,'i28'!K96) -> 44.51841657 | L96: =CHOOSE(Cover!$H$8, 'i24'!L96,'i25'!L96,'i26'!L96,'i27'!L96,'i28'!L96) -> 0 | M96: =CHOOSE(Cover!$H$8, 'i24'!M96,'i25'!M96,'i26'!M96,'i27'!M96,'i28'!M96) -> 43.53932 | N96: =CHOOSE(Cover!$H$8, 'i24'!N96,'i25'!N96,'i26'!N96,'i27'!N96,'i28'!N96) -> 56.79336174 | O96: =CHOOSE(Cover!$H$8, 'i24'!O96,'i25'!O96,'i26'!O96,'i27'!O96,'i28'!O96) -> 76.66592489 | P96: =CHOOSE(Cover!$H$8, 'i24'!P96,'i25'!P96,'i26'!P96,'i27'!P96,'i28'!P96) -> 62.95130389 | Q96: =CHOOSE(Cover!$H$8, 'i24'!Q96,'i25'!Q96,'i26'!Q96,'i27'!Q96,'i28'!Q96) -> 59.04742798 | R96: =CHOOSE(Cover!$H$8, 'i24'!R96,'i25'!R96,'i26'!R96,'i27'!R96,'i28'!R96) -> 60.45494121 | S96: =CHOOSE(Cover!$H$8, 'i24'!S96,'i25'!S96,'i26'!S96,'i27'!S96,'i28'!S96) -> 55.36220754 | T96: =CHOOSE(Cover!$H$8, 'i24'!T96,'i25'!T96,'i26'!T96,'i27'!T96,'i28'!T96) -> 67.46388631 | U96: =CHOOSE(Cover!$H$8, 'i24'!U96,'i25'!U96,'i26'!U96,'i27'!U96,'i28'!U96) -> 66.55041915 | V96: =CHOOSE(Cover!$H$8, 'i24'!V96,'i25'!V96,'i26'!V96,'i27'!V96,'i28'!V96) -> 67.69603334 | W96: =CHOOSE(Cover!$H$8, 'i24'!W96,'i25'!W96,'i26'!W96,'i27'!W96,'i28'!W96) -> 58.33032537
D97: Enhancement and development | G97: $m | I97: =CHOOSE(Cover!$H$8, 'i24'!I97,'i25'!I97,'i26'!I97,'i27'!I97,'i28'!I97) -> 11.696671 | J97: =CHOOSE(Cover!$H$8, 'i24'!J97,'i25'!J97,'i26'!J97,'i27'!J97,'i28'!J97) -> 13.480145 | K97: =CHOOSE(Cover!$H$8, 'i24'!K97,'i25'!K97,'i26'!K97,'i27'!K97,'i28'!K97) -> 28.597395 | L97: =CHOOSE(Cover!$H$8, 'i24'!L97,'i25'!L97,'i26'!L97,'i27'!L97,'i28'!L97) -> 0 | M97: =CHOOSE(Cover!$H$8, 'i24'!M97,'i25'!M97,'i26'!M97,'i27'!M97,'i28'!M97) -> 24.344744 | N97: =CHOOSE(Cover!$H$8, 'i24'!N97,'i25'!N97,'i26'!N97,'i27'!N97,'i28'!N97) -> 17.87955694 | O97: =CHOOSE(Cover!$H$8, 'i24'!O97,'i25'!O97,'i26'!O97,'i27'!O97,'i28'!O97) -> 23.52161156 | P97: =CHOOSE(Cover!$H$8, 'i24'!P97,'i25'!P97,'i26'!P97,'i27'!P97,'i28'!P97) -> 30.23434378 | Q97: =CHOOSE(Cover!$H$8, 'i24'!Q97,'i25'!Q97,'i26'!Q97,'i27'!Q97,'i28'!Q97) -> 30.11672557 | R97: =CHOOSE(Cover!$H$8, 'i24'!R97,'i25'!R97,'i26'!R97,'i27'!R97,'i28'!R97) -> 24.89055712 | S97: =CHOOSE(Cover!$H$8, 'i24'!S97,'i25'!S97,'i26'!S97,'i27'!S97,'i28'!S97) -> 28.59030251 | T97: =CHOOSE(Cover!$H$8, 'i24'!T97,'i25'!T97,'i26'!T97,'i27'!T97,'i28'!T97) -> 29.53890241 | U97: =CHOOSE(Cover!$H$8, 'i24'!U97,'i25'!U97,'i26'!U97,'i27'!U97,'i28'!U97) -> 30.34529298 | V97: =CHOOSE(Cover!$H$8, 'i24'!V97,'i25'!V97,'i26'!V97,'i27'!V97,'i28'!V97) -> 29.87855133 | W97: =CHOOSE(Cover!$H$8, 'i24'!W97,'i25'!W97,'i26'!W97,'i27'!W97,'i28'!W97) -> 29.52898764
D98: Resilience (base) | G98: $m | I98: =CHOOSE(Cover!$H$8, 'i24'!I98,'i25'!I98,'i26'!I98,'i27'!I98,'i28'!I98) -> 0 | J98: =CHOOSE(Cover!$H$8, 'i24'!J98,'i25'!J98,'i26'!J98,'i27'!J98,'i28'!J98) -> 0 | K98: =CHOOSE(Cover!$H$8, 'i24'!K98,'i25'!K98,'i26'!K98,'i27'!K98,'i28'!K98) -> 0 | L98: =CHOOSE(Cover!$H$8, 'i24'!L98,'i25'!L98,'i26'!L98,'i27'!L98,'i28'!L98) -> 0 | M98: =CHOOSE(Cover!$H$8, 'i24'!M98,'i25'!M98,'i26'!M98,'i27'!M98,'i28'!M98) -> 0.918624 | N98: =CHOOSE(Cover!$H$8, 'i24'!N98,'i25'!N98,'i26'!N98,'i27'!N98,'i28'!N98) -> 33.47634961 | O98: =CHOOSE(Cover!$H$8, 'i24'!O98,'i25'!O98,'i26'!O98,'i27'!O98,'i28'!O98) -> 34.14754776 | P98: =CHOOSE(Cover!$H$8, 'i24'!P98,'i25'!P98,'i26'!P98,'i27'!P98,'i28'!P98) -> 24.87086436 | Q98: =CHOOSE(Cover!$H$8, 'i24'!Q98,'i25'!Q98,'i26'!Q98,'i27'!Q98,'i28'!Q98) -> 25.25226091 | R98: =CHOOSE(Cover!$H$8, 'i24'!R98,'i25'!R98,'i26'!R98,'i27'!R98,'i28'!R98) -> 25.6560825 | S98: =CHOOSE(Cover!$H$8, 'i24'!S98,'i25'!S98,'i26'!S98,'i27'!S98,'i28'!S98) -> 45.9276211 | T98: =CHOOSE(Cover!$H$8, 'i24'!T98,'i25'!T98,'i26'!T98,'i27'!T98,'i28'!T98) -> 46.97163779 | U98: =CHOOSE(Cover!$H$8, 'i24'!U98,'i25'!U98,'i26'!U98,'i27'!U98,'i28'!U98) -> 48.0251726 | V98: =CHOOSE(Cover!$H$8, 'i24'!V98,'i25'!V98,'i26'!V98,'i27'!V98,'i28'!V98) -> 49.11591326 | W98: =CHOOSE(Cover!$H$8, 'i24'!W98,'i25'!W98,'i26'!W98,'i27'!W98,'i28'!W98) -> 50.18117185
D99: ICT | G99: $m | I99: =CHOOSE(Cover!$H$8, 'i24'!I99,'i25'!I99,'i26'!I99,'i27'!I99,'i28'!I99) -> 30.0926302 | J99: =CHOOSE(Cover!$H$8, 'i24'!J99,'i25'!J99,'i26'!J99,'i27'!J99,'i28'!J99) -> 25.40047435 | K99: =CHOOSE(Cover!$H$8, 'i24'!K99,'i25'!K99,'i26'!K99,'i27'!K99,'i28'!K99) -> 20.26450481 | L99: =CHOOSE(Cover!$H$8, 'i24'!L99,'i25'!L99,'i26'!L99,'i27'!L99,'i28'!L99) -> 0 | M99: =CHOOSE(Cover!$H$8, 'i24'!M99,'i25'!M99,'i26'!M99,'i27'!M99,'i28'!M99) -> 47.03042367 | N99: =CHOOSE(Cover!$H$8, 'i24'!N99,'i25'!N99,'i26'!N99,'i27'!N99,'i28'!N99) -> 59.49864785 | O99: =CHOOSE(Cover!$H$8, 'i24'!O99,'i25'!O99,'i26'!O99,'i27'!O99,'i28'!O99) -> 68.22976551 | P99: =CHOOSE(Cover!$H$8, 'i24'!P99,'i25'!P99,'i26'!P99,'i27'!P99,'i28'!P99) -> 53.61591762 | Q99: =CHOOSE(Cover!$H$8, 'i24'!Q99,'i25'!Q99,'i26'!Q99,'i27'!Q99,'i28'!Q99) -> 31.01113982 | R99: =CHOOSE(Cover!$H$8, 'i24'!R99,'i25'!R99,'i26'!R99,'i27'!R99,'i28'!R99) -> 23.18231267 | S99: =CHOOSE(Cover!$H$8, 'i24'!S99,'i25'!S99,'i26'!S99,'i27'!S99,'i28'!S99) -> 37.51826201 | T99: =CHOOSE(Cover!$H$8, 'i24'!T99,'i25'!T99,'i26'!T99,'i27'!T99,'i28'!T99) -> 38.26862672 | U99: =CHOOSE(Cover!$H$8, 'i24'!U99,'i25'!U99,'i26'!U99,'i27'!U99,'i28'!U99) -> 39.03400099 | V99: =CHOOSE(Cover!$H$8, 'i24'!V99,'i25'!V99,'i26'!V99,'i27'!V99,'i28'!V99) -> 39.81468013 | W99: =CHOOSE(Cover!$H$8, 'i24'!W99,'i25'!W99,'i26'!W99,'i27'!W99,'i28'!W99) -> 40.61097308
D100: Business support | G100: $m | I100: =CHOOSE(Cover!$H$8, 'i24'!I100,'i25'!I100,'i26'!I100,'i27'!I100,'i28'!I100) -> 2.87256872 | J100: =CHOOSE(Cover!$H$8, 'i24'!J100,'i25'!J100,'i26'!J100,'i27'!J100,'i28'!J100) -> 4.33513252 | K100: =CHOOSE(Cover!$H$8, 'i24'!K100,'i25'!K100,'i26'!K100,'i27'!K100,'i28'!K100) -> 3.65747676 | L100: =CHOOSE(Cover!$H$8, 'i24'!L100,'i25'!L100,'i26'!L100,'i27'!L100,'i28'!L100) -> 0 | M100: =CHOOSE(Cover!$H$8, 'i24'!M100,'i25'!M100,'i26'!M100,'i27'!M100,'i28'!M100) -> 11.412688 | N100: =CHOOSE(Cover!$H$8, 'i24'!N100,'i25'!N100,'i26'!N100,'i27'!N100,'i28'!N100) -> 8.194422916 | O100: =CHOOSE(Cover!$H$8, 'i24'!O100,'i25'!O100,'i26'!O100,'i27'!O100,'i28'!O100) -> 10.4086219 | P100: =CHOOSE(Cover!$H$8, 'i24'!P100,'i25'!P100,'i26'!P100,'i27'!P100,'i28'!P100) -> 4.106661121 | Q100: =CHOOSE(Cover!$H$8, 'i24'!Q100,'i25'!Q100,'i26'!Q100,'i27'!Q100,'i28'!Q100) -> 4.930875807 | R100: =CHOOSE(Cover!$H$8, 'i24'!R100,'i25'!R100,'i26'!R100,'i27'!R100,'i28'!R100) -> 5.02945716 | S100: =CHOOSE(Cover!$H$8, 'i24'!S100,'i25'!S100,'i26'!S100,'i27'!S100,'i28'!S100) -> 6.893587751 | T100: =CHOOSE(Cover!$H$8, 'i24'!T100,'i25'!T100,'i26'!T100,'i27'!T100,'i28'!T100) -> 6.235368097 | U100: =CHOOSE(Cover!$H$8, 'i24'!U100,'i25'!U100,'i26'!U100,'i27'!U100,'i28'!U100) -> 6.489027103 | V100: =CHOOSE(Cover!$H$8, 'i24'!V100,'i25'!V100,'i26'!V100,'i27'!V100,'i28'!V100) -> 6.754285252 | W100: =CHOOSE(Cover!$H$8, 'i24'!W100,'i25'!W100,'i26'!W100,'i27'!W100,'i28'!W100) -> 7.031702488
D101: RPE and timing adjustment | G101: $m | I101: =CHOOSE(Cover!$H$8, 'i24'!I101,'i25'!I101,'i26'!I101,'i27'!I101,'i28'!I101) -> 0 | J101: =CHOOSE(Cover!$H$8, 'i24'!J101,'i25'!J101,'i26'!J101,'i27'!J101,'i28'!J101) -> 0 | K101: =CHOOSE(Cover!$H$8, 'i24'!K101,'i25'!K101,'i26'!K101,'i27'!K101,'i28'!K101) -> 0 | L101: =CHOOSE(Cover!$H$8, 'i24'!L101,'i25'!L101,'i26'!L101,'i27'!L101,'i28'!L101) -> 0 | M101: =CHOOSE(Cover!$H$8, 'i24'!M101,'i25'!M101,'i26'!M101,'i27'!M101,'i28'!M101) -> 0 | N101: =CHOOSE(Cover!$H$8, 'i24'!N101,'i25'!N101,'i26'!N101,'i27'!N101,'i28'!N101) -> 3.374991839 | O101: =CHOOSE(Cover!$H$8, 'i24'!O101,'i25'!O101,'i26'!O101,'i27'!O101,'i28'!O101) -> 1.791723096 | P101: =CHOOSE(Cover!$H$8, 'i24'!P101,'i25'!P101,'i26'!P101,'i27'!P101,'i28'!P101) -> 2.626416173 | Q101: =CHOOSE(Cover!$H$8, 'i24'!Q101,'i25'!Q101,'i26'!Q101,'i27'!Q101,'i28'!Q101) -> -1.596476903 | R101: =CHOOSE(Cover!$H$8, 'i24'!R101,'i25'!R101,'i26'!R101,'i27'!R101,'i28'!R101) -> -0.154665676 | S101: =CHOOSE(Cover!$H$8, 'i24'!S101,'i25'!S101,'i26'!S101,'i27'!S101,'i28'!S101) -> 0 | T101: =CHOOSE(Cover!$H$8, 'i24'!T101,'i25'!T101,'i26'!T101,'i27'!T101,'i28'!T101) -> 0 | U101: =CHOOSE(Cover!$H$8, 'i24'!U101,'i25'!U101,'i26'!U101,'i27'!U101,'i28'!U101) -> 0 | V101: =CHOOSE(Cover!$H$8, 'i24'!V101,'i25'!V101,'i26'!V101,'i27'!V101,'i28'!V101) -> 0 | W101: =CHOOSE(Cover!$H$8, 'i24'!W101,'i25'!W101,'i26'!W101,'i27'!W101,'i28'!W101) -> 0
D102: Deliverability adjustment | G102: $m | I102: =CHOOSE(Cover!$H$8, 'i24'!I102,'i25'!I102,'i26'!I102,'i27'!I102,'i28'!I102) -> 0 | J102: =CHOOSE(Cover!$H$8, 'i24'!J102,'i25'!J102,'i26'!J102,'i27'!J102,'i28'!J102) -> 0 | K102: =CHOOSE(Cover!$H$8, 'i24'!K102,'i25'!K102,'i26'!K102,'i27'!K102,'i28'!K102) -> 0 | L102: =CHOOSE(Cover!$H$8, 'i24'!L102,'i25'!L102,'i26'!L102,'i27'!L102,'i28'!L102) -> 0 | M102: =CHOOSE(Cover!$H$8, 'i24'!M102,'i25'!M102,'i26'!M102,'i27'!M102,'i28'!M102) -> 0 | N102: =CHOOSE(Cover!$H$8, 'i24'!N102,'i25'!N102,'i26'!N102,'i27'!N102,'i28'!N102) -> -1.526353267 | O102: =CHOOSE(Cover!$H$8, 'i24'!O102,'i25'!O102,'i26'!O102,'i27'!O102,'i28'!O102) -> 0 | P102: =CHOOSE(Cover!$H$8, 'i24'!P102,'i25'!P102,'i26'!P102,'i27'!P102,'i28'!P102) -> -32.26347855 | Q102: =CHOOSE(Cover!$H$8, 'i24'!Q102,'i25'!Q102,'i26'!Q102,'i27'!Q102,'i28'!Q102) -> -32.52310907 | R102: =CHOOSE(Cover!$H$8, 'i24'!R102,'i25'!R102,'i26'!R102,'i27'!R102,'i28'!R102) -> -30.77511885 | S102: =CHOOSE(Cover!$H$8, 'i24'!S102,'i25'!S102,'i26'!S102,'i27'!S102,'i28'!S102) -> 0 | T102: =CHOOSE(Cover!$H$8, 'i24'!T102,'i25'!T102,'i26'!T102,'i27'!T102,'i28'!T102) -> 0 | U102: =CHOOSE(Cover!$H$8, 'i24'!U102,'i25'!U102,'i26'!U102,'i27'!U102,'i28'!U102) -> 0 | V102: =CHOOSE(Cover!$H$8, 'i24'!V102,'i25'!V102,'i26'!V102,'i27'!V102,'i28'!V102) -> 0 | W102: =CHOOSE(Cover!$H$8, 'i24'!W102,'i25'!W102,'i26'!W102,'i27'!W102,'i28'!W102) -> 0
D103: Total base capex actuals | G103: $m | I103: =CHOOSE(Cover!$H$8, 'i24'!I103,'i25'!I103,'i26'!I103,'i27'!I103,'i28'!I103) -> 265.7890464 | J103: =CHOOSE(Cover!$H$8, 'i24'!J103,'i25'!J103,'i26'!J103,'i27'!J103,'i28'!J103) -> 220.240805 | K103: =CHOOSE(Cover!$H$8, 'i24'!K103,'i25'!K103,'i26'!K103,'i27'!K103,'i28'!K103) -> 272.5961764 | L103: =CHOOSE(Cover!$H$8, 'i24'!L103,'i25'!L103,'i26'!L103,'i27'!L103,'i28'!L103) -> 382.6776964 | M103: =CHOOSE(Cover!$H$8, 'i24'!M103,'i25'!M103,'i26'!M103,'i27'!M103,'i28'!M103) -> 448.0256984 | N103: =CHOOSE(Cover!$H$8, 'i24'!N103,'i25'!N103,'i26'!N103,'i27'!N103,'i28'!N103) -> 490.2048935 | O103: =CHOOSE(Cover!$H$8, 'i24'!O103,'i25'!O103,'i26'!O103,'i27'!O103,'i28'!O103) -> 538.2534202 | P103: =CHOOSE(Cover!$H$8, 'i24'!P103,'i25'!P103,'i26'!P103,'i27'!P103,'i28'!P103) -> 449.4342451 | Q103: =CHOOSE(Cover!$H$8, 'i24'!Q103,'i25'!Q103,'i26'!Q103,'i27'!Q103,'i28'!Q103) -> 451.0608516 | R103: =CHOOSE(Cover!$H$8, 'i24'!R103,'i25'!R103,'i26'!R103,'i27'!R103,'i28'!R103) -> 466.6371397 | S103: =CHOOSE(Cover!$H$8, 'i24'!S103,'i25'!S103,'i26'!S103,'i27'!S103,'i28'!S103) -> 480.9111534 | T103: =CHOOSE(Cover!$H$8, 'i24'!T103,'i25'!T103,'i26'!T103,'i27'!T103,'i28'!T103) -> 582.4130646 | U103: =CHOOSE(Cover!$H$8, 'i24'!U103,'i25'!U103,'i26'!U103,'i27'!U103,'i28'!U103) -> 595.9457043 | V103: =CHOOSE(Cover!$H$8, 'i24'!V103,'i25'!V103,'i26'!V103,'i27'!V103,'i28'!V103) -> 590.920936 | W103: =CHOOSE(Cover!$H$8, 'i24'!W103,'i25'!W103,'i26'!W103,'i27'!W103,'i28'!W103) -> 566.5344229
D105: Base capex subject to the standard incentive rate | G105: $m | I105: =CHOOSE(Cover!$H$8, 'i24'!I105,'i25'!I105,'i26'!I105,'i27'!I105,'i28'!I105) -> 265.7890464 | J105: =CHOOSE(Cover!$H$8, 'i24'!J105,'i25'!J105,'i26'!J105,'i27'!J105,'i28'!J105) -> 220.240805 | K105: =CHOOSE(Cover!$H$8, 'i24'!K105,'i25'!K105,'i26'!K105,'i27'!K105,'i28'!K105) -> 272.5961764 | L105: =CHOOSE(Cover!$H$8, 'i24'!L105,'i25'!L105,'i26'!L105,'i27'!L105,'i28'!L105) -> 382.6776964 | M105: =CHOOSE(Cover!$H$8, 'i24'!M105,'i25'!M105,'i26'!M105,'i27'!M105,'i28'!M105) -> 448.0256984 | N105: =CHOOSE(Cover!$H$8, 'i24'!N105,'i25'!N105,'i26'!N105,'i27'!N105,'i28'!N105) -> 490.2048935 | O105: =CHOOSE(Cover!$H$8, 'i24'!O105,'i25'!O105,'i26'!O105,'i27'!O105,'i28'!O105) -> 538.2534202 | P105: =CHOOSE(Cover!$H$8, 'i24'!P105,'i25'!P105,'i26'!P105,'i27'!P105,'i28'!P105) -> 449.4342451 | Q105: =CHOOSE(Cover!$H$8, 'i24'!Q105,'i25'!Q105,'i26'!Q105,'i27'!Q105,'i28'!Q105) -> 451.0608516 | R105: =CHOOSE(Cover!$H$8, 'i24'!R105,'i25'!R105,'i26'!R105,'i27'!R105,'i28'!R105) -> 466.6371397 | S105: =CHOOSE(Cover!$H$8, 'i24'!S105,'i25'!S105,'i26'!S105,'i27'!S105,'i28'!S105) -> 480.9111534 | T105: =CHOOSE(Cover!$H$8, 'i24'!T105,'i25'!T105,'i26'!T105,'i27'!T105,'i28'!T105) -> 582.4130646 | U105: =CHOOSE(Cover!$H$8, 'i24'!U105,'i25'!U105,'i26'!U105,'i27'!U105,'i28'!U105) -> 595.9457043 | V105: =CHOOSE(Cover!$H$8, 'i24'!V105,'i25'!V105,'i26'!V105,'i27'!V105,'i28'!V105) -> 590.920936 | W105: =CHOOSE(Cover!$H$8, 'i24'!W105,'i25'!W105,'i26'!W105,'i27'!W105,'i28'!W105) -> 566.5344229
D106: Base capex subject to the low incentive rate | G106: $m | I106: =CHOOSE(Cover!$H$8, 'i24'!I106,'i25'!I106,'i26'!I106,'i27'!I106,'i28'!I106) -> 0 | J106: =CHOOSE(Cover!$H$8, 'i24'!J106,'i25'!J106,'i26'!J106,'i27'!J106,'i28'!J106) -> 0 | K106: =CHOOSE(Cover!$H$8, 'i24'!K106,'i25'!K106,'i26'!K106,'i27'!K106,'i28'!K106) -> 0 | L106: =CHOOSE(Cover!$H$8, 'i24'!L106,'i25'!L106,'i26'!L106,'i27'!L106,'i28'!L106) -> 0 | M106: =CHOOSE(Cover!$H$8, 'i24'!M106,'i25'!M106,'i26'!M106,'i27'!M106,'i28'!M106) -> 0 | N106: =CHOOSE(Cover!$H$8, 'i24'!N106,'i25'!N106,'i26'!N106,'i27'!N106,'i28'!N106) -> 0 | O106: =CHOOSE(Cover!$H$8, 'i24'!O106,'i25'!O106,'i26'!O106,'i27'!O106,'i28'!O106) -> 0 | P106: =CHOOSE(Cover!$H$8, 'i24'!P106,'i25'!P106,'i26'!P106,'i27'!P106,'i28'!P106) -> 0 | Q106: =CHOOSE(Cover!$H$8, 'i24'!Q106,'i25'!Q106,'i26'!Q106,'i27'!Q106,'i28'!Q106) -> 0 | R106: =CHOOSE(Cover!$H$8, 'i24'!R106,'i25'!R106,'i26'!R106,'i27'!R106,'i28'!R106) -> 0 | S106: =CHOOSE(Cover!$H$8, 'i24'!S106,'i25'!S106,'i26'!S106,'i27'!S106,'i28'!S106) -> 0 | T106: =CHOOSE(Cover!$H$8, 'i24'!T106,'i25'!T106,'i26'!T106,'i27'!T106,'i28'!T106) -> 0 | U106: =CHOOSE(Cover!$H$8, 'i24'!U106,'i25'!U106,'i26'!U106,'i27'!U106,'i28'!U106) -> 0 | V106: =CHOOSE(Cover!$H$8, 'i24'!V106,'i25'!V106,'i26'!V106,'i27'!V106,'i28'!V106) -> 0 | W106: =CHOOSE(Cover!$H$8, 'i24'!W106,'i25'!W106,'i26'!W106,'i27'!W106,'i28'!W106) -> 0
C108: Operating expenditure
C109: Note:
D111: Unassigned | G111: $m | I111: =CHOOSE(Cover!$H$8, 'i24'!I111,'i25'!I111,'i26'!I111,'i27'!I111,'i28'!I111) -> 0.0002603299999 | J111: =CHOOSE(Cover!$H$8, 'i24'!J111,'i25'!J111,'i26'!J111,'i27'!J111,'i28'!J111) -> -3.629669988e-05 | K111: =CHOOSE(Cover!$H$8, 'i24'!K111,'i25'!K111,'i26'!K111,'i27'!K111,'i28'!K111) -> -0.52890353 | L111: =CHOOSE(Cover!$H$8, 'i24'!L111,'i25'!L111,'i26'!L111,'i27'!L111,'i28'!L111) -> 344.710882 | M111: =CHOOSE(Cover!$H$8, 'i24'!M111,'i25'!M111,'i26'!M111,'i27'!M111,'i28'!M111) -> 0 | N111: =CHOOSE(Cover!$H$8, 'i24'!N111,'i25'!N111,'i26'!N111,'i27'!N111,'i28'!N111) -> 0 | O111: =CHOOSE(Cover!$H$8, 'i24'!O111,'i25'!O111,'i26'!O111,'i27'!O111,'i28'!O111) -> 0 | P111: =CHOOSE(Cover!$H$8, 'i24'!P111,'i25'!P111,'i26'!P111,'i27'!P111,'i28'!P111) -> 0 | Q111: =CHOOSE(Cover!$H$8, 'i24'!Q111,'i25'!Q111,'i26'!Q111,'i27'!Q111,'i28'!Q111) -> 0 | R111: =CHOOSE(Cover!$H$8, 'i24'!R111,'i25'!R111,'i26'!R111,'i27'!R111,'i28'!R111) -> 0 | S111: =CHOOSE(Cover!$H$8, 'i24'!S111,'i25'!S111,'i26'!S111,'i27'!S111,'i28'!S111) -> 0 | T111: =CHOOSE(Cover!$H$8, 'i24'!T111,'i25'!T111,'i26'!T111,'i27'!T111,'i28'!T111) -> 0 | U111: =CHOOSE(Cover!$H$8, 'i24'!U111,'i25'!U111,'i26'!U111,'i27'!U111,'i28'!U111) -> 0 | V111: =CHOOSE(Cover!$H$8, 'i24'!V111,'i25'!V111,'i26'!V111,'i27'!V111,'i28'!V111) -> 0 | W111: =CHOOSE(Cover!$H$8, 'i24'!W111,'i25'!W111,'i26'!W111,'i27'!W111,'i28'!W111) -> 0
D112: Preventive maintenance | G112: $m | I112: =CHOOSE(Cover!$H$8, 'i24'!I112,'i25'!I112,'i26'!I112,'i27'!I112,'i28'!I112) -> 40.43172919 | J112: =CHOOSE(Cover!$H$8, 'i24'!J112,'i25'!J112,'i26'!J112,'i27'!J112,'i28'!J112) -> 38.78020625 | K112: =CHOOSE(Cover!$H$8, 'i24'!K112,'i25'!K112,'i26'!K112,'i27'!K112,'i28'!K112) -> 44.32255962 | L112: =CHOOSE(Cover!$H$8, 'i24'!L112,'i25'!L112,'i26'!L112,'i27'!L112,'i28'!L112) -> 0 | M112: =CHOOSE(Cover!$H$8, 'i24'!M112,'i25'!M112,'i26'!M112,'i27'!M112,'i28'!M112) -> 50.2337129 | N112: =CHOOSE(Cover!$H$8, 'i24'!N112,'i25'!N112,'i26'!N112,'i27'!N112,'i28'!N112) -> 50.97185318 | O112: =CHOOSE(Cover!$H$8, 'i24'!O112,'i25'!O112,'i26'!O112,'i27'!O112,'i28'!O112) -> 49.18227815 | P112: =CHOOSE(Cover!$H$8, 'i24'!P112,'i25'!P112,'i26'!P112,'i27'!P112,'i28'!P112) -> 51.99619238 | Q112: =CHOOSE(Cover!$H$8, 'i24'!Q112,'i25'!Q112,'i26'!Q112,'i27'!Q112,'i28'!Q112) -> 53.07662949 | R112: =CHOOSE(Cover!$H$8, 'i24'!R112,'i25'!R112,'i26'!R112,'i27'!R112,'i28'!R112) -> 53.97589405 | S112: =CHOOSE(Cover!$H$8, 'i24'!S112,'i25'!S112,'i26'!S112,'i27'!S112,'i28'!S112) -> 55.45426265 | T112: =CHOOSE(Cover!$H$8, 'i24'!T112,'i25'!T112,'i26'!T112,'i27'!T112,'i28'!T112) -> 55.99032731 | U112: =CHOOSE(Cover!$H$8, 'i24'!U112,'i25'!U112,'i26'!U112,'i27'!U112,'i28'!U112) -> 58.5723009 | V112: =CHOOSE(Cover!$H$8, 'i24'!V112,'i25'!V112,'i26'!V112,'i27'!V112,'i28'!V112) -> 58.19274621 | W112: =CHOOSE(Cover!$H$8, 'i24'!W112,'i25'!W112,'i26'!W112,'i27'!W112,'i28'!W112) -> 58.77777966
D113: Predictive maintenance | G113: $m | I113: =CHOOSE(Cover!$H$8, 'i24'!I113,'i25'!I113,'i26'!I113,'i27'!I113,'i28'!I113) -> 66.15593994 | J113: =CHOOSE(Cover!$H$8, 'i24'!J113,'i25'!J113,'i26'!J113,'i27'!J113,'i28'!J113) -> 63.6678819 | K113: =CHOOSE(Cover!$H$8, 'i24'!K113,'i25'!K113,'i26'!K113,'i27'!K113,'i28'!K113) -> 83.56883834 | L113: =CHOOSE(Cover!$H$8, 'i24'!L113,'i25'!L113,'i26'!L113,'i27'!L113,'i28'!L113) -> 0 | M113: =CHOOSE(Cover!$H$8, 'i24'!M113,'i25'!M113,'i26'!M113,'i27'!M113,'i28'!M113) -> 84.02326244 | N113: =CHOOSE(Cover!$H$8, 'i24'!N113,'i25'!N113,'i26'!N113,'i27'!N113,'i28'!N113) -> 94.77418691 | O113: =CHOOSE(Cover!$H$8, 'i24'!O113,'i25'!O113,'i26'!O113,'i27'!O113,'i28'!O113) -> 93.97371369 | P113: =CHOOSE(Cover!$H$8, 'i24'!P113,'i25'!P113,'i26'!P113,'i27'!P113,'i28'!P113) -> 102.7451009 | Q113: =CHOOSE(Cover!$H$8, 'i24'!Q113,'i25'!Q113,'i26'!Q113,'i27'!Q113,'i28'!Q113) -> 100.8943834 | R113: =CHOOSE(Cover!$H$8, 'i24'!R113,'i25'!R113,'i26'!R113,'i27'!R113,'i28'!R113) -> 98.21108755 | S113: =CHOOSE(Cover!$H$8, 'i24'!S113,'i25'!S113,'i26'!S113,'i27'!S113,'i28'!S113) -> 99.72403263 | T113: =CHOOSE(Cover!$H$8, 'i24'!T113,'i25'!T113,'i26'!T113,'i27'!T113,'i28'!T113) -> 99.38941864 | U113: =CHOOSE(Cover!$H$8, 'i24'!U113,'i25'!U113,'i26'!U113,'i27'!U113,'i28'!U113) -> 103.8115864 | V113: =CHOOSE(Cover!$H$8, 'i24'!V113,'i25'!V113,'i26'!V113,'i27'!V113,'i28'!V113) -> 107.2397736 | W113: =CHOOSE(Cover!$H$8, 'i24'!W113,'i25'!W113,'i26'!W113,'i27'!W113,'i28'!W113) -> 104.8886142
D114: Corrective maintenance | G114: $m | I114: =CHOOSE(Cover!$H$8, 'i24'!I114,'i25'!I114,'i26'!I114,'i27'!I114,'i28'!I114) -> 3.77843899 | J114: =CHOOSE(Cover!$H$8, 'i24'!J114,'i25'!J114,'i26'!J114,'i27'!J114,'i28'!J114) -> 4.75604155 | K114: =CHOOSE(Cover!$H$8, 'i24'!K114,'i25'!K114,'i26'!K114,'i27'!K114,'i28'!K114) -> 4.87003359 | L114: =CHOOSE(Cover!$H$8, 'i24'!L114,'i25'!L114,'i26'!L114,'i27'!L114,'i28'!L114) -> 0 | M114: =CHOOSE(Cover!$H$8, 'i24'!M114,'i25'!M114,'i26'!M114,'i27'!M114,'i28'!M114) -> 5.226438604 | N114: =CHOOSE(Cover!$H$8, 'i24'!N114,'i25'!N114,'i26'!N114,'i27'!N114,'i28'!N114) -> 5.315418931 | O114: =CHOOSE(Cover!$H$8, 'i24'!O114,'i25'!O114,'i26'!O114,'i27'!O114,'i28'!O114) -> 5.388271703 | P114: =CHOOSE(Cover!$H$8, 'i24'!P114,'i25'!P114,'i26'!P114,'i27'!P114,'i28'!P114) -> 5.479427761 | Q114: =CHOOSE(Cover!$H$8, 'i24'!Q114,'i25'!Q114,'i26'!Q114,'i27'!Q114,'i28'!Q114) -> 5.550999302 | R114: =CHOOSE(Cover!$H$8, 'i24'!R114,'i25'!R114,'i26'!R114,'i27'!R114,'i28'!R114) -> 5.639424563 | S114: =CHOOSE(Cover!$H$8, 'i24'!S114,'i25'!S114,'i26'!S114,'i27'!S114,'i28'!S114) -> 5.730133612 | T114: =CHOOSE(Cover!$H$8, 'i24'!T114,'i25'!T114,'i26'!T114,'i27'!T114,'i28'!T114) -> 5.814206777 | U114: =CHOOSE(Cover!$H$8, 'i24'!U114,'i25'!U114,'i26'!U114,'i27'!U114,'i28'!U114) -> 5.914401305 | V114: =CHOOSE(Cover!$H$8, 'i24'!V114,'i25'!V114,'i26'!V114,'i27'!V114,'i28'!V114) -> 5.994822978 | W114: =CHOOSE(Cover!$H$8, 'i24'!W114,'i25'!W114,'i26'!W114,'i27'!W114,'i28'!W114) -> 6.075109527
D115: Proactive maintenance | G115: $m | I115: =CHOOSE(Cover!$H$8, 'i24'!I115,'i25'!I115,'i26'!I115,'i27'!I115,'i28'!I115) -> 0.58339964 | J115: =CHOOSE(Cover!$H$8, 'i24'!J115,'i25'!J115,'i26'!J115,'i27'!J115,'i28'!J115) -> 0.61271293 | K115: =CHOOSE(Cover!$H$8, 'i24'!K115,'i25'!K115,'i26'!K115,'i27'!K115,'i28'!K115) -> 0.77018419 | L115: =CHOOSE(Cover!$H$8, 'i24'!L115,'i25'!L115,'i26'!L115,'i27'!L115,'i28'!L115) -> 0 | M115: =CHOOSE(Cover!$H$8, 'i24'!M115,'i25'!M115,'i26'!M115,'i27'!M115,'i28'!M115) -> 1.173491474 | N115: =CHOOSE(Cover!$H$8, 'i24'!N115,'i25'!N115,'i26'!N115,'i27'!N115,'i28'!N115) -> 1.192897935 | O115: =CHOOSE(Cover!$H$8, 'i24'!O115,'i25'!O115,'i26'!O115,'i27'!O115,'i28'!O115) -> 1.208552704 | P115: =CHOOSE(Cover!$H$8, 'i24'!P115,'i25'!P115,'i26'!P115,'i27'!P115,'i28'!P115) -> 1.22861592 | Q115: =CHOOSE(Cover!$H$8, 'i24'!Q115,'i25'!Q115,'i26'!Q115,'i27'!Q115,'i28'!Q115) -> 1.24403398 | R115: =CHOOSE(Cover!$H$8, 'i24'!R115,'i25'!R115,'i26'!R115,'i27'!R115,'i28'!R115) -> 1.262821478 | S115: =CHOOSE(Cover!$H$8, 'i24'!S115,'i25'!S115,'i26'!S115,'i27'!S115,'i28'!S115) -> 1.282522399 | T115: =CHOOSE(Cover!$H$8, 'i24'!T115,'i25'!T115,'i26'!T115,'i27'!T115,'i28'!T115) -> 1.300744027 | U115: =CHOOSE(Cover!$H$8, 'i24'!U115,'i25'!U115,'i26'!U115,'i27'!U115,'i28'!U115) -> 1.322577679 | V115: =CHOOSE(Cover!$H$8, 'i24'!V115,'i25'!V115,'i26'!V115,'i27'!V115,'i28'!V115) -> 1.339995805 | W115: =CHOOSE(Cover!$H$8, 'i24'!W115,'i25'!W115,'i26'!W115,'i27'!W115,'i28'!W115) -> 1.357391982
D116: Resilience | G116: $m | I116: =CHOOSE(Cover!$H$8, 'i24'!I116,'i25'!I116,'i26'!I116,'i27'!I116,'i28'!I116) -> 0 | J116: =CHOOSE(Cover!$H$8, 'i24'!J116,'i25'!J116,'i26'!J116,'i27'!J116,'i28'!J116) -> 0 | K116: =CHOOSE(Cover!$H$8, 'i24'!K116,'i25'!K116,'i26'!K116,'i27'!K116,'i28'!K116) -> 0 | L116: =CHOOSE(Cover!$H$8, 'i24'!L116,'i25'!L116,'i26'!L116,'i27'!L116,'i28'!L116) -> 0 | M116: =CHOOSE(Cover!$H$8, 'i24'!M116,'i25'!M116,'i26'!M116,'i27'!M116,'i28'!M116) -> 0 | N116: =CHOOSE(Cover!$H$8, 'i24'!N116,'i25'!N116,'i26'!N116,'i27'!N116,'i28'!N116) -> 1.495137934 | O116: =CHOOSE(Cover!$H$8, 'i24'!O116,'i25'!O116,'i26'!O116,'i27'!O116,'i28'!O116) -> 0.9824461295 | P116: =CHOOSE(Cover!$H$8, 'i24'!P116,'i25'!P116,'i26'!P116,'i27'!P116,'i28'!P116) -> 2.537044791 | Q116: =CHOOSE(Cover!$H$8, 'i24'!Q116,'i25'!Q116,'i26'!Q116,'i27'!Q116,'i28'!Q116) -> 1.992880136 | R116: =CHOOSE(Cover!$H$8, 'i24'!R116,'i25'!R116,'i26'!R116,'i27'!R116,'i28'!R116) -> 1.721238721 | S116: =CHOOSE(Cover!$H$8, 'i24'!S116,'i25'!S116,'i26'!S116,'i27'!S116,'i28'!S116) -> 1.566851702 | T116: =CHOOSE(Cover!$H$8, 'i24'!T116,'i25'!T116,'i26'!T116,'i27'!T116,'i28'!T116) -> 1.598572791 | U116: =CHOOSE(Cover!$H$8, 'i24'!U116,'i25'!U116,'i26'!U116,'i27'!U116,'i28'!U116) -> 3.303658499 | V116: =CHOOSE(Cover!$H$8, 'i24'!V116,'i25'!V116,'i26'!V116,'i27'!V116,'i28'!V116) -> 2.730494038 | W116: =CHOOSE(Cover!$H$8, 'i24'!W116,'i25'!W116,'i26'!W116,'i27'!W116,'i28'!W116) -> 1.697524687
D117: Asset management and operations | G117: $m | I117: =CHOOSE(Cover!$H$8, 'i24'!I117,'i25'!I117,'i26'!I117,'i27'!I117,'i28'!I117) -> 66.79833369 | J117: =CHOOSE(Cover!$H$8, 'i24'!J117,'i25'!J117,'i26'!J117,'i27'!J117,'i28'!J117) -> 65.39870795 | K117: =CHOOSE(Cover!$H$8, 'i24'!K117,'i25'!K117,'i26'!K117,'i27'!K117,'i28'!K117) -> 72.47479622 | L117: =CHOOSE(Cover!$H$8, 'i24'!L117,'i25'!L117,'i26'!L117,'i27'!L117,'i28'!L117) -> 0 | M117: =CHOOSE(Cover!$H$8, 'i24'!M117,'i25'!M117,'i26'!M117,'i27'!M117,'i28'!M117) -> 96.00774905 | N117: =CHOOSE(Cover!$H$8, 'i24'!N117,'i25'!N117,'i26'!N117,'i27'!N117,'i28'!N117) -> 101.0352286 | O117: =CHOOSE(Cover!$H$8, 'i24'!O117,'i25'!O117,'i26'!O117,'i27'!O117,'i28'!O117) -> 105.0406791 | P117: =CHOOSE(Cover!$H$8, 'i24'!P117,'i25'!P117,'i26'!P117,'i27'!P117,'i28'!P117) -> 107.8625593 | Q117: =CHOOSE(Cover!$H$8, 'i24'!Q117,'i25'!Q117,'i26'!Q117,'i27'!Q117,'i28'!Q117) -> 109.2323294 | R117: =CHOOSE(Cover!$H$8, 'i24'!R117,'i25'!R117,'i26'!R117,'i27'!R117,'i28'!R117) -> 108.4718931 | S117: =CHOOSE(Cover!$H$8, 'i24'!S117,'i25'!S117,'i26'!S117,'i27'!S117,'i28'!S117) -> 107.1136695 | T117: =CHOOSE(Cover!$H$8, 'i24'!T117,'i25'!T117,'i26'!T117,'i27'!T117,'i28'!T117) -> 110.0874177 | U117: =CHOOSE(Cover!$H$8, 'i24'!U117,'i25'!U117,'i26'!U117,'i27'!U117,'i28'!U117) -> 113.1271962 | V117: =CHOOSE(Cover!$H$8, 'i24'!V117,'i25'!V117,'i26'!V117,'i27'!V117,'i28'!V117) -> 116.2343724 | W117: =CHOOSE(Cover!$H$8, 'i24'!W117,'i25'!W117,'i26'!W117,'i27'!W117,'i28'!W117) -> 119.4103378
D118: Business support | G118: $m | I118: =CHOOSE(Cover!$H$8, 'i24'!I118,'i25'!I118,'i26'!I118,'i27'!I118,'i28'!I118) -> 42.11695135 | J118: =CHOOSE(Cover!$H$8, 'i24'!J118,'i25'!J118,'i26'!J118,'i27'!J118,'i28'!J118) -> 45.4415411 | K118: =CHOOSE(Cover!$H$8, 'i24'!K118,'i25'!K118,'i26'!K118,'i27'!K118,'i28'!K118) -> 55.58278451 | L118: =CHOOSE(Cover!$H$8, 'i24'!L118,'i25'!L118,'i26'!L118,'i27'!L118,'i28'!L118) -> 0 | M118: =CHOOSE(Cover!$H$8, 'i24'!M118,'i25'!M118,'i26'!M118,'i27'!M118,'i28'!M118) -> 66.40597317 | N118: =CHOOSE(Cover!$H$8, 'i24'!N118,'i25'!N118,'i26'!N118,'i27'!N118,'i28'!N118) -> 69.28359173 | O118: =CHOOSE(Cover!$H$8, 'i24'!O118,'i25'!O118,'i26'!O118,'i27'!O118,'i28'!O118) -> 74.10022597 | P118: =CHOOSE(Cover!$H$8, 'i24'!P118,'i25'!P118,'i26'!P118,'i27'!P118,'i28'!P118) -> 75.17866643 | Q118: =CHOOSE(Cover!$H$8, 'i24'!Q118,'i25'!Q118,'i26'!Q118,'i27'!Q118,'i28'!Q118) -> 74.70806284 | R118: =CHOOSE(Cover!$H$8, 'i24'!R118,'i25'!R118,'i26'!R118,'i27'!R118,'i28'!R118) -> 74.17543364 | S118: =CHOOSE(Cover!$H$8, 'i24'!S118,'i25'!S118,'i26'!S118,'i27'!S118,'i28'!S118) -> 74.99192585 | T118: =CHOOSE(Cover!$H$8, 'i24'!T118,'i25'!T118,'i26'!T118,'i27'!T118,'i28'!T118) -> 76.91466247 | U118: =CHOOSE(Cover!$H$8, 'i24'!U118,'i25'!U118,'i26'!U118,'i27'!U118,'i28'!U118) -> 78.87670439 | V118: =CHOOSE(Cover!$H$8, 'i24'!V118,'i25'!V118,'i26'!V118,'i27'!V118,'i28'!V118) -> 80.8801735 | W118: =CHOOSE(Cover!$H$8, 'i24'!W118,'i25'!W118,'i26'!W118,'i27'!W118,'i28'!W118) -> 82.92587343
D119: ICT | G119: $m | I119: =CHOOSE(Cover!$H$8, 'i24'!I119,'i25'!I119,'i26'!I119,'i27'!I119,'i28'!I119) -> 30.78084208 | J119: =CHOOSE(Cover!$H$8, 'i24'!J119,'i25'!J119,'i26'!J119,'i27'!J119,'i28'!J119) -> 38.16811609 | K119: =CHOOSE(Cover!$H$8, 'i24'!K119,'i25'!K119,'i26'!K119,'i27'!K119,'i28'!K119) -> 40.96238947 | L119: =CHOOSE(Cover!$H$8, 'i24'!L119,'i25'!L119,'i26'!L119,'i27'!L119,'i28'!L119) -> 0 | M119: =CHOOSE(Cover!$H$8, 'i24'!M119,'i25'!M119,'i26'!M119,'i27'!M119,'i28'!M119) -> 49.97102128 | N119: =CHOOSE(Cover!$H$8, 'i24'!N119,'i25'!N119,'i26'!N119,'i27'!N119,'i28'!N119) -> 63.26919502 | O119: =CHOOSE(Cover!$H$8, 'i24'!O119,'i25'!O119,'i26'!O119,'i27'!O119,'i28'!O119) -> 66.30567686 | P119: =CHOOSE(Cover!$H$8, 'i24'!P119,'i25'!P119,'i26'!P119,'i27'!P119,'i28'!P119) -> 69.57708028 | Q119: =CHOOSE(Cover!$H$8, 'i24'!Q119,'i25'!Q119,'i26'!Q119,'i27'!Q119,'i28'!Q119) -> 73.79172336 | R119: =CHOOSE(Cover!$H$8, 'i24'!R119,'i25'!R119,'i26'!R119,'i27'!R119,'i28'!R119) -> 65.13093612 | S119: =CHOOSE(Cover!$H$8, 'i24'!S119,'i25'!S119,'i26'!S119,'i27'!S119,'i28'!S119) -> 66.80159164 | T119: =CHOOSE(Cover!$H$8, 'i24'!T119,'i25'!T119,'i26'!T119,'i27'!T119,'i28'!T119) -> 68.97749788 | U119: =CHOOSE(Cover!$H$8, 'i24'!U119,'i25'!U119,'i26'!U119,'i27'!U119,'i28'!U119) -> 72.46950155 | V119: =CHOOSE(Cover!$H$8, 'i24'!V119,'i25'!V119,'i26'!V119,'i27'!V119,'i28'!V119) -> 73.20650282 | W119: =CHOOSE(Cover!$H$8, 'i24'!W119,'i25'!W119,'i26'!W119,'i27'!W119,'i28'!W119) -> 75.5089679
D120: Insurance | G120: $m | I120: =CHOOSE(Cover!$H$8, 'i24'!I120,'i25'!I120,'i26'!I120,'i27'!I120,'i28'!I120) -> 18.71301707 | J120: =CHOOSE(Cover!$H$8, 'i24'!J120,'i25'!J120,'i26'!J120,'i27'!J120,'i28'!J120) -> 22.1542779 | K120: =CHOOSE(Cover!$H$8, 'i24'!K120,'i25'!K120,'i26'!K120,'i27'!K120,'i28'!K120) -> 26.54746696 | L120: =CHOOSE(Cover!$H$8, 'i24'!L120,'i25'!L120,'i26'!L120,'i27'!L120,'i28'!L120) -> 0 | M120: =CHOOSE(Cover!$H$8, 'i24'!M120,'i25'!M120,'i26'!M120,'i27'!M120,'i28'!M120) -> 34.18971122 | N120: =CHOOSE(Cover!$H$8, 'i24'!N120,'i25'!N120,'i26'!N120,'i27'!N120,'i28'!N120) -> 36.33415195 | O120: =CHOOSE(Cover!$H$8, 'i24'!O120,'i25'!O120,'i26'!O120,'i27'!O120,'i28'!O120) -> 38.54126173 | P120: =CHOOSE(Cover!$H$8, 'i24'!P120,'i25'!P120,'i26'!P120,'i27'!P120,'i28'!P120) -> 41.0124936 | Q120: =CHOOSE(Cover!$H$8, 'i24'!Q120,'i25'!Q120,'i26'!Q120,'i27'!Q120,'i28'!Q120) -> 43.65570016 | R120: =CHOOSE(Cover!$H$8, 'i24'!R120,'i25'!R120,'i26'!R120,'i27'!R120,'i28'!R120) -> 46.45433318 | S120: =CHOOSE(Cover!$H$8, 'i24'!S120,'i25'!S120,'i26'!S120,'i27'!S120,'i28'!S120) -> 49.45419505 | T120: =CHOOSE(Cover!$H$8, 'i24'!T120,'i25'!T120,'i26'!T120,'i27'!T120,'i28'!T120) -> 51.97530667 | U120: =CHOOSE(Cover!$H$8, 'i24'!U120,'i25'!U120,'i26'!U120,'i27'!U120,'i28'!U120) -> 54.9179448 | V120: =CHOOSE(Cover!$H$8, 'i24'!V120,'i25'!V120,'i26'!V120,'i27'!V120,'i28'!V120) -> 58.51361506 | W120: =CHOOSE(Cover!$H$8, 'i24'!W120,'i25'!W120,'i26'!W120,'i27'!W120,'i28'!W120) -> 61.87008488
D121: Deliverability adjustment | G121: $m | I121: =CHOOSE(Cover!$H$8, 'i24'!I121,'i25'!I121,'i26'!I121,'i27'!I121,'i28'!I121) -> 0 | J121: =CHOOSE(Cover!$H$8, 'i24'!J121,'i25'!J121,'i26'!J121,'i27'!J121,'i28'!J121) -> 0 | K121: =CHOOSE(Cover!$H$8, 'i24'!K121,'i25'!K121,'i26'!K121,'i27'!K121,'i28'!K121) -> 0 | L121: =CHOOSE(Cover!$H$8, 'i24'!L121,'i25'!L121,'i26'!L121,'i27'!L121,'i28'!L121) -> 0 | M121: =CHOOSE(Cover!$H$8, 'i24'!M121,'i25'!M121,'i26'!M121,'i27'!M121,'i28'!M121) -> 0 | N121: =CHOOSE(Cover!$H$8, 'i24'!N121,'i25'!N121,'i26'!N121,'i27'!N121,'i28'!N121) -> -2.566841193 | O121: =CHOOSE(Cover!$H$8, 'i24'!O121,'i25'!O121,'i26'!O121,'i27'!O121,'i28'!O121) -> 0.02247261339 | P121: =CHOOSE(Cover!$H$8, 'i24'!P121,'i25'!P121,'i26'!P121,'i27'!P121,'i28'!P121) -> -16.82301012 | Q121: =CHOOSE(Cover!$H$8, 'i24'!Q121,'i25'!Q121,'i26'!Q121,'i27'!Q121,'i28'!Q121) -> -19.12994279 | R121: =CHOOSE(Cover!$H$8, 'i24'!R121,'i25'!R121,'i26'!R121,'i27'!R121,'i28'!R121) -> -17.41460896 | S121: =CHOOSE(Cover!$H$8, 'i24'!S121,'i25'!S121,'i26'!S121,'i27'!S121,'i28'!S121) -> 0 | T121: =CHOOSE(Cover!$H$8, 'i24'!T121,'i25'!T121,'i26'!T121,'i27'!T121,'i28'!T121) -> 0 | U121: =CHOOSE(Cover!$H$8, 'i24'!U121,'i25'!U121,'i26'!U121,'i27'!U121,'i28'!U121) -> 0 | V121: =CHOOSE(Cover!$H$8, 'i24'!V121,'i25'!V121,'i26'!V121,'i27'!V121,'i28'!V121) -> 0 | W121: =CHOOSE(Cover!$H$8, 'i24'!W121,'i25'!W121,'i26'!W121,'i27'!W121,'i28'!W121) -> 0
D122: Total operating expenditure | G122: $m | I122: =CHOOSE(Cover!$H$8, 'i24'!I122,'i25'!I122,'i26'!I122,'i27'!I122,'i28'!I122) -> 269.3589123 | J122: =CHOOSE(Cover!$H$8, 'i24'!J122,'i25'!J122,'i26'!J122,'i27'!J122,'i28'!J122) -> 278.9794494 | K122: =CHOOSE(Cover!$H$8, 'i24'!K122,'i25'!K122,'i26'!K122,'i27'!K122,'i28'!K122) -> 328.5701494 | L122: =CHOOSE(Cover!$H$8, 'i24'!L122,'i25'!L122,'i26'!L122,'i27'!L122,'i28'!L122) -> 344.710882 | M122: =CHOOSE(Cover!$H$8, 'i24'!M122,'i25'!M122,'i26'!M122,'i27'!M122,'i28'!M122) -> 387.2313601 | N122: =CHOOSE(Cover!$H$8, 'i24'!N122,'i25'!N122,'i26'!N122,'i27'!N122,'i28'!N122) -> 421.1048209 | O122: =CHOOSE(Cover!$H$8, 'i24'!O122,'i25'!O122,'i26'!O122,'i27'!O122,'i28'!O122) -> 434.7455786 | P122: =CHOOSE(Cover!$H$8, 'i24'!P122,'i25'!P122,'i26'!P122,'i27'!P122,'i28'!P122) -> 440.7941712 | Q122: =CHOOSE(Cover!$H$8, 'i24'!Q122,'i25'!Q122,'i26'!Q122,'i27'!Q122,'i28'!Q122) -> 445.0167992 | R122: =CHOOSE(Cover!$H$8, 'i24'!R122,'i25'!R122,'i26'!R122,'i27'!R122,'i28'!R122) -> 437.6284535 | S122: =CHOOSE(Cover!$H$8, 'i24'!S122,'i25'!S122,'i26'!S122,'i27'!S122,'i28'!S122) -> 462.119185 | T122: =CHOOSE(Cover!$H$8, 'i24'!T122,'i25'!T122,'i26'!T122,'i27'!T122,'i28'!T122) -> 472.0481543 | U122: =CHOOSE(Cover!$H$8, 'i24'!U122,'i25'!U122,'i26'!U122,'i27'!U122,'i28'!U122) -> 492.3158717 | V122: =CHOOSE(Cover!$H$8, 'i24'!V122,'i25'!V122,'i26'!V122,'i27'!V122,'i28'!V122) -> 504.3324964 | W122: =CHOOSE(Cover!$H$8, 'i24'!W122,'i25'!W122,'i26'!W122,'i27'!W122,'i28'!W122) -> 512.5116841
B124: Capex commissioning
C126: Base and major capex commissioning by month
C127: Note: Inclusive of commissioning relating to major capex projects.
D129: Commissioned assets in July | G129: $m | I129: =CHOOSE(Cover!$H$8, 'i24'!I129,'i25'!I129,'i26'!I129,'i27'!I129,'i28'!I129) -> 7.898611791 | J129: =CHOOSE(Cover!$H$8, 'i24'!J129,'i25'!J129,'i26'!J129,'i27'!J129,'i28'!J129) -> 21.62125678 | K129: =CHOOSE(Cover!$H$8, 'i24'!K129,'i25'!K129,'i26'!K129,'i27'!K129,'i28'!K129) -> 15.92071939 | L129: =CHOOSE(Cover!$H$8, 'i24'!L129,'i25'!L129,'i26'!L129,'i27'!L129,'i28'!L129) -> 6.815003846 | M129: =CHOOSE(Cover!$H$8, 'i24'!M129,'i25'!M129,'i26'!M129,'i27'!M129,'i28'!M129) -> 0 | N129: =CHOOSE(Cover!$H$8, 'i24'!N129,'i25'!N129,'i26'!N129,'i27'!N129,'i28'!N129) -> 0 | O129: =CHOOSE(Cover!$H$8, 'i24'!O129,'i25'!O129,'i26'!O129,'i27'!O129,'i28'!O129) -> 0 | P129: =CHOOSE(Cover!$H$8, 'i24'!P129,'i25'!P129,'i26'!P129,'i27'!P129,'i28'!P129) -> 0 | Q129: =CHOOSE(Cover!$H$8, 'i24'!Q129,'i25'!Q129,'i26'!Q129,'i27'!Q129,'i28'!Q129) -> 0 | R129: =CHOOSE(Cover!$H$8, 'i24'!R129,'i25'!R129,'i26'!R129,'i27'!R129,'i28'!R129) -> 0 | S129: =CHOOSE(Cover!$H$8, 'i24'!S129,'i25'!S129,'i26'!S129,'i27'!S129,'i28'!S129) -> 0 | T129: =CHOOSE(Cover!$H$8, 'i24'!T129,'i25'!T129,'i26'!T129,'i27'!T129,'i28'!T129) -> 0 | U129: =CHOOSE(Cover!$H$8, 'i24'!U129,'i25'!U129,'i26'!U129,'i27'!U129,'i28'!U129) -> 0 | V129: =CHOOSE(Cover!$H$8, 'i24'!V129,'i25'!V129,'i26'!V129,'i27'!V129,'i28'!V129) -> 0 | W129: =CHOOSE(Cover!$H$8, 'i24'!W129,'i25'!W129,'i26'!W129,'i27'!W129,'i28'!W129) -> 0
D130: Commissioned assets in August | G130: $m | I130: =CHOOSE(Cover!$H$8, 'i24'!I130,'i25'!I130,'i26'!I130,'i27'!I130,'i28'!I130) -> 25.56519935 | J130: =CHOOSE(Cover!$H$8, 'i24'!J130,'i25'!J130,'i26'!J130,'i27'!J130,'i28'!J130) -> 10.23545648 | K130: =CHOOSE(Cover!$H$8, 'i24'!K130,'i25'!K130,'i26'!K130,'i27'!K130,'i28'!K130) -> 17.40739842 | L130: =CHOOSE(Cover!$H$8, 'i24'!L130,'i25'!L130,'i26'!L130,'i27'!L130,'i28'!L130) -> 8.968223533 | M130: =CHOOSE(Cover!$H$8, 'i24'!M130,'i25'!M130,'i26'!M130,'i27'!M130,'i28'!M130) -> 0 | N130: =CHOOSE(Cover!$H$8, 'i24'!N130,'i25'!N130,'i26'!N130,'i27'!N130,'i28'!N130) -> 0 | O130: =CHOOSE(Cover!$H$8, 'i24'!O130,'i25'!O130,'i26'!O130,'i27'!O130,'i28'!O130) -> 0 | P130: =CHOOSE(Cover!$H$8, 'i24'!P130,'i25'!P130,'i26'!P130,'i27'!P130,'i28'!P130) -> 0 | Q130: =CHOOSE(Cover!$H$8, 'i24'!Q130,'i25'!Q130,'i26'!Q130,'i27'!Q130,'i28'!Q130) -> 0 | R130: =CHOOSE(Cover!$H$8, 'i24'!R130,'i25'!R130,'i26'!R130,'i27'!R130,'i28'!R130) -> 0 | S130: =CHOOSE(Cover!$H$8, 'i24'!S130,'i25'!S130,'i26'!S130,'i27'!S130,'i28'!S130) -> 0 | T130: =CHOOSE(Cover!$H$8, 'i24'!T130,'i25'!T130,'i26'!T130,'i27'!T130,'i28'!T130) -> 0 | U130: =CHOOSE(Cover!$H$8, 'i24'!U130,'i25'!U130,'i26'!U130,'i27'!U130,'i28'!U130) -> 0 | V130: =CHOOSE(Cover!$H$8, 'i24'!V130,'i25'!V130,'i26'!V130,'i27'!V130,'i28'!V130) -> 0 | W130: =CHOOSE(Cover!$H$8, 'i24'!W130,'i25'!W130,'i26'!W130,'i27'!W130,'i28'!W130) -> 0
D131: Commissioned assets in September | G131: $m | I131: =CHOOSE(Cover!$H$8, 'i24'!I131,'i25'!I131,'i26'!I131,'i27'!I131,'i28'!I131) -> 18.35834218 | J131: =CHOOSE(Cover!$H$8, 'i24'!J131,'i25'!J131,'i26'!J131,'i27'!J131,'i28'!J131) -> 17.63454312 | K131: =CHOOSE(Cover!$H$8, 'i24'!K131,'i25'!K131,'i26'!K131,'i27'!K131,'i28'!K131) -> 17.01440886 | L131: =CHOOSE(Cover!$H$8, 'i24'!L131,'i25'!L131,'i26'!L131,'i27'!L131,'i28'!L131) -> 39.29858801 | M131: =CHOOSE(Cover!$H$8, 'i24'!M131,'i25'!M131,'i26'!M131,'i27'!M131,'i28'!M131) -> 0 | N131: =CHOOSE(Cover!$H$8, 'i24'!N131,'i25'!N131,'i26'!N131,'i27'!N131,'i28'!N131) -> 0 | O131: =CHOOSE(Cover!$H$8, 'i24'!O131,'i25'!O131,'i26'!O131,'i27'!O131,'i28'!O131) -> 0 | P131: =CHOOSE(Cover!$H$8, 'i24'!P131,'i25'!P131,'i26'!P131,'i27'!P131,'i28'!P131) -> 0 | Q131: =CHOOSE(Cover!$H$8, 'i24'!Q131,'i25'!Q131,'i26'!Q131,'i27'!Q131,'i28'!Q131) -> 0 | R131: =CHOOSE(Cover!$H$8, 'i24'!R131,'i25'!R131,'i26'!R131,'i27'!R131,'i28'!R131) -> 0 | S131: =CHOOSE(Cover!$H$8, 'i24'!S131,'i25'!S131,'i26'!S131,'i27'!S131,'i28'!S131) -> 0 | T131: =CHOOSE(Cover!$H$8, 'i24'!T131,'i25'!T131,'i26'!T131,'i27'!T131,'i28'!T131) -> 0 | U131: =CHOOSE(Cover!$H$8, 'i24'!U131,'i25'!U131,'i26'!U131,'i27'!U131,'i28'!U131) -> 0 | V131: =CHOOSE(Cover!$H$8, 'i24'!V131,'i25'!V131,'i26'!V131,'i27'!V131,'i28'!V131) -> 0 | W131: =CHOOSE(Cover!$H$8, 'i24'!W131,'i25'!W131,'i26'!W131,'i27'!W131,'i28'!W131) -> 0
D132: Commissioned assets in October | G132: $m | I132: =CHOOSE(Cover!$H$8, 'i24'!I132,'i25'!I132,'i26'!I132,'i27'!I132,'i28'!I132) -> 13.63390576 | J132: =CHOOSE(Cover!$H$8, 'i24'!J132,'i25'!J132,'i26'!J132,'i27'!J132,'i28'!J132) -> 11.32768125 | K132: =CHOOSE(Cover!$H$8, 'i24'!K132,'i25'!K132,'i26'!K132,'i27'!K132,'i28'!K132) -> 16.07831921 | L132: =CHOOSE(Cover!$H$8, 'i24'!L132,'i25'!L132,'i26'!L132,'i27'!L132,'i28'!L132) -> 10.97451393 | M132: =CHOOSE(Cover!$H$8, 'i24'!M132,'i25'!M132,'i26'!M132,'i27'!M132,'i28'!M132) -> 0 | N132: =CHOOSE(Cover!$H$8, 'i24'!N132,'i25'!N132,'i26'!N132,'i27'!N132,'i28'!N132) -> 0 | O132: =CHOOSE(Cover!$H$8, 'i24'!O132,'i25'!O132,'i26'!O132,'i27'!O132,'i28'!O132) -> 0 | P132: =CHOOSE(Cover!$H$8, 'i24'!P132,'i25'!P132,'i26'!P132,'i27'!P132,'i28'!P132) -> 0 | Q132: =CHOOSE(Cover!$H$8, 'i24'!Q132,'i25'!Q132,'i26'!Q132,'i27'!Q132,'i28'!Q132) -> 0 | R132: =CHOOSE(Cover!$H$8, 'i24'!R132,'i25'!R132,'i26'!R132,'i27'!R132,'i28'!R132) -> 0 | S132: =CHOOSE(Cover!$H$8, 'i24'!S132,'i25'!S132,'i26'!S132,'i27'!S132,'i28'!S132) -> 0 | T132: =CHOOSE(Cover!$H$8, 'i24'!T132,'i25'!T132,'i26'!T132,'i27'!T132,'i28'!T132) -> 0 | U132: =CHOOSE(Cover!$H$8, 'i24'!U132,'i25'!U132,'i26'!U132,'i27'!U132,'i28'!U132) -> 0 | V132: =CHOOSE(Cover!$H$8, 'i24'!V132,'i25'!V132,'i26'!V132,'i27'!V132,'i28'!V132) -> 0 | W132: =CHOOSE(Cover!$H$8, 'i24'!W132,'i25'!W132,'i26'!W132,'i27'!W132,'i28'!W132) -> 0
D133: Commissioned assets in November | G133: $m | I133: =CHOOSE(Cover!$H$8, 'i24'!I133,'i25'!I133,'i26'!I133,'i27'!I133,'i28'!I133) -> 27.66076394 | J133: =CHOOSE(Cover!$H$8, 'i24'!J133,'i25'!J133,'i26'!J133,'i27'!J133,'i28'!J133) -> 19.79425665 | K133: =CHOOSE(Cover!$H$8, 'i24'!K133,'i25'!K133,'i26'!K133,'i27'!K133,'i28'!K133) -> 24.53882308 | L133: =CHOOSE(Cover!$H$8, 'i24'!L133,'i25'!L133,'i26'!L133,'i27'!L133,'i28'!L133) -> 12.69483615 | M133: =CHOOSE(Cover!$H$8, 'i24'!M133,'i25'!M133,'i26'!M133,'i27'!M133,'i28'!M133) -> 0 | N133: =CHOOSE(Cover!$H$8, 'i24'!N133,'i25'!N133,'i26'!N133,'i27'!N133,'i28'!N133) -> 0 | O133: =CHOOSE(Cover!$H$8, 'i24'!O133,'i25'!O133,'i26'!O133,'i27'!O133,'i28'!O133) -> 0 | P133: =CHOOSE(Cover!$H$8, 'i24'!P133,'i25'!P133,'i26'!P133,'i27'!P133,'i28'!P133) -> 0 | Q133: =CHOOSE(Cover!$H$8, 'i24'!Q133,'i25'!Q133,'i26'!Q133,'i27'!Q133,'i28'!Q133) -> 0 | R133: =CHOOSE(Cover!$H$8, 'i24'!R133,'i25'!R133,'i26'!R133,'i27'!R133,'i28'!R133) -> 0 | S133: =CHOOSE(Cover!$H$8, 'i24'!S133,'i25'!S133,'i26'!S133,'i27'!S133,'i28'!S133) -> 0 | T133: =CHOOSE(Cover!$H$8, 'i24'!T133,'i25'!T133,'i26'!T133,'i27'!T133,'i28'!T133) -> 0 | U133: =CHOOSE(Cover!$H$8, 'i24'!U133,'i25'!U133,'i26'!U133,'i27'!U133,'i28'!U133) -> 0 | V133: =CHOOSE(Cover!$H$8, 'i24'!V133,'i25'!V133,'i26'!V133,'i27'!V133,'i28'!V133) -> 0 | W133: =CHOOSE(Cover!$H$8, 'i24'!W133,'i25'!W133,'i26'!W133,'i27'!W133,'i28'!W133) -> 0
D134: Commissioned assets in December | G134: $m | I134: =CHOOSE(Cover!$H$8, 'i24'!I134,'i25'!I134,'i26'!I134,'i27'!I134,'i28'!I134) -> 24.47519823 | J134: =CHOOSE(Cover!$H$8, 'i24'!J134,'i25'!J134,'i26'!J134,'i27'!J134,'i28'!J134) -> 30.26008203 | K134: =CHOOSE(Cover!$H$8, 'i24'!K134,'i25'!K134,'i26'!K134,'i27'!K134,'i28'!K134) -> 43.64412256 | L134: =CHOOSE(Cover!$H$8, 'i24'!L134,'i25'!L134,'i26'!L134,'i27'!L134,'i28'!L134) -> 35.70495157 | M134: =CHOOSE(Cover!$H$8, 'i24'!M134,'i25'!M134,'i26'!M134,'i27'!M134,'i28'!M134) -> 216.8429894 | N134: =CHOOSE(Cover!$H$8, 'i24'!N134,'i25'!N134,'i26'!N134,'i27'!N134,'i28'!N134) -> 273.7001196 | O134: =CHOOSE(Cover!$H$8, 'i24'!O134,'i25'!O134,'i26'!O134,'i27'!O134,'i28'!O134) -> 309.4180227 | P134: =CHOOSE(Cover!$H$8, 'i24'!P134,'i25'!P134,'i26'!P134,'i27'!P134,'i28'!P134) -> 275.8112239 | Q134: =CHOOSE(Cover!$H$8, 'i24'!Q134,'i25'!Q134,'i26'!Q134,'i27'!Q134,'i28'!Q134) -> 270.9488708 | R134: =CHOOSE(Cover!$H$8, 'i24'!R134,'i25'!R134,'i26'!R134,'i27'!R134,'i28'!R134) -> 378.8807879 | S134: =CHOOSE(Cover!$H$8, 'i24'!S134,'i25'!S134,'i26'!S134,'i27'!S134,'i28'!S134) -> 233.2030384 | T134: =CHOOSE(Cover!$H$8, 'i24'!T134,'i25'!T134,'i26'!T134,'i27'!T134,'i28'!T134) -> 284.9066585 | U134: =CHOOSE(Cover!$H$8, 'i24'!U134,'i25'!U134,'i26'!U134,'i27'!U134,'i28'!U134) -> 281.0410965 | V134: =CHOOSE(Cover!$H$8, 'i24'!V134,'i25'!V134,'i26'!V134,'i27'!V134,'i28'!V134) -> 293.7542912 | W134: =CHOOSE(Cover!$H$8, 'i24'!W134,'i25'!W134,'i26'!W134,'i27'!W134,'i28'!W134) -> 345.3428388
D135: Commissioned assets in January | G135: $m | I135: =CHOOSE(Cover!$H$8, 'i24'!I135,'i25'!I135,'i26'!I135,'i27'!I135,'i28'!I135) -> 6.698658495 | J135: =CHOOSE(Cover!$H$8, 'i24'!J135,'i25'!J135,'i26'!J135,'i27'!J135,'i28'!J135) -> 11.34495001 | K135: =CHOOSE(Cover!$H$8, 'i24'!K135,'i25'!K135,'i26'!K135,'i27'!K135,'i28'!K135) -> 4.889956752 | L135: =CHOOSE(Cover!$H$8, 'i24'!L135,'i25'!L135,'i26'!L135,'i27'!L135,'i28'!L135) -> 15.25097016 | M135: =CHOOSE(Cover!$H$8, 'i24'!M135,'i25'!M135,'i26'!M135,'i27'!M135,'i28'!M135) -> 216.8429894 | N135: =CHOOSE(Cover!$H$8, 'i24'!N135,'i25'!N135,'i26'!N135,'i27'!N135,'i28'!N135) -> 273.7001196 | O135: =CHOOSE(Cover!$H$8, 'i24'!O135,'i25'!O135,'i26'!O135,'i27'!O135,'i28'!O135) -> 309.4180227 | P135: =CHOOSE(Cover!$H$8, 'i24'!P135,'i25'!P135,'i26'!P135,'i27'!P135,'i28'!P135) -> 275.8112239 | Q135: =CHOOSE(Cover!$H$8, 'i24'!Q135,'i25'!Q135,'i26'!Q135,'i27'!Q135,'i28'!Q135) -> 270.9488708 | R135: =CHOOSE(Cover!$H$8, 'i24'!R135,'i25'!R135,'i26'!R135,'i27'!R135,'i28'!R135) -> 378.8807879 | S135: =CHOOSE(Cover!$H$8, 'i24'!S135,'i25'!S135,'i26'!S135,'i27'!S135,'i28'!S135) -> 233.2030384 | T135: =CHOOSE(Cover!$H$8, 'i24'!T135,'i25'!T135,'i26'!T135,'i27'!T135,'i28'!T135) -> 284.9066585 | U135: =CHOOSE(Cover!$H$8, 'i24'!U135,'i25'!U135,'i26'!U135,'i27'!U135,'i28'!U135) -> 281.0410965 | V135: =CHOOSE(Cover!$H$8, 'i24'!V135,'i25'!V135,'i26'!V135,'i27'!V135,'i28'!V135) -> 293.7542912 | W135: =CHOOSE(Cover!$H$8, 'i24'!W135,'i25'!W135,'i26'!W135,'i27'!W135,'i28'!W135) -> 345.3428388
D136: Commissioned assets in February | G136: $m | I136: =CHOOSE(Cover!$H$8, 'i24'!I136,'i25'!I136,'i26'!I136,'i27'!I136,'i28'!I136) -> 19.08794274 | J136: =CHOOSE(Cover!$H$8, 'i24'!J136,'i25'!J136,'i26'!J136,'i27'!J136,'i28'!J136) -> 10.95220851 | K136: =CHOOSE(Cover!$H$8, 'i24'!K136,'i25'!K136,'i26'!K136,'i27'!K136,'i28'!K136) -> 13.40078567 | L136: =CHOOSE(Cover!$H$8, 'i24'!L136,'i25'!L136,'i26'!L136,'i27'!L136,'i28'!L136) -> 14.36056359 | M136: =CHOOSE(Cover!$H$8, 'i24'!M136,'i25'!M136,'i26'!M136,'i27'!M136,'i28'!M136) -> 0 | N136: =CHOOSE(Cover!$H$8, 'i24'!N136,'i25'!N136,'i26'!N136,'i27'!N136,'i28'!N136) -> 0 | O136: =CHOOSE(Cover!$H$8, 'i24'!O136,'i25'!O136,'i26'!O136,'i27'!O136,'i28'!O136) -> 0 | P136: =CHOOSE(Cover!$H$8, 'i24'!P136,'i25'!P136,'i26'!P136,'i27'!P136,'i28'!P136) -> 0 | Q136: =CHOOSE(Cover!$H$8, 'i24'!Q136,'i25'!Q136,'i26'!Q136,'i27'!Q136,'i28'!Q136) -> 0 | R136: =CHOOSE(Cover!$H$8, 'i24'!R136,'i25'!R136,'i26'!R136,'i27'!R136,'i28'!R136) -> 0 | S136: =CHOOSE(Cover!$H$8, 'i24'!S136,'i25'!S136,'i26'!S136,'i27'!S136,'i28'!S136) -> 0 | T136: =CHOOSE(Cover!$H$8, 'i24'!T136,'i25'!T136,'i26'!T136,'i27'!T136,'i28'!T136) -> 0 | U136: =CHOOSE(Cover!$H$8, 'i24'!U136,'i25'!U136,'i26'!U136,'i27'!U136,'i28'!U136) -> 0 | V136: =CHOOSE(Cover!$H$8, 'i24'!V136,'i25'!V136,'i26'!V136,'i27'!V136,'i28'!V136) -> 0 | W136: =CHOOSE(Cover!$H$8, 'i24'!W136,'i25'!W136,'i26'!W136,'i27'!W136,'i28'!W136) -> 0
D137: Commissioned assets in March | G137: $m | I137: =CHOOSE(Cover!$H$8, 'i24'!I137,'i25'!I137,'i26'!I137,'i27'!I137,'i28'!I137) -> 20.52394458 | J137: =CHOOSE(Cover!$H$8, 'i24'!J137,'i25'!J137,'i26'!J137,'i27'!J137,'i28'!J137) -> 9.877129544 | K137: =CHOOSE(Cover!$H$8, 'i24'!K137,'i25'!K137,'i26'!K137,'i27'!K137,'i28'!K137) -> 22.38109892 | L137: =CHOOSE(Cover!$H$8, 'i24'!L137,'i25'!L137,'i26'!L137,'i27'!L137,'i28'!L137) -> 38.72301001 | M137: =CHOOSE(Cover!$H$8, 'i24'!M137,'i25'!M137,'i26'!M137,'i27'!M137,'i28'!M137) -> 0 | N137: =CHOOSE(Cover!$H$8, 'i24'!N137,'i25'!N137,'i26'!N137,'i27'!N137,'i28'!N137) -> 0 | O137: =CHOOSE(Cover!$H$8, 'i24'!O137,'i25'!O137,'i26'!O137,'i27'!O137,'i28'!O137) -> 0 | P137: =CHOOSE(Cover!$H$8, 'i24'!P137,'i25'!P137,'i26'!P137,'i27'!P137,'i28'!P137) -> 0 | Q137: =CHOOSE(Cover!$H$8, 'i24'!Q137,'i25'!Q137,'i26'!Q137,'i27'!Q137,'i28'!Q137) -> 0 | R137: =CHOOSE(Cover!$H$8, 'i24'!R137,'i25'!R137,'i26'!R137,'i27'!R137,'i28'!R137) -> 0 | S137: =CHOOSE(Cover!$H$8, 'i24'!S137,'i25'!S137,'i26'!S137,'i27'!S137,'i28'!S137) -> 0 | T137: =CHOOSE(Cover!$H$8, 'i24'!T137,'i25'!T137,'i26'!T137,'i27'!T137,'i28'!T137) -> 0 | U137: =CHOOSE(Cover!$H$8, 'i24'!U137,'i25'!U137,'i26'!U137,'i27'!U137,'i28'!U137) -> 0 | V137: =CHOOSE(Cover!$H$8, 'i24'!V137,'i25'!V137,'i26'!V137,'i27'!V137,'i28'!V137) -> 0 | W137: =CHOOSE(Cover!$H$8, 'i24'!W137,'i25'!W137,'i26'!W137,'i27'!W137,'i28'!W137) -> 0
D138: Commissioned assets in April | G138: $m | I138: =CHOOSE(Cover!$H$8, 'i24'!I138,'i25'!I138,'i26'!I138,'i27'!I138,'i28'!I138) -> 26.20354526 | J138: =CHOOSE(Cover!$H$8, 'i24'!J138,'i25'!J138,'i26'!J138,'i27'!J138,'i28'!J138) -> 48.19999916 | K138: =CHOOSE(Cover!$H$8, 'i24'!K138,'i25'!K138,'i26'!K138,'i27'!K138,'i28'!K138) -> 16.51452432 | L138: =CHOOSE(Cover!$H$8, 'i24'!L138,'i25'!L138,'i26'!L138,'i27'!L138,'i28'!L138) -> 23.88932334 | M138: =CHOOSE(Cover!$H$8, 'i24'!M138,'i25'!M138,'i26'!M138,'i27'!M138,'i28'!M138) -> 0 | N138: =CHOOSE(Cover!$H$8, 'i24'!N138,'i25'!N138,'i26'!N138,'i27'!N138,'i28'!N138) -> 0 | O138: =CHOOSE(Cover!$H$8, 'i24'!O138,'i25'!O138,'i26'!O138,'i27'!O138,'i28'!O138) -> 0 | P138: =CHOOSE(Cover!$H$8, 'i24'!P138,'i25'!P138,'i26'!P138,'i27'!P138,'i28'!P138) -> 0 | Q138: =CHOOSE(Cover!$H$8, 'i24'!Q138,'i25'!Q138,'i26'!Q138,'i27'!Q138,'i28'!Q138) -> 0 | R138: =CHOOSE(Cover!$H$8, 'i24'!R138,'i25'!R138,'i26'!R138,'i27'!R138,'i28'!R138) -> 0 | S138: =CHOOSE(Cover!$H$8, 'i24'!S138,'i25'!S138,'i26'!S138,'i27'!S138,'i28'!S138) -> 0 | T138: =CHOOSE(Cover!$H$8, 'i24'!T138,'i25'!T138,'i26'!T138,'i27'!T138,'i28'!T138) -> 0 | U138: =CHOOSE(Cover!$H$8, 'i24'!U138,'i25'!U138,'i26'!U138,'i27'!U138,'i28'!U138) -> 0 | V138: =CHOOSE(Cover!$H$8, 'i24'!V138,'i25'!V138,'i26'!V138,'i27'!V138,'i28'!V138) -> 0 | W138: =CHOOSE(Cover!$H$8, 'i24'!W138,'i25'!W138,'i26'!W138,'i27'!W138,'i28'!W138) -> 0
D139: Commissioned assets in May | G139: $m | I139: =CHOOSE(Cover!$H$8, 'i24'!I139,'i25'!I139,'i26'!I139,'i27'!I139,'i28'!I139) -> 20.40111391 | J139: =CHOOSE(Cover!$H$8, 'i24'!J139,'i25'!J139,'i26'!J139,'i27'!J139,'i28'!J139) -> 36.32325029 | K139: =CHOOSE(Cover!$H$8, 'i24'!K139,'i25'!K139,'i26'!K139,'i27'!K139,'i28'!K139) -> 24.42306993 | L139: =CHOOSE(Cover!$H$8, 'i24'!L139,'i25'!L139,'i26'!L139,'i27'!L139,'i28'!L139) -> 57.9552825 | M139: =CHOOSE(Cover!$H$8, 'i24'!M139,'i25'!M139,'i26'!M139,'i27'!M139,'i28'!M139) -> 0 | N139: =CHOOSE(Cover!$H$8, 'i24'!N139,'i25'!N139,'i26'!N139,'i27'!N139,'i28'!N139) -> 0 | O139: =CHOOSE(Cover!$H$8, 'i24'!O139,'i25'!O139,'i26'!O139,'i27'!O139,'i28'!O139) -> 0 | P139: =CHOOSE(Cover!$H$8, 'i24'!P139,'i25'!P139,'i26'!P139,'i27'!P139,'i28'!P139) -> 0 | Q139: =CHOOSE(Cover!$H$8, 'i24'!Q139,'i25'!Q139,'i26'!Q139,'i27'!Q139,'i28'!Q139) -> 0 | R139: =CHOOSE(Cover!$H$8, 'i24'!R139,'i25'!R139,'i26'!R139,'i27'!R139,'i28'!R139) -> 0 | S139: =CHOOSE(Cover!$H$8, 'i24'!S139,'i25'!S139,'i26'!S139,'i27'!S139,'i28'!S139) -> 0 | T139: =CHOOSE(Cover!$H$8, 'i24'!T139,'i25'!T139,'i26'!T139,'i27'!T139,'i28'!T139) -> 0 | U139: =CHOOSE(Cover!$H$8, 'i24'!U139,'i25'!U139,'i26'!U139,'i27'!U139,'i28'!U139) -> 0 | V139: =CHOOSE(Cover!$H$8, 'i24'!V139,'i25'!V139,'i26'!V139,'i27'!V139,'i28'!V139) -> 0 | W139: =CHOOSE(Cover!$H$8, 'i24'!W139,'i25'!W139,'i26'!W139,'i27'!W139,'i28'!W139) -> 0
D140: Commissioned assets in June | G140: $m | I140: =CHOOSE(Cover!$H$8, 'i24'!I140,'i25'!I140,'i26'!I140,'i27'!I140,'i28'!I140) -> 84.79099129 | J140: =CHOOSE(Cover!$H$8, 'i24'!J140,'i25'!J140,'i26'!J140,'i27'!J140,'i28'!J140) -> 47.7606387 | K140: =CHOOSE(Cover!$H$8, 'i24'!K140,'i25'!K140,'i26'!K140,'i27'!K140,'i28'!K140) -> 115.7086639 | L140: =CHOOSE(Cover!$H$8, 'i24'!L140,'i25'!L140,'i26'!L140,'i27'!L140,'i28'!L140) -> 67.25453215 | M140: =CHOOSE(Cover!$H$8, 'i24'!M140,'i25'!M140,'i26'!M140,'i27'!M140,'i28'!M140) -> 0 | N140: =CHOOSE(Cover!$H$8, 'i24'!N140,'i25'!N140,'i26'!N140,'i27'!N140,'i28'!N140) -> 0 | O140: =CHOOSE(Cover!$H$8, 'i24'!O140,'i25'!O140,'i26'!O140,'i27'!O140,'i28'!O140) -> 0 | P140: =CHOOSE(Cover!$H$8, 'i24'!P140,'i25'!P140,'i26'!P140,'i27'!P140,'i28'!P140) -> 0 | Q140: =CHOOSE(Cover!$H$8, 'i24'!Q140,'i25'!Q140,'i26'!Q140,'i27'!Q140,'i28'!Q140) -> 0 | R140: =CHOOSE(Cover!$H$8, 'i24'!R140,'i25'!R140,'i26'!R140,'i27'!R140,'i28'!R140) -> 0 | S140: =CHOOSE(Cover!$H$8, 'i24'!S140,'i25'!S140,'i26'!S140,'i27'!S140,'i28'!S140) -> 0 | T140: =CHOOSE(Cover!$H$8, 'i24'!T140,'i25'!T140,'i26'!T140,'i27'!T140,'i28'!T140) -> 0 | U140: =CHOOSE(Cover!$H$8, 'i24'!U140,'i25'!U140,'i26'!U140,'i27'!U140,'i28'!U140) -> 0 | V140: =CHOOSE(Cover!$H$8, 'i24'!V140,'i25'!V140,'i26'!V140,'i27'!V140,'i28'!V140) -> 0 | W140: =CHOOSE(Cover!$H$8, 'i24'!W140,'i25'!W140,'i26'!W140,'i27'!W140,'i28'!W140) -> 0
D141: Total capex commissioning | G141: $m | I141: =CHOOSE(Cover!$H$8, 'i24'!I141,'i25'!I141,'i26'!I141,'i27'!I141,'i28'!I141) -> 295.2982175 | J141: =CHOOSE(Cover!$H$8, 'i24'!J141,'i25'!J141,'i26'!J141,'i27'!J141,'i28'!J141) -> 275.3314526 | K141: =CHOOSE(Cover!$H$8, 'i24'!K141,'i25'!K141,'i26'!K141,'i27'!K141,'i28'!K141) -> 331.921891 | L141: =CHOOSE(Cover!$H$8, 'i24'!L141,'i25'!L141,'i26'!L141,'i27'!L141,'i28'!L141) -> 331.8897988 | M141: =CHOOSE(Cover!$H$8, 'i24'!M141,'i25'!M141,'i26'!M141,'i27'!M141,'i28'!M141) -> 433.6859789 | N141: =CHOOSE(Cover!$H$8, 'i24'!N141,'i25'!N141,'i26'!N141,'i27'!N141,'i28'!N141) -> 547.4002391 | O141: =CHOOSE(Cover!$H$8, 'i24'!O141,'i25'!O141,'i26'!O141,'i27'!O141,'i28'!O141) -> 618.8360454 | P141: =CHOOSE(Cover!$H$8, 'i24'!P141,'i25'!P141,'i26'!P141,'i27'!P141,'i28'!P141) -> 551.6224479 | Q141: =CHOOSE(Cover!$H$8, 'i24'!Q141,'i25'!Q141,'i26'!Q141,'i27'!Q141,'i28'!Q141) -> 541.8977417 | R141: =CHOOSE(Cover!$H$8, 'i24'!R141,'i25'!R141,'i26'!R141,'i27'!R141,'i28'!R141) -> 757.7615757 | S141: =CHOOSE(Cover!$H$8, 'i24'!S141,'i25'!S141,'i26'!S141,'i27'!S141,'i28'!S141) -> 466.4060768 | T141: =CHOOSE(Cover!$H$8, 'i24'!T141,'i25'!T141,'i26'!T141,'i27'!T141,'i28'!T141) -> 569.813317 | U141: =CHOOSE(Cover!$H$8, 'i24'!U141,'i25'!U141,'i26'!U141,'i27'!U141,'i28'!U141) -> 562.0821931 | V141: =CHOOSE(Cover!$H$8, 'i24'!V141,'i25'!V141,'i26'!V141,'i27'!V141,'i28'!V141) -> 587.5085825 | W141: =CHOOSE(Cover!$H$8, 'i24'!W141,'i25'!W141,'i26'!W141,'i27'!W141,'i28'!W141) -> 690.6856775
B143: Capex incentive parameters
C145: Base capex
C146: Note:
D148: Base capex no longer subject to standard incentive rate base capex allowance | G148: $m | I148: =CHOOSE(Cover!$H$8, 'i24'!I148,'i25'!I148,'i26'!I148,'i27'!I148,'i28'!I148) -> -2.965280099 | J148: =CHOOSE(Cover!$H$8, 'i24'!J148,'i25'!J148,'i26'!J148,'i27'!J148,'i28'!J148) -> -3.131309674 | K148: =CHOOSE(Cover!$H$8, 'i24'!K148,'i25'!K148,'i26'!K148,'i27'!K148,'i28'!K148) -> -3.192908009 | L148: =CHOOSE(Cover!$H$8, 'i24'!L148,'i25'!L148,'i26'!L148,'i27'!L148,'i28'!L148) -> 23.54681207 | M148: =CHOOSE(Cover!$H$8, 'i24'!M148,'i25'!M148,'i26'!M148,'i27'!M148,'i28'!M148) -> 3.192908009 | N148: =CHOOSE(Cover!$H$8, 'i24'!N148,'i25'!N148,'i26'!N148,'i27'!N148,'i28'!N148) -> 0 | O148: =CHOOSE(Cover!$H$8, 'i24'!O148,'i25'!O148,'i26'!O148,'i27'!O148,'i28'!O148) -> 0 | P148: =CHOOSE(Cover!$H$8, 'i24'!P148,'i25'!P148,'i26'!P148,'i27'!P148,'i28'!P148) -> 0 | Q148: =CHOOSE(Cover!$H$8, 'i24'!Q148,'i25'!Q148,'i26'!Q148,'i27'!Q148,'i28'!Q148) -> 0 | R148: =CHOOSE(Cover!$H$8, 'i24'!R148,'i25'!R148,'i26'!R148,'i27'!R148,'i28'!R148) -> 0 | S148: =CHOOSE(Cover!$H$8, 'i24'!S148,'i25'!S148,'i26'!S148,'i27'!S148,'i28'!S148) -> 0 | T148: =CHOOSE(Cover!$H$8, 'i24'!T148,'i25'!T148,'i26'!T148,'i27'!T148,'i28'!T148) -> 0 | U148: =CHOOSE(Cover!$H$8, 'i24'!U148,'i25'!U148,'i26'!U148,'i27'!U148,'i28'!U148) -> 0 | V148: =CHOOSE(Cover!$H$8, 'i24'!V148,'i25'!V148,'i26'!V148,'i27'!V148,'i28'!V148) -> 0 | W148: =CHOOSE(Cover!$H$8, 'i24'!W148,'i25'!W148,'i26'!W148,'i27'!W148,'i28'!W148) -> 0
D149: Base capex FX adjustment (standard) | G149: $m | I149: =CHOOSE(Cover!$H$8, 'i24'!I149,'i25'!I149,'i26'!I149,'i27'!I149,'i28'!I149) -> -0.9805776098 | J149: =CHOOSE(Cover!$H$8, 'i24'!J149,'i25'!J149,'i26'!J149,'i27'!J149,'i28'!J149) -> -1.032432473 | K149: =CHOOSE(Cover!$H$8, 'i24'!K149,'i25'!K149,'i26'!K149,'i27'!K149,'i28'!K149) -> -0.5071124474 | L149: =CHOOSE(Cover!$H$8, 'i24'!L149,'i25'!L149,'i26'!L149,'i27'!L149,'i28'!L149) -> -0.05935187593 | M149: =CHOOSE(Cover!$H$8, 'i24'!M149,'i25'!M149,'i26'!M149,'i27'!M149,'i28'!M149) -> 0 | N149: =CHOOSE(Cover!$H$8, 'i24'!N149,'i25'!N149,'i26'!N149,'i27'!N149,'i28'!N149) -> 0 | O149: =CHOOSE(Cover!$H$8, 'i24'!O149,'i25'!O149,'i26'!O149,'i27'!O149,'i28'!O149) -> 0 | P149: =CHOOSE(Cover!$H$8, 'i24'!P149,'i25'!P149,'i26'!P149,'i27'!P149,'i28'!P149) -> 0 | Q149: =CHOOSE(Cover!$H$8, 'i24'!Q149,'i25'!Q149,'i26'!Q149,'i27'!Q149,'i28'!Q149) -> 0 | R149: =CHOOSE(Cover!$H$8, 'i24'!R149,'i25'!R149,'i26'!R149,'i27'!R149,'i28'!R149) -> 0 | S149: =CHOOSE(Cover!$H$8, 'i24'!S149,'i25'!S149,'i26'!S149,'i27'!S149,'i28'!S149) -> 0 | T149: =CHOOSE(Cover!$H$8, 'i24'!T149,'i25'!T149,'i26'!T149,'i27'!T149,'i28'!T149) -> 0 | U149: =CHOOSE(Cover!$H$8, 'i24'!U149,'i25'!U149,'i26'!U149,'i27'!U149,'i28'!U149) -> 0 | V149: =CHOOSE(Cover!$H$8, 'i24'!V149,'i25'!V149,'i26'!V149,'i27'!V149,'i28'!V149) -> 0 | W149: =CHOOSE(Cover!$H$8, 'i24'!W149,'i25'!W149,'i26'!W149,'i27'!W149,'i28'!W149) -> 0
D150: Base capex subject to the allowance adjustment mechanism (standard) | G150: $m | I150: =CHOOSE(Cover!$H$8, 'i24'!I150,'i25'!I150,'i26'!I150,'i27'!I150,'i28'!I150) -> 0 | J150: =CHOOSE(Cover!$H$8, 'i24'!J150,'i25'!J150,'i26'!J150,'i27'!J150,'i28'!J150) -> 0 | K150: =CHOOSE(Cover!$H$8, 'i24'!K150,'i25'!K150,'i26'!K150,'i27'!K150,'i28'!K150) -> 0 | L150: =CHOOSE(Cover!$H$8, 'i24'!L150,'i25'!L150,'i26'!L150,'i27'!L150,'i28'!L150) -> 0 | M150: =CHOOSE(Cover!$H$8, 'i24'!M150,'i25'!M150,'i26'!M150,'i27'!M150,'i28'!M150) -> 0 | N150: =CHOOSE(Cover!$H$8, 'i24'!N150,'i25'!N150,'i26'!N150,'i27'!N150,'i28'!N150) -> 0 | O150: =CHOOSE(Cover!$H$8, 'i24'!O150,'i25'!O150,'i26'!O150,'i27'!O150,'i28'!O150) -> 0 | P150: =CHOOSE(Cover!$H$8, 'i24'!P150,'i25'!P150,'i26'!P150,'i27'!P150,'i28'!P150) -> 0 | Q150: =CHOOSE(Cover!$H$8, 'i24'!Q150,'i25'!Q150,'i26'!Q150,'i27'!Q150,'i28'!Q150) -> 0 | R150: =CHOOSE(Cover!$H$8, 'i24'!R150,'i25'!R150,'i26'!R150,'i27'!R150,'i28'!R150) -> 0 | S150: =CHOOSE(Cover!$H$8, 'i24'!S150,'i25'!S150,'i26'!S150,'i27'!S150,'i28'!S150) -> 0 | T150: =CHOOSE(Cover!$H$8, 'i24'!T150,'i25'!T150,'i26'!T150,'i27'!T150,'i28'!T150) -> 0 | U150: =CHOOSE(Cover!$H$8, 'i24'!U150,'i25'!U150,'i26'!U150,'i27'!U150,'i28'!U150) -> 0 | V150: =CHOOSE(Cover!$H$8, 'i24'!V150,'i25'!V150,'i26'!V150,'i27'!V150,'i28'!V150) -> 0 | W150: =CHOOSE(Cover!$H$8, 'i24'!W150,'i25'!W150,'i26'!W150,'i27'!W150,'i28'!W150) -> 0
D151: Base capex low incentive rate | G151: % | I151: =CHOOSE(Cover!$H$8, 'i24'!I151,'i25'!I151,'i26'!I151,'i27'!I151,'i28'!I151) -> 0.15 | J151: =CHOOSE(Cover!$H$8, 'i24'!J151,'i25'!J151,'i26'!J151,'i27'!J151,'i28'!J151) -> 0.15 | K151: =CHOOSE(Cover!$H$8, 'i24'!K151,'i25'!K151,'i26'!K151,'i27'!K151,'i28'!K151) -> 0.15 | L151: =CHOOSE(Cover!$H$8, 'i24'!L151,'i25'!L151,'i26'!L151,'i27'!L151,'i28'!L151) -> 0.15 | M151: =CHOOSE(Cover!$H$8, 'i24'!M151,'i25'!M151,'i26'!M151,'i27'!M151,'i28'!M151) -> 0.15 | N151: =CHOOSE(Cover!$H$8, 'i24'!N151,'i25'!N151,'i26'!N151,'i27'!N151,'i28'!N151) -> 0.15 | O151: =CHOOSE(Cover!$H$8, 'i24'!O151,'i25'!O151,'i26'!O151,'i27'!O151,'i28'!O151) -> 0.15 | P151: =CHOOSE(Cover!$H$8, 'i24'!P151,'i25'!P151,'i26'!P151,'i27'!P151,'i28'!P151) -> 0.15 | Q151: =CHOOSE(Cover!$H$8, 'i24'!Q151,'i25'!Q151,'i26'!Q151,'i27'!Q151,'i28'!Q151) -> 0.15 | R151: =CHOOSE(Cover!$H$8, 'i24'!R151,'i25'!R151,'i26'!R151,'i27'!R151,'i28'!R151) -> 0.15 | S151: =CHOOSE(Cover!$H$8, 'i24'!S151,'i25'!S151,'i26'!S151,'i27'!S151,'i28'!S151) -> 0.15 | T151: =CHOOSE(Cover!$H$8, 'i24'!T151,'i25'!T151,'i26'!T151,'i27'!T151,'i28'!T151) -> 0.15 | U151: =CHOOSE(Cover!$H$8, 'i24'!U151,'i25'!U151,'i26'!U151,'i27'!U151,'i28'!U151) -> 0.15 | V151: =CHOOSE(Cover!$H$8, 'i24'!V151,'i25'!V151,'i26'!V151,'i27'!V151,'i28'!V151) -> 0.15 | W151: =CHOOSE(Cover!$H$8, 'i24'!W151,'i25'!W151,'i26'!W151,'i27'!W151,'i28'!W151) -> 0.15
D152: Base capex no longer subject to low incentive rate base capex allowance | G152: $m | I152: =CHOOSE(Cover!$H$8, 'i24'!I152,'i25'!I152,'i26'!I152,'i27'!I152,'i28'!I152) -> 0 | J152: =CHOOSE(Cover!$H$8, 'i24'!J152,'i25'!J152,'i26'!J152,'i27'!J152,'i28'!J152) -> 0 | K152: =CHOOSE(Cover!$H$8, 'i24'!K152,'i25'!K152,'i26'!K152,'i27'!K152,'i28'!K152) -> 0 | L152: =CHOOSE(Cover!$H$8, 'i24'!L152,'i25'!L152,'i26'!L152,'i27'!L152,'i28'!L152) -> 0 | M152: =CHOOSE(Cover!$H$8, 'i24'!M152,'i25'!M152,'i26'!M152,'i27'!M152,'i28'!M152) -> 0 | N152: =CHOOSE(Cover!$H$8, 'i24'!N152,'i25'!N152,'i26'!N152,'i27'!N152,'i28'!N152) -> 0 | O152: =CHOOSE(Cover!$H$8, 'i24'!O152,'i25'!O152,'i26'!O152,'i27'!O152,'i28'!O152) -> 0 | P152: =CHOOSE(Cover!$H$8, 'i24'!P152,'i25'!P152,'i26'!P152,'i27'!P152,'i28'!P152) -> 0 | Q152: =CHOOSE(Cover!$H$8, 'i24'!Q152,'i25'!Q152,'i26'!Q152,'i27'!Q152,'i28'!Q152) -> 0 | R152: =CHOOSE(Cover!$H$8, 'i24'!R152,'i25'!R152,'i26'!R152,'i27'!R152,'i28'!R152) -> 0 | S152: =CHOOSE(Cover!$H$8, 'i24'!S152,'i25'!S152,'i26'!S152,'i27'!S152,'i28'!S152) -> 0 | T152: =CHOOSE(Cover!$H$8, 'i24'!T152,'i25'!T152,'i26'!T152,'i27'!T152,'i28'!T152) -> 0 | U152: =CHOOSE(Cover!$H$8, 'i24'!U152,'i25'!U152,'i26'!U152,'i27'!U152,'i28'!U152) -> 0 | V152: =CHOOSE(Cover!$H$8, 'i24'!V152,'i25'!V152,'i26'!V152,'i27'!V152,'i28'!V152) -> 0 | W152: =CHOOSE(Cover!$H$8, 'i24'!W152,'i25'!W152,'i26'!W152,'i27'!W152,'i28'!W152) -> 0
D153: Base capex FX adjustment (low) | G153: $m | I153: =CHOOSE(Cover!$H$8, 'i24'!I153,'i25'!I153,'i26'!I153,'i27'!I153,'i28'!I153) -> 0 | J153: =CHOOSE(Cover!$H$8, 'i24'!J153,'i25'!J153,'i26'!J153,'i27'!J153,'i28'!J153) -> 0 | K153: =CHOOSE(Cover!$H$8, 'i24'!K153,'i25'!K153,'i26'!K153,'i27'!K153,'i28'!K153) -> 0 | L153: =CHOOSE(Cover!$H$8, 'i24'!L153,'i25'!L153,'i26'!L153,'i27'!L153,'i28'!L153) -> 0 | M153: =CHOOSE(Cover!$H$8, 'i24'!M153,'i25'!M153,'i26'!M153,'i27'!M153,'i28'!M153) -> 0 | N153: =CHOOSE(Cover!$H$8, 'i24'!N153,'i25'!N153,'i26'!N153,'i27'!N153,'i28'!N153) -> 0 | O153: =CHOOSE(Cover!$H$8, 'i24'!O153,'i25'!O153,'i26'!O153,'i27'!O153,'i28'!O153) -> 0 | P153: =CHOOSE(Cover!$H$8, 'i24'!P153,'i25'!P153,'i26'!P153,'i27'!P153,'i28'!P153) -> 0 | Q153: =CHOOSE(Cover!$H$8, 'i24'!Q153,'i25'!Q153,'i26'!Q153,'i27'!Q153,'i28'!Q153) -> 0 | R153: =CHOOSE(Cover!$H$8, 'i24'!R153,'i25'!R153,'i26'!R153,'i27'!R153,'i28'!R153) -> 0 | S153: =CHOOSE(Cover!$H$8, 'i24'!S153,'i25'!S153,'i26'!S153,'i27'!S153,'i28'!S153) -> 0 | T153: =CHOOSE(Cover!$H$8, 'i24'!T153,'i25'!T153,'i26'!T153,'i27'!T153,'i28'!T153) -> 0 | U153: =CHOOSE(Cover!$H$8, 'i24'!U153,'i25'!U153,'i26'!U153,'i27'!U153,'i28'!U153) -> 0 | V153: =CHOOSE(Cover!$H$8, 'i24'!V153,'i25'!V153,'i26'!V153,'i27'!V153,'i28'!V153) -> 0 | W153: =CHOOSE(Cover!$H$8, 'i24'!W153,'i25'!W153,'i26'!W153,'i27'!W153,'i28'!W153) -> 0
C155: Major capex
C156: Note: For MCPs notified from 1 April 2025, any major capex incentive adjustment is only to be calculated only should total capex fall outside of the P30-P70 deadband.
D158: MCP1 major capex incentive rate | G158: % | I158: =CHOOSE(Cover!$H$8, 'i24'!I158,'i25'!I158,'i26'!I158,'i27'!I158,'i28'!I158) -> 0 | J158: =CHOOSE(Cover!$H$8, 'i24'!J158,'i25'!J158,'i26'!J158,'i27'!J158,'i28'!J158) -> 0 | K158: =CHOOSE(Cover!$H$8, 'i24'!K158,'i25'!K158,'i26'!K158,'i27'!K158,'i28'!K158) -> 0 | L158: =CHOOSE(Cover!$H$8, 'i24'!L158,'i25'!L158,'i26'!L158,'i27'!L158,'i28'!L158) -> 0 | M158: =CHOOSE(Cover!$H$8, 'i24'!M158,'i25'!M158,'i26'!M158,'i27'!M158,'i28'!M158) -> 0 | N158: =CHOOSE(Cover!$H$8, 'i24'!N158,'i25'!N158,'i26'!N158,'i27'!N158,'i28'!N158) -> 0 | O158: =CHOOSE(Cover!$H$8, 'i24'!O158,'i25'!O158,'i26'!O158,'i27'!O158,'i28'!O158) -> 0 | P158: =CHOOSE(Cover!$H$8, 'i24'!P158,'i25'!P158,'i26'!P158,'i27'!P158,'i28'!P158) -> 0 | Q158: =CHOOSE(Cover!$H$8, 'i24'!Q158,'i25'!Q158,'i26'!Q158,'i27'!Q158,'i28'!Q158) -> 0 | R158: =CHOOSE(Cover!$H$8, 'i24'!R158,'i25'!R158,'i26'!R158,'i27'!R158,'i28'!R158) -> 0 | S158: =CHOOSE(Cover!$H$8, 'i24'!S158,'i25'!S158,'i26'!S158,'i27'!S158,'i28'!S158) -> 0 | T158: =CHOOSE(Cover!$H$8, 'i24'!T158,'i25'!T158,'i26'!T158,'i27'!T158,'i28'!T158) -> 0 | U158: =CHOOSE(Cover!$H$8, 'i24'!U158,'i25'!U158,'i26'!U158,'i27'!U158,'i28'!U158) -> 0 | V158: =CHOOSE(Cover!$H$8, 'i24'!V158,'i25'!V158,'i26'!V158,'i27'!V158,'i28'!V158) -> 0 | W158: =CHOOSE(Cover!$H$8, 'i24'!W158,'i25'!W158,'i26'!W158,'i27'!W158,'i28'!W158) -> 0
D159: MCP1 amount of capital expenditure | G159: $m | I159: =CHOOSE(Cover!$H$8, 'i24'!I159,'i25'!I159,'i26'!I159,'i27'!I159,'i28'!I159) -> 0 | J159: =CHOOSE(Cover!$H$8, 'i24'!J159,'i25'!J159,'i26'!J159,'i27'!J159,'i28'!J159) -> 0 | K159: =CHOOSE(Cover!$H$8, 'i24'!K159,'i25'!K159,'i26'!K159,'i27'!K159,'i28'!K159) -> 0 | L159: =CHOOSE(Cover!$H$8, 'i24'!L159,'i25'!L159,'i26'!L159,'i27'!L159,'i28'!L159) -> 0 | M159: =CHOOSE(Cover!$H$8, 'i24'!M159,'i25'!M159,'i26'!M159,'i27'!M159,'i28'!M159) -> 0 | N159: =CHOOSE(Cover!$H$8, 'i24'!N159,'i25'!N159,'i26'!N159,'i27'!N159,'i28'!N159) -> 0 | O159: =CHOOSE(Cover!$H$8, 'i24'!O159,'i25'!O159,'i26'!O159,'i27'!O159,'i28'!O159) -> 0 | P159: =CHOOSE(Cover!$H$8, 'i24'!P159,'i25'!P159,'i26'!P159,'i27'!P159,'i28'!P159) -> 0 | Q159: =CHOOSE(Cover!$H$8, 'i24'!Q159,'i25'!Q159,'i26'!Q159,'i27'!Q159,'i28'!Q159) -> 0 | R159: =CHOOSE(Cover!$H$8, 'i24'!R159,'i25'!R159,'i26'!R159,'i27'!R159,'i28'!R159) -> 0 | S159: =CHOOSE(Cover!$H$8, 'i24'!S159,'i25'!S159,'i26'!S159,'i27'!S159,'i28'!S159) -> 0 | T159: =CHOOSE(Cover!$H$8, 'i24'!T159,'i25'!T159,'i26'!T159,'i27'!T159,'i28'!T159) -> 0 | U159: =CHOOSE(Cover!$H$8, 'i24'!U159,'i25'!U159,'i26'!U159,'i27'!U159,'i28'!U159) -> 0 | V159: =CHOOSE(Cover!$H$8, 'i24'!V159,'i25'!V159,'i26'!V159,'i27'!V159,'i28'!V159) -> 0 | W159: =CHOOSE(Cover!$H$8, 'i24'!W159,'i25'!W159,'i26'!W159,'i27'!W159,'i28'!W159) -> 0
D160: MCP1 major capex allowance less exempt major capex | G160: $m | I160: =CHOOSE(Cover!$H$8, 'i24'!I160,'i25'!I160,'i26'!I160,'i27'!I160,'i28'!I160) -> 0 | J160: =CHOOSE(Cover!$H$8, 'i24'!J160,'i25'!J160,'i26'!J160,'i27'!J160,'i28'!J160) -> 0 | K160: =CHOOSE(Cover!$H$8, 'i24'!K160,'i25'!K160,'i26'!K160,'i27'!K160,'i28'!K160) -> 0 | L160: =CHOOSE(Cover!$H$8, 'i24'!L160,'i25'!L160,'i26'!L160,'i27'!L160,'i28'!L160) -> 0 | M160: =CHOOSE(Cover!$H$8, 'i24'!M160,'i25'!M160,'i26'!M160,'i27'!M160,'i28'!M160) -> 0 | N160: =CHOOSE(Cover!$H$8, 'i24'!N160,'i25'!N160,'i26'!N160,'i27'!N160,'i28'!N160) -> 0 | O160: =CHOOSE(Cover!$H$8, 'i24'!O160,'i25'!O160,'i26'!O160,'i27'!O160,'i28'!O160) -> 0 | P160: =CHOOSE(Cover!$H$8, 'i24'!P160,'i25'!P160,'i26'!P160,'i27'!P160,'i28'!P160) -> 0 | Q160: =CHOOSE(Cover!$H$8, 'i24'!Q160,'i25'!Q160,'i26'!Q160,'i27'!Q160,'i28'!Q160) -> 0 | R160: =CHOOSE(Cover!$H$8, 'i24'!R160,'i25'!R160,'i26'!R160,'i27'!R160,'i28'!R160) -> 0 | S160: =CHOOSE(Cover!$H$8, 'i24'!S160,'i25'!S160,'i26'!S160,'i27'!S160,'i28'!S160) -> 0 | T160: =CHOOSE(Cover!$H$8, 'i24'!T160,'i25'!T160,'i26'!T160,'i27'!T160,'i28'!T160) -> 0 | U160: =CHOOSE(Cover!$H$8, 'i24'!U160,'i25'!U160,'i26'!U160,'i27'!U160,'i28'!U160) -> 0 | V160: =CHOOSE(Cover!$H$8, 'i24'!V160,'i25'!V160,'i26'!V160,'i27'!V160,'i28'!V160) -> 0 | W160: =CHOOSE(Cover!$H$8, 'i24'!W160,'i25'!W160,'i26'!W160,'i27'!W160,'i28'!W160) -> 0
D161: MCP1 amount correcting for CPI | G161: $m | I161: =CHOOSE(Cover!$H$8, 'i24'!I161,'i25'!I161,'i26'!I161,'i27'!I161,'i28'!I161) -> 0 | J161: =CHOOSE(Cover!$H$8, 'i24'!J161,'i25'!J161,'i26'!J161,'i27'!J161,'i28'!J161) -> 0 | K161: =CHOOSE(Cover!$H$8, 'i24'!K161,'i25'!K161,'i26'!K161,'i27'!K161,'i28'!K161) -> 0 | L161: =CHOOSE(Cover!$H$8, 'i24'!L161,'i25'!L161,'i26'!L161,'i27'!L161,'i28'!L161) -> 0 | M161: =CHOOSE(Cover!$H$8, 'i24'!M161,'i25'!M161,'i26'!M161,'i27'!M161,'i28'!M161) -> 0 | N161: =CHOOSE(Cover!$H$8, 'i24'!N161,'i25'!N161,'i26'!N161,'i27'!N161,'i28'!N161) -> 0 | O161: =CHOOSE(Cover!$H$8, 'i24'!O161,'i25'!O161,'i26'!O161,'i27'!O161,'i28'!O161) -> 0 | P161: =CHOOSE(Cover!$H$8, 'i24'!P161,'i25'!P161,'i26'!P161,'i27'!P161,'i28'!P161) -> 0 | Q161: =CHOOSE(Cover!$H$8, 'i24'!Q161,'i25'!Q161,'i26'!Q161,'i27'!Q161,'i28'!Q161) -> 0 | R161: =CHOOSE(Cover!$H$8, 'i24'!R161,'i25'!R161,'i26'!R161,'i27'!R161,'i28'!R161) -> 0 | S161: =CHOOSE(Cover!$H$8, 'i24'!S161,'i25'!S161,'i26'!S161,'i27'!S161,'i28'!S161) -> 0 | T161: =CHOOSE(Cover!$H$8, 'i24'!T161,'i25'!T161,'i26'!T161,'i27'!T161,'i28'!T161) -> 0 | U161: =CHOOSE(Cover!$H$8, 'i24'!U161,'i25'!U161,'i26'!U161,'i27'!U161,'i28'!U161) -> 0 | V161: =CHOOSE(Cover!$H$8, 'i24'!V161,'i25'!V161,'i26'!V161,'i27'!V161,'i28'!V161) -> 0 | W161: =CHOOSE(Cover!$H$8, 'i24'!W161,'i25'!W161,'i26'!W161,'i27'!W161,'i28'!W161) -> 0
D162: MCP1 amount correcting for FX | G162: $m | I162: =CHOOSE(Cover!$H$8, 'i24'!I162,'i25'!I162,'i26'!I162,'i27'!I162,'i28'!I162) -> 0 | J162: =CHOOSE(Cover!$H$8, 'i24'!J162,'i25'!J162,'i26'!J162,'i27'!J162,'i28'!J162) -> 0 | K162: =CHOOSE(Cover!$H$8, 'i24'!K162,'i25'!K162,'i26'!K162,'i27'!K162,'i28'!K162) -> 0 | L162: =CHOOSE(Cover!$H$8, 'i24'!L162,'i25'!L162,'i26'!L162,'i27'!L162,'i28'!L162) -> 0 | M162: =CHOOSE(Cover!$H$8, 'i24'!M162,'i25'!M162,'i26'!M162,'i27'!M162,'i28'!M162) -> 0 | N162: =CHOOSE(Cover!$H$8, 'i24'!N162,'i25'!N162,'i26'!N162,'i27'!N162,'i28'!N162) -> 0 | O162: =CHOOSE(Cover!$H$8, 'i24'!O162,'i25'!O162,'i26'!O162,'i27'!O162,'i28'!O162) -> 0 | P162: =CHOOSE(Cover!$H$8, 'i24'!P162,'i25'!P162,'i26'!P162,'i27'!P162,'i28'!P162) -> 0 | Q162: =CHOOSE(Cover!$H$8, 'i24'!Q162,'i25'!Q162,'i26'!Q162,'i27'!Q162,'i28'!Q162) -> 0 | R162: =CHOOSE(Cover!$H$8, 'i24'!R162,'i25'!R162,'i26'!R162,'i27'!R162,'i28'!R162) -> 0 | S162: =CHOOSE(Cover!$H$8, 'i24'!S162,'i25'!S162,'i26'!S162,'i27'!S162,'i28'!S162) -> 0 | T162: =CHOOSE(Cover!$H$8, 'i24'!T162,'i25'!T162,'i26'!T162,'i27'!T162,'i28'!T162) -> 0 | U162: =CHOOSE(Cover!$H$8, 'i24'!U162,'i25'!U162,'i26'!U162,'i27'!U162,'i28'!U162) -> 0 | V162: =CHOOSE(Cover!$H$8, 'i24'!V162,'i25'!V162,'i26'!V162,'i27'!V162,'i28'!V162) -> 0 | W162: =CHOOSE(Cover!$H$8, 'i24'!W162,'i25'!W162,'i26'!W162,'i27'!W162,'i28'!W162) -> 0
D163: MCP1 part of major capex allowance relating to outputs not delivered | G163: $m | I163: =CHOOSE(Cover!$H$8, 'i24'!I163,'i25'!I163,'i26'!I163,'i27'!I163,'i28'!I163) -> 0 | J163: =CHOOSE(Cover!$H$8, 'i24'!J163,'i25'!J163,'i26'!J163,'i27'!J163,'i28'!J163) -> 0 | K163: =CHOOSE(Cover!$H$8, 'i24'!K163,'i25'!K163,'i26'!K163,'i27'!K163,'i28'!K163) -> 0 | L163: =CHOOSE(Cover!$H$8, 'i24'!L163,'i25'!L163,'i26'!L163,'i27'!L163,'i28'!L163) -> 0 | M163: =CHOOSE(Cover!$H$8, 'i24'!M163,'i25'!M163,'i26'!M163,'i27'!M163,'i28'!M163) -> 0 | N163: =CHOOSE(Cover!$H$8, 'i24'!N163,'i25'!N163,'i26'!N163,'i27'!N163,'i28'!N163) -> 0 | O163: =CHOOSE(Cover!$H$8, 'i24'!O163,'i25'!O163,'i26'!O163,'i27'!O163,'i28'!O163) -> 0 | P163: =CHOOSE(Cover!$H$8, 'i24'!P163,'i25'!P163,'i26'!P163,'i27'!P163,'i28'!P163) -> 0 | Q163: =CHOOSE(Cover!$H$8, 'i24'!Q163,'i25'!Q163,'i26'!Q163,'i27'!Q163,'i28'!Q163) -> 0 | R163: =CHOOSE(Cover!$H$8, 'i24'!R163,'i25'!R163,'i26'!R163,'i27'!R163,'i28'!R163) -> 0 | S163: =CHOOSE(Cover!$H$8, 'i24'!S163,'i25'!S163,'i26'!S163,'i27'!S163,'i28'!S163) -> 0 | T163: =CHOOSE(Cover!$H$8, 'i24'!T163,'i25'!T163,'i26'!T163,'i27'!T163,'i28'!T163) -> 0 | U163: =CHOOSE(Cover!$H$8, 'i24'!U163,'i25'!U163,'i26'!U163,'i27'!U163,'i28'!U163) -> 0 | V163: =CHOOSE(Cover!$H$8, 'i24'!V163,'i25'!V163,'i26'!V163,'i27'!V163,'i28'!V163) -> 0 | W163: =CHOOSE(Cover!$H$8, 'i24'!W163,'i25'!W163,'i26'!W163,'i27'!W163,'i28'!W163) -> 0
D164: MCP2 major capex incentive rate | G164: % | I164: =CHOOSE(Cover!$H$8, 'i24'!I164,'i25'!I164,'i26'!I164,'i27'!I164,'i28'!I164) -> 0 | J164: =CHOOSE(Cover!$H$8, 'i24'!J164,'i25'!J164,'i26'!J164,'i27'!J164,'i28'!J164) -> 0 | K164: =CHOOSE(Cover!$H$8, 'i24'!K164,'i25'!K164,'i26'!K164,'i27'!K164,'i28'!K164) -> 0 | L164: =CHOOSE(Cover!$H$8, 'i24'!L164,'i25'!L164,'i26'!L164,'i27'!L164,'i28'!L164) -> 0 | M164: =CHOOSE(Cover!$H$8, 'i24'!M164,'i25'!M164,'i26'!M164,'i27'!M164,'i28'!M164) -> 0 | N164: =CHOOSE(Cover!$H$8, 'i24'!N164,'i25'!N164,'i26'!N164,'i27'!N164,'i28'!N164) -> 0 | O164: =CHOOSE(Cover!$H$8, 'i24'!O164,'i25'!O164,'i26'!O164,'i27'!O164,'i28'!O164) -> 0 | P164: =CHOOSE(Cover!$H$8, 'i24'!P164,'i25'!P164,'i26'!P164,'i27'!P164,'i28'!P164) -> 0 | Q164: =CHOOSE(Cover!$H$8, 'i24'!Q164,'i25'!Q164,'i26'!Q164,'i27'!Q164,'i28'!Q164) -> 0 | R164: =CHOOSE(Cover!$H$8, 'i24'!R164,'i25'!R164,'i26'!R164,'i27'!R164,'i28'!R164) -> 0 | S164: =CHOOSE(Cover!$H$8, 'i24'!S164,'i25'!S164,'i26'!S164,'i27'!S164,'i28'!S164) -> 0 | T164: =CHOOSE(Cover!$H$8, 'i24'!T164,'i25'!T164,'i26'!T164,'i27'!T164,'i28'!T164) -> 0 | U164: =CHOOSE(Cover!$H$8, 'i24'!U164,'i25'!U164,'i26'!U164,'i27'!U164,'i28'!U164) -> 0 | V164: =CHOOSE(Cover!$H$8, 'i24'!V164,'i25'!V164,'i26'!V164,'i27'!V164,'i28'!V164) -> 0 | W164: =CHOOSE(Cover!$H$8, 'i24'!W164,'i25'!W164,'i26'!W164,'i27'!W164,'i28'!W164) -> 0
D165: MCP2 amount of capital expenditure | G165: $m | I165: =CHOOSE(Cover!$H$8, 'i24'!I165,'i25'!I165,'i26'!I165,'i27'!I165,'i28'!I165) -> 0 | J165: =CHOOSE(Cover!$H$8, 'i24'!J165,'i25'!J165,'i26'!J165,'i27'!J165,'i28'!J165) -> 0 | K165: =CHOOSE(Cover!$H$8, 'i24'!K165,'i25'!K165,'i26'!K165,'i27'!K165,'i28'!K165) -> 0 | L165: =CHOOSE(Cover!$H$8, 'i24'!L165,'i25'!L165,'i26'!L165,'i27'!L165,'i28'!L165) -> 0 | M165: =CHOOSE(Cover!$H$8, 'i24'!M165,'i25'!M165,'i26'!M165,'i27'!M165,'i28'!M165) -> 0 | N165: =CHOOSE(Cover!$H$8, 'i24'!N165,'i25'!N165,'i26'!N165,'i27'!N165,'i28'!N165) -> 0 | O165: =CHOOSE(Cover!$H$8, 'i24'!O165,'i25'!O165,'i26'!O165,'i27'!O165,'i28'!O165) -> 0 | P165: =CHOOSE(Cover!$H$8, 'i24'!P165,'i25'!P165,'i26'!P165,'i27'!P165,'i28'!P165) -> 0 | Q165: =CHOOSE(Cover!$H$8, 'i24'!Q165,'i25'!Q165,'i26'!Q165,'i27'!Q165,'i28'!Q165) -> 0 | R165: =CHOOSE(Cover!$H$8, 'i24'!R165,'i25'!R165,'i26'!R165,'i27'!R165,'i28'!R165) -> 0 | S165: =CHOOSE(Cover!$H$8, 'i24'!S165,'i25'!S165,'i26'!S165,'i27'!S165,'i28'!S165) -> 0 | T165: =CHOOSE(Cover!$H$8, 'i24'!T165,'i25'!T165,'i26'!T165,'i27'!T165,'i28'!T165) -> 0 | U165: =CHOOSE(Cover!$H$8, 'i24'!U165,'i25'!U165,'i26'!U165,'i27'!U165,'i28'!U165) -> 0 | V165: =CHOOSE(Cover!$H$8, 'i24'!V165,'i25'!V165,'i26'!V165,'i27'!V165,'i28'!V165) -> 0 | W165: =CHOOSE(Cover!$H$8, 'i24'!W165,'i25'!W165,'i26'!W165,'i27'!W165,'i28'!W165) -> 0
D166: MCP2 major capex allowance less exempt major capex | G166: $m | I166: =CHOOSE(Cover!$H$8, 'i24'!I166,'i25'!I166,'i26'!I166,'i27'!I166,'i28'!I166) -> 0 | J166: =CHOOSE(Cover!$H$8, 'i24'!J166,'i25'!J166,'i26'!J166,'i27'!J166,'i28'!J166) -> 0 | K166: =CHOOSE(Cover!$H$8, 'i24'!K166,'i25'!K166,'i26'!K166,'i27'!K166,'i28'!K166) -> 0 | L166: =CHOOSE(Cover!$H$8, 'i24'!L166,'i25'!L166,'i26'!L166,'i27'!L166,'i28'!L166) -> 0 | M166: =CHOOSE(Cover!$H$8, 'i24'!M166,'i25'!M166,'i26'!M166,'i27'!M166,'i28'!M166) -> 0 | N166: =CHOOSE(Cover!$H$8, 'i24'!N166,'i25'!N166,'i26'!N166,'i27'!N166,'i28'!N166) -> 0 | O166: =CHOOSE(Cover!$H$8, 'i24'!O166,'i25'!O166,'i26'!O166,'i27'!O166,'i28'!O166) -> 0 | P166: =CHOOSE(Cover!$H$8, 'i24'!P166,'i25'!P166,'i26'!P166,'i27'!P166,'i28'!P166) -> 0 | Q166: =CHOOSE(Cover!$H$8, 'i24'!Q166,'i25'!Q166,'i26'!Q166,'i27'!Q166,'i28'!Q166) -> 0 | R166: =CHOOSE(Cover!$H$8, 'i24'!R166,'i25'!R166,'i26'!R166,'i27'!R166,'i28'!R166) -> 0 | S166: =CHOOSE(Cover!$H$8, 'i24'!S166,'i25'!S166,'i26'!S166,'i27'!S166,'i28'!S166) -> 0 | T166: =CHOOSE(Cover!$H$8, 'i24'!T166,'i25'!T166,'i26'!T166,'i27'!T166,'i28'!T166) -> 0 | U166: =CHOOSE(Cover!$H$8, 'i24'!U166,'i25'!U166,'i26'!U166,'i27'!U166,'i28'!U166) -> 0 | V166: =CHOOSE(Cover!$H$8, 'i24'!V166,'i25'!V166,'i26'!V166,'i27'!V166,'i28'!V166) -> 0 | W166: =CHOOSE(Cover!$H$8, 'i24'!W166,'i25'!W166,'i26'!W166,'i27'!W166,'i28'!W166) -> 0
D167: MCP2 amount correcting for CPI | G167: $m | I167: =CHOOSE(Cover!$H$8, 'i24'!I167,'i25'!I167,'i26'!I167,'i27'!I167,'i28'!I167) -> 0 | J167: =CHOOSE(Cover!$H$8, 'i24'!J167,'i25'!J167,'i26'!J167,'i27'!J167,'i28'!J167) -> 0 | K167: =CHOOSE(Cover!$H$8, 'i24'!K167,'i25'!K167,'i26'!K167,'i27'!K167,'i28'!K167) -> 0 | L167: =CHOOSE(Cover!$H$8, 'i24'!L167,'i25'!L167,'i26'!L167,'i27'!L167,'i28'!L167) -> 0 | M167: =CHOOSE(Cover!$H$8, 'i24'!M167,'i25'!M167,'i26'!M167,'i27'!M167,'i28'!M167) -> 0 | N167: =CHOOSE(Cover!$H$8, 'i24'!N167,'i25'!N167,'i26'!N167,'i27'!N167,'i28'!N167) -> 0 | O167: =CHOOSE(Cover!$H$8, 'i24'!O167,'i25'!O167,'i26'!O167,'i27'!O167,'i28'!O167) -> 0 | P167: =CHOOSE(Cover!$H$8, 'i24'!P167,'i25'!P167,'i26'!P167,'i27'!P167,'i28'!P167) -> 0 | Q167: =CHOOSE(Cover!$H$8, 'i24'!Q167,'i25'!Q167,'i26'!Q167,'i27'!Q167,'i28'!Q167) -> 0 | R167: =CHOOSE(Cover!$H$8, 'i24'!R167,'i25'!R167,'i26'!R167,'i27'!R167,'i28'!R167) -> 0 | S167: =CHOOSE(Cover!$H$8, 'i24'!S167,'i25'!S167,'i26'!S167,'i27'!S167,'i28'!S167) -> 0 | T167: =CHOOSE(Cover!$H$8, 'i24'!T167,'i25'!T167,'i26'!T167,'i27'!T167,'i28'!T167) -> 0 | U167: =CHOOSE(Cover!$H$8, 'i24'!U167,'i25'!U167,'i26'!U167,'i27'!U167,'i28'!U167) -> 0 | V167: =CHOOSE(Cover!$H$8, 'i24'!V167,'i25'!V167,'i26'!V167,'i27'!V167,'i28'!V167) -> 0 | W167: =CHOOSE(Cover!$H$8, 'i24'!W167,'i25'!W167,'i26'!W167,'i27'!W167,'i28'!W167) -> 0
D168: MCP2 amount correcting for FX | G168: $m | I168: =CHOOSE(Cover!$H$8, 'i24'!I168,'i25'!I168,'i26'!I168,'i27'!I168,'i28'!I168) -> 0 | J168: =CHOOSE(Cover!$H$8, 'i24'!J168,'i25'!J168,'i26'!J168,'i27'!J168,'i28'!J168) -> 0 | K168: =CHOOSE(Cover!$H$8, 'i24'!K168,'i25'!K168,'i26'!K168,'i27'!K168,'i28'!K168) -> 0 | L168: =CHOOSE(Cover!$H$8, 'i24'!L168,'i25'!L168,'i26'!L168,'i27'!L168,'i28'!L168) -> 0 | M168: =CHOOSE(Cover!$H$8, 'i24'!M168,'i25'!M168,'i26'!M168,'i27'!M168,'i28'!M168) -> 0 | N168: =CHOOSE(Cover!$H$8, 'i24'!N168,'i25'!N168,'i26'!N168,'i27'!N168,'i28'!N168) -> 0 | O168: =CHOOSE(Cover!$H$8, 'i24'!O168,'i25'!O168,'i26'!O168,'i27'!O168,'i28'!O168) -> 0 | P168: =CHOOSE(Cover!$H$8, 'i24'!P168,'i25'!P168,'i26'!P168,'i27'!P168,'i28'!P168) -> 0 | Q168: =CHOOSE(Cover!$H$8, 'i24'!Q168,'i25'!Q168,'i26'!Q168,'i27'!Q168,'i28'!Q168) -> 0 | R168: =CHOOSE(Cover!$H$8, 'i24'!R168,'i25'!R168,'i26'!R168,'i27'!R168,'i28'!R168) -> 0 | S168: =CHOOSE(Cover!$H$8, 'i24'!S168,'i25'!S168,'i26'!S168,'i27'!S168,'i28'!S168) -> 0 | T168: =CHOOSE(Cover!$H$8, 'i24'!T168,'i25'!T168,'i26'!T168,'i27'!T168,'i28'!T168) -> 0 | U168: =CHOOSE(Cover!$H$8, 'i24'!U168,'i25'!U168,'i26'!U168,'i27'!U168,'i28'!U168) -> 0 | V168: =CHOOSE(Cover!$H$8, 'i24'!V168,'i25'!V168,'i26'!V168,'i27'!V168,'i28'!V168) -> 0 | W168: =CHOOSE(Cover!$H$8, 'i24'!W168,'i25'!W168,'i26'!W168,'i27'!W168,'i28'!W168) -> 0
D169: MCP2 part of major capex allowance relating to outputs not delivered | G169: $m | I169: =CHOOSE(Cover!$H$8, 'i24'!I169,'i25'!I169,'i26'!I169,'i27'!I169,'i28'!I169) -> 0 | J169: =CHOOSE(Cover!$H$8, 'i24'!J169,'i25'!J169,'i26'!J169,'i27'!J169,'i28'!J169) -> 0 | K169: =CHOOSE(Cover!$H$8, 'i24'!K169,'i25'!K169,'i26'!K169,'i27'!K169,'i28'!K169) -> 0 | L169: =CHOOSE(Cover!$H$8, 'i24'!L169,'i25'!L169,'i26'!L169,'i27'!L169,'i28'!L169) -> 0 | M169: =CHOOSE(Cover!$H$8, 'i24'!M169,'i25'!M169,'i26'!M169,'i27'!M169,'i28'!M169) -> 0 | N169: =CHOOSE(Cover!$H$8, 'i24'!N169,'i25'!N169,'i26'!N169,'i27'!N169,'i28'!N169) -> 0 | O169: =CHOOSE(Cover!$H$8, 'i24'!O169,'i25'!O169,'i26'!O169,'i27'!O169,'i28'!O169) -> 0 | P169: =CHOOSE(Cover!$H$8, 'i24'!P169,'i25'!P169,'i26'!P169,'i27'!P169,'i28'!P169) -> 0 | Q169: =CHOOSE(Cover!$H$8, 'i24'!Q169,'i25'!Q169,'i26'!Q169,'i27'!Q169,'i28'!Q169) -> 0 | R169: =CHOOSE(Cover!$H$8, 'i24'!R169,'i25'!R169,'i26'!R169,'i27'!R169,'i28'!R169) -> 0 | S169: =CHOOSE(Cover!$H$8, 'i24'!S169,'i25'!S169,'i26'!S169,'i27'!S169,'i28'!S169) -> 0 | T169: =CHOOSE(Cover!$H$8, 'i24'!T169,'i25'!T169,'i26'!T169,'i27'!T169,'i28'!T169) -> 0 | U169: =CHOOSE(Cover!$H$8, 'i24'!U169,'i25'!U169,'i26'!U169,'i27'!U169,'i28'!U169) -> 0 | V169: =CHOOSE(Cover!$H$8, 'i24'!V169,'i25'!V169,'i26'!V169,'i27'!V169,'i28'!V169) -> 0 | W169: =CHOOSE(Cover!$H$8, 'i24'!W169,'i25'!W169,'i26'!W169,'i27'!W169,'i28'!W169) -> 0
D170: MCP3 major capex incentive rate | G170: % | I170: =CHOOSE(Cover!$H$8, 'i24'!I170,'i25'!I170,'i26'!I170,'i27'!I170,'i28'!I170) -> 0 | J170: =CHOOSE(Cover!$H$8, 'i24'!J170,'i25'!J170,'i26'!J170,'i27'!J170,'i28'!J170) -> 0 | K170: =CHOOSE(Cover!$H$8, 'i24'!K170,'i25'!K170,'i26'!K170,'i27'!K170,'i28'!K170) -> 0 | L170: =CHOOSE(Cover!$H$8, 'i24'!L170,'i25'!L170,'i26'!L170,'i27'!L170,'i28'!L170) -> 0 | M170: =CHOOSE(Cover!$H$8, 'i24'!M170,'i25'!M170,'i26'!M170,'i27'!M170,'i28'!M170) -> 0 | N170: =CHOOSE(Cover!$H$8, 'i24'!N170,'i25'!N170,'i26'!N170,'i27'!N170,'i28'!N170) -> 0 | O170: =CHOOSE(Cover!$H$8, 'i24'!O170,'i25'!O170,'i26'!O170,'i27'!O170,'i28'!O170) -> 0 | P170: =CHOOSE(Cover!$H$8, 'i24'!P170,'i25'!P170,'i26'!P170,'i27'!P170,'i28'!P170) -> 0 | Q170: =CHOOSE(Cover!$H$8, 'i24'!Q170,'i25'!Q170,'i26'!Q170,'i27'!Q170,'i28'!Q170) -> 0 | R170: =CHOOSE(Cover!$H$8, 'i24'!R170,'i25'!R170,'i26'!R170,'i27'!R170,'i28'!R170) -> 0 | S170: =CHOOSE(Cover!$H$8, 'i24'!S170,'i25'!S170,'i26'!S170,'i27'!S170,'i28'!S170) -> 0 | T170: =CHOOSE(Cover!$H$8, 'i24'!T170,'i25'!T170,'i26'!T170,'i27'!T170,'i28'!T170) -> 0 | U170: =CHOOSE(Cover!$H$8, 'i24'!U170,'i25'!U170,'i26'!U170,'i27'!U170,'i28'!U170) -> 0 | V170: =CHOOSE(Cover!$H$8, 'i24'!V170,'i25'!V170,'i26'!V170,'i27'!V170,'i28'!V170) -> 0 | W170: =CHOOSE(Cover!$H$8, 'i24'!W170,'i25'!W170,'i26'!W170,'i27'!W170,'i28'!W170) -> 0
D171: MCP3 amount of capital expenditure | G171: $m | I171: =CHOOSE(Cover!$H$8, 'i24'!I171,'i25'!I171,'i26'!I171,'i27'!I171,'i28'!I171) -> 0 | J171: =CHOOSE(Cover!$H$8, 'i24'!J171,'i25'!J171,'i26'!J171,'i27'!J171,'i28'!J171) -> 0 | K171: =CHOOSE(Cover!$H$8, 'i24'!K171,'i25'!K171,'i26'!K171,'i27'!K171,'i28'!K171) -> 0 | L171: =CHOOSE(Cover!$H$8, 'i24'!L171,'i25'!L171,'i26'!L171,'i27'!L171,'i28'!L171) -> 0 | M171: =CHOOSE(Cover!$H$8, 'i24'!M171,'i25'!M171,'i26'!M171,'i27'!M171,'i28'!M171) -> 0 | N171: =CHOOSE(Cover!$H$8, 'i24'!N171,'i25'!N171,'i26'!N171,'i27'!N171,'i28'!N171) -> 0 | O171: =CHOOSE(Cover!$H$8, 'i24'!O171,'i25'!O171,'i26'!O171,'i27'!O171,'i28'!O171) -> 0 | P171: =CHOOSE(Cover!$H$8, 'i24'!P171,'i25'!P171,'i26'!P171,'i27'!P171,'i28'!P171) -> 0 | Q171: =CHOOSE(Cover!$H$8, 'i24'!Q171,'i25'!Q171,'i26'!Q171,'i27'!Q171,'i28'!Q171) -> 0 | R171: =CHOOSE(Cover!$H$8, 'i24'!R171,'i25'!R171,'i26'!R171,'i27'!R171,'i28'!R171) -> 0 | S171: =CHOOSE(Cover!$H$8, 'i24'!S171,'i25'!S171,'i26'!S171,'i27'!S171,'i28'!S171) -> 0 | T171: =CHOOSE(Cover!$H$8, 'i24'!T171,'i25'!T171,'i26'!T171,'i27'!T171,'i28'!T171) -> 0 | U171: =CHOOSE(Cover!$H$8, 'i24'!U171,'i25'!U171,'i26'!U171,'i27'!U171,'i28'!U171) -> 0 | V171: =CHOOSE(Cover!$H$8, 'i24'!V171,'i25'!V171,'i26'!V171,'i27'!V171,'i28'!V171) -> 0 | W171: =CHOOSE(Cover!$H$8, 'i24'!W171,'i25'!W171,'i26'!W171,'i27'!W171,'i28'!W171) -> 0
D172: MCP3 major capex allowance less exempt major capex | G172: $m | I172: =CHOOSE(Cover!$H$8, 'i24'!I172,'i25'!I172,'i26'!I172,'i27'!I172,'i28'!I172) -> 0 | J172: =CHOOSE(Cover!$H$8, 'i24'!J172,'i25'!J172,'i26'!J172,'i27'!J172,'i28'!J172) -> 0 | K172: =CHOOSE(Cover!$H$8, 'i24'!K172,'i25'!K172,'i26'!K172,'i27'!K172,'i28'!K172) -> 0 | L172: =CHOOSE(Cover!$H$8, 'i24'!L172,'i25'!L172,'i26'!L172,'i27'!L172,'i28'!L172) -> 0 | M172: =CHOOSE(Cover!$H$8, 'i24'!M172,'i25'!M172,'i26'!M172,'i27'!M172,'i28'!M172) -> 0 | N172: =CHOOSE(Cover!$H$8, 'i24'!N172,'i25'!N172,'i26'!N172,'i27'!N172,'i28'!N172) -> 0 | O172: =CHOOSE(Cover!$H$8, 'i24'!O172,'i25'!O172,'i26'!O172,'i27'!O172,'i28'!O172) -> 0 | P172: =CHOOSE(Cover!$H$8, 'i24'!P172,'i25'!P172,'i26'!P172,'i27'!P172,'i28'!P172) -> 0 | Q172: =CHOOSE(Cover!$H$8, 'i24'!Q172,'i25'!Q172,'i26'!Q172,'i27'!Q172,'i28'!Q172) -> 0 | R172: =CHOOSE(Cover!$H$8, 'i24'!R172,'i25'!R172,'i26'!R172,'i27'!R172,'i28'!R172) -> 0 | S172: =CHOOSE(Cover!$H$8, 'i24'!S172,'i25'!S172,'i26'!S172,'i27'!S172,'i28'!S172) -> 0 | T172: =CHOOSE(Cover!$H$8, 'i24'!T172,'i25'!T172,'i26'!T172,'i27'!T172,'i28'!T172) -> 0 | U172: =CHOOSE(Cover!$H$8, 'i24'!U172,'i25'!U172,'i26'!U172,'i27'!U172,'i28'!U172) -> 0 | V172: =CHOOSE(Cover!$H$8, 'i24'!V172,'i25'!V172,'i26'!V172,'i27'!V172,'i28'!V172) -> 0 | W172: =CHOOSE(Cover!$H$8, 'i24'!W172,'i25'!W172,'i26'!W172,'i27'!W172,'i28'!W172) -> 0
D173: MCP3 amount correcting for CPI | G173: $m | I173: =CHOOSE(Cover!$H$8, 'i24'!I173,'i25'!I173,'i26'!I173,'i27'!I173,'i28'!I173) -> 0 | J173: =CHOOSE(Cover!$H$8, 'i24'!J173,'i25'!J173,'i26'!J173,'i27'!J173,'i28'!J173) -> 0 | K173: =CHOOSE(Cover!$H$8, 'i24'!K173,'i25'!K173,'i26'!K173,'i27'!K173,'i28'!K173) -> 0 | L173: =CHOOSE(Cover!$H$8, 'i24'!L173,'i25'!L173,'i26'!L173,'i27'!L173,'i28'!L173) -> 0 | M173: =CHOOSE(Cover!$H$8, 'i24'!M173,'i25'!M173,'i26'!M173,'i27'!M173,'i28'!M173) -> 0 | N173: =CHOOSE(Cover!$H$8, 'i24'!N173,'i25'!N173,'i26'!N173,'i27'!N173,'i28'!N173) -> 0 | O173: =CHOOSE(Cover!$H$8, 'i24'!O173,'i25'!O173,'i26'!O173,'i27'!O173,'i28'!O173) -> 0 | P173: =CHOOSE(Cover!$H$8, 'i24'!P173,'i25'!P173,'i26'!P173,'i27'!P173,'i28'!P173) -> 0 | Q173: =CHOOSE(Cover!$H$8, 'i24'!Q173,'i25'!Q173,'i26'!Q173,'i27'!Q173,'i28'!Q173) -> 0 | R173: =CHOOSE(Cover!$H$8, 'i24'!R173,'i25'!R173,'i26'!R173,'i27'!R173,'i28'!R173) -> 0 | S173: =CHOOSE(Cover!$H$8, 'i24'!S173,'i25'!S173,'i26'!S173,'i27'!S173,'i28'!S173) -> 0 | T173: =CHOOSE(Cover!$H$8, 'i24'!T173,'i25'!T173,'i26'!T173,'i27'!T173,'i28'!T173) -> 0 | U173: =CHOOSE(Cover!$H$8, 'i24'!U173,'i25'!U173,'i26'!U173,'i27'!U173,'i28'!U173) -> 0 | V173: =CHOOSE(Cover!$H$8, 'i24'!V173,'i25'!V173,'i26'!V173,'i27'!V173,'i28'!V173) -> 0 | W173: =CHOOSE(Cover!$H$8, 'i24'!W173,'i25'!W173,'i26'!W173,'i27'!W173,'i28'!W173) -> 0
D174: MCP3 amount correcting for FX | G174: $m | I174: =CHOOSE(Cover!$H$8, 'i24'!I174,'i25'!I174,'i26'!I174,'i27'!I174,'i28'!I174) -> 0 | J174: =CHOOSE(Cover!$H$8, 'i24'!J174,'i25'!J174,'i26'!J174,'i27'!J174,'i28'!J174) -> 0 | K174: =CHOOSE(Cover!$H$8, 'i24'!K174,'i25'!K174,'i26'!K174,'i27'!K174,'i28'!K174) -> 0 | L174: =CHOOSE(Cover!$H$8, 'i24'!L174,'i25'!L174,'i26'!L174,'i27'!L174,'i28'!L174) -> 0 | M174: =CHOOSE(Cover!$H$8, 'i24'!M174,'i25'!M174,'i26'!M174,'i27'!M174,'i28'!M174) -> 0 | N174: =CHOOSE(Cover!$H$8, 'i24'!N174,'i25'!N174,'i26'!N174,'i27'!N174,'i28'!N174) -> 0 | O174: =CHOOSE(Cover!$H$8, 'i24'!O174,'i25'!O174,'i26'!O174,'i27'!O174,'i28'!O174) -> 0 | P174: =CHOOSE(Cover!$H$8, 'i24'!P174,'i25'!P174,'i26'!P174,'i27'!P174,'i28'!P174) -> 0 | Q174: =CHOOSE(Cover!$H$8, 'i24'!Q174,'i25'!Q174,'i26'!Q174,'i27'!Q174,'i28'!Q174) -> 0 | R174: =CHOOSE(Cover!$H$8, 'i24'!R174,'i25'!R174,'i26'!R174,'i27'!R174,'i28'!R174) -> 0 | S174: =CHOOSE(Cover!$H$8, 'i24'!S174,'i25'!S174,'i26'!S174,'i27'!S174,'i28'!S174) -> 0 | T174: =CHOOSE(Cover!$H$8, 'i24'!T174,'i25'!T174,'i26'!T174,'i27'!T174,'i28'!T174) -> 0 | U174: =CHOOSE(Cover!$H$8, 'i24'!U174,'i25'!U174,'i26'!U174,'i27'!U174,'i28'!U174) -> 0 | V174: =CHOOSE(Cover!$H$8, 'i24'!V174,'i25'!V174,'i26'!V174,'i27'!V174,'i28'!V174) -> 0 | W174: =CHOOSE(Cover!$H$8, 'i24'!W174,'i25'!W174,'i26'!W174,'i27'!W174,'i28'!W174) -> 0
D175: MCP3 part of major capex allowance relating to outputs not delivered | G175: $m | I175: =CHOOSE(Cover!$H$8, 'i24'!I175,'i25'!I175,'i26'!I175,'i27'!I175,'i28'!I175) -> 0 | J175: =CHOOSE(Cover!$H$8, 'i24'!J175,'i25'!J175,'i26'!J175,'i27'!J175,'i28'!J175) -> 0 | K175: =CHOOSE(Cover!$H$8, 'i24'!K175,'i25'!K175,'i26'!K175,'i27'!K175,'i28'!K175) -> 0 | L175: =CHOOSE(Cover!$H$8, 'i24'!L175,'i25'!L175,'i26'!L175,'i27'!L175,'i28'!L175) -> 0 | M175: =CHOOSE(Cover!$H$8, 'i24'!M175,'i25'!M175,'i26'!M175,'i27'!M175,'i28'!M175) -> 0 | N175: =CHOOSE(Cover!$H$8, 'i24'!N175,'i25'!N175,'i26'!N175,'i27'!N175,'i28'!N175) -> 0 | O175: =CHOOSE(Cover!$H$8, 'i24'!O175,'i25'!O175,'i26'!O175,'i27'!O175,'i28'!O175) -> 0 | P175: =CHOOSE(Cover!$H$8, 'i24'!P175,'i25'!P175,'i26'!P175,'i27'!P175,'i28'!P175) -> 0 | Q175: =CHOOSE(Cover!$H$8, 'i24'!Q175,'i25'!Q175,'i26'!Q175,'i27'!Q175,'i28'!Q175) -> 0 | R175: =CHOOSE(Cover!$H$8, 'i24'!R175,'i25'!R175,'i26'!R175,'i27'!R175,'i28'!R175) -> 0 | S175: =CHOOSE(Cover!$H$8, 'i24'!S175,'i25'!S175,'i26'!S175,'i27'!S175,'i28'!S175) -> 0 | T175: =CHOOSE(Cover!$H$8, 'i24'!T175,'i25'!T175,'i26'!T175,'i27'!T175,'i28'!T175) -> 0 | U175: =CHOOSE(Cover!$H$8, 'i24'!U175,'i25'!U175,'i26'!U175,'i27'!U175,'i28'!U175) -> 0 | V175: =CHOOSE(Cover!$H$8, 'i24'!V175,'i25'!V175,'i26'!V175,'i27'!V175,'i28'!V175) -> 0 | W175: =CHOOSE(Cover!$H$8, 'i24'!W175,'i25'!W175,'i26'!W175,'i27'!W175,'i28'!W175) -> 0
D176: MCP4 major capex incentive rate | G176: % | I176: =CHOOSE(Cover!$H$8, 'i24'!I176,'i25'!I176,'i26'!I176,'i27'!I176,'i28'!I176) -> 0 | J176: =CHOOSE(Cover!$H$8, 'i24'!J176,'i25'!J176,'i26'!J176,'i27'!J176,'i28'!J176) -> 0 | K176: =CHOOSE(Cover!$H$8, 'i24'!K176,'i25'!K176,'i26'!K176,'i27'!K176,'i28'!K176) -> 0 | L176: =CHOOSE(Cover!$H$8, 'i24'!L176,'i25'!L176,'i26'!L176,'i27'!L176,'i28'!L176) -> 0 | M176: =CHOOSE(Cover!$H$8, 'i24'!M176,'i25'!M176,'i26'!M176,'i27'!M176,'i28'!M176) -> 0 | N176: =CHOOSE(Cover!$H$8, 'i24'!N176,'i25'!N176,'i26'!N176,'i27'!N176,'i28'!N176) -> 0 | O176: =CHOOSE(Cover!$H$8, 'i24'!O176,'i25'!O176,'i26'!O176,'i27'!O176,'i28'!O176) -> 0 | P176: =CHOOSE(Cover!$H$8, 'i24'!P176,'i25'!P176,'i26'!P176,'i27'!P176,'i28'!P176) -> 0 | Q176: =CHOOSE(Cover!$H$8, 'i24'!Q176,'i25'!Q176,'i26'!Q176,'i27'!Q176,'i28'!Q176) -> 0 | R176: =CHOOSE(Cover!$H$8, 'i24'!R176,'i25'!R176,'i26'!R176,'i27'!R176,'i28'!R176) -> 0 | S176: =CHOOSE(Cover!$H$8, 'i24'!S176,'i25'!S176,'i26'!S176,'i27'!S176,'i28'!S176) -> 0 | T176: =CHOOSE(Cover!$H$8, 'i24'!T176,'i25'!T176,'i26'!T176,'i27'!T176,'i28'!T176) -> 0 | U176: =CHOOSE(Cover!$H$8, 'i24'!U176,'i25'!U176,'i26'!U176,'i27'!U176,'i28'!U176) -> 0 | V176: =CHOOSE(Cover!$H$8, 'i24'!V176,'i25'!V176,'i26'!V176,'i27'!V176,'i28'!V176) -> 0 | W176: =CHOOSE(Cover!$H$8, 'i24'!W176,'i25'!W176,'i26'!W176,'i27'!W176,'i28'!W176) -> 0
D177: MCP4 amount of capital expenditure | G177: $m | I177: =CHOOSE(Cover!$H$8, 'i24'!I177,'i25'!I177,'i26'!I177,'i27'!I177,'i28'!I177) -> 0 | J177: =CHOOSE(Cover!$H$8, 'i24'!J177,'i25'!J177,'i26'!J177,'i27'!J177,'i28'!J177) -> 0 | K177: =CHOOSE(Cover!$H$8, 'i24'!K177,'i25'!K177,'i26'!K177,'i27'!K177,'i28'!K177) -> 0 | L177: =CHOOSE(Cover!$H$8, 'i24'!L177,'i25'!L177,'i26'!L177,'i27'!L177,'i28'!L177) -> 0 | M177: =CHOOSE(Cover!$H$8, 'i24'!M177,'i25'!M177,'i26'!M177,'i27'!M177,'i28'!M177) -> 0 | N177: =CHOOSE(Cover!$H$8, 'i24'!N177,'i25'!N177,'i26'!N177,'i27'!N177,'i28'!N177) -> 0 | O177: =CHOOSE(Cover!$H$8, 'i24'!O177,'i25'!O177,'i26'!O177,'i27'!O177,'i28'!O177) -> 0 | P177: =CHOOSE(Cover!$H$8, 'i24'!P177,'i25'!P177,'i26'!P177,'i27'!P177,'i28'!P177) -> 0 | Q177: =CHOOSE(Cover!$H$8, 'i24'!Q177,'i25'!Q177,'i26'!Q177,'i27'!Q177,'i28'!Q177) -> 0 | R177: =CHOOSE(Cover!$H$8, 'i24'!R177,'i25'!R177,'i26'!R177,'i27'!R177,'i28'!R177) -> 0 | S177: =CHOOSE(Cover!$H$8, 'i24'!S177,'i25'!S177,'i26'!S177,'i27'!S177,'i28'!S177) -> 0 | T177: =CHOOSE(Cover!$H$8, 'i24'!T177,'i25'!T177,'i26'!T177,'i27'!T177,'i28'!T177) -> 0 | U177: =CHOOSE(Cover!$H$8, 'i24'!U177,'i25'!U177,'i26'!U177,'i27'!U177,'i28'!U177) -> 0 | V177: =CHOOSE(Cover!$H$8, 'i24'!V177,'i25'!V177,'i26'!V177,'i27'!V177,'i28'!V177) -> 0 | W177: =CHOOSE(Cover!$H$8, 'i24'!W177,'i25'!W177,'i26'!W177,'i27'!W177,'i28'!W177) -> 0
D178: MCP4 major capex allowance less exempt major capex | G178: $m | I178: =CHOOSE(Cover!$H$8, 'i24'!I178,'i25'!I178,'i26'!I178,'i27'!I178,'i28'!I178) -> 0 | J178: =CHOOSE(Cover!$H$8, 'i24'!J178,'i25'!J178,'i26'!J178,'i27'!J178,'i28'!J178) -> 0 | K178: =CHOOSE(Cover!$H$8, 'i24'!K178,'i25'!K178,'i26'!K178,'i27'!K178,'i28'!K178) -> 0 | L178: =CHOOSE(Cover!$H$8, 'i24'!L178,'i25'!L178,'i26'!L178,'i27'!L178,'i28'!L178) -> 0 | M178: =CHOOSE(Cover!$H$8, 'i24'!M178,'i25'!M178,'i26'!M178,'i27'!M178,'i28'!M178) -> 0 | N178: =CHOOSE(Cover!$H$8, 'i24'!N178,'i25'!N178,'i26'!N178,'i27'!N178,'i28'!N178) -> 0 | O178: =CHOOSE(Cover!$H$8, 'i24'!O178,'i25'!O178,'i26'!O178,'i27'!O178,'i28'!O178) -> 0 | P178: =CHOOSE(Cover!$H$8, 'i24'!P178,'i25'!P178,'i26'!P178,'i27'!P178,'i28'!P178) -> 0 | Q178: =CHOOSE(Cover!$H$8, 'i24'!Q178,'i25'!Q178,'i26'!Q178,'i27'!Q178,'i28'!Q178) -> 0 | R178: =CHOOSE(Cover!$H$8, 'i24'!R178,'i25'!R178,'i26'!R178,'i27'!R178,'i28'!R178) -> 0 | S178: =CHOOSE(Cover!$H$8, 'i24'!S178,'i25'!S178,'i26'!S178,'i27'!S178,'i28'!S178) -> 0 | T178: =CHOOSE(Cover!$H$8, 'i24'!T178,'i25'!T178,'i26'!T178,'i27'!T178,'i28'!T178) -> 0 | U178: =CHOOSE(Cover!$H$8, 'i24'!U178,'i25'!U178,'i26'!U178,'i27'!U178,'i28'!U178) -> 0 | V178: =CHOOSE(Cover!$H$8, 'i24'!V178,'i25'!V178,'i26'!V178,'i27'!V178,'i28'!V178) -> 0 | W178: =CHOOSE(Cover!$H$8, 'i24'!W178,'i25'!W178,'i26'!W178,'i27'!W178,'i28'!W178) -> 0
D179: MCP4 amount correcting for CPI | G179: $m | I179: =CHOOSE(Cover!$H$8, 'i24'!I179,'i25'!I179,'i26'!I179,'i27'!I179,'i28'!I179) -> 0 | J179: =CHOOSE(Cover!$H$8, 'i24'!J179,'i25'!J179,'i26'!J179,'i27'!J179,'i28'!J179) -> 0 | K179: =CHOOSE(Cover!$H$8, 'i24'!K179,'i25'!K179,'i26'!K179,'i27'!K179,'i28'!K179) -> 0 | L179: =CHOOSE(Cover!$H$8, 'i24'!L179,'i25'!L179,'i26'!L179,'i27'!L179,'i28'!L179) -> 0 | M179: =CHOOSE(Cover!$H$8, 'i24'!M179,'i25'!M179,'i26'!M179,'i27'!M179,'i28'!M179) -> 0 | N179: =CHOOSE(Cover!$H$8, 'i24'!N179,'i25'!N179,'i26'!N179,'i27'!N179,'i28'!N179) -> 0 | O179: =CHOOSE(Cover!$H$8, 'i24'!O179,'i25'!O179,'i26'!O179,'i27'!O179,'i28'!O179) -> 0 | P179: =CHOOSE(Cover!$H$8, 'i24'!P179,'i25'!P179,'i26'!P179,'i27'!P179,'i28'!P179) -> 0 | Q179: =CHOOSE(Cover!$H$8, 'i24'!Q179,'i25'!Q179,'i26'!Q179,'i27'!Q179,'i28'!Q179) -> 0 | R179: =CHOOSE(Cover!$H$8, 'i24'!R179,'i25'!R179,'i26'!R179,'i27'!R179,'i28'!R179) -> 0 | S179: =CHOOSE(Cover!$H$8, 'i24'!S179,'i25'!S179,'i26'!S179,'i27'!S179,'i28'!S179) -> 0 | T179: =CHOOSE(Cover!$H$8, 'i24'!T179,'i25'!T179,'i26'!T179,'i27'!T179,'i28'!T179) -> 0 | U179: =CHOOSE(Cover!$H$8, 'i24'!U179,'i25'!U179,'i26'!U179,'i27'!U179,'i28'!U179) -> 0 | V179: =CHOOSE(Cover!$H$8, 'i24'!V179,'i25'!V179,'i26'!V179,'i27'!V179,'i28'!V179) -> 0 | W179: =CHOOSE(Cover!$H$8, 'i24'!W179,'i25'!W179,'i26'!W179,'i27'!W179,'i28'!W179) -> 0
D180: MCP4 amount correcting for FX | G180: $m | I180: =CHOOSE(Cover!$H$8, 'i24'!I180,'i25'!I180,'i26'!I180,'i27'!I180,'i28'!I180) -> 0 | J180: =CHOOSE(Cover!$H$8, 'i24'!J180,'i25'!J180,'i26'!J180,'i27'!J180,'i28'!J180) -> 0 | K180: =CHOOSE(Cover!$H$8, 'i24'!K180,'i25'!K180,'i26'!K180,'i27'!K180,'i28'!K180) -> 0 | L180: =CHOOSE(Cover!$H$8, 'i24'!L180,'i25'!L180,'i26'!L180,'i27'!L180,'i28'!L180) -> 0 | M180: =CHOOSE(Cover!$H$8, 'i24'!M180,'i25'!M180,'i26'!M180,'i27'!M180,'i28'!M180) -> 0 | N180: =CHOOSE(Cover!$H$8, 'i24'!N180,'i25'!N180,'i26'!N180,'i27'!N180,'i28'!N180) -> 0 | O180: =CHOOSE(Cover!$H$8, 'i24'!O180,'i25'!O180,'i26'!O180,'i27'!O180,'i28'!O180) -> 0 | P180: =CHOOSE(Cover!$H$8, 'i24'!P180,'i25'!P180,'i26'!P180,'i27'!P180,'i28'!P180) -> 0 | Q180: =CHOOSE(Cover!$H$8, 'i24'!Q180,'i25'!Q180,'i26'!Q180,'i27'!Q180,'i28'!Q180) -> 0 | R180: =CHOOSE(Cover!$H$8, 'i24'!R180,'i25'!R180,'i26'!R180,'i27'!R180,'i28'!R180) -> 0 | S180: =CHOOSE(Cover!$H$8, 'i24'!S180,'i25'!S180,'i26'!S180,'i27'!S180,'i28'!S180) -> 0 | T180: =CHOOSE(Cover!$H$8, 'i24'!T180,'i25'!T180,'i26'!T180,'i27'!T180,'i28'!T180) -> 0 | U180: =CHOOSE(Cover!$H$8, 'i24'!U180,'i25'!U180,'i26'!U180,'i27'!U180,'i28'!U180) -> 0 | V180: =CHOOSE(Cover!$H$8, 'i24'!V180,'i25'!V180,'i26'!V180,'i27'!V180,'i28'!V180) -> 0 | W180: =CHOOSE(Cover!$H$8, 'i24'!W180,'i25'!W180,'i26'!W180,'i27'!W180,'i28'!W180) -> 0
D181: MCP4 part of major capex allowance relating to outputs not delivered | G181: $m | I181: =CHOOSE(Cover!$H$8, 'i24'!I181,'i25'!I181,'i26'!I181,'i27'!I181,'i28'!I181) -> 0 | J181: =CHOOSE(Cover!$H$8, 'i24'!J181,'i25'!J181,'i26'!J181,'i27'!J181,'i28'!J181) -> 0 | K181: =CHOOSE(Cover!$H$8, 'i24'!K181,'i25'!K181,'i26'!K181,'i27'!K181,'i28'!K181) -> 0 | L181: =CHOOSE(Cover!$H$8, 'i24'!L181,'i25'!L181,'i26'!L181,'i27'!L181,'i28'!L181) -> 0 | M181: =CHOOSE(Cover!$H$8, 'i24'!M181,'i25'!M181,'i26'!M181,'i27'!M181,'i28'!M181) -> 0 | N181: =CHOOSE(Cover!$H$8, 'i24'!N181,'i25'!N181,'i26'!N181,'i27'!N181,'i28'!N181) -> 0 | O181: =CHOOSE(Cover!$H$8, 'i24'!O181,'i25'!O181,'i26'!O181,'i27'!O181,'i28'!O181) -> 0 | P181: =CHOOSE(Cover!$H$8, 'i24'!P181,'i25'!P181,'i26'!P181,'i27'!P181,'i28'!P181) -> 0 | Q181: =CHOOSE(Cover!$H$8, 'i24'!Q181,'i25'!Q181,'i26'!Q181,'i27'!Q181,'i28'!Q181) -> 0 | R181: =CHOOSE(Cover!$H$8, 'i24'!R181,'i25'!R181,'i26'!R181,'i27'!R181,'i28'!R181) -> 0 | S181: =CHOOSE(Cover!$H$8, 'i24'!S181,'i25'!S181,'i26'!S181,'i27'!S181,'i28'!S181) -> 0 | T181: =CHOOSE(Cover!$H$8, 'i24'!T181,'i25'!T181,'i26'!T181,'i27'!T181,'i28'!T181) -> 0 | U181: =CHOOSE(Cover!$H$8, 'i24'!U181,'i25'!U181,'i26'!U181,'i27'!U181,'i28'!U181) -> 0 | V181: =CHOOSE(Cover!$H$8, 'i24'!V181,'i25'!V181,'i26'!V181,'i27'!V181,'i28'!V181) -> 0 | W181: =CHOOSE(Cover!$H$8, 'i24'!W181,'i25'!W181,'i26'!W181,'i27'!W181,'i28'!W181) -> 0
D182: MCP5 major capex incentive rate | G182: % | I182: =CHOOSE(Cover!$H$8, 'i24'!I182,'i25'!I182,'i26'!I182,'i27'!I182,'i28'!I182) -> 0 | J182: =CHOOSE(Cover!$H$8, 'i24'!J182,'i25'!J182,'i26'!J182,'i27'!J182,'i28'!J182) -> 0 | K182: =CHOOSE(Cover!$H$8, 'i24'!K182,'i25'!K182,'i26'!K182,'i27'!K182,'i28'!K182) -> 0 | L182: =CHOOSE(Cover!$H$8, 'i24'!L182,'i25'!L182,'i26'!L182,'i27'!L182,'i28'!L182) -> 0 | M182: =CHOOSE(Cover!$H$8, 'i24'!M182,'i25'!M182,'i26'!M182,'i27'!M182,'i28'!M182) -> 0 | N182: =CHOOSE(Cover!$H$8, 'i24'!N182,'i25'!N182,'i26'!N182,'i27'!N182,'i28'!N182) -> 0 | O182: =CHOOSE(Cover!$H$8, 'i24'!O182,'i25'!O182,'i26'!O182,'i27'!O182,'i28'!O182) -> 0 | P182: =CHOOSE(Cover!$H$8, 'i24'!P182,'i25'!P182,'i26'!P182,'i27'!P182,'i28'!P182) -> 0 | Q182: =CHOOSE(Cover!$H$8, 'i24'!Q182,'i25'!Q182,'i26'!Q182,'i27'!Q182,'i28'!Q182) -> 0 | R182: =CHOOSE(Cover!$H$8, 'i24'!R182,'i25'!R182,'i26'!R182,'i27'!R182,'i28'!R182) -> 0 | S182: =CHOOSE(Cover!$H$8, 'i24'!S182,'i25'!S182,'i26'!S182,'i27'!S182,'i28'!S182) -> 0 | T182: =CHOOSE(Cover!$H$8, 'i24'!T182,'i25'!T182,'i26'!T182,'i27'!T182,'i28'!T182) -> 0 | U182: =CHOOSE(Cover!$H$8, 'i24'!U182,'i25'!U182,'i26'!U182,'i27'!U182,'i28'!U182) -> 0 | V182: =CHOOSE(Cover!$H$8, 'i24'!V182,'i25'!V182,'i26'!V182,'i27'!V182,'i28'!V182) -> 0 | W182: =CHOOSE(Cover!$H$8, 'i24'!W182,'i25'!W182,'i26'!W182,'i27'!W182,'i28'!W182) -> 0
D183: MCP5 amount of capital expenditure | G183: $m | I183: =CHOOSE(Cover!$H$8, 'i24'!I183,'i25'!I183,'i26'!I183,'i27'!I183,'i28'!I183) -> 0 | J183: =CHOOSE(Cover!$H$8, 'i24'!J183,'i25'!J183,'i26'!J183,'i27'!J183,'i28'!J183) -> 0 | K183: =CHOOSE(Cover!$H$8, 'i24'!K183,'i25'!K183,'i26'!K183,'i27'!K183,'i28'!K183) -> 0 | L183: =CHOOSE(Cover!$H$8, 'i24'!L183,'i25'!L183,'i26'!L183,'i27'!L183,'i28'!L183) -> 0 | M183: =CHOOSE(Cover!$H$8, 'i24'!M183,'i25'!M183,'i26'!M183,'i27'!M183,'i28'!M183) -> 0 | N183: =CHOOSE(Cover!$H$8, 'i24'!N183,'i25'!N183,'i26'!N183,'i27'!N183,'i28'!N183) -> 0 | O183: =CHOOSE(Cover!$H$8, 'i24'!O183,'i25'!O183,'i26'!O183,'i27'!O183,'i28'!O183) -> 0 | P183: =CHOOSE(Cover!$H$8, 'i24'!P183,'i25'!P183,'i26'!P183,'i27'!P183,'i28'!P183) -> 0 | Q183: =CHOOSE(Cover!$H$8, 'i24'!Q183,'i25'!Q183,'i26'!Q183,'i27'!Q183,'i28'!Q183) -> 0 | R183: =CHOOSE(Cover!$H$8, 'i24'!R183,'i25'!R183,'i26'!R183,'i27'!R183,'i28'!R183) -> 0 | S183: =CHOOSE(Cover!$H$8, 'i24'!S183,'i25'!S183,'i26'!S183,'i27'!S183,'i28'!S183) -> 0 | T183: =CHOOSE(Cover!$H$8, 'i24'!T183,'i25'!T183,'i26'!T183,'i27'!T183,'i28'!T183) -> 0 | U183: =CHOOSE(Cover!$H$8, 'i24'!U183,'i25'!U183,'i26'!U183,'i27'!U183,'i28'!U183) -> 0 | V183: =CHOOSE(Cover!$H$8, 'i24'!V183,'i25'!V183,'i26'!V183,'i27'!V183,'i28'!V183) -> 0 | W183: =CHOOSE(Cover!$H$8, 'i24'!W183,'i25'!W183,'i26'!W183,'i27'!W183,'i28'!W183) -> 0
D184: MCP5 major capex allowance less exempt major capex | G184: $m | I184: =CHOOSE(Cover!$H$8, 'i24'!I184,'i25'!I184,'i26'!I184,'i27'!I184,'i28'!I184) -> 0 | J184: =CHOOSE(Cover!$H$8, 'i24'!J184,'i25'!J184,'i26'!J184,'i27'!J184,'i28'!J184) -> 0 | K184: =CHOOSE(Cover!$H$8, 'i24'!K184,'i25'!K184,'i26'!K184,'i27'!K184,'i28'!K184) -> 0 | L184: =CHOOSE(Cover!$H$8, 'i24'!L184,'i25'!L184,'i26'!L184,'i27'!L184,'i28'!L184) -> 0 | M184: =CHOOSE(Cover!$H$8, 'i24'!M184,'i25'!M184,'i26'!M184,'i27'!M184,'i28'!M184) -> 0 | N184: =CHOOSE(Cover!$H$8, 'i24'!N184,'i25'!N184,'i26'!N184,'i27'!N184,'i28'!N184) -> 0 | O184: =CHOOSE(Cover!$H$8, 'i24'!O184,'i25'!O184,'i26'!O184,'i27'!O184,'i28'!O184) -> 0 | P184: =CHOOSE(Cover!$H$8, 'i24'!P184,'i25'!P184,'i26'!P184,'i27'!P184,'i28'!P184) -> 0 | Q184: =CHOOSE(Cover!$H$8, 'i24'!Q184,'i25'!Q184,'i26'!Q184,'i27'!Q184,'i28'!Q184) -> 0 | R184: =CHOOSE(Cover!$H$8, 'i24'!R184,'i25'!R184,'i26'!R184,'i27'!R184,'i28'!R184) -> 0 | S184: =CHOOSE(Cover!$H$8, 'i24'!S184,'i25'!S184,'i26'!S184,'i27'!S184,'i28'!S184) -> 0 | T184: =CHOOSE(Cover!$H$8, 'i24'!T184,'i25'!T184,'i26'!T184,'i27'!T184,'i28'!T184) -> 0 | U184: =CHOOSE(Cover!$H$8, 'i24'!U184,'i25'!U184,'i26'!U184,'i27'!U184,'i28'!U184) -> 0 | V184: =CHOOSE(Cover!$H$8, 'i24'!V184,'i25'!V184,'i26'!V184,'i27'!V184,'i28'!V184) -> 0 | W184: =CHOOSE(Cover!$H$8, 'i24'!W184,'i25'!W184,'i26'!W184,'i27'!W184,'i28'!W184) -> 0
D185: MCP5 amount correcting for CPI | G185: $m | I185: =CHOOSE(Cover!$H$8, 'i24'!I185,'i25'!I185,'i26'!I185,'i27'!I185,'i28'!I185) -> 0 | J185: =CHOOSE(Cover!$H$8, 'i24'!J185,'i25'!J185,'i26'!J185,'i27'!J185,'i28'!J185) -> 0 | K185: =CHOOSE(Cover!$H$8, 'i24'!K185,'i25'!K185,'i26'!K185,'i27'!K185,'i28'!K185) -> 0 | L185: =CHOOSE(Cover!$H$8, 'i24'!L185,'i25'!L185,'i26'!L185,'i27'!L185,'i28'!L185) -> 0 | M185: =CHOOSE(Cover!$H$8, 'i24'!M185,'i25'!M185,'i26'!M185,'i27'!M185,'i28'!M185) -> 0 | N185: =CHOOSE(Cover!$H$8, 'i24'!N185,'i25'!N185,'i26'!N185,'i27'!N185,'i28'!N185) -> 0 | O185: =CHOOSE(Cover!$H$8, 'i24'!O185,'i25'!O185,'i26'!O185,'i27'!O185,'i28'!O185) -> 0 | P185: =CHOOSE(Cover!$H$8, 'i24'!P185,'i25'!P185,'i26'!P185,'i27'!P185,'i28'!P185) -> 0 | Q185: =CHOOSE(Cover!$H$8, 'i24'!Q185,'i25'!Q185,'i26'!Q185,'i27'!Q185,'i28'!Q185) -> 0 | R185: =CHOOSE(Cover!$H$8, 'i24'!R185,'i25'!R185,'i26'!R185,'i27'!R185,'i28'!R185) -> 0 | S185: =CHOOSE(Cover!$H$8, 'i24'!S185,'i25'!S185,'i26'!S185,'i27'!S185,'i28'!S185) -> 0 | T185: =CHOOSE(Cover!$H$8, 'i24'!T185,'i25'!T185,'i26'!T185,'i27'!T185,'i28'!T185) -> 0 | U185: =CHOOSE(Cover!$H$8, 'i24'!U185,'i25'!U185,'i26'!U185,'i27'!U185,'i28'!U185) -> 0 | V185: =CHOOSE(Cover!$H$8, 'i24'!V185,'i25'!V185,'i26'!V185,'i27'!V185,'i28'!V185) -> 0 | W185: =CHOOSE(Cover!$H$8, 'i24'!W185,'i25'!W185,'i26'!W185,'i27'!W185,'i28'!W185) -> 0
D186: MCP5 amount correcting for FX | G186: $m | I186: =CHOOSE(Cover!$H$8, 'i24'!I186,'i25'!I186,'i26'!I186,'i27'!I186,'i28'!I186) -> 0 | J186: =CHOOSE(Cover!$H$8, 'i24'!J186,'i25'!J186,'i26'!J186,'i27'!J186,'i28'!J186) -> 0 | K186: =CHOOSE(Cover!$H$8, 'i24'!K186,'i25'!K186,'i26'!K186,'i27'!K186,'i28'!K186) -> 0 | L186: =CHOOSE(Cover!$H$8, 'i24'!L186,'i25'!L186,'i26'!L186,'i27'!L186,'i28'!L186) -> 0 | M186: =CHOOSE(Cover!$H$8, 'i24'!M186,'i25'!M186,'i26'!M186,'i27'!M186,'i28'!M186) -> 0 | N186: =CHOOSE(Cover!$H$8, 'i24'!N186,'i25'!N186,'i26'!N186,'i27'!N186,'i28'!N186) -> 0 | O186: =CHOOSE(Cover!$H$8, 'i24'!O186,'i25'!O186,'i26'!O186,'i27'!O186,'i28'!O186) -> 0 | P186: =CHOOSE(Cover!$H$8, 'i24'!P186,'i25'!P186,'i26'!P186,'i27'!P186,'i28'!P186) -> 0 | Q186: =CHOOSE(Cover!$H$8, 'i24'!Q186,'i25'!Q186,'i26'!Q186,'i27'!Q186,'i28'!Q186) -> 0 | R186: =CHOOSE(Cover!$H$8, 'i24'!R186,'i25'!R186,'i26'!R186,'i27'!R186,'i28'!R186) -> 0 | S186: =CHOOSE(Cover!$H$8, 'i24'!S186,'i25'!S186,'i26'!S186,'i27'!S186,'i28'!S186) -> 0 | T186: =CHOOSE(Cover!$H$8, 'i24'!T186,'i25'!T186,'i26'!T186,'i27'!T186,'i28'!T186) -> 0 | U186: =CHOOSE(Cover!$H$8, 'i24'!U186,'i25'!U186,'i26'!U186,'i27'!U186,'i28'!U186) -> 0 | V186: =CHOOSE(Cover!$H$8, 'i24'!V186,'i25'!V186,'i26'!V186,'i27'!V186,'i28'!V186) -> 0 | W186: =CHOOSE(Cover!$H$8, 'i24'!W186,'i25'!W186,'i26'!W186,'i27'!W186,'i28'!W186) -> 0
D187: MCP5 part of major capex allowance relating to outputs not delivered | G187: $m | I187: =CHOOSE(Cover!$H$8, 'i24'!I187,'i25'!I187,'i26'!I187,'i27'!I187,'i28'!I187) -> 0 | J187: =CHOOSE(Cover!$H$8, 'i24'!J187,'i25'!J187,'i26'!J187,'i27'!J187,'i28'!J187) -> 0 | K187: =CHOOSE(Cover!$H$8, 'i24'!K187,'i25'!K187,'i26'!K187,'i27'!K187,'i28'!K187) -> 0 | L187: =CHOOSE(Cover!$H$8, 'i24'!L187,'i25'!L187,'i26'!L187,'i27'!L187,'i28'!L187) -> 0 | M187: =CHOOSE(Cover!$H$8, 'i24'!M187,'i25'!M187,'i26'!M187,'i27'!M187,'i28'!M187) -> 0 | N187: =CHOOSE(Cover!$H$8, 'i24'!N187,'i25'!N187,'i26'!N187,'i27'!N187,'i28'!N187) -> 0 | O187: =CHOOSE(Cover!$H$8, 'i24'!O187,'i25'!O187,'i26'!O187,'i27'!O187,'i28'!O187) -> 0 | P187: =CHOOSE(Cover!$H$8, 'i24'!P187,'i25'!P187,'i26'!P187,'i27'!P187,'i28'!P187) -> 0 | Q187: =CHOOSE(Cover!$H$8, 'i24'!Q187,'i25'!Q187,'i26'!Q187,'i27'!Q187,'i28'!Q187) -> 0 | R187: =CHOOSE(Cover!$H$8, 'i24'!R187,'i25'!R187,'i26'!R187,'i27'!R187,'i28'!R187) -> 0 | S187: =CHOOSE(Cover!$H$8, 'i24'!S187,'i25'!S187,'i26'!S187,'i27'!S187,'i28'!S187) -> 0 | T187: =CHOOSE(Cover!$H$8, 'i24'!T187,'i25'!T187,'i26'!T187,'i27'!T187,'i28'!T187) -> 0 | U187: =CHOOSE(Cover!$H$8, 'i24'!U187,'i25'!U187,'i26'!U187,'i27'!U187,'i28'!U187) -> 0 | V187: =CHOOSE(Cover!$H$8, 'i24'!V187,'i25'!V187,'i26'!V187,'i27'!V187,'i28'!V187) -> 0 | W187: =CHOOSE(Cover!$H$8, 'i24'!W187,'i25'!W187,'i26'!W187,'i27'!W187,'i28'!W187) -> 0
D188: Major capex sunk costs adjustment | G188: $m | I188: =CHOOSE(Cover!$H$8, 'i24'!I188,'i25'!I188,'i26'!I188,'i27'!I188,'i28'!I188) -> 0 | J188: =CHOOSE(Cover!$H$8, 'i24'!J188,'i25'!J188,'i26'!J188,'i27'!J188,'i28'!J188) -> 0 | K188: =CHOOSE(Cover!$H$8, 'i24'!K188,'i25'!K188,'i26'!K188,'i27'!K188,'i28'!K188) -> 0 | L188: =CHOOSE(Cover!$H$8, 'i24'!L188,'i25'!L188,'i26'!L188,'i27'!L188,'i28'!L188) -> 0 | M188: =CHOOSE(Cover!$H$8, 'i24'!M188,'i25'!M188,'i26'!M188,'i27'!M188,'i28'!M188) -> 0 | N188: =CHOOSE(Cover!$H$8, 'i24'!N188,'i25'!N188,'i26'!N188,'i27'!N188,'i28'!N188) -> 0 | O188: =CHOOSE(Cover!$H$8, 'i24'!O188,'i25'!O188,'i26'!O188,'i27'!O188,'i28'!O188) -> 0 | P188: =CHOOSE(Cover!$H$8, 'i24'!P188,'i25'!P188,'i26'!P188,'i27'!P188,'i28'!P188) -> 0 | Q188: =CHOOSE(Cover!$H$8, 'i24'!Q188,'i25'!Q188,'i26'!Q188,'i27'!Q188,'i28'!Q188) -> 0 | R188: =CHOOSE(Cover!$H$8, 'i24'!R188,'i25'!R188,'i26'!R188,'i27'!R188,'i28'!R188) -> 0 | S188: =CHOOSE(Cover!$H$8, 'i24'!S188,'i25'!S188,'i26'!S188,'i27'!S188,'i28'!S188) -> 0 | T188: =CHOOSE(Cover!$H$8, 'i24'!T188,'i25'!T188,'i26'!T188,'i27'!T188,'i28'!T188) -> 0 | U188: =CHOOSE(Cover!$H$8, 'i24'!U188,'i25'!U188,'i26'!U188,'i27'!U188,'i28'!U188) -> 0 | V188: =CHOOSE(Cover!$H$8, 'i24'!V188,'i25'!V188,'i26'!V188,'i27'!V188,'i28'!V188) -> 0 | W188: =CHOOSE(Cover!$H$8, 'i24'!W188,'i25'!W188,'i26'!W188,'i27'!W188,'i28'!W188) -> 0
B190: Opex incentive parameters
D192: Capitalised operating lease costs | G192: $m | I192: =CHOOSE(Cover!$H$8, 'i24'!I192,'i25'!I192,'i26'!I192,'i27'!I192,'i28'!I192) -> 9.856807745 | J192: =CHOOSE(Cover!$H$8, 'i24'!J192,'i25'!J192,'i26'!J192,'i27'!J192,'i28'!J192) -> 11.51058481 | K192: =CHOOSE(Cover!$H$8, 'i24'!K192,'i25'!K192,'i26'!K192,'i27'!K192,'i28'!K192) -> 10.85560442 | L192: =CHOOSE(Cover!$H$8, 'i24'!L192,'i25'!L192,'i26'!L192,'i27'!L192,'i28'!L192) -> 11.230053 | M192: =CHOOSE(Cover!$H$8, 'i24'!M192,'i25'!M192,'i26'!M192,'i27'!M192,'i28'!M192) -> 11.82828204 | N192: =CHOOSE(Cover!$H$8, 'i24'!N192,'i25'!N192,'i26'!N192,'i27'!N192,'i28'!N192) -> 11.3164701 | O192: =CHOOSE(Cover!$H$8, 'i24'!O192,'i25'!O192,'i26'!O192,'i27'!O192,'i28'!O192) -> 12.87214152 | P192: =CHOOSE(Cover!$H$8, 'i24'!P192,'i25'!P192,'i26'!P192,'i27'!P192,'i28'!P192) -> 19.30908938 | Q192: =CHOOSE(Cover!$H$8, 'i24'!Q192,'i25'!Q192,'i26'!Q192,'i27'!Q192,'i28'!Q192) -> 11.94727064 | R192: =CHOOSE(Cover!$H$8, 'i24'!R192,'i25'!R192,'i26'!R192,'i27'!R192,'i28'!R192) -> 11.09970344 | S192: =CHOOSE(Cover!$H$8, 'i24'!S192,'i25'!S192,'i26'!S192,'i27'!S192,'i28'!S192) -> 11.31034052 | T192: =CHOOSE(Cover!$H$8, 'i24'!T192,'i25'!T192,'i26'!T192,'i27'!T192,'i28'!T192) -> 11.34662973 | U192: =CHOOSE(Cover!$H$8, 'i24'!U192,'i25'!U192,'i26'!U192,'i27'!U192,'i28'!U192) -> 11.54102761 | V192: =CHOOSE(Cover!$H$8, 'i24'!V192,'i25'!V192,'i26'!V192,'i27'!V192,'i28'!V192) -> 11.73627955 | W192: =CHOOSE(Cover!$H$8, 'i24'!W192,'i25'!W192,'i26'!W192,'i27'!W192,'i28'!W192) -> 11.75198032
D193: Operating expenditure allowance for IRIS (forecast CPI) | G193: $m | I193: =CHOOSE(Cover!$H$8, 'i24'!I193,'i25'!I193,'i26'!I193,'i27'!I193,'i28'!I193) -> 286.2622983 | J193: =CHOOSE(Cover!$H$8, 'i24'!J193,'i25'!J193,'i26'!J193,'i27'!J193,'i28'!J193) -> 290.1794016 | K193: =CHOOSE(Cover!$H$8, 'i24'!K193,'i25'!K193,'i26'!K193,'i27'!K193,'i28'!K193) -> 299.9421827 | L193: =CHOOSE(Cover!$H$8, 'i24'!L193,'i25'!L193,'i26'!L193,'i27'!L193,'i28'!L193) -> 309.5321904 | M193: =CHOOSE(Cover!$H$8, 'i24'!M193,'i25'!M193,'i26'!M193,'i27'!M193,'i28'!M193) -> 309.6816898 | N193: =CHOOSE(Cover!$H$8, 'i24'!N193,'i25'!N193,'i26'!N193,'i27'!N193,'i28'!N193) -> 432.421291 | O193: =CHOOSE(Cover!$H$8, 'i24'!O193,'i25'!O193,'i26'!O193,'i27'!O193,'i28'!O193) -> 447.6177201 | P193: =CHOOSE(Cover!$H$8, 'i24'!P193,'i25'!P193,'i26'!P193,'i27'!P193,'i28'!P193) -> 460.1032606 | Q193: =CHOOSE(Cover!$H$8, 'i24'!Q193,'i25'!Q193,'i26'!Q193,'i27'!Q193,'i28'!Q193) -> 456.9640699 | R193: =CHOOSE(Cover!$H$8, 'i24'!R193,'i25'!R193,'i26'!R193,'i27'!R193,'i28'!R193) -> 448.7281569 | S193: =CHOOSE(Cover!$H$8, 'i24'!S193,'i25'!S193,'i26'!S193,'i27'!S193,'i28'!S193) -> 473.4295255 | T193: =CHOOSE(Cover!$H$8, 'i24'!T193,'i25'!T193,'i26'!T193,'i27'!T193,'i28'!T193) -> 483.394784 | U193: =CHOOSE(Cover!$H$8, 'i24'!U193,'i25'!U193,'i26'!U193,'i27'!U193,'i28'!U193) -> 503.8568993 | V193: =CHOOSE(Cover!$H$8, 'i24'!V193,'i25'!V193,'i26'!V193,'i27'!V193,'i28'!V193) -> 516.068776 | W193: =CHOOSE(Cover!$H$8, 'i24'!W193,'i25'!W193,'i26'!W193,'i27'!W193,'i28'!W193) -> 524.2636645
D194: Amounts carried forward into RCP3 | G194: $m | I194: =CHOOSE(Cover!$H$8, 'i24'!I194,'i25'!I194,'i26'!I194,'i27'!I194,'i28'!I194) -> 20.94498431 | J194: =CHOOSE(Cover!$H$8, 'i24'!J194,'i25'!J194,'i26'!J194,'i27'!J194,'i28'!J194) -> 3.645455686 | K194: =CHOOSE(Cover!$H$8, 'i24'!K194,'i25'!K194,'i26'!K194,'i27'!K194,'i28'!K194) -> -4.660202082 | L194: =CHOOSE(Cover!$H$8, 'i24'!L194,'i25'!L194,'i26'!L194,'i27'!L194,'i28'!L194) -> 0.2277105964 | M194: =CHOOSE(Cover!$H$8, 'i24'!M194,'i25'!M194,'i26'!M194,'i27'!M194,'i28'!M194) -> 0
D196: RCP3 base year adjustment term | G196: $m | J196: =CHOOSE(Cover!$H$8, 'i24'!J196,'i25'!J196,'i26'!J196,'i27'!J196,'i28'!J196) -> 7.738608164
D197: RCP3 baseline adjustment term | G197: $m | J197: =CHOOSE(Cover!$H$8, 'i24'!J197,'i25'!J197,'i26'!J197,'i27'!J197,'i28'!J197) -> -1.0519448
D198: Non-recurrent amount | G198: $m | K198: =CHOOSE(Cover!$H$8, 'i24'!K198,'i25'!K198,'i26'!K198,'i27'!K198,'i28'!K198) -> -14.7 | P198: =CHOOSE(Cover!$H$8, 'i24'!P198,'i25'!P198,'i26'!P198,'i27'!P198,'i28'!P198) -> 0 | U198: =CHOOSE(Cover!$H$8, 'i24'!U198,'i25'!U198,'i26'!U198,'i27'!U198,'i28'!U198) -> 0
B200: Service measure incentive parameters
C202: GP1
C203: Note:
D205: N-1 security high economic consequence | Cap | G205: # | I205: =CHOOSE(Cover!$H$8, 'i24'!I205,'i25'!I205,'i26'!I205,'i27'!I205,'i28'!I205) -> 0 | J205: =CHOOSE(Cover!$H$8, 'i24'!J205,'i25'!J205,'i26'!J205,'i27'!J205,'i28'!J205) -> 0 | K205: =CHOOSE(Cover!$H$8, 'i24'!K205,'i25'!K205,'i26'!K205,'i27'!K205,'i28'!K205) -> 0 | L205: =CHOOSE(Cover!$H$8, 'i24'!L205,'i25'!L205,'i26'!L205,'i27'!L205,'i28'!L205) -> 0 | M205: =CHOOSE(Cover!$H$8, 'i24'!M205,'i25'!M205,'i26'!M205,'i27'!M205,'i28'!M205) -> 0 | N205: =CHOOSE(Cover!$H$8, 'i24'!N205,'i25'!N205,'i26'!N205,'i27'!N205,'i28'!N205) -> 0 | O205: =CHOOSE(Cover!$H$8, 'i24'!O205,'i25'!O205,'i26'!O205,'i27'!O205,'i28'!O205) -> 0 | P205: =CHOOSE(Cover!$H$8, 'i24'!P205,'i25'!P205,'i26'!P205,'i27'!P205,'i28'!P205) -> 0 | Q205: =CHOOSE(Cover!$H$8, 'i24'!Q205,'i25'!Q205,'i26'!Q205,'i27'!Q205,'i28'!Q205) -> 0 | R205: =CHOOSE(Cover!$H$8, 'i24'!R205,'i25'!R205,'i26'!R205,'i27'!R205,'i28'!R205) -> 0 | S205: =CHOOSE(Cover!$H$8, 'i24'!S205,'i25'!S205,'i26'!S205,'i27'!S205,'i28'!S205) -> 0 | T205: =CHOOSE(Cover!$H$8, 'i24'!T205,'i25'!T205,'i26'!T205,'i27'!T205,'i28'!T205) -> 0 | U205: =CHOOSE(Cover!$H$8, 'i24'!U205,'i25'!U205,'i26'!U205,'i27'!U205,'i28'!U205) -> 0 | V205: =CHOOSE(Cover!$H$8, 'i24'!V205,'i25'!V205,'i26'!V205,'i27'!V205,'i28'!V205) -> 0 | W205: =CHOOSE(Cover!$H$8, 'i24'!W205,'i25'!W205,'i26'!W205,'i27'!W205,'i28'!W205) -> 0
D206: N-1 security material economic consequence | Cap | G206: # | I206: =CHOOSE(Cover!$H$8, 'i24'!I206,'i25'!I206,'i26'!I206,'i27'!I206,'i28'!I206) -> 7 | J206: =CHOOSE(Cover!$H$8, 'i24'!J206,'i25'!J206,'i26'!J206,'i27'!J206,'i28'!J206) -> 7 | K206: =CHOOSE(Cover!$H$8, 'i24'!K206,'i25'!K206,'i26'!K206,'i27'!K206,'i28'!K206) -> 7 | L206: =CHOOSE(Cover!$H$8, 'i24'!L206,'i25'!L206,'i26'!L206,'i27'!L206,'i28'!L206) -> 7 | M206: =CHOOSE(Cover!$H$8, 'i24'!M206,'i25'!M206,'i26'!M206,'i27'!M206,'i28'!M206) -> 7 | N206: =CHOOSE(Cover!$H$8, 'i24'!N206,'i25'!N206,'i26'!N206,'i27'!N206,'i28'!N206) -> 4 | O206: =CHOOSE(Cover!$H$8, 'i24'!O206,'i25'!O206,'i26'!O206,'i27'!O206,'i28'!O206) -> 4 | P206: =CHOOSE(Cover!$H$8, 'i24'!P206,'i25'!P206,'i26'!P206,'i27'!P206,'i28'!P206) -> 4 | Q206: =CHOOSE(Cover!$H$8, 'i24'!Q206,'i25'!Q206,'i26'!Q206,'i27'!Q206,'i28'!Q206) -> 4 | R206: =CHOOSE(Cover!$H$8, 'i24'!R206,'i25'!R206,'i26'!R206,'i27'!R206,'i28'!R206) -> 4 | S206: =CHOOSE(Cover!$H$8, 'i24'!S206,'i25'!S206,'i26'!S206,'i27'!S206,'i28'!S206) -> 4 | T206: =CHOOSE(Cover!$H$8, 'i24'!T206,'i25'!T206,'i26'!T206,'i27'!T206,'i28'!T206) -> 4 | U206: =CHOOSE(Cover!$H$8, 'i24'!U206,'i25'!U206,'i26'!U206,'i27'!U206,'i28'!U206) -> 4 | V206: =CHOOSE(Cover!$H$8, 'i24'!V206,'i25'!V206,'i26'!V206,'i27'!V206,'i28'!V206) -> 4 | W206: =CHOOSE(Cover!$H$8, 'i24'!W206,'i25'!W206,'i26'!W206,'i27'!W206,'i28'!W206) -> 4
D207: N security high economic consequence | Cap | G207: # | I207: =CHOOSE(Cover!$H$8, 'i24'!I207,'i25'!I207,'i26'!I207,'i27'!I207,'i28'!I207) -> 4 | J207: =CHOOSE(Cover!$H$8, 'i24'!J207,'i25'!J207,'i26'!J207,'i27'!J207,'i28'!J207) -> 4 | K207: =CHOOSE(Cover!$H$8, 'i24'!K207,'i25'!K207,'i26'!K207,'i27'!K207,'i28'!K207) -> 4 | L207: =CHOOSE(Cover!$H$8, 'i24'!L207,'i25'!L207,'i26'!L207,'i27'!L207,'i28'!L207) -> 4 | M207: =CHOOSE(Cover!$H$8, 'i24'!M207,'i25'!M207,'i26'!M207,'i27'!M207,'i28'!M207) -> 4 | N207: =CHOOSE(Cover!$H$8, 'i24'!N207,'i25'!N207,'i26'!N207,'i27'!N207,'i28'!N207) -> 0 | O207: =CHOOSE(Cover!$H$8, 'i24'!O207,'i25'!O207,'i26'!O207,'i27'!O207,'i28'!O207) -> 0 | P207: =CHOOSE(Cover!$H$8, 'i24'!P207,'i25'!P207,'i26'!P207,'i27'!P207,'i28'!P207) -> 0 | Q207: =CHOOSE(Cover!$H$8, 'i24'!Q207,'i25'!Q207,'i26'!Q207,'i27'!Q207,'i28'!Q207) -> 0 | R207: =CHOOSE(Cover!$H$8, 'i24'!R207,'i25'!R207,'i26'!R207,'i27'!R207,'i28'!R207) -> 0 | S207: =CHOOSE(Cover!$H$8, 'i24'!S207,'i25'!S207,'i26'!S207,'i27'!S207,'i28'!S207) -> 0 | T207: =CHOOSE(Cover!$H$8, 'i24'!T207,'i25'!T207,'i26'!T207,'i27'!T207,'i28'!T207) -> 0 | U207: =CHOOSE(Cover!$H$8, 'i24'!U207,'i25'!U207,'i26'!U207,'i27'!U207,'i28'!U207) -> 0 | V207: =CHOOSE(Cover!$H$8, 'i24'!V207,'i25'!V207,'i26'!V207,'i27'!V207,'i28'!V207) -> 0 | W207: =CHOOSE(Cover!$H$8, 'i24'!W207,'i25'!W207,'i26'!W207,'i27'!W207,'i28'!W207) -> 0
D208: N security material economic consequence | Cap | G208: # | I208: =CHOOSE(Cover!$H$8, 'i24'!I208,'i25'!I208,'i26'!I208,'i27'!I208,'i28'!I208) -> 9 | J208: =CHOOSE(Cover!$H$8, 'i24'!J208,'i25'!J208,'i26'!J208,'i27'!J208,'i28'!J208) -> 9 | K208: =CHOOSE(Cover!$H$8, 'i24'!K208,'i25'!K208,'i26'!K208,'i27'!K208,'i28'!K208) -> 9 | L208: =CHOOSE(Cover!$H$8, 'i24'!L208,'i25'!L208,'i26'!L208,'i27'!L208,'i28'!L208) -> 9 | M208: =CHOOSE(Cover!$H$8, 'i24'!M208,'i25'!M208,'i26'!M208,'i27'!M208,'i28'!M208) -> 9 | N208: =CHOOSE(Cover!$H$8, 'i24'!N208,'i25'!N208,'i26'!N208,'i27'!N208,'i28'!N208) -> 4 | O208: =CHOOSE(Cover!$H$8, 'i24'!O208,'i25'!O208,'i26'!O208,'i27'!O208,'i28'!O208) -> 4 | P208: =CHOOSE(Cover!$H$8, 'i24'!P208,'i25'!P208,'i26'!P208,'i27'!P208,'i28'!P208) -> 4 | Q208: =CHOOSE(Cover!$H$8, 'i24'!Q208,'i25'!Q208,'i26'!Q208,'i27'!Q208,'i28'!Q208) -> 4 | R208: =CHOOSE(Cover!$H$8, 'i24'!R208,'i25'!R208,'i26'!R208,'i27'!R208,'i28'!R208) -> 4 | S208: =CHOOSE(Cover!$H$8, 'i24'!S208,'i25'!S208,'i26'!S208,'i27'!S208,'i28'!S208) -> 4 | T208: =CHOOSE(Cover!$H$8, 'i24'!T208,'i25'!T208,'i26'!T208,'i27'!T208,'i28'!T208) -> 4 | U208: =CHOOSE(Cover!$H$8, 'i24'!U208,'i25'!U208,'i26'!U208,'i27'!U208,'i28'!U208) -> 4 | V208: =CHOOSE(Cover!$H$8, 'i24'!V208,'i25'!V208,'i26'!V208,'i27'!V208,'i28'!V208) -> 4 | W208: =CHOOSE(Cover!$H$8, 'i24'!W208,'i25'!W208,'i26'!W208,'i27'!W208,'i28'!W208) -> 4
D209: N-1 security generator | Cap | G209: # | I209: =CHOOSE(Cover!$H$8, 'i24'!I209,'i25'!I209,'i26'!I209,'i27'!I209,'i28'!I209) -> 5 | J209: =CHOOSE(Cover!$H$8, 'i24'!J209,'i25'!J209,'i26'!J209,'i27'!J209,'i28'!J209) -> 5 | K209: =CHOOSE(Cover!$H$8, 'i24'!K209,'i25'!K209,'i26'!K209,'i27'!K209,'i28'!K209) -> 5 | L209: =CHOOSE(Cover!$H$8, 'i24'!L209,'i25'!L209,'i26'!L209,'i27'!L209,'i28'!L209) -> 5 | M209: =CHOOSE(Cover!$H$8, 'i24'!M209,'i25'!M209,'i26'!M209,'i27'!M209,'i28'!M209) -> 5 | N209: =CHOOSE(Cover!$H$8, 'i24'!N209,'i25'!N209,'i26'!N209,'i27'!N209,'i28'!N209) -> 4 | O209: =CHOOSE(Cover!$H$8, 'i24'!O209,'i25'!O209,'i26'!O209,'i27'!O209,'i28'!O209) -> 4 | P209: =CHOOSE(Cover!$H$8, 'i24'!P209,'i25'!P209,'i26'!P209,'i27'!P209,'i28'!P209) -> 4 | Q209: =CHOOSE(Cover!$H$8, 'i24'!Q209,'i25'!Q209,'i26'!Q209,'i27'!Q209,'i28'!Q209) -> 4 | R209: =CHOOSE(Cover!$H$8, 'i24'!R209,'i25'!R209,'i26'!R209,'i27'!R209,'i28'!R209) -> 4 | S209: =CHOOSE(Cover!$H$8, 'i24'!S209,'i25'!S209,'i26'!S209,'i27'!S209,'i28'!S209) -> 4 | T209: =CHOOSE(Cover!$H$8, 'i24'!T209,'i25'!T209,'i26'!T209,'i27'!T209,'i28'!T209) -> 4 | U209: =CHOOSE(Cover!$H$8, 'i24'!U209,'i25'!U209,'i26'!U209,'i27'!U209,'i28'!U209) -> 4 | V209: =CHOOSE(Cover!$H$8, 'i24'!V209,'i25'!V209,'i26'!V209,'i27'!V209,'i28'!V209) -> 4 | W209: =CHOOSE(Cover!$H$8, 'i24'!W209,'i25'!W209,'i26'!W209,'i27'!W209,'i28'!W209) -> 4
D210: N security generator | Cap | G210: # | I210: =CHOOSE(Cover!$H$8, 'i24'!I210,'i25'!I210,'i26'!I210,'i27'!I210,'i28'!I210) -> 6 | J210: =CHOOSE(Cover!$H$8, 'i24'!J210,'i25'!J210,'i26'!J210,'i27'!J210,'i28'!J210) -> 6 | K210: =CHOOSE(Cover!$H$8, 'i24'!K210,'i25'!K210,'i26'!K210,'i27'!K210,'i28'!K210) -> 6 | L210: =CHOOSE(Cover!$H$8, 'i24'!L210,'i25'!L210,'i26'!L210,'i27'!L210,'i28'!L210) -> 6 | M210: =CHOOSE(Cover!$H$8, 'i24'!M210,'i25'!M210,'i26'!M210,'i27'!M210,'i28'!M210) -> 6 | N210: =CHOOSE(Cover!$H$8, 'i24'!N210,'i25'!N210,'i26'!N210,'i27'!N210,'i28'!N210) -> 4 | O210: =CHOOSE(Cover!$H$8, 'i24'!O210,'i25'!O210,'i26'!O210,'i27'!O210,'i28'!O210) -> 4 | P210: =CHOOSE(Cover!$H$8, 'i24'!P210,'i25'!P210,'i26'!P210,'i27'!P210,'i28'!P210) -> 4 | Q210: =CHOOSE(Cover!$H$8, 'i24'!Q210,'i25'!Q210,'i26'!Q210,'i27'!Q210,'i28'!Q210) -> 4 | R210: =CHOOSE(Cover!$H$8, 'i24'!R210,'i25'!R210,'i26'!R210,'i27'!R210,'i28'!R210) -> 4 | S210: =CHOOSE(Cover!$H$8, 'i24'!S210,'i25'!S210,'i26'!S210,'i27'!S210,'i28'!S210) -> 4 | T210: =CHOOSE(Cover!$H$8, 'i24'!T210,'i25'!T210,'i26'!T210,'i27'!T210,'i28'!T210) -> 4 | U210: =CHOOSE(Cover!$H$8, 'i24'!U210,'i25'!U210,'i26'!U210,'i27'!U210,'i28'!U210) -> 4 | V210: =CHOOSE(Cover!$H$8, 'i24'!V210,'i25'!V210,'i26'!V210,'i27'!V210,'i28'!V210) -> 4 | W210: =CHOOSE(Cover!$H$8, 'i24'!W210,'i25'!W210,'i26'!W210,'i27'!W210,'i28'!W210) -> 4
D211: N-1 security high economic consequence | Target | G211: # | I211: =CHOOSE(Cover!$H$8, 'i24'!I211,'i25'!I211,'i26'!I211,'i27'!I211,'i28'!I211) -> 7 | J211: =CHOOSE(Cover!$H$8, 'i24'!J211,'i25'!J211,'i26'!J211,'i27'!J211,'i28'!J211) -> 7 | K211: =CHOOSE(Cover!$H$8, 'i24'!K211,'i25'!K211,'i26'!K211,'i27'!K211,'i28'!K211) -> 7 | L211: =CHOOSE(Cover!$H$8, 'i24'!L211,'i25'!L211,'i26'!L211,'i27'!L211,'i28'!L211) -> 7 | M211: =CHOOSE(Cover!$H$8, 'i24'!M211,'i25'!M211,'i26'!M211,'i27'!M211,'i28'!M211) -> 7 | N211: =CHOOSE(Cover!$H$8, 'i24'!N211,'i25'!N211,'i26'!N211,'i27'!N211,'i28'!N211) -> 4 | O211: =CHOOSE(Cover!$H$8, 'i24'!O211,'i25'!O211,'i26'!O211,'i27'!O211,'i28'!O211) -> 4 | P211: =CHOOSE(Cover!$H$8, 'i24'!P211,'i25'!P211,'i26'!P211,'i27'!P211,'i28'!P211) -> 4 | Q211: =CHOOSE(Cover!$H$8, 'i24'!Q211,'i25'!Q211,'i26'!Q211,'i27'!Q211,'i28'!Q211) -> 4 | R211: =CHOOSE(Cover!$H$8, 'i24'!R211,'i25'!R211,'i26'!R211,'i27'!R211,'i28'!R211) -> 4 | S211: =CHOOSE(Cover!$H$8, 'i24'!S211,'i25'!S211,'i26'!S211,'i27'!S211,'i28'!S211) -> 4 | T211: =CHOOSE(Cover!$H$8, 'i24'!T211,'i25'!T211,'i26'!T211,'i27'!T211,'i28'!T211) -> 4 | U211: =CHOOSE(Cover!$H$8, 'i24'!U211,'i25'!U211,'i26'!U211,'i27'!U211,'i28'!U211) -> 4 | V211: =CHOOSE(Cover!$H$8, 'i24'!V211,'i25'!V211,'i26'!V211,'i27'!V211,'i28'!V211) -> 4 | W211: =CHOOSE(Cover!$H$8, 'i24'!W211,'i25'!W211,'i26'!W211,'i27'!W211,'i28'!W211) -> 4
D212: N-1 security material economic consequence | Target | G212: # | I212: =CHOOSE(Cover!$H$8, 'i24'!I212,'i25'!I212,'i26'!I212,'i27'!I212,'i28'!I212) -> 24 | J212: =CHOOSE(Cover!$H$8, 'i24'!J212,'i25'!J212,'i26'!J212,'i27'!J212,'i28'!J212) -> 24 | K212: =CHOOSE(Cover!$H$8, 'i24'!K212,'i25'!K212,'i26'!K212,'i27'!K212,'i28'!K212) -> 24 | L212: =CHOOSE(Cover!$H$8, 'i24'!L212,'i25'!L212,'i26'!L212,'i27'!L212,'i28'!L212) -> 24 | M212: =CHOOSE(Cover!$H$8, 'i24'!M212,'i25'!M212,'i26'!M212,'i27'!M212,'i28'!M212) -> 24 | N212: =CHOOSE(Cover!$H$8, 'i24'!N212,'i25'!N212,'i26'!N212,'i27'!N212,'i28'!N212) -> 21 | O212: =CHOOSE(Cover!$H$8, 'i24'!O212,'i25'!O212,'i26'!O212,'i27'!O212,'i28'!O212) -> 21 | P212: =CHOOSE(Cover!$H$8, 'i24'!P212,'i25'!P212,'i26'!P212,'i27'!P212,'i28'!P212) -> 21 | Q212: =CHOOSE(Cover!$H$8, 'i24'!Q212,'i25'!Q212,'i26'!Q212,'i27'!Q212,'i28'!Q212) -> 21 | R212: =CHOOSE(Cover!$H$8, 'i24'!R212,'i25'!R212,'i26'!R212,'i27'!R212,'i28'!R212) -> 21 | S212: =CHOOSE(Cover!$H$8, 'i24'!S212,'i25'!S212,'i26'!S212,'i27'!S212,'i28'!S212) -> 21 | T212: =CHOOSE(Cover!$H$8, 'i24'!T212,'i25'!T212,'i26'!T212,'i27'!T212,'i28'!T212) -> 21 | U212: =CHOOSE(Cover!$H$8, 'i24'!U212,'i25'!U212,'i26'!U212,'i27'!U212,'i28'!U212) -> 21 | V212: =CHOOSE(Cover!$H$8, 'i24'!V212,'i25'!V212,'i26'!V212,'i27'!V212,'i28'!V212) -> 21 | W212: =CHOOSE(Cover!$H$8, 'i24'!W212,'i25'!W212,'i26'!W212,'i27'!W212,'i28'!W212) -> 21
D213: N security high economic consequence | Target | G213: # | I213: =CHOOSE(Cover!$H$8, 'i24'!I213,'i25'!I213,'i26'!I213,'i27'!I213,'i28'!I213) -> 6 | J213: =CHOOSE(Cover!$H$8, 'i24'!J213,'i25'!J213,'i26'!J213,'i27'!J213,'i28'!J213) -> 6 | K213: =CHOOSE(Cover!$H$8, 'i24'!K213,'i25'!K213,'i26'!K213,'i27'!K213,'i28'!K213) -> 6 | L213: =CHOOSE(Cover!$H$8, 'i24'!L213,'i25'!L213,'i26'!L213,'i27'!L213,'i28'!L213) -> 6 | M213: =CHOOSE(Cover!$H$8, 'i24'!M213,'i25'!M213,'i26'!M213,'i27'!M213,'i28'!M213) -> 6 | N213: =CHOOSE(Cover!$H$8, 'i24'!N213,'i25'!N213,'i26'!N213,'i27'!N213,'i28'!N213) -> 2 | O213: =CHOOSE(Cover!$H$8, 'i24'!O213,'i25'!O213,'i26'!O213,'i27'!O213,'i28'!O213) -> 2 | P213: =CHOOSE(Cover!$H$8, 'i24'!P213,'i25'!P213,'i26'!P213,'i27'!P213,'i28'!P213) -> 2 | Q213: =CHOOSE(Cover!$H$8, 'i24'!Q213,'i25'!Q213,'i26'!Q213,'i27'!Q213,'i28'!Q213) -> 2 | R213: =CHOOSE(Cover!$H$8, 'i24'!R213,'i25'!R213,'i26'!R213,'i27'!R213,'i28'!R213) -> 2 | S213: =CHOOSE(Cover!$H$8, 'i24'!S213,'i25'!S213,'i26'!S213,'i27'!S213,'i28'!S213) -> 2 | T213: =CHOOSE(Cover!$H$8, 'i24'!T213,'i25'!T213,'i26'!T213,'i27'!T213,'i28'!T213) -> 2 | U213: =CHOOSE(Cover!$H$8, 'i24'!U213,'i25'!U213,'i26'!U213,'i27'!U213,'i28'!U213) -> 2 | V213: =CHOOSE(Cover!$H$8, 'i24'!V213,'i25'!V213,'i26'!V213,'i27'!V213,'i28'!V213) -> 2 | W213: =CHOOSE(Cover!$H$8, 'i24'!W213,'i25'!W213,'i26'!W213,'i27'!W213,'i28'!W213) -> 2
D214: N security material economic consequence | Target | G214: # | I214: =CHOOSE(Cover!$H$8, 'i24'!I214,'i25'!I214,'i26'!I214,'i27'!I214,'i28'!I214) -> 23 | J214: =CHOOSE(Cover!$H$8, 'i24'!J214,'i25'!J214,'i26'!J214,'i27'!J214,'i28'!J214) -> 23 | K214: =CHOOSE(Cover!$H$8, 'i24'!K214,'i25'!K214,'i26'!K214,'i27'!K214,'i28'!K214) -> 23 | L214: =CHOOSE(Cover!$H$8, 'i24'!L214,'i25'!L214,'i26'!L214,'i27'!L214,'i28'!L214) -> 23 | M214: =CHOOSE(Cover!$H$8, 'i24'!M214,'i25'!M214,'i26'!M214,'i27'!M214,'i28'!M214) -> 23 | N214: =CHOOSE(Cover!$H$8, 'i24'!N214,'i25'!N214,'i26'!N214,'i27'!N214,'i28'!N214) -> 15 | O214: =CHOOSE(Cover!$H$8, 'i24'!O214,'i25'!O214,'i26'!O214,'i27'!O214,'i28'!O214) -> 15 | P214: =CHOOSE(Cover!$H$8, 'i24'!P214,'i25'!P214,'i26'!P214,'i27'!P214,'i28'!P214) -> 15 | Q214: =CHOOSE(Cover!$H$8, 'i24'!Q214,'i25'!Q214,'i26'!Q214,'i27'!Q214,'i28'!Q214) -> 15 | R214: =CHOOSE(Cover!$H$8, 'i24'!R214,'i25'!R214,'i26'!R214,'i27'!R214,'i28'!R214) -> 15 | S214: =CHOOSE(Cover!$H$8, 'i24'!S214,'i25'!S214,'i26'!S214,'i27'!S214,'i28'!S214) -> 15 | T214: =CHOOSE(Cover!$H$8, 'i24'!T214,'i25'!T214,'i26'!T214,'i27'!T214,'i28'!T214) -> 15 | U214: =CHOOSE(Cover!$H$8, 'i24'!U214,'i25'!U214,'i26'!U214,'i27'!U214,'i28'!U214) -> 15 | V214: =CHOOSE(Cover!$H$8, 'i24'!V214,'i25'!V214,'i26'!V214,'i27'!V214,'i28'!V214) -> 15 | W214: =CHOOSE(Cover!$H$8, 'i24'!W214,'i25'!W214,'i26'!W214,'i27'!W214,'i28'!W214) -> 15
D215: N-1 security generator | Target | G215: # | I215: =CHOOSE(Cover!$H$8, 'i24'!I215,'i25'!I215,'i26'!I215,'i27'!I215,'i28'!I215) -> 9 | J215: =CHOOSE(Cover!$H$8, 'i24'!J215,'i25'!J215,'i26'!J215,'i27'!J215,'i28'!J215) -> 9 | K215: =CHOOSE(Cover!$H$8, 'i24'!K215,'i25'!K215,'i26'!K215,'i27'!K215,'i28'!K215) -> 9 | L215: =CHOOSE(Cover!$H$8, 'i24'!L215,'i25'!L215,'i26'!L215,'i27'!L215,'i28'!L215) -> 9 | M215: =CHOOSE(Cover!$H$8, 'i24'!M215,'i25'!M215,'i26'!M215,'i27'!M215,'i28'!M215) -> 9 | N215: =CHOOSE(Cover!$H$8, 'i24'!N215,'i25'!N215,'i26'!N215,'i27'!N215,'i28'!N215) -> 9 | O215: =CHOOSE(Cover!$H$8, 'i24'!O215,'i25'!O215,'i26'!O215,'i27'!O215,'i28'!O215) -> 9 | P215: =CHOOSE(Cover!$H$8, 'i24'!P215,'i25'!P215,'i26'!P215,'i27'!P215,'i28'!P215) -> 9 | Q215: =CHOOSE(Cover!$H$8, 'i24'!Q215,'i25'!Q215,'i26'!Q215,'i27'!Q215,'i28'!Q215) -> 9 | R215: =CHOOSE(Cover!$H$8, 'i24'!R215,'i25'!R215,'i26'!R215,'i27'!R215,'i28'!R215) -> 9 | S215: =CHOOSE(Cover!$H$8, 'i24'!S215,'i25'!S215,'i26'!S215,'i27'!S215,'i28'!S215) -> 9 | T215: =CHOOSE(Cover!$H$8, 'i24'!T215,'i25'!T215,'i26'!T215,'i27'!T215,'i28'!T215) -> 9 | U215: =CHOOSE(Cover!$H$8, 'i24'!U215,'i25'!U215,'i26'!U215,'i27'!U215,'i28'!U215) -> 9 | V215: =CHOOSE(Cover!$H$8, 'i24'!V215,'i25'!V215,'i26'!V215,'i27'!V215,'i28'!V215) -> 9 | W215: =CHOOSE(Cover!$H$8, 'i24'!W215,'i25'!W215,'i26'!W215,'i27'!W215,'i28'!W215) -> 9
D216: N security generator | Target | G216: # | I216: =CHOOSE(Cover!$H$8, 'i24'!I216,'i25'!I216,'i26'!I216,'i27'!I216,'i28'!I216) -> 12 | J216: =CHOOSE(Cover!$H$8, 'i24'!J216,'i25'!J216,'i26'!J216,'i27'!J216,'i28'!J216) -> 12 | K216: =CHOOSE(Cover!$H$8, 'i24'!K216,'i25'!K216,'i26'!K216,'i27'!K216,'i28'!K216) -> 12 | L216: =CHOOSE(Cover!$H$8, 'i24'!L216,'i25'!L216,'i26'!L216,'i27'!L216,'i28'!L216) -> 12 | M216: =CHOOSE(Cover!$H$8, 'i24'!M216,'i25'!M216,'i26'!M216,'i27'!M216,'i28'!M216) -> 12 | N216: =CHOOSE(Cover!$H$8, 'i24'!N216,'i25'!N216,'i26'!N216,'i27'!N216,'i28'!N216) -> 7 | O216: =CHOOSE(Cover!$H$8, 'i24'!O216,'i25'!O216,'i26'!O216,'i27'!O216,'i28'!O216) -> 7 | P216: =CHOOSE(Cover!$H$8, 'i24'!P216,'i25'!P216,'i26'!P216,'i27'!P216,'i28'!P216) -> 7 | Q216: =CHOOSE(Cover!$H$8, 'i24'!Q216,'i25'!Q216,'i26'!Q216,'i27'!Q216,'i28'!Q216) -> 7 | R216: =CHOOSE(Cover!$H$8, 'i24'!R216,'i25'!R216,'i26'!R216,'i27'!R216,'i28'!R216) -> 7 | S216: =CHOOSE(Cover!$H$8, 'i24'!S216,'i25'!S216,'i26'!S216,'i27'!S216,'i28'!S216) -> 7 | T216: =CHOOSE(Cover!$H$8, 'i24'!T216,'i25'!T216,'i26'!T216,'i27'!T216,'i28'!T216) -> 7 | U216: =CHOOSE(Cover!$H$8, 'i24'!U216,'i25'!U216,'i26'!U216,'i27'!U216,'i28'!U216) -> 7 | V216: =CHOOSE(Cover!$H$8, 'i24'!V216,'i25'!V216,'i26'!V216,'i27'!V216,'i28'!V216) -> 7 | W216: =CHOOSE(Cover!$H$8, 'i24'!W216,'i25'!W216,'i26'!W216,'i27'!W216,'i28'!W216) -> 7
D217: N-1 security high economic consequence | Collar | G217: # | I217: =CHOOSE(Cover!$H$8, 'i24'!I217,'i25'!I217,'i26'!I217,'i27'!I217,'i28'!I217) -> 14 | J217: =CHOOSE(Cover!$H$8, 'i24'!J217,'i25'!J217,'i26'!J217,'i27'!J217,'i28'!J217) -> 14 | K217: =CHOOSE(Cover!$H$8, 'i24'!K217,'i25'!K217,'i26'!K217,'i27'!K217,'i28'!K217) -> 14 | L217: =CHOOSE(Cover!$H$8, 'i24'!L217,'i25'!L217,'i26'!L217,'i27'!L217,'i28'!L217) -> 14 | M217: =CHOOSE(Cover!$H$8, 'i24'!M217,'i25'!M217,'i26'!M217,'i27'!M217,'i28'!M217) -> 14 | N217: =CHOOSE(Cover!$H$8, 'i24'!N217,'i25'!N217,'i26'!N217,'i27'!N217,'i28'!N217) -> 8 | O217: =CHOOSE(Cover!$H$8, 'i24'!O217,'i25'!O217,'i26'!O217,'i27'!O217,'i28'!O217) -> 8 | P217: =CHOOSE(Cover!$H$8, 'i24'!P217,'i25'!P217,'i26'!P217,'i27'!P217,'i28'!P217) -> 8 | Q217: =CHOOSE(Cover!$H$8, 'i24'!Q217,'i25'!Q217,'i26'!Q217,'i27'!Q217,'i28'!Q217) -> 8 | R217: =CHOOSE(Cover!$H$8, 'i24'!R217,'i25'!R217,'i26'!R217,'i27'!R217,'i28'!R217) -> 8 | S217: =CHOOSE(Cover!$H$8, 'i24'!S217,'i25'!S217,'i26'!S217,'i27'!S217,'i28'!S217) -> 8 | T217: =CHOOSE(Cover!$H$8, 'i24'!T217,'i25'!T217,'i26'!T217,'i27'!T217,'i28'!T217) -> 8 | U217: =CHOOSE(Cover!$H$8, 'i24'!U217,'i25'!U217,'i26'!U217,'i27'!U217,'i28'!U217) -> 8 | V217: =CHOOSE(Cover!$H$8, 'i24'!V217,'i25'!V217,'i26'!V217,'i27'!V217,'i28'!V217) -> 8 | W217: =CHOOSE(Cover!$H$8, 'i24'!W217,'i25'!W217,'i26'!W217,'i27'!W217,'i28'!W217) -> 8
D218: N-1 security material economic consequence | Collar | G218: # | I218: =CHOOSE(Cover!$H$8, 'i24'!I218,'i25'!I218,'i26'!I218,'i27'!I218,'i28'!I218) -> 41 | J218: =CHOOSE(Cover!$H$8, 'i24'!J218,'i25'!J218,'i26'!J218,'i27'!J218,'i28'!J218) -> 41 | K218: =CHOOSE(Cover!$H$8, 'i24'!K218,'i25'!K218,'i26'!K218,'i27'!K218,'i28'!K218) -> 41 | L218: =CHOOSE(Cover!$H$8, 'i24'!L218,'i25'!L218,'i26'!L218,'i27'!L218,'i28'!L218) -> 41 | M218: =CHOOSE(Cover!$H$8, 'i24'!M218,'i25'!M218,'i26'!M218,'i27'!M218,'i28'!M218) -> 41 | N218: =CHOOSE(Cover!$H$8, 'i24'!N218,'i25'!N218,'i26'!N218,'i27'!N218,'i28'!N218) -> 38 | O218: =CHOOSE(Cover!$H$8, 'i24'!O218,'i25'!O218,'i26'!O218,'i27'!O218,'i28'!O218) -> 38 | P218: =CHOOSE(Cover!$H$8, 'i24'!P218,'i25'!P218,'i26'!P218,'i27'!P218,'i28'!P218) -> 38 | Q218: =CHOOSE(Cover!$H$8, 'i24'!Q218,'i25'!Q218,'i26'!Q218,'i27'!Q218,'i28'!Q218) -> 38 | R218: =CHOOSE(Cover!$H$8, 'i24'!R218,'i25'!R218,'i26'!R218,'i27'!R218,'i28'!R218) -> 38 | S218: =CHOOSE(Cover!$H$8, 'i24'!S218,'i25'!S218,'i26'!S218,'i27'!S218,'i28'!S218) -> 38 | T218: =CHOOSE(Cover!$H$8, 'i24'!T218,'i25'!T218,'i26'!T218,'i27'!T218,'i28'!T218) -> 38 | U218: =CHOOSE(Cover!$H$8, 'i24'!U218,'i25'!U218,'i26'!U218,'i27'!U218,'i28'!U218) -> 38 | V218: =CHOOSE(Cover!$H$8, 'i24'!V218,'i25'!V218,'i26'!V218,'i27'!V218,'i28'!V218) -> 38 | W218: =CHOOSE(Cover!$H$8, 'i24'!W218,'i25'!W218,'i26'!W218,'i27'!W218,'i28'!W218) -> 38
D219: N security high economic consequence | Collar | G219: # | I219: =CHOOSE(Cover!$H$8, 'i24'!I219,'i25'!I219,'i26'!I219,'i27'!I219,'i28'!I219) -> 8 | J219: =CHOOSE(Cover!$H$8, 'i24'!J219,'i25'!J219,'i26'!J219,'i27'!J219,'i28'!J219) -> 8 | K219: =CHOOSE(Cover!$H$8, 'i24'!K219,'i25'!K219,'i26'!K219,'i27'!K219,'i28'!K219) -> 8 | L219: =CHOOSE(Cover!$H$8, 'i24'!L219,'i25'!L219,'i26'!L219,'i27'!L219,'i28'!L219) -> 8 | M219: =CHOOSE(Cover!$H$8, 'i24'!M219,'i25'!M219,'i26'!M219,'i27'!M219,'i28'!M219) -> 8 | N219: =CHOOSE(Cover!$H$8, 'i24'!N219,'i25'!N219,'i26'!N219,'i27'!N219,'i28'!N219) -> 4 | O219: =CHOOSE(Cover!$H$8, 'i24'!O219,'i25'!O219,'i26'!O219,'i27'!O219,'i28'!O219) -> 4 | P219: =CHOOSE(Cover!$H$8, 'i24'!P219,'i25'!P219,'i26'!P219,'i27'!P219,'i28'!P219) -> 4 | Q219: =CHOOSE(Cover!$H$8, 'i24'!Q219,'i25'!Q219,'i26'!Q219,'i27'!Q219,'i28'!Q219) -> 4 | R219: =CHOOSE(Cover!$H$8, 'i24'!R219,'i25'!R219,'i26'!R219,'i27'!R219,'i28'!R219) -> 4 | S219: =CHOOSE(Cover!$H$8, 'i24'!S219,'i25'!S219,'i26'!S219,'i27'!S219,'i28'!S219) -> 4 | T219: =CHOOSE(Cover!$H$8, 'i24'!T219,'i25'!T219,'i26'!T219,'i27'!T219,'i28'!T219) -> 4 | U219: =CHOOSE(Cover!$H$8, 'i24'!U219,'i25'!U219,'i26'!U219,'i27'!U219,'i28'!U219) -> 4 | V219: =CHOOSE(Cover!$H$8, 'i24'!V219,'i25'!V219,'i26'!V219,'i27'!V219,'i28'!V219) -> 4 | W219: =CHOOSE(Cover!$H$8, 'i24'!W219,'i25'!W219,'i26'!W219,'i27'!W219,'i28'!W219) -> 4
D220: N security material economic consequence | Collar | G220: # | I220: =CHOOSE(Cover!$H$8, 'i24'!I220,'i25'!I220,'i26'!I220,'i27'!I220,'i28'!I220) -> 37 | J220: =CHOOSE(Cover!$H$8, 'i24'!J220,'i25'!J220,'i26'!J220,'i27'!J220,'i28'!J220) -> 37 | K220: =CHOOSE(Cover!$H$8, 'i24'!K220,'i25'!K220,'i26'!K220,'i27'!K220,'i28'!K220) -> 37 | L220: =CHOOSE(Cover!$H$8, 'i24'!L220,'i25'!L220,'i26'!L220,'i27'!L220,'i28'!L220) -> 37 | M220: =CHOOSE(Cover!$H$8, 'i24'!M220,'i25'!M220,'i26'!M220,'i27'!M220,'i28'!M220) -> 37 | N220: =CHOOSE(Cover!$H$8, 'i24'!N220,'i25'!N220,'i26'!N220,'i27'!N220,'i28'!N220) -> 26 | O220: =CHOOSE(Cover!$H$8, 'i24'!O220,'i25'!O220,'i26'!O220,'i27'!O220,'i28'!O220) -> 26 | P220: =CHOOSE(Cover!$H$8, 'i24'!P220,'i25'!P220,'i26'!P220,'i27'!P220,'i28'!P220) -> 26 | Q220: =CHOOSE(Cover!$H$8, 'i24'!Q220,'i25'!Q220,'i26'!Q220,'i27'!Q220,'i28'!Q220) -> 26 | R220: =CHOOSE(Cover!$H$8, 'i24'!R220,'i25'!R220,'i26'!R220,'i27'!R220,'i28'!R220) -> 26 | S220: =CHOOSE(Cover!$H$8, 'i24'!S220,'i25'!S220,'i26'!S220,'i27'!S220,'i28'!S220) -> 26 | T220: =CHOOSE(Cover!$H$8, 'i24'!T220,'i25'!T220,'i26'!T220,'i27'!T220,'i28'!T220) -> 26 | U220: =CHOOSE(Cover!$H$8, 'i24'!U220,'i25'!U220,'i26'!U220,'i27'!U220,'i28'!U220) -> 26 | V220: =CHOOSE(Cover!$H$8, 'i24'!V220,'i25'!V220,'i26'!V220,'i27'!V220,'i28'!V220) -> 26 | W220: =CHOOSE(Cover!$H$8, 'i24'!W220,'i25'!W220,'i26'!W220,'i27'!W220,'i28'!W220) -> 26
D221: N-1 security generator | Collar | G221: # | I221: =CHOOSE(Cover!$H$8, 'i24'!I221,'i25'!I221,'i26'!I221,'i27'!I221,'i28'!I221) -> 13 | J221: =CHOOSE(Cover!$H$8, 'i24'!J221,'i25'!J221,'i26'!J221,'i27'!J221,'i28'!J221) -> 13 | K221: =CHOOSE(Cover!$H$8, 'i24'!K221,'i25'!K221,'i26'!K221,'i27'!K221,'i28'!K221) -> 13 | L221: =CHOOSE(Cover!$H$8, 'i24'!L221,'i25'!L221,'i26'!L221,'i27'!L221,'i28'!L221) -> 13 | M221: =CHOOSE(Cover!$H$8, 'i24'!M221,'i25'!M221,'i26'!M221,'i27'!M221,'i28'!M221) -> 13 | N221: =CHOOSE(Cover!$H$8, 'i24'!N221,'i25'!N221,'i26'!N221,'i27'!N221,'i28'!N221) -> 14 | O221: =CHOOSE(Cover!$H$8, 'i24'!O221,'i25'!O221,'i26'!O221,'i27'!O221,'i28'!O221) -> 14 | P221: =CHOOSE(Cover!$H$8, 'i24'!P221,'i25'!P221,'i26'!P221,'i27'!P221,'i28'!P221) -> 14 | Q221: =CHOOSE(Cover!$H$8, 'i24'!Q221,'i25'!Q221,'i26'!Q221,'i27'!Q221,'i28'!Q221) -> 14 | R221: =CHOOSE(Cover!$H$8, 'i24'!R221,'i25'!R221,'i26'!R221,'i27'!R221,'i28'!R221) -> 14 | S221: =CHOOSE(Cover!$H$8, 'i24'!S221,'i25'!S221,'i26'!S221,'i27'!S221,'i28'!S221) -> 14 | T221: =CHOOSE(Cover!$H$8, 'i24'!T221,'i25'!T221,'i26'!T221,'i27'!T221,'i28'!T221) -> 14 | U221: =CHOOSE(Cover!$H$8, 'i24'!U221,'i25'!U221,'i26'!U221,'i27'!U221,'i28'!U221) -> 14 | V221: =CHOOSE(Cover!$H$8, 'i24'!V221,'i25'!V221,'i26'!V221,'i27'!V221,'i28'!V221) -> 14 | W221: =CHOOSE(Cover!$H$8, 'i24'!W221,'i25'!W221,'i26'!W221,'i27'!W221,'i28'!W221) -> 14
D222: N security generator | Collar | G222: # | I222: =CHOOSE(Cover!$H$8, 'i24'!I222,'i25'!I222,'i26'!I222,'i27'!I222,'i28'!I222) -> 18 | J222: =CHOOSE(Cover!$H$8, 'i24'!J222,'i25'!J222,'i26'!J222,'i27'!J222,'i28'!J222) -> 18 | K222: =CHOOSE(Cover!$H$8, 'i24'!K222,'i25'!K222,'i26'!K222,'i27'!K222,'i28'!K222) -> 18 | L222: =CHOOSE(Cover!$H$8, 'i24'!L222,'i25'!L222,'i26'!L222,'i27'!L222,'i28'!L222) -> 18 | M222: =CHOOSE(Cover!$H$8, 'i24'!M222,'i25'!M222,'i26'!M222,'i27'!M222,'i28'!M222) -> 18 | N222: =CHOOSE(Cover!$H$8, 'i24'!N222,'i25'!N222,'i26'!N222,'i27'!N222,'i28'!N222) -> 10 | O222: =CHOOSE(Cover!$H$8, 'i24'!O222,'i25'!O222,'i26'!O222,'i27'!O222,'i28'!O222) -> 10 | P222: =CHOOSE(Cover!$H$8, 'i24'!P222,'i25'!P222,'i26'!P222,'i27'!P222,'i28'!P222) -> 10 | Q222: =CHOOSE(Cover!$H$8, 'i24'!Q222,'i25'!Q222,'i26'!Q222,'i27'!Q222,'i28'!Q222) -> 10 | R222: =CHOOSE(Cover!$H$8, 'i24'!R222,'i25'!R222,'i26'!R222,'i27'!R222,'i28'!R222) -> 10 | S222: =CHOOSE(Cover!$H$8, 'i24'!S222,'i25'!S222,'i26'!S222,'i27'!S222,'i28'!S222) -> 10 | T222: =CHOOSE(Cover!$H$8, 'i24'!T222,'i25'!T222,'i26'!T222,'i27'!T222,'i28'!T222) -> 10 | U222: =CHOOSE(Cover!$H$8, 'i24'!U222,'i25'!U222,'i26'!U222,'i27'!U222,'i28'!U222) -> 10 | V222: =CHOOSE(Cover!$H$8, 'i24'!V222,'i25'!V222,'i26'!V222,'i27'!V222,'i28'!V222) -> 10 | W222: =CHOOSE(Cover!$H$8, 'i24'!W222,'i25'!W222,'i26'!W222,'i27'!W222,'i28'!W222) -> 10
D223: N-1 security high economic consequence | Quality standard | G223: # | I223: =CHOOSE(Cover!$H$8, 'i24'!I223,'i25'!I223,'i26'!I223,'i27'!I223,'i28'!I223) -> 14 | J223: =CHOOSE(Cover!$H$8, 'i24'!J223,'i25'!J223,'i26'!J223,'i27'!J223,'i28'!J223) -> 14 | K223: =CHOOSE(Cover!$H$8, 'i24'!K223,'i25'!K223,'i26'!K223,'i27'!K223,'i28'!K223) -> 14 | L223: =CHOOSE(Cover!$H$8, 'i24'!L223,'i25'!L223,'i26'!L223,'i27'!L223,'i28'!L223) -> 14 | M223: =CHOOSE(Cover!$H$8, 'i24'!M223,'i25'!M223,'i26'!M223,'i27'!M223,'i28'!M223) -> 14 | N223: =CHOOSE(Cover!$H$8, 'i24'!N223,'i25'!N223,'i26'!N223,'i27'!N223,'i28'!N223) -> 8 | O223: =CHOOSE(Cover!$H$8, 'i24'!O223,'i25'!O223,'i26'!O223,'i27'!O223,'i28'!O223) -> 8 | P223: =CHOOSE(Cover!$H$8, 'i24'!P223,'i25'!P223,'i26'!P223,'i27'!P223,'i28'!P223) -> 8 | Q223: =CHOOSE(Cover!$H$8, 'i24'!Q223,'i25'!Q223,'i26'!Q223,'i27'!Q223,'i28'!Q223) -> 8 | R223: =CHOOSE(Cover!$H$8, 'i24'!R223,'i25'!R223,'i26'!R223,'i27'!R223,'i28'!R223) -> 8 | S223: =CHOOSE(Cover!$H$8, 'i24'!S223,'i25'!S223,'i26'!S223,'i27'!S223,'i28'!S223) -> 8 | T223: =CHOOSE(Cover!$H$8, 'i24'!T223,'i25'!T223,'i26'!T223,'i27'!T223,'i28'!T223) -> 8 | U223: =CHOOSE(Cover!$H$8, 'i24'!U223,'i25'!U223,'i26'!U223,'i27'!U223,'i28'!U223) -> 8 | V223: =CHOOSE(Cover!$H$8, 'i24'!V223,'i25'!V223,'i26'!V223,'i27'!V223,'i28'!V223) -> 8 | W223: =CHOOSE(Cover!$H$8, 'i24'!W223,'i25'!W223,'i26'!W223,'i27'!W223,'i28'!W223) -> 8
D224: N-1 security material economic consequence | Quality standard | G224: # | I224: =CHOOSE(Cover!$H$8, 'i24'!I224,'i25'!I224,'i26'!I224,'i27'!I224,'i28'!I224) -> 41 | J224: =CHOOSE(Cover!$H$8, 'i24'!J224,'i25'!J224,'i26'!J224,'i27'!J224,'i28'!J224) -> 41 | K224: =CHOOSE(Cover!$H$8, 'i24'!K224,'i25'!K224,'i26'!K224,'i27'!K224,'i28'!K224) -> 41 | L224: =CHOOSE(Cover!$H$8, 'i24'!L224,'i25'!L224,'i26'!L224,'i27'!L224,'i28'!L224) -> 41 | M224: =CHOOSE(Cover!$H$8, 'i24'!M224,'i25'!M224,'i26'!M224,'i27'!M224,'i28'!M224) -> 41 | N224: =CHOOSE(Cover!$H$8, 'i24'!N224,'i25'!N224,'i26'!N224,'i27'!N224,'i28'!N224) -> 38 | O224: =CHOOSE(Cover!$H$8, 'i24'!O224,'i25'!O224,'i26'!O224,'i27'!O224,'i28'!O224) -> 38 | P224: =CHOOSE(Cover!$H$8, 'i24'!P224,'i25'!P224,'i26'!P224,'i27'!P224,'i28'!P224) -> 38 | Q224: =CHOOSE(Cover!$H$8, 'i24'!Q224,'i25'!Q224,'i26'!Q224,'i27'!Q224,'i28'!Q224) -> 38 | R224: =CHOOSE(Cover!$H$8, 'i24'!R224,'i25'!R224,'i26'!R224,'i27'!R224,'i28'!R224) -> 38 | S224: =CHOOSE(Cover!$H$8, 'i24'!S224,'i25'!S224,'i26'!S224,'i27'!S224,'i28'!S224) -> 38 | T224: =CHOOSE(Cover!$H$8, 'i24'!T224,'i25'!T224,'i26'!T224,'i27'!T224,'i28'!T224) -> 38 | U224: =CHOOSE(Cover!$H$8, 'i24'!U224,'i25'!U224,'i26'!U224,'i27'!U224,'i28'!U224) -> 38 | V224: =CHOOSE(Cover!$H$8, 'i24'!V224,'i25'!V224,'i26'!V224,'i27'!V224,'i28'!V224) -> 38 | W224: =CHOOSE(Cover!$H$8, 'i24'!W224,'i25'!W224,'i26'!W224,'i27'!W224,'i28'!W224) -> 38
D225: N security high economic consequence | Quality standard | G225: # | I225: =CHOOSE(Cover!$H$8, 'i24'!I225,'i25'!I225,'i26'!I225,'i27'!I225,'i28'!I225) -> 8 | J225: =CHOOSE(Cover!$H$8, 'i24'!J225,'i25'!J225,'i26'!J225,'i27'!J225,'i28'!J225) -> 8 | K225: =CHOOSE(Cover!$H$8, 'i24'!K225,'i25'!K225,'i26'!K225,'i27'!K225,'i28'!K225) -> 8 | L225: =CHOOSE(Cover!$H$8, 'i24'!L225,'i25'!L225,'i26'!L225,'i27'!L225,'i28'!L225) -> 8 | M225: =CHOOSE(Cover!$H$8, 'i24'!M225,'i25'!M225,'i26'!M225,'i27'!M225,'i28'!M225) -> 8 | N225: =CHOOSE(Cover!$H$8, 'i24'!N225,'i25'!N225,'i26'!N225,'i27'!N225,'i28'!N225) -> 4 | O225: =CHOOSE(Cover!$H$8, 'i24'!O225,'i25'!O225,'i26'!O225,'i27'!O225,'i28'!O225) -> 4 | P225: =CHOOSE(Cover!$H$8, 'i24'!P225,'i25'!P225,'i26'!P225,'i27'!P225,'i28'!P225) -> 4 | Q225: =CHOOSE(Cover!$H$8, 'i24'!Q225,'i25'!Q225,'i26'!Q225,'i27'!Q225,'i28'!Q225) -> 4 | R225: =CHOOSE(Cover!$H$8, 'i24'!R225,'i25'!R225,'i26'!R225,'i27'!R225,'i28'!R225) -> 4 | S225: =CHOOSE(Cover!$H$8, 'i24'!S225,'i25'!S225,'i26'!S225,'i27'!S225,'i28'!S225) -> 4 | T225: =CHOOSE(Cover!$H$8, 'i24'!T225,'i25'!T225,'i26'!T225,'i27'!T225,'i28'!T225) -> 4 | U225: =CHOOSE(Cover!$H$8, 'i24'!U225,'i25'!U225,'i26'!U225,'i27'!U225,'i28'!U225) -> 4 | V225: =CHOOSE(Cover!$H$8, 'i24'!V225,'i25'!V225,'i26'!V225,'i27'!V225,'i28'!V225) -> 4 | W225: =CHOOSE(Cover!$H$8, 'i24'!W225,'i25'!W225,'i26'!W225,'i27'!W225,'i28'!W225) -> 4
D226: N security material economic consequence | Quality standard | G226: # | I226: =CHOOSE(Cover!$H$8, 'i24'!I226,'i25'!I226,'i26'!I226,'i27'!I226,'i28'!I226) -> 37 | J226: =CHOOSE(Cover!$H$8, 'i24'!J226,'i25'!J226,'i26'!J226,'i27'!J226,'i28'!J226) -> 37 | K226: =CHOOSE(Cover!$H$8, 'i24'!K226,'i25'!K226,'i26'!K226,'i27'!K226,'i28'!K226) -> 37 | L226: =CHOOSE(Cover!$H$8, 'i24'!L226,'i25'!L226,'i26'!L226,'i27'!L226,'i28'!L226) -> 37 | M226: =CHOOSE(Cover!$H$8, 'i24'!M226,'i25'!M226,'i26'!M226,'i27'!M226,'i28'!M226) -> 37 | N226: =CHOOSE(Cover!$H$8, 'i24'!N226,'i25'!N226,'i26'!N226,'i27'!N226,'i28'!N226) -> 26 | O226: =CHOOSE(Cover!$H$8, 'i24'!O226,'i25'!O226,'i26'!O226,'i27'!O226,'i28'!O226) -> 26 | P226: =CHOOSE(Cover!$H$8, 'i24'!P226,'i25'!P226,'i26'!P226,'i27'!P226,'i28'!P226) -> 26 | Q226: =CHOOSE(Cover!$H$8, 'i24'!Q226,'i25'!Q226,'i26'!Q226,'i27'!Q226,'i28'!Q226) -> 26 | R226: =CHOOSE(Cover!$H$8, 'i24'!R226,'i25'!R226,'i26'!R226,'i27'!R226,'i28'!R226) -> 26 | S226: =CHOOSE(Cover!$H$8, 'i24'!S226,'i25'!S226,'i26'!S226,'i27'!S226,'i28'!S226) -> 26 | T226: =CHOOSE(Cover!$H$8, 'i24'!T226,'i25'!T226,'i26'!T226,'i27'!T226,'i28'!T226) -> 26 | U226: =CHOOSE(Cover!$H$8, 'i24'!U226,'i25'!U226,'i26'!U226,'i27'!U226,'i28'!U226) -> 26 | V226: =CHOOSE(Cover!$H$8, 'i24'!V226,'i25'!V226,'i26'!V226,'i27'!V226,'i28'!V226) -> 26 | W226: =CHOOSE(Cover!$H$8, 'i24'!W226,'i25'!W226,'i26'!W226,'i27'!W226,'i28'!W226) -> 26
D227: N-1 security generator | Quality standard | G227: # | I227: =CHOOSE(Cover!$H$8, 'i24'!I227,'i25'!I227,'i26'!I227,'i27'!I227,'i28'!I227) -> 13 | J227: =CHOOSE(Cover!$H$8, 'i24'!J227,'i25'!J227,'i26'!J227,'i27'!J227,'i28'!J227) -> 13 | K227: =CHOOSE(Cover!$H$8, 'i24'!K227,'i25'!K227,'i26'!K227,'i27'!K227,'i28'!K227) -> 13 | L227: =CHOOSE(Cover!$H$8, 'i24'!L227,'i25'!L227,'i26'!L227,'i27'!L227,'i28'!L227) -> 13 | M227: =CHOOSE(Cover!$H$8, 'i24'!M227,'i25'!M227,'i26'!M227,'i27'!M227,'i28'!M227) -> 13 | N227: =CHOOSE(Cover!$H$8, 'i24'!N227,'i25'!N227,'i26'!N227,'i27'!N227,'i28'!N227) -> 14 | O227: =CHOOSE(Cover!$H$8, 'i24'!O227,'i25'!O227,'i26'!O227,'i27'!O227,'i28'!O227) -> 14 | P227: =CHOOSE(Cover!$H$8, 'i24'!P227,'i25'!P227,'i26'!P227,'i27'!P227,'i28'!P227) -> 14 | Q227: =CHOOSE(Cover!$H$8, 'i24'!Q227,'i25'!Q227,'i26'!Q227,'i27'!Q227,'i28'!Q227) -> 14 | R227: =CHOOSE(Cover!$H$8, 'i24'!R227,'i25'!R227,'i26'!R227,'i27'!R227,'i28'!R227) -> 14 | S227: =CHOOSE(Cover!$H$8, 'i24'!S227,'i25'!S227,'i26'!S227,'i27'!S227,'i28'!S227) -> 14 | T227: =CHOOSE(Cover!$H$8, 'i24'!T227,'i25'!T227,'i26'!T227,'i27'!T227,'i28'!T227) -> 14 | U227: =CHOOSE(Cover!$H$8, 'i24'!U227,'i25'!U227,'i26'!U227,'i27'!U227,'i28'!U227) -> 14 | V227: =CHOOSE(Cover!$H$8, 'i24'!V227,'i25'!V227,'i26'!V227,'i27'!V227,'i28'!V227) -> 14 | W227: =CHOOSE(Cover!$H$8, 'i24'!W227,'i25'!W227,'i26'!W227,'i27'!W227,'i28'!W227) -> 14
D228: N security generator | Quality standard | G228: # | I228: =CHOOSE(Cover!$H$8, 'i24'!I228,'i25'!I228,'i26'!I228,'i27'!I228,'i28'!I228) -> 18 | J228: =CHOOSE(Cover!$H$8, 'i24'!J228,'i25'!J228,'i26'!J228,'i27'!J228,'i28'!J228) -> 18 | K228: =CHOOSE(Cover!$H$8, 'i24'!K228,'i25'!K228,'i26'!K228,'i27'!K228,'i28'!K228) -> 18 | L228: =CHOOSE(Cover!$H$8, 'i24'!L228,'i25'!L228,'i26'!L228,'i27'!L228,'i28'!L228) -> 18 | M228: =CHOOSE(Cover!$H$8, 'i24'!M228,'i25'!M228,'i26'!M228,'i27'!M228,'i28'!M228) -> 18 | N228: =CHOOSE(Cover!$H$8, 'i24'!N228,'i25'!N228,'i26'!N228,'i27'!N228,'i28'!N228) -> 10 | O228: =CHOOSE(Cover!$H$8, 'i24'!O228,'i25'!O228,'i26'!O228,'i27'!O228,'i28'!O228) -> 10 | P228: =CHOOSE(Cover!$H$8, 'i24'!P228,'i25'!P228,'i26'!P228,'i27'!P228,'i28'!P228) -> 10 | Q228: =CHOOSE(Cover!$H$8, 'i24'!Q228,'i25'!Q228,'i26'!Q228,'i27'!Q228,'i28'!Q228) -> 10 | R228: =CHOOSE(Cover!$H$8, 'i24'!R228,'i25'!R228,'i26'!R228,'i27'!R228,'i28'!R228) -> 10 | S228: =CHOOSE(Cover!$H$8, 'i24'!S228,'i25'!S228,'i26'!S228,'i27'!S228,'i28'!S228) -> 10 | T228: =CHOOSE(Cover!$H$8, 'i24'!T228,'i25'!T228,'i26'!T228,'i27'!T228,'i28'!T228) -> 10 | U228: =CHOOSE(Cover!$H$8, 'i24'!U228,'i25'!U228,'i26'!U228,'i27'!U228,'i28'!U228) -> 10 | V228: =CHOOSE(Cover!$H$8, 'i24'!V228,'i25'!V228,'i26'!V228,'i27'!V228,'i28'!V228) -> 10 | W228: =CHOOSE(Cover!$H$8, 'i24'!W228,'i25'!W228,'i26'!W228,'i27'!W228,'i28'!W228) -> 10
D229: N-1 security high economic consequence | Incentive rate | G229: $ | I229: =CHOOSE(Cover!$H$8, 'i24'!I229,'i25'!I229,'i26'!I229,'i27'!I229,'i28'!I229) -> 335714 | J229: =CHOOSE(Cover!$H$8, 'i24'!J229,'i25'!J229,'i26'!J229,'i27'!J229,'i28'!J229) -> 335714 | K229: =CHOOSE(Cover!$H$8, 'i24'!K229,'i25'!K229,'i26'!K229,'i27'!K229,'i28'!K229) -> 335714 | L229: =CHOOSE(Cover!$H$8, 'i24'!L229,'i25'!L229,'i26'!L229,'i27'!L229,'i28'!L229) -> 335714 | M229: =CHOOSE(Cover!$H$8, 'i24'!M229,'i25'!M229,'i26'!M229,'i27'!M229,'i28'!M229) -> 335714 | N229: =CHOOSE(Cover!$H$8, 'i24'!N229,'i25'!N229,'i26'!N229,'i27'!N229,'i28'!N229) -> 789666 | O229: =CHOOSE(Cover!$H$8, 'i24'!O229,'i25'!O229,'i26'!O229,'i27'!O229,'i28'!O229) -> 789666 | P229: =CHOOSE(Cover!$H$8, 'i24'!P229,'i25'!P229,'i26'!P229,'i27'!P229,'i28'!P229) -> 789666 | Q229: =CHOOSE(Cover!$H$8, 'i24'!Q229,'i25'!Q229,'i26'!Q229,'i27'!Q229,'i28'!Q229) -> 789666 | R229: =CHOOSE(Cover!$H$8, 'i24'!R229,'i25'!R229,'i26'!R229,'i27'!R229,'i28'!R229) -> 789666 | S229: =CHOOSE(Cover!$H$8, 'i24'!S229,'i25'!S229,'i26'!S229,'i27'!S229,'i28'!S229) -> 789666 | T229: =CHOOSE(Cover!$H$8, 'i24'!T229,'i25'!T229,'i26'!T229,'i27'!T229,'i28'!T229) -> 789666 | U229: =CHOOSE(Cover!$H$8, 'i24'!U229,'i25'!U229,'i26'!U229,'i27'!U229,'i28'!U229) -> 789666 | V229: =CHOOSE(Cover!$H$8, 'i24'!V229,'i25'!V229,'i26'!V229,'i27'!V229,'i28'!V229) -> 789666 | W229: =CHOOSE(Cover!$H$8, 'i24'!W229,'i25'!W229,'i26'!W229,'i27'!W229,'i28'!W229) -> 789666
D230: N-1 security material economic consequence | Incentive rate | G230: $ | I230: =CHOOSE(Cover!$H$8, 'i24'!I230,'i25'!I230,'i26'!I230,'i27'!I230,'i28'!I230) -> 40294 | J230: =CHOOSE(Cover!$H$8, 'i24'!J230,'i25'!J230,'i26'!J230,'i27'!J230,'i28'!J230) -> 40294 | K230: =CHOOSE(Cover!$H$8, 'i24'!K230,'i25'!K230,'i26'!K230,'i27'!K230,'i28'!K230) -> 40294 | L230: =CHOOSE(Cover!$H$8, 'i24'!L230,'i25'!L230,'i26'!L230,'i27'!L230,'i28'!L230) -> 40294 | M230: =CHOOSE(Cover!$H$8, 'i24'!M230,'i25'!M230,'i26'!M230,'i27'!M230,'i28'!M230) -> 40294 | N230: =CHOOSE(Cover!$H$8, 'i24'!N230,'i25'!N230,'i26'!N230,'i27'!N230,'i28'!N230) -> 170537 | O230: =CHOOSE(Cover!$H$8, 'i24'!O230,'i25'!O230,'i26'!O230,'i27'!O230,'i28'!O230) -> 170537 | P230: =CHOOSE(Cover!$H$8, 'i24'!P230,'i25'!P230,'i26'!P230,'i27'!P230,'i28'!P230) -> 170537 | Q230: =CHOOSE(Cover!$H$8, 'i24'!Q230,'i25'!Q230,'i26'!Q230,'i27'!Q230,'i28'!Q230) -> 170537 | R230: =CHOOSE(Cover!$H$8, 'i24'!R230,'i25'!R230,'i26'!R230,'i27'!R230,'i28'!R230) -> 170537 | S230: =CHOOSE(Cover!$H$8, 'i24'!S230,'i25'!S230,'i26'!S230,'i27'!S230,'i28'!S230) -> 170537 | T230: =CHOOSE(Cover!$H$8, 'i24'!T230,'i25'!T230,'i26'!T230,'i27'!T230,'i28'!T230) -> 170537 | U230: =CHOOSE(Cover!$H$8, 'i24'!U230,'i25'!U230,'i26'!U230,'i27'!U230,'i28'!U230) -> 170537 | V230: =CHOOSE(Cover!$H$8, 'i24'!V230,'i25'!V230,'i26'!V230,'i27'!V230,'i28'!V230) -> 170537 | W230: =CHOOSE(Cover!$H$8, 'i24'!W230,'i25'!W230,'i26'!W230,'i27'!W230,'i28'!W230) -> 170537
D231: N security high economic consequence | Incentive rate | G231: $ | I231: =CHOOSE(Cover!$H$8, 'i24'!I231,'i25'!I231,'i26'!I231,'i27'!I231,'i28'!I231) -> 250000 | J231: =CHOOSE(Cover!$H$8, 'i24'!J231,'i25'!J231,'i26'!J231,'i27'!J231,'i28'!J231) -> 250000 | K231: =CHOOSE(Cover!$H$8, 'i24'!K231,'i25'!K231,'i26'!K231,'i27'!K231,'i28'!K231) -> 250000 | L231: =CHOOSE(Cover!$H$8, 'i24'!L231,'i25'!L231,'i26'!L231,'i27'!L231,'i28'!L231) -> 250000 | M231: =CHOOSE(Cover!$H$8, 'i24'!M231,'i25'!M231,'i26'!M231,'i27'!M231,'i28'!M231) -> 250000 | N231: =CHOOSE(Cover!$H$8, 'i24'!N231,'i25'!N231,'i26'!N231,'i27'!N231,'i28'!N231) -> 185592 | O231: =CHOOSE(Cover!$H$8, 'i24'!O231,'i25'!O231,'i26'!O231,'i27'!O231,'i28'!O231) -> 185592 | P231: =CHOOSE(Cover!$H$8, 'i24'!P231,'i25'!P231,'i26'!P231,'i27'!P231,'i28'!P231) -> 185592 | Q231: =CHOOSE(Cover!$H$8, 'i24'!Q231,'i25'!Q231,'i26'!Q231,'i27'!Q231,'i28'!Q231) -> 185592 | R231: =CHOOSE(Cover!$H$8, 'i24'!R231,'i25'!R231,'i26'!R231,'i27'!R231,'i28'!R231) -> 185592 | S231: =CHOOSE(Cover!$H$8, 'i24'!S231,'i25'!S231,'i26'!S231,'i27'!S231,'i28'!S231) -> 185592 | T231: =CHOOSE(Cover!$H$8, 'i24'!T231,'i25'!T231,'i26'!T231,'i27'!T231,'i28'!T231) -> 185592 | U231: =CHOOSE(Cover!$H$8, 'i24'!U231,'i25'!U231,'i26'!U231,'i27'!U231,'i28'!U231) -> 185592 | V231: =CHOOSE(Cover!$H$8, 'i24'!V231,'i25'!V231,'i26'!V231,'i27'!V231,'i28'!V231) -> 185592 | W231: =CHOOSE(Cover!$H$8, 'i24'!W231,'i25'!W231,'i26'!W231,'i27'!W231,'i28'!W231) -> 185592
D232: N security material economic consequence | Incentive rate | G232: $ | I232: =CHOOSE(Cover!$H$8, 'i24'!I232,'i25'!I232,'i26'!I232,'i27'!I232,'i28'!I232) -> 41786 | J232: =CHOOSE(Cover!$H$8, 'i24'!J232,'i25'!J232,'i26'!J232,'i27'!J232,'i28'!J232) -> 41786 | K232: =CHOOSE(Cover!$H$8, 'i24'!K232,'i25'!K232,'i26'!K232,'i27'!K232,'i28'!K232) -> 41786 | L232: =CHOOSE(Cover!$H$8, 'i24'!L232,'i25'!L232,'i26'!L232,'i27'!L232,'i28'!L232) -> 41786 | M232: =CHOOSE(Cover!$H$8, 'i24'!M232,'i25'!M232,'i26'!M232,'i27'!M232,'i28'!M232) -> 41786 | N232: =CHOOSE(Cover!$H$8, 'i24'!N232,'i25'!N232,'i26'!N232,'i27'!N232,'i28'!N232) -> 57795 | O232: =CHOOSE(Cover!$H$8, 'i24'!O232,'i25'!O232,'i26'!O232,'i27'!O232,'i28'!O232) -> 57795 | P232: =CHOOSE(Cover!$H$8, 'i24'!P232,'i25'!P232,'i26'!P232,'i27'!P232,'i28'!P232) -> 57795 | Q232: =CHOOSE(Cover!$H$8, 'i24'!Q232,'i25'!Q232,'i26'!Q232,'i27'!Q232,'i28'!Q232) -> 57795 | R232: =CHOOSE(Cover!$H$8, 'i24'!R232,'i25'!R232,'i26'!R232,'i27'!R232,'i28'!R232) -> 57795 | S232: =CHOOSE(Cover!$H$8, 'i24'!S232,'i25'!S232,'i26'!S232,'i27'!S232,'i28'!S232) -> 57795 | T232: =CHOOSE(Cover!$H$8, 'i24'!T232,'i25'!T232,'i26'!T232,'i27'!T232,'i28'!T232) -> 57795 | U232: =CHOOSE(Cover!$H$8, 'i24'!U232,'i25'!U232,'i26'!U232,'i27'!U232,'i28'!U232) -> 57795 | V232: =CHOOSE(Cover!$H$8, 'i24'!V232,'i25'!V232,'i26'!V232,'i27'!V232,'i28'!V232) -> 57795 | W232: =CHOOSE(Cover!$H$8, 'i24'!W232,'i25'!W232,'i26'!W232,'i27'!W232,'i28'!W232) -> 57795
D233: N-1 security generator | Incentive rate | G233: $ | I233: =CHOOSE(Cover!$H$8, 'i24'!I233,'i25'!I233,'i26'!I233,'i27'!I233,'i28'!I233) -> 62500 | J233: =CHOOSE(Cover!$H$8, 'i24'!J233,'i25'!J233,'i26'!J233,'i27'!J233,'i28'!J233) -> 62500 | K233: =CHOOSE(Cover!$H$8, 'i24'!K233,'i25'!K233,'i26'!K233,'i27'!K233,'i28'!K233) -> 62500 | L233: =CHOOSE(Cover!$H$8, 'i24'!L233,'i25'!L233,'i26'!L233,'i27'!L233,'i28'!L233) -> 62500 | M233: =CHOOSE(Cover!$H$8, 'i24'!M233,'i25'!M233,'i26'!M233,'i27'!M233,'i28'!M233) -> 62500 | N233: =CHOOSE(Cover!$H$8, 'i24'!N233,'i25'!N233,'i26'!N233,'i27'!N233,'i28'!N233) -> 50000 | O233: =CHOOSE(Cover!$H$8, 'i24'!O233,'i25'!O233,'i26'!O233,'i27'!O233,'i28'!O233) -> 50000 | P233: =CHOOSE(Cover!$H$8, 'i24'!P233,'i25'!P233,'i26'!P233,'i27'!P233,'i28'!P233) -> 50000 | Q233: =CHOOSE(Cover!$H$8, 'i24'!Q233,'i25'!Q233,'i26'!Q233,'i27'!Q233,'i28'!Q233) -> 50000 | R233: =CHOOSE(Cover!$H$8, 'i24'!R233,'i25'!R233,'i26'!R233,'i27'!R233,'i28'!R233) -> 50000 | S233: =CHOOSE(Cover!$H$8, 'i24'!S233,'i25'!S233,'i26'!S233,'i27'!S233,'i28'!S233) -> 50000 | T233: =CHOOSE(Cover!$H$8, 'i24'!T233,'i25'!T233,'i26'!T233,'i27'!T233,'i28'!T233) -> 50000 | U233: =CHOOSE(Cover!$H$8, 'i24'!U233,'i25'!U233,'i26'!U233,'i27'!U233,'i28'!U233) -> 50000 | V233: =CHOOSE(Cover!$H$8, 'i24'!V233,'i25'!V233,'i26'!V233,'i27'!V233,'i28'!V233) -> 50000 | W233: =CHOOSE(Cover!$H$8, 'i24'!W233,'i25'!W233,'i26'!W233,'i27'!W233,'i28'!W233) -> 50000
D234: N security generator | Incentive rate | G234: $ | I234: =CHOOSE(Cover!$H$8, 'i24'!I234,'i25'!I234,'i26'!I234,'i27'!I234,'i28'!I234) -> 41667 | J234: =CHOOSE(Cover!$H$8, 'i24'!J234,'i25'!J234,'i26'!J234,'i27'!J234,'i28'!J234) -> 41667 | K234: =CHOOSE(Cover!$H$8, 'i24'!K234,'i25'!K234,'i26'!K234,'i27'!K234,'i28'!K234) -> 41667 | L234: =CHOOSE(Cover!$H$8, 'i24'!L234,'i25'!L234,'i26'!L234,'i27'!L234,'i28'!L234) -> 41667 | M234: =CHOOSE(Cover!$H$8, 'i24'!M234,'i25'!M234,'i26'!M234,'i27'!M234,'i28'!M234) -> 41667 | N234: =CHOOSE(Cover!$H$8, 'i24'!N234,'i25'!N234,'i26'!N234,'i27'!N234,'i28'!N234) -> 83333 | O234: =CHOOSE(Cover!$H$8, 'i24'!O234,'i25'!O234,'i26'!O234,'i27'!O234,'i28'!O234) -> 83333 | P234: =CHOOSE(Cover!$H$8, 'i24'!P234,'i25'!P234,'i26'!P234,'i27'!P234,'i28'!P234) -> 83333 | Q234: =CHOOSE(Cover!$H$8, 'i24'!Q234,'i25'!Q234,'i26'!Q234,'i27'!Q234,'i28'!Q234) -> 83333 | R234: =CHOOSE(Cover!$H$8, 'i24'!R234,'i25'!R234,'i26'!R234,'i27'!R234,'i28'!R234) -> 83333 | S234: =CHOOSE(Cover!$H$8, 'i24'!S234,'i25'!S234,'i26'!S234,'i27'!S234,'i28'!S234) -> 83333 | T234: =CHOOSE(Cover!$H$8, 'i24'!T234,'i25'!T234,'i26'!T234,'i27'!T234,'i28'!T234) -> 83333 | U234: =CHOOSE(Cover!$H$8, 'i24'!U234,'i25'!U234,'i26'!U234,'i27'!U234,'i28'!U234) -> 83333 | V234: =CHOOSE(Cover!$H$8, 'i24'!V234,'i25'!V234,'i26'!V234,'i27'!V234,'i28'!V234) -> 83333 | W234: =CHOOSE(Cover!$H$8, 'i24'!W234,'i25'!W234,'i26'!W234,'i27'!W234,'i28'!W234) -> 83333
... 192 more rows

Sheet WACC & CPI
A1: Transpower revenue model - WACC & CPI
A2: =Cover!A2 -> Incremental update determined in 2025
H3: Global | I3: 2021 | J3: 2022 | K3: 2023 | L3: 2024 | M3: 2025 | N3: 2026 | O3: 2027 | P3: 2028 | Q3: 2029 | R3: 2030 | S3: 2031 | T3: 2032 | U3: 2033 | V3: 2034 | W3: 2035
D4: Parameter | E4: IM ref | F4: IPP ref | G4: Units | H4: n/a | I4: RCP3 | J4: RCP3 | K4: RCP3 | L4: RCP3 | M4: RCP3 | N4: RCP4 | O4: RCP4 | P4: RCP4 | Q4: RCP4 | R4: RCP4 | S4: RCP5 | T4: RCP5 | U4: RCP5 | V4: RCP5 | W4: RCP5
I5: =Inputs!I5 -> Actual | J5: =Inputs!J5 -> Actual | K5: =Inputs!K5 -> Actual | L5: =Inputs!L5 -> Actual | M5: =Inputs!M5 -> Forecast | N5: =Inputs!N5 -> Forecast | O5: =Inputs!O5 -> Forecast | P5: =Inputs!P5 -> Forecast | Q5: =Inputs!Q5 -> Forecast | R5: =Inputs!R5 -> Forecast | S5: =Inputs!S5 -> Forecast | T5: =Inputs!T5 -> Forecast | U5: =Inputs!U5 -> Forecast | V5: =Inputs!V5 -> Forecast | W5: =Inputs!W5 -> Forecast
B6: Weighted average cost of capital
D8: Nominal risk free rate | E8: 3.5.3 | F8: n/a | G8: % | I8: =Inputs!I19 -> 0.0112 | J8: =Inputs!J19 -> 0.0112 | K8: =Inputs!K19 -> 0.0112 | L8: =Inputs!L19 -> 0.0112 | M8: =Inputs!M19 -> 0.0112 | N8: =Inputs!N19 -> 0.0426 | O8: =Inputs!O19 -> 0.0426 | P8: =Inputs!P19 -> 0.0426 | Q8: =Inputs!Q19 -> 0.0426 | R8: =Inputs!R19 -> 0.0426 | S8: =Inputs!S19 -> 0.0426 | T8: =Inputs!T19 -> 0.0426 | U8: =Inputs!U19 -> 0.0426 | V8: =Inputs!V19 -> 0.0426 | W8: =Inputs!W19 -> 0.0426
D9: Average debt premium | E9: 3.5.4 | F9: n/a | G9: % | I9: =Inputs!I20 -> 0.016 | J9: =Inputs!J20 -> 0.016 | K9: =Inputs!K20 -> 0.016 | L9: =Inputs!L20 -> 0.016 | M9: =Inputs!M20 -> 0.016 | N9: =Inputs!N20 -> 0.0128 | O9: =Inputs!O20 -> 0.0128 | P9: =Inputs!P20 -> 0.0128 | Q9: =Inputs!Q20 -> 0.0128 | R9: =Inputs!R20 -> 0.0128 | S9: =Inputs!S20 -> 0.0128 | T9: =Inputs!T20 -> 0.0128 | U9: =Inputs!U20 -> 0.0128 | V9: =Inputs!V20 -> 0.0128 | W9: =Inputs!W20 -> 0.0128
D10: Debt issuance costs | E10: 3.5.2 (5) | F10: n/a | G10: % | I10: =Inputs!I21 -> 0.002 | J10: =Inputs!J21 -> 0.002 | K10: =Inputs!K21 -> 0.002 | L10: =Inputs!L21 -> 0.002 | M10: =Inputs!M21 -> 0.002 | N10: =Inputs!N21 -> 0.002 | O10: =Inputs!O21 -> 0.002 | P10: =Inputs!P21 -> 0.002 | Q10: =Inputs!Q21 -> 0.002 | R10: =Inputs!R21 -> 0.002 | S10: =Inputs!S21 -> 0.002 | T10: =Inputs!T21 -> 0.002 | U10: =Inputs!U21 -> 0.002 | V10: =Inputs!V21 -> 0.002 | W10: =Inputs!W21 -> 0.002
D11: Asset beta | E11: n/a | F11: n/a | G11: scalar | I11: =Inputs!I22 -> 0.35 | J11: =Inputs!J22 -> 0.35 | K11: =Inputs!K22 -> 0.35 | L11: =Inputs!L22 -> 0.35 | M11: =Inputs!M22 -> 0.35 | N11: =Inputs!N22 -> 0.36 | O11: =Inputs!O22 -> 0.36 | P11: =Inputs!P22 -> 0.36 | Q11: =Inputs!Q22 -> 0.36 | R11: =Inputs!R22 -> 0.36 | S11: =Inputs!S22 -> 0.36 | T11: =Inputs!T22 -> 0.36 | U11: =Inputs!U22 -> 0.36 | V11: =Inputs!V22 -> 0.36 | W11: =Inputs!W22 -> 0.36
D12: Tax adjusted market risk premium | E12: 3.5.2 (6) | F12: n/a | G12: % | I12: =Inputs!I23 -> 0.07 | J12: =Inputs!J23 -> 0.07 | K12: =Inputs!K23 -> 0.07 | L12: =Inputs!L23 -> 0.07 | M12: =Inputs!M23 -> 0.07 | N12: =Inputs!N23 -> 0.07 | O12: =Inputs!O23 -> 0.07 | P12: =Inputs!P23 -> 0.07 | Q12: =Inputs!Q23 -> 0.07 | R12: =Inputs!R23 -> 0.07 | S12: =Inputs!S23 -> 0.07 | T12: =Inputs!T23 -> 0.07 | U12: =Inputs!U23 -> 0.07 | V12: =Inputs!V23 -> 0.07 | W12: =Inputs!W23 -> 0.07
D13: Average corporate tax rate | E13: 3.5.2 (7) | F13: n/a | G13: % | I13: =Inputs!I24 -> 0.28 | J13: =Inputs!J24 -> 0.28 | K13: =Inputs!K24 -> 0.28 | L13: =Inputs!L24 -> 0.28 | M13: =Inputs!M24 -> 0.28 | N13: =Inputs!N24 -> 0.28 | O13: =Inputs!O24 -> 0.28 | P13: =Inputs!P24 -> 0.28 | Q13: =Inputs!Q24 -> 0.28 | R13: =Inputs!R24 -> 0.28 | S13: =Inputs!S24 -> 0.28 | T13: =Inputs!T24 -> 0.28 | U13: =Inputs!U24 -> 0.28 | V13: =Inputs!V24 -> 0.28 | W13: =Inputs!W24 -> 0.28
D14: Average investor tax rate | E14: 3.5.2 (3) | F14: n/a | G14: % | I14: =Inputs!I25 -> 0.28 | J14: =Inputs!J25 -> 0.28 | K14: =Inputs!K25 -> 0.28 | L14: =Inputs!L25 -> 0.28 | M14: =Inputs!M25 -> 0.28 | N14: =Inputs!N25 -> 0.28 | O14: =Inputs!O25 -> 0.28 | P14: =Inputs!P25 -> 0.28 | Q14: =Inputs!Q25 -> 0.28 | R14: =Inputs!R25 -> 0.28 | S14: =Inputs!S25 -> 0.28 | T14: =Inputs!T25 -> 0.28 | U14: =Inputs!U25 -> 0.28 | V14: =Inputs!V25 -> 0.28 | W14: =Inputs!W25 -> 0.28
D15: Leverage | E15: 3.5.2 (1) | F15: n/a | G15: % | I15: =Inputs!I26 -> 0.42 | J15: =Inputs!J26 -> 0.42 | K15: =Inputs!K26 -> 0.42 | L15: =Inputs!L26 -> 0.42 | M15: =Inputs!M26 -> 0.42 | N15: =Inputs!N26 -> 0.41 | O15: =Inputs!O26 -> 0.41 | P15: =Inputs!P26 -> 0.41 | Q15: =Inputs!Q26 -> 0.41 | R15: =Inputs!R26 -> 0.41 | S15: =Inputs!S26 -> 0.41 | T15: =Inputs!T26 -> 0.41 | U15: =Inputs!U26 -> 0.41 | V15: =Inputs!V26 -> 0.41 | W15: =Inputs!W26 -> 0.41
D16: Equity beta | E16: 3.5.2 (4) | F16: n/a | G16: scalar | I16: =ROUND(I11+I11*I15/(1-I15),2) -> 0.6 | J16: 0.6 | K16: 0.6 | L16: 0.6 | M16: 0.6 | N16: 0.61 | O16: 0.61 | P16: 0.61 | Q16: 0.61 | R16: 0.61 | S16: 0.61 | T16: 0.61 | U16: 0.61 | V16: 0.61 | W16: 0.61
D17: Cost of equity | E17: n/a | F17: n/a | G17: % | I17: =I8*(1-I14)+I16*I12 -> 0.050064 | J17: 0.050064 | K17: 0.050064 | L17: 0.050064 | M17: 0.050064 | N17: =N8*(1-N14)+N16*N12 -> 0.073372 | O17: =O8*(1-O14)+O16*O12 -> 0.073372 | P17: 0.073372 | Q17: 0.073372 | R17: 0.073372 | S17: 0.073372 | T17: 0.073372 | U17: 0.073372 | V17: 0.073372 | W17: 0.073372
D18: Cost of debt | E18: n/a | F18: n/a | G18: % | I18: =SUM(I8,I9,I10) -> 0.0292 | J18: 0.0292 | K18: 0.0292 | L18: 0.0292 | M18: 0.0292 | N18: 0.0574 | O18: 0.0574 | P18: 0.0574 | Q18: 0.0574 | R18: 0.0574 | S18: 0.0574 | T18: 0.0574 | U18: 0.0574 | V18: 0.0574 | W18: 0.0574
D19: Mid-point nominal vanilla WACC | E19: 3.5.1 (1) | F19: n/a | G19: % | I19: =I17*(1-I15)+I18*I15 -> 0.04130112 | J19: 0.04130112 | K19: 0.04130112 | L19: 0.04130112 | M19: 0.04130112 | N19: 0.06682348 | O19: 0.06682348 | P19: 0.06682348 | Q19: 0.06682348 | R19: 0.06682348 | S19: 0.06682348 | T19: 0.06682348 | U19: 0.06682348 | V19: 0.06682348 | W19: 0.06682348
D20: Mid-point nominal post-tax WACC | E20: 3.5.1 (2) | F20: n/a | G20: % | I20: =I17*(1-I15)+I18*(1-I13)*I15 -> 0.0378672 | J20: 0.0378672 | K20: 0.0378672 | L20: 0.0378672 | M20: 0.0378672 | N20: 0.06023396 | O20: 0.06023396 | P20: 0.06023396 | Q20: 0.06023396 | R20: 0.06023396 | S20: 0.06023396 | T20: 0.06023396 | U20: 0.06023396 | V20: 0.06023396 | W20: 0.06023396
D21: Standard error of mid-point WACC | E21: 3.5.5 (3) | F21: n/a | G21: scalar | I21: =Inputs!I27 -> 0.0101 | J21: =Inputs!J27 -> 0.0101 | K21: =Inputs!K27 -> 0.0101 | L21: =Inputs!L27 -> 0.0101 | M21: =Inputs!M27 -> 0.0101 | N21: =Inputs!N27 -> 0.0108 | O21: =Inputs!O27 -> 0.0108 | P21: =Inputs!P27 -> 0.0108 | Q21: =Inputs!Q27 -> 0.0108 | R21: =Inputs!R27 -> 0.0108 | S21: =Inputs!S27 -> 0.0108 | T21: =Inputs!T27 -> 0.0108 | U21: =Inputs!U27 -> 0.0108 | V21: =Inputs!V27 -> 0.0108 | W21: =Inputs!W27 -> 0.0108
D22: z-Score | E22: n/a | F22: n/a | G22: scalar | I22: =Inputs!I28 -> 0.44 | J22: =Inputs!J28 -> 0.44 | K22: =Inputs!K28 -> 0.44 | L22: =Inputs!L28 -> 0.44 | M22: =Inputs!M28 -> 0.44 | N22: =Inputs!N28 -> 0.385 | O22: =Inputs!O28 -> 0.385 | P22: =Inputs!P28 -> 0.385 | Q22: =Inputs!Q28 -> 0.385 | R22: =Inputs!R28 -> 0.385 | S22: =Inputs!S28 -> 0.385 | T22: =Inputs!T28 -> 0.385 | U22: =Inputs!U28 -> 0.385 | V22: =Inputs!V28 -> 0.385 | W22: =Inputs!W28 -> 0.385
D23: Prescribed vanilla WACC | E23: 3.5.5 (1) | F23: n/a | G23: % | I23: =ROUND(I19+I21*I22,4) -> 0.0457 | J23: 0.0457 | K23: 0.0457 | L23: 0.0457 | M23: 0.0457 | N23: =ROUND(N19+N21*N22,4) -> 0.071 | O23: 0.071 | P23: 0.071 | Q23: 0.071 | R23: 0.071 | S23: 0.071 | T23: 0.071 | U23: 0.071 | V23: 0.071 | W23: 0.071
D24: Prescribed post-tax nominal WACC | E24: 3.5.5 (2) | F24: n/a | G24: % | I24: =ROUND(I20+I21*I22,4) -> 0.0423 | J24: 0.0423 | K24: 0.0423 | L24: 0.0423 | M24: 0.0423 | N24: =ROUND(N20+N21*N22,4) -> 0.0644 | O24: 0.0644 | P24: 0.0644 | Q24: 0.0644 | R24: 0.0644 | S24: 0.0644 | T24: 0.0644 | U24: 0.0644 | V24: 0.0644 | W24: 0.0644
B26: CPI adjustments
C28: Constant index
C29: Note: Constant dollars to current year (disclosure year average) to apply to outturn CPI adjustments.
D31: Changes in CPI (disclosure year average) | E31: n/a | F31: n/a | G31: % | I31: =Inputs!I35 -> 0.0193687231 | J31: =Inputs!J35 -> 0.06286652592 | K31: =Inputs!K35 -> 0.06775546237 | L31: =Inputs!L35 -> 0.04402645721 | M31: =Inputs!M35 -> 0.02274915858 | N31: =Inputs!N35 -> 0.02199113592 | O31: =Inputs!O35 -> 0.02 | P31: =Inputs!P35 -> 0.02 | Q31: =Inputs!Q35 -> 0.02 | R31: =Inputs!R35 -> 0.02 | S31: =Inputs!S35 -> 0.02 | T31: =Inputs!T35 -> 0.02 | U31: =Inputs!U35 -> 0.02 | V31: =Inputs!V35 -> 0.02 | W31: =Inputs!W35 -> 0.02
D32: CPI index (disclosure year average) | E32: n/a | F32: n/a | G32: scalar | I32: =MAX(1,H32*(1+I31)) -> 1 | J32: =MAX(1,I32*(1+J31)) -> 1.062866526 | K32: 1.134881539 | L32: 1.184846352 | M32: 1.21180061 | N32: 1.238449482 | O32: 1.263218471 | P32: 1.288482841 | Q32: 1.314252498 | R32: 1.340537548 | S32: 1.367348299 | T32: 1.394695265 | U32: 1.42258917 | V32: 1.451040953 | W32: 1.480061772
D33: Constant index | E33: n/a | F33: n/a | G33: scalar | I33: =_xlfn.XLOOKUP(Inputs!$H$12-1,$I$3:$W$3,$I$32:$W$32)/I32 -> 1.184846352 | J33: =_xlfn.XLOOKUP(Inputs!$H$12-1,$I$3:$W$3,$I$32:$W$32)/J32 -> 1.114764953 | K33: =_xlfn.XLOOKUP(Inputs!$H$12-1,$I$3:$W$3,$I$32:$W$32)/K32 -> 1.044026457 | L33: =_xlfn.XLOOKUP(Inputs!$H$12-1,$I$3:$W$3,$I$32:$W$32)/L32 -> 1 | M33: =_xlfn.XLOOKUP(Inputs!$H$12-1,$I$3:$W$3,$I$32:$W$32)/M32 -> 0.9777568543 | N33: =_xlfn.XLOOKUP(Inputs!$H$12-1,$I$3:$W$3,$I$32:$W$32)/N32 -> 0.9567175486 | O33: =_xlfn.XLOOKUP(Inputs!$H$12-1,$I$3:$W$3,$I$32:$W$32)/O32 -> 0.937958381 | P33: =_xlfn.XLOOKUP(Inputs!$H$12-1,$I$3:$W$3,$I$32:$W$32)/P32 -> 0.9195670402 | Q33: =_xlfn.XLOOKUP(Inputs!$H$12-1,$I$3:$W$3,$I$32:$W$32)/Q32 -> 0.9015363139 | R33: =_xlfn.XLOOKUP(Inputs!$H$12-1,$I$3:$W$3,$I$32:$W$32)/R32 -> 0.8838591313 | S33: =_xlfn.XLOOKUP(Inputs!$H$12-1,$I$3:$W$3,$I$32:$W$32)/S32 -> 0.8665285601 | T33: =_xlfn.XLOOKUP(Inputs!$H$12-1,$I$3:$W$3,$I$32:$W$32)/T32 -> 0.849537804 | U33: =_xlfn.XLOOKUP(Inputs!$H$12-1,$I$3:$W$3,$I$32:$W$32)/U32 -> 0.8328802 | V33: =_xlfn.XLOOKUP(Inputs!$H$12-1,$I$3:$W$3,$I$32:$W$32)/V32 -> 0.8165492157 | W33: =_xlfn.XLOOKUP(Inputs!$H$12-1,$I$3:$W$3,$I$32:$W$32)/W32 -> 0.8005384468
C35: Outturn CPI adjustments (disclosure year average)
C36: Note: For the purposes of rebasing the nominal WACC, expenditure allowances and incentive outcomes for any disparity between forecast and outturn CPI.
D38: RCP3 forecast CPI | E38: n/a | F38: n/a | G38: % | I38: =Inputs!I36 -> 0.019 | J38: =Inputs!J36 -> 0.021 | K38: =Inputs!K36 -> 0.02 | L38: =Inputs!L36 -> 0.02 | M38: =Inputs!M36 -> 0.02
D39: RCP3 forecast CPI index | E39: n/a | F39: n/a | G39: scalar | I39: =MAX(Inputs!$I$37,H39*(1+I38)) -> 1.052644067 | J39: =MAX(Inputs!$I$37,I39*(1+J38)) -> 1.074749592 | K39: =MAX(Inputs!$I$37,J39*(1+K38)) -> 1.096244584 | L39: =MAX(Inputs!$I$37,K39*(1+L38)) -> 1.118169476 | M39: =MAX(Inputs!$I$37,L39*(1+M38)) -> 1.140532865
D40: RCP3 actual CPI index | E40: n/a | F40: n/a | G40: scalar | I40: =MAX(Inputs!$I$38,H40*(1+I31)) -> 1.055982165 | J40: =MAX(Inputs!$I$38,I40*(1+J31)) -> 1.122368095 | K40: =MAX(Inputs!$I$38,J40*(1+K31)) -> 1.198414664 | L40: =MAX(Inputs!$I$38,K40*(1+L31)) -> 1.251176616 | M40: =MAX(Inputs!$I$38,L40*(1+M31)) -> 1.279639832
D41: RCP3 CPI adjustment | E41: n/a | F41: n/a | G41: scalar | I41: =I40/I39 -> 1.003171155 | J41: =J40/J39 -> 1.044306602 | K41: =K40/K39 -> 1.093200077 | L41: =L40/L39 -> 1.118950788 | M41: =M40/M39 -> 1.121966644
D43: RCP4 forecast CPI | E43: n/a | F43: Sch. C8 | G43: % | K43: =Inputs!K39 -> 0.06775546237 | L43: =Inputs!L39 -> 0.04402645721 | M43: =Inputs!M39 -> 0.02274915858 | N43: =Inputs!N39 -> 0.02199113592 | O43: =Inputs!O39 -> 0.02 | P43: =Inputs!P39 -> 0.02 | Q43: =Inputs!Q39 -> 0.02 | R43: =Inputs!R39 -> 0.02
D44: RCP4 forecast CPI index | E44: n/a | F44: n/a | G44: scalar | K44: =MAX(1,J44*(1+K43)) -> 1 | L44: =MAX(1,K44*(1+L43)) -> 1.044026457 | M44: 1.067777181 | N44: 1.091258814 | O44: 1.11308399 | P44: 1.13534567 | Q44: 1.158052583 | R44: 1.181213635
D45: RCP4 actual CPI index | E45: n/a | F45: n/a | G45: scalar | K45: =K32/$K$32 -> 1 | L45: 1.044026457 | M45: 1.067777181 | N45: 1.091258814 | O45: 1.11308399 | P45: 1.13534567 | Q45: 1.158052583 | R45: 1.181213635
D46: RCP4 CPI adjustment | E46: n/a | F46: n/a | G46: scalar | N46: =N45/N44 -> 1 | O46: 1 | P46: 1 | Q46: 1 | R46: 1
D48: RCP5 forecast CPI | E48: n/a | F48: n/a | G48: % | P48: =Inputs!P40 -> 0.02 | Q48: =Inputs!Q40 -> 0.02 | R48: =Inputs!R40 -> 0.02 | S48: =Inputs!S40 -> 0.02 | T48: =Inputs!T40 -> 0.02 | U48: =Inputs!U40 -> 0.02 | V48: =Inputs!V40 -> 0.02 | W48: =Inputs!W40 -> 0.02
D49: RCP5 forecast CPI index | E49: n/a | F49: n/a | G49: scalar | P49: =MAX(1,O49*(1+P48)) -> 1 | Q49: =MAX(1,P49*(1+Q48)) -> 1.02 | R49: 1.0404 | S49: 1.061208 | T49: 1.08243216 | U49: 1.104080803 | V49: 1.126162419 | W49: 1.148685668
D50: RCP5 actual CPI index | E50: n/a | F50: n/a | G50: scalar | P50: =P32/$P$32 -> 1 | Q50: 1.02 | R50: 1.0404 | S50: 1.061208 | T50: 1.08243216 | U50: 1.104080803 | V50: 1.126162419 | W50: 1.148685668
D51: RCP5 CPI adjustment | E51: n/a | F51: n/a | G51: scalar | S51: =S50/S49 -> 1 | T51: =T50/T49 -> 1 | U51: =U50/U49 -> 1 | V51: =V50/V49 -> 1 | W51: =W50/W49 -> 1
C53: Vanilla WACC updated for actual CPI
C54: Note: To reflect the disparity between forecast and actual CPI in the nominal WACC.
D56: Prescribed vanilla WACC | E56: n/a | F56: n/a | G56: % | N56: =N23 -> 0.071 | O56: 0.071 | P56: 0.071 | Q56: 0.071 | R56: 0.071 | S56: 0.071 | T56: 0.071 | U56: 0.071 | V56: 0.071 | W56: 0.071
D57: Forecast CPI | E57: n/a | F57: Sch. C8 | G57: % | N57: =N43*(N4="RCP4") +N48*(N4="RCP5") -> 0.02199113592 | O57: 0.02 | P57: 0.02 | Q57: 0.02 | R57: 0.02 | S57: 0.02 | T57: 0.02 | U57: 0.02 | V57: 0.02 | W57: 0.02
D58: Actual CPI | E58: n/a | F58: n/a | G58: % | N58: =N31 -> 0.02199113592 | O58: 0.02 | P58: 0.02 | Q58: 0.02 | R58: 0.02 | S58: 0.02 | T58: 0.02 | U58: 0.02 | V58: 0.02 | W58: 0.02
D59: Vanilla WACC updated for actual CPI | E59: n/a | F59: 32.3 | G59: % | N59: =(1+N56)*(1+N58)/(1+N57)-1 -> 0.071 | O59: =(1+O56)*(1+O58)/(1+O57)-1 -> 0.071 | P59: 0.071 | Q59: 0.071 | R59: 0.071 | S59: 0.071 | T59: 0.071 | U59: 0.071 | V59: 0.071 | W59: 0.071
A61: End of sheet

Sheet Opex inc
A1: Transpower revenue model - Opex incentive
A2: =Cover!A2 -> Incremental update determined in 2025
H3: Global | I3: 2021 | J3: 2022 | K3: 2023 | L3: 2024 | M3: 2025 | N3: 2026 | O3: 2027 | P3: 2028 | Q3: 2029 | R3: 2030 | S3: 2031 | T3: 2032 | U3: 2033 | V3: 2034 | W3: 2035
D4: Parameter | E4: IM ref | F4: IPP ref | G4: Units | H4: n/a | I4: RCP3 | J4: RCP3 | K4: RCP3 | L4: RCP3 | M4: RCP3 | N4: RCP4 | O4: RCP4 | P4: RCP4 | Q4: RCP4 | R4: RCP4 | S4: RCP5 | T4: RCP5 | U4: RCP5 | V4: RCP5 | W4: RCP5
I5: =Inputs!I5 -> Actual | J5: =Inputs!J5 -> Actual | K5: =Inputs!K5 -> Actual | L5: =Inputs!L5 -> Actual | M5: =Inputs!M5 -> Forecast | N5: =Inputs!N5 -> Forecast | O5: =Inputs!O5 -> Forecast | P5: =Inputs!P5 -> Forecast | Q5: =Inputs!Q5 -> Forecast | R5: =Inputs!R5 -> Forecast | S5: =Inputs!S5 -> Forecast | T5: =Inputs!T5 -> Forecast | U5: =Inputs!U5 -> Forecast | V5: =Inputs!V5 -> Forecast | W5: =Inputs!W5 -> Forecast
B6: Opex incentive amount
B7: Note: Being the IRIS carry forward amount into each disclosure year.
D9: Amounts carried forward | E9: 3.6.2 (1) (a) | F9: n/a | G9: $m | I9: =SUM(I43:I45) -> 20.94498431 | J9: 3.645455686 | K9: -4.660202082 | L9: 0.2277105964 | M9: 0 | N9: 3.17106351 | O9: -4.783296973 | P9: -9.375167192 | Q9: 14.7 | R9: 12.76071006 | S9: 0 | T9: 0 | U9: =SUM(U43:U45) -> 0 | V9: 0 | W9: 0
D10: Adjustment to the opex incentive | E10: " (b) | F10: n/a | G10: $m | I10: =I53 -> 0 | J10: =J53 -> 1.671665841 | K10: 1.720478484 | L10: 1.770716455 | M10: 1.822421376 | N10: 0 | O10: 10.57249139 | P10: 11.17935239 | Q10: 11.82104722 | R10: 12.49957533 | S10: 0 | T10: 0 | U10: 0 | V10: 0 | W10: 0
D11: Opex incentive amount | G11: $m | I11: =SUM(I9:I10) -> 20.94498431 | J11: 5.317121527 | K11: -2.939723598 | L11: 1.998427052 | M11: 1.822421376 | N11: 3.17106351 | O11: 5.789194416 | P11: 1.804185202 | Q11: 26.52104722 | R11: 25.26028539 | S11: 0 | T11: 0 | U11: 0 | V11: 0 | W11: 0
B13: Opex incentive amount - supporting calculations
C15: Amounts carried forward from a year
C16: Note: The non-recurrent amount representing the portion of temporary savings (represented as a positive number) or overspend (represented as a negative number) that would otherwise be overcompensated (overpenalised) for .
D18: Forecast opex for the IRIS (CPI-adjusted) | E18: 3.6.3 (7) | F18: Sch. C6 | G18: $m | I18: =Inputs!I193*SUM('WACC & CPI'!I41,'WACC & CPI'!I46,'WACC & CPI'!I51) -> 287.1700805 | J18: =Inputs!J193*SUM('WACC & CPI'!J41,'WACC & CPI'!J46,'WACC & CPI'!J51) -> 303.0362649 | K18: =Inputs!K193*SUM('WACC & CPI'!K41,'WACC & CPI'!K46,'WACC & CPI'!K51) -> 327.8968173 | L18: =Inputs!L193*SUM('WACC & CPI'!L41,'WACC & CPI'!L46,'WACC & CPI'!L51) -> 346.3512884 | M18: =Inputs!M193*SUM('WACC & CPI'!M41,'WACC & CPI'!M46,'WACC & CPI'!M51) -> 347.4525263 | N18: =Inputs!N193*SUM('WACC & CPI'!N41,'WACC & CPI'!N46,'WACC & CPI'!N51) -> 432.421291 | O18: =Inputs!O193*SUM('WACC & CPI'!O41,'WACC & CPI'!O46,'WACC & CPI'!O51) -> 447.6177201 | P18: =Inputs!P193*SUM('WACC & CPI'!P41,'WACC & CPI'!P46,'WACC & CPI'!P51) -> 460.1032606 | Q18: =Inputs!Q193*SUM('WACC & CPI'!Q41,'WACC & CPI'!Q46,'WACC & CPI'!Q51) -> 456.9640699 | R18: =Inputs!R193*SUM('WACC & CPI'!R41,'WACC & CPI'!R46,'WACC & CPI'!R51) -> 448.7281569 | S18: =Inputs!S193*SUM('WACC & CPI'!S41,'WACC & CPI'!S46,'WACC & CPI'!S51) -> 473.4295255 | T18: =Inputs!T193*SUM('WACC & CPI'!T41,'WACC & CPI'!T46,'WACC & CPI'!T51) -> 483.394784 | U18: =Inputs!U193*SUM('WACC & CPI'!U41,'WACC & CPI'!U46,'WACC & CPI'!U51) -> 503.8568993 | V18: =Inputs!V193*SUM('WACC & CPI'!V41,'WACC & CPI'!V46,'WACC & CPI'!V51) -> 516.068776 | W18: =Inputs!W193*SUM('WACC & CPI'!W41,'WACC & CPI'!W46,'WACC & CPI'!W51) -> 524.2636645
D19: Actual opex (incl. capitalised operating lease payments) | E19: 3.6.3 (8) | F19: n/a | G19: $m | I19: =SUM(Inputs!I122,Inputs!I192) -> 279.21572 | J19: =SUM(Inputs!J122,Inputs!J192) -> 290.4900342 | K19: =SUM(Inputs!K122,Inputs!K192) -> 339.4257538 | L19: =SUM(Inputs!L122,Inputs!L192) -> 355.940935 | M19: =SUM(Inputs!M122,Inputs!M192) -> 399.0596422 | N19: =SUM(Inputs!N122,Inputs!N192) -> 432.421291 | O19: =SUM(Inputs!O122,Inputs!O192) -> 447.6177201 | P19: =SUM(Inputs!P122,Inputs!P192) -> 460.1032606 | Q19: =SUM(Inputs!Q122,Inputs!Q192) -> 456.9640699 | R19: =SUM(Inputs!R122,Inputs!R192) -> 448.7281569 | S19: =SUM(Inputs!S122,Inputs!S192) -> 473.4295255 | T19: =SUM(Inputs!T122,Inputs!T192) -> 483.394784 | U19: =SUM(Inputs!U122,Inputs!U192) -> 503.8568993 | V19: =SUM(Inputs!V122,Inputs!V192) -> 516.068776 | W19: =SUM(Inputs!W122,Inputs!W192) -> 524.2636645
D20: In-year savings | G20: $m | I20: =I18-I19 -> 7.954360483 | J20: =J18-J19 -> 12.5462307 | K20: -11.52893649 | L20: -9.589646547 | M20: -51.60711588 | N20: 0 | O20: 0 | P20: 0 | Q20: 0 | R20: 0 | S20: 0 | T20: 0 | U20: 0 | V20: 0 | W20: 0
D21: Incremental change | G21: $m | I21: =I20-H20*(I4=H4) -> 7.954360483 | J21: =J20-I20*(J4=I4) -> 4.591870219 | K21: -24.07516719 | L21: 1.939289943 | M21: -42.01746933 | N21: 0 | O21: 0 | P21: =P20-O20*(P4=O4) -> 0 | Q21: 0 | R21: 0 | S21: 0 | T21: 0 | U21: 0 | V21: 0 | W21: 0
D23: Non-recurrent amount | E23: 3.6.3 (5) | F23: 36.3 | G23: $m | K23: =Inputs!K198 -> -14.7 | P23: =Inputs!P198 -> 0 | U23: =Inputs!U198 -> 0
D25: Amounts carried forward in the first disclosure year | E25: 3.6.3 (2) | F25: n/a | G25: $m | I25: =I21 -> 7.954360483 | N25: =N21 -> 0 | S25: =S21 -> 0
D26: Amounts carried forward in all but the first and last disclosure year | E26: 3.6.3 (3) | F26: n/a | G26: $m | J26: =J21 -> 4.591870219 | K26: =K21 -> -24.07516719 | L26: =L21 -> 1.939289943 | O26: =O21 -> 0 | P26: =P21 -> 0 | Q26: =Q21 -> 0 | T26: =T21 -> 0 | U26: =U21 -> 0 | V26: =V21 -> 0
D27: Amounts carried forward in the final disclosure year | E27: 3.6.3 (4) | F27: n/a | G27: $m | M27: =M18-(M18-K20+K23)-L20 -> 12.76071006 | R27: =R18-(R18-P20+P23)-Q20 -> 0 | W27: =W18-(W18-U20+U23)-V20 -> 0
D28: Amounts carried forward from a year | G28: $m | I28: =SUM(I25:I27) -> 7.954360483 | J28: =SUM(J25:J27) -> 4.591870219 | K28: =SUM(K25:K27) -> -24.07516719 | L28: =SUM(L25:L27) -> 1.939289943 | M28: =SUM(M25:M27) -> 12.76071006 | N28: 0 | O28: 0 | P28: 0 | Q28: 0 | R28: 0 | S28: 0 | T28: 0 | U28: 0 | V28: 0 | W28: 0
C30: Amounts carried forward into a year
C31: Note: Amounts carried forward within a regulatory period are implicitly rewarded or penalised via the difference in actual spend relative to allowed spend.
D33: Amounts carried forward from 2021 | G33: $m | J33: =$I$28 -> 7.954360483 | K33: =$I$28 -> 7.954360483 | L33: =$I$28 -> 7.954360483 | M33: =$I$28 -> 7.954360483 | N33: =$I$28 -> 7.954360483
D34: Amounts carried forward from 2022 | G34: $m | K34: =$J$28 -> 4.591870219 | L34: =$J$28 -> 4.591870219 | M34: =$J$28 -> 4.591870219 | N34: =$J$28 -> 4.591870219 | O34: =$J$28 -> 4.591870219
D35: Amounts carried forward from 2023 | G35: $m | L35: =$K$28 -> -24.07516719 | M35: =$K$28 -> -24.07516719 | N35: =$K$28 -> -24.07516719 | O35: =$K$28 -> -24.07516719 | P35: =$K$28 -> -24.07516719
D36: Amounts carried forward from 2024 | G36: $m | M36: =$L$28 -> 1.939289943 | N36: =$L$28 -> 1.939289943 | O36: =$L$28 -> 1.939289943 | P36: =$L$28 -> 1.939289943 | Q36: =$L$28 -> 1.939289943
D37: Amounts carried forward from 2025 | G37: $m | N37: =$M$28 -> 12.76071006 | O37: =$M$28 -> 12.76071006 | P37: =$M$28 -> 12.76071006 | Q37: =$M$28 -> 12.76071006 | R37: =$M$28 -> 12.76071006
D38: Amounts carried forward from 2026 | G38: $m | O38: =$N$28 -> 0 | P38: =$N$28 -> 0 | Q38: =$N$28 -> 0 | R38: =$N$28 -> 0 | S38: =$N$28 -> 0
D39: Amounts carried forward from 2027 | G39: $m | P39: =$O$28 -> 0 | Q39: =$O$28 -> 0 | R39: =$O$28 -> 0 | S39: =$O$28 -> 0 | T39: =$O$28 -> 0
D40: Amounts carried forward from 2028 | G40: $m | Q40: =$P$28 -> 0 | R40: =$P$28 -> 0 | S40: =$P$28 -> 0 | T40: =$P$28 -> 0 | U40: =$P$28 -> 0
D41: Amounts carried forward from 2029 | G41: $m | R41: =$Q$28 -> 0 | S41: =$Q$28 -> 0 | T41: =$Q$28 -> 0 | U41: =$Q$28 -> 0 | V41: =$Q$28 -> 0
D42: Amounts carried forward from 2030 | G42: $m | S42: =$R$28 -> 0 | T42: =$R$28 -> 0 | U42: 0 | V42: 0 | W42: 0
D43: Amounts carried forward into a year in RCP3 | E43: 3.6.2 (1) (a) | F43: n/a | G43: $m | I43: =Inputs!I194 -> 20.94498431 | J43: =Inputs!J194 -> 3.645455686 | K43: =Inputs!K194 -> -4.660202082 | L43: =Inputs!L194 -> 0.2277105964 | M43: =Inputs!M194 -> 0
D44: Amounts carried forward into a year in RCP4 | E44: " | F44: n/a | G44: $m | N44: =SUM(N33:N37) -> 3.17106351 | O44: =SUM(O33:O37) -> -4.783296973 | P44: =SUM(P33:P37) -> -9.375167192 | Q44: =SUM(Q33:Q37) -> 14.7 | R44: =SUM(R33:R37) -> 12.76071006
D45: Amounts carried forward into a year in RCP5 | E45: " | F45: n/a | G45: $m | S45: =SUM(S38:S42) -> 0 | T45: =SUM(T38:T42) -> 0 | U45: =SUM(U38:U42) -> 0 | V45: =SUM(V38:V42) -> 0 | W45: =SUM(W38:W42) -> 0
C47: Base year adjustment term (BYAT)
C48: Note: Necessary to restore the linkage between regulatory periods due to the allowances being set ahead of actuals being revealed.
D50: Base year adjustment term (RCP3 legacy) | E50: n/a | F50: n/a | G50: $m | J50: =Inputs!J196 -> 7.738608164
D51: Baseline adjustment term (RCP3 legacy) | E51: n/a | F51: n/a | G51: $m | J51: =Inputs!J197 -> -1.0519448
D52: Base year adjustment term (from RCP4) | E52: 3.6.4 (1) | F52: n/a | O52: =-(M20-K20+K23)/(1+'WACC & CPI'!O19)^4 -> 42.28996556 | T52: =-(R20-P20+P23)/(1+'WACC & CPI'!T19)^4 -> 0
D53: Adjustment to the opex incentive (BYAT) | E53: 3.6.2 (1) (b) | F53: n/a | G53: $m | I53: =(SUMPRODUCT($I$50:$W$52*($I$4:$W$4=I4))/4)*(1+'WACC & CPI'!I18)^(COUNTIFS($I$4:I4,I4)-2) *(I4=H4) -> 0 | J53: =(SUMPRODUCT($I$50:$W$52*($I$4:$W$4=J4))/4)*(1+'WACC & CPI'!J18)^(COUNTIFS($I$4:J4,J4)-2) *(J4=I4) -> 1.671665841 | K53: =(SUMPRODUCT($I$50:$W$52*($I$4:$W$4=K4))/4)*(1+'WACC & CPI'!K18)^(COUNTIFS($I$4:K4,K4)-2) *(K4=J4) -> 1.720478484 | L53: =(SUMPRODUCT($I$50:$W$52*($I$4:$W$4=L4))/4)*(1+'WACC & CPI'!L18)^(COUNTIFS($I$4:L4,L4)-2) *(L4=K4) -> 1.770716455 | M53: =(SUMPRODUCT($I$50:$W$52*($I$4:$W$4=M4))/4)*(1+'WACC & CPI'!M18)^(COUNTIFS($I$4:M4,M4)-2) *(M4=L4) -> 1.822421376 | N53: =(SUMPRODUCT($I$50:$W$52*($I$4:$W$4=N4))/4)*(1+'WACC & CPI'!N18)^(COUNTIFS($I$4:N4,N4)-2) *(N4=M4) -> 0 | O53: =(SUMPRODUCT($I$50:$W$52*($I$4:$W$4=O4))/4)*(1+'WACC & CPI'!O18)^(COUNTIFS($I$4:O4,O4)-2) *(O4=N4) -> 10.57249139 | P53: =(SUMPRODUCT($I$50:$W$52*($I$4:$W$4=P4))/4)*(1+'WACC & CPI'!P18)^(COUNTIFS($I$4:P4,P4)-2) *(P4=O4) -> 11.17935239 | Q53: =(SUMPRODUCT($I$50:$W$52*($I$4:$W$4=Q4))/4)*(1+'WACC & CPI'!Q18)^(COUNTIFS($I$4:Q4,Q4)-2) *(Q4=P4) -> 11.82104722 | R53: =(SUMPRODUCT($I$50:$W$52*($I$4:$W$4=R4))/4)*(1+'WACC & CPI'!R18)^(COUNTIFS($I$4:R4,R4)-2) *(R4=Q4) -> 12.49957533 | S53: =(SUMPRODUCT($I$50:$W$52*($I$4:$W$4=S4))/4)*(1+'WACC & CPI'!S18)^(COUNTIFS($I$4:S4,S4)-2) *(S4=R4) -> 0 | T53: =(SUMPRODUCT($I$50:$W$52*($I$4:$W$4=T4))/4)*(1+'WACC & CPI'!T18)^(COUNTIFS($I$4:T4,T4)-2) *(T4=S4) -> 0 | U53: =(SUMPRODUCT($I$50:$W$52*($I$4:$W$4=U4))/4)*(1+'WACC & CPI'!U18)^(COUNTIFS($I$4:U4,U4)-2) *(U4=T4) -> 0 | V53: =(SUMPRODUCT($I$50:$W$52*($I$4:$W$4=V4))/4)*(1+'WACC & CPI'!V18)^(COUNTIFS($I$4:V4,V4)-2) *(V4=U4) -> 0 | W53: =(SUMPRODUCT($I$50:$W$52*($I$4:$W$4=W4))/4)*(1+'WACC & CPI'!W18)^(COUNTIFS($I$4:W4,W4)-2) *(W4=V4) -> 0
A55: End of sheet

Sheet Capex inc
A1: Transpower revenue model - Capex incentive
A2: =Cover!A2 -> Incremental update determined in 2025
H3: Global | I3: 2021 | J3: 2022 | K3: 2023 | L3: 2024 | M3: 2025 | N3: 2026 | O3: 2027 | P3: 2028 | Q3: 2029 | R3: 2030 | S3: 2031 | T3: 2032 | U3: 2033 | V3: 2034 | W3: 2035
D4: Parameter | E4: Capex IM ref | F4: IPP ref | G4: Units | H4: n/a | I4: RCP3 | J4: RCP3 | K4: RCP3 | L4: RCP3 | M4: RCP3 | N4: RCP4 | O4: RCP4 | P4: RCP4 | Q4: RCP4 | R4: RCP4 | S4: RCP5 | T4: RCP5 | U4: RCP5 | V4: RCP5 | W4: RCP5
I5: =Inputs!I5 -> Actual | J5: =Inputs!J5 -> Actual | K5: =Inputs!K5 -> Actual | L5: =Inputs!L5 -> Actual | M5: =Inputs!M5 -> Forecast | N5: =Inputs!N5 -> Forecast | O5: =Inputs!O5 -> Forecast | P5: =Inputs!P5 -> Forecast | Q5: =Inputs!Q5 -> Forecast | R5: =Inputs!R5 -> Forecast | S5: =Inputs!S5 -> Forecast | T5: =Inputs!T5 -> Forecast | U5: =Inputs!U5 -> Forecast | V5: =Inputs!V5 -> Forecast | W5: =Inputs!W5 -> Forecast
B6: Base capex incentive amount
B7: Note: Low incentive base capex must be flagged in the Inputs tab if applicable.
C9: Standard incentive rate base capex expenditure adjustment
O10: =O13-508.8 -> 29.45342024
D11: Base capex standard incentive rate | E11: Sch. B1; a | F11: n/a | G11: % | I11: =(1-(1/(1+'WACC & CPI'!I23)^6))*(I4="RCP3")+ (1-(1/(1+'WACC & CPI'!I19)^6))*(I4<>"RCP3") -> 0.2351833184 | J11: =(1-(1/(1+'WACC & CPI'!J23)^6))*(J4="RCP3")+ (1-(1/(1+'WACC & CPI'!J19)^6))*(J4<>"RCP3") -> 0.2351833184 | K11: =(1-(1/(1+'WACC & CPI'!K23)^6))*(K4="RCP3")+ (1-(1/(1+'WACC & CPI'!K19)^6))*(K4<>"RCP3") -> 0.2351833184 | L11: =(1-(1/(1+'WACC & CPI'!L23)^6))*(L4="RCP3")+ (1-(1/(1+'WACC & CPI'!L19)^6))*(L4<>"RCP3") -> 0.2351833184 | M11: =(1-(1/(1+'WACC & CPI'!M23)^6))*(M4="RCP3")+ (1-(1/(1+'WACC & CPI'!M19)^6))*(M4<>"RCP3") -> 0.2351833184 | N11: =(1-(1/(1+'WACC & CPI'!N23)^6))*(N4="RCP3")+ (1-(1/(1+'WACC & CPI'!N19)^6))*(N4<>"RCP3") -> 0.3216644059 | O11: =(1-(1/(1+'WACC & CPI'!O23)^6))*(O4="RCP3")+ (1-(1/(1+'WACC & CPI'!O19)^6))*(O4<>"RCP3") -> 0.3216644059 | P11: =(1-(1/(1+'WACC & CPI'!P23)^6))*(P4="RCP3")+ (1-(1/(1+'WACC & CPI'!P19)^6))*(P4<>"RCP3") -> 0.3216644059 | Q11: =(1-(1/(1+'WACC & CPI'!Q23)^6))*(Q4="RCP3")+ (1-(1/(1+'WACC & CPI'!Q19)^6))*(Q4<>"RCP3") -> 0.3216644059 | R11: =(1-(1/(1+'WACC & CPI'!R23)^6))*(R4="RCP3")+ (1-(1/(1+'WACC & CPI'!R19)^6))*(R4<>"RCP3") -> 0.3216644059 | S11: =(1-(1/(1+'WACC & CPI'!S23)^6))*(S4="RCP3")+ (1-(1/(1+'WACC & CPI'!S19)^6))*(S4<>"RCP3") -> 0.3216644059 | T11: =(1-(1/(1+'WACC & CPI'!T23)^6))*(T4="RCP3")+ (1-(1/(1+'WACC & CPI'!T19)^6))*(T4<>"RCP3") -> 0.3216644059 | U11: =(1-(1/(1+'WACC & CPI'!U23)^6))*(U4="RCP3")+ (1-(1/(1+'WACC & CPI'!U19)^6))*(U4<>"RCP3") -> 0.3216644059 | V11: =(1-(1/(1+'WACC & CPI'!V23)^6))*(V4="RCP3")+ (1-(1/(1+'WACC & CPI'!V19)^6))*(V4<>"RCP3") -> 0.3216644059 | W11: =(1-(1/(1+'WACC & CPI'!W23)^6))*(W4="RCP3")+ (1-(1/(1+'WACC & CPI'!W19)^6))*(W4<>"RCP3") -> 0.3216644059
D12: Adjusted standard incentive rate base capex allowance | E12: Sch. B1; b | F12: n/a | G12: $m | I12: =SUM(I14:I16,I18) -> 222.6038541 | J12: 290.5348619 | K12: 320.3281407 | L12: 333.1227264 | M12: 340.8276304 | N12: 490.2048935 | O12: 538.2534202 | P12: 449.4342451 | Q12: 451.0608516 | R12: 466.6371397 | S12: 480.9111534 | T12: 582.4130646 | U12: 595.9457043 | V12: 590.920936 | W12: 566.5344229
D13: Base capex subject to the standard incentive rate | E13: Sch. B1; c | F13: n/a | G13: $m | I13: =Inputs!I105 -> 265.7890464 | J13: =Inputs!J105 -> 220.240805 | K13: =Inputs!K105 -> 272.5961764 | L13: =Inputs!L105 -> 382.6776964 | M13: =Inputs!M105 -> 448.0256984 | N13: =Inputs!N105 -> 490.2048935 | O13: =Inputs!O105 -> 538.2534202 | P13: =Inputs!P105 -> 449.4342451 | Q13: =Inputs!Q105 -> 451.0608516 | R13: =Inputs!R105 -> 466.6371397 | S13: =Inputs!S105 -> 480.9111534 | T13: =Inputs!T105 -> 582.4130646 | U13: =Inputs!U105 -> 595.9457043 | V13: =Inputs!V105 -> 590.920936 | W13: =Inputs!W105 -> 566.5344229
D14: Standard incentive rate base capex allowance | E14: Sch. B1; d/d' | F14: n/a | G14: $m | I14: =Inputs!I67 -> 222.877652 | J14: =Inputs!J67 -> 279.197023 | K14: =Inputs!K67 -> 293.4826477 | L14: =Inputs!L67 -> 297.7629417 | M14: =Inputs!M67 -> 303.7769725 | N14: =Inputs!N67 -> 490.2048935 | O14: =Inputs!O67 -> 538.2534202 | P14: =Inputs!P67 -> 449.4342451 | Q14: =Inputs!Q67 -> 451.0608516 | R14: =Inputs!R67 -> 466.6371397 | S14: =Inputs!S67 -> 480.9111534 | T14: =Inputs!T67 -> 582.4130646 | U14: =Inputs!U67 -> 595.9457043 | V14: =Inputs!V67 -> 590.920936 | W14: =Inputs!W67 -> 566.5344229
D15: Adjustment correcting for CPI | E15: Sch. B1; e | F15: n/a | G15: $m | I15: =I14*(SUM('WACC & CPI'!I41,'WACC & CPI'!I46,'WACC & CPI'!I51)-1) -> 0.7067796827 | J15: =J14*(SUM('WACC & CPI'!J41,'WACC & CPI'!J46,'WACC & CPI'!J51)-1) -> 12.37027145 | K15: =K14*(SUM('WACC & CPI'!K41,'WACC & CPI'!K46,'WACC & CPI'!K51)-1) -> 27.35260548 | L15: =L14*(SUM('WACC & CPI'!L41,'WACC & CPI'!L46,'WACC & CPI'!L51)-1) -> 35.41913658 | M15: =M14*(SUM('WACC & CPI'!M41,'WACC & CPI'!M46,'WACC & CPI'!M51)-1) -> 37.0506579 | N15: =N14*(SUM('WACC & CPI'!N41,'WACC & CPI'!N46,'WACC & CPI'!N51)-1) -> 1.088473519e-13 | O15: =O14*(SUM('WACC & CPI'!O41,'WACC & CPI'!O46,'WACC & CPI'!O51)-1) -> 1.19516268e-13 | P15: =P14*(SUM('WACC & CPI'!P41,'WACC & CPI'!P46,'WACC & CPI'!P51)-1) -> 9.979444939e-14 | Q15: =Q14*(SUM('WACC & CPI'!Q41,'WACC & CPI'!Q46,'WACC & CPI'!Q51)-1) -> 0 | R15: =R14*(SUM('WACC & CPI'!R41,'WACC & CPI'!R46,'WACC & CPI'!R51)-1) -> 0 | S15: =S14*(SUM('WACC & CPI'!S41,'WACC & CPI'!S46,'WACC & CPI'!S51)-1) -> 1.067837271e-13 | T15: =T14*(SUM('WACC & CPI'!T41,'WACC & CPI'!T46,'WACC & CPI'!T51)-1) -> 0 | U15: =U14*(SUM('WACC & CPI'!U41,'WACC & CPI'!U46,'WACC & CPI'!U51)-1) -> 0 | V15: =V14*(SUM('WACC & CPI'!V41,'WACC & CPI'!V46,'WACC & CPI'!V51)-1) -> 0 | W15: =W14*(SUM('WACC & CPI'!W41,'WACC & CPI'!W46,'WACC & CPI'!W51)-1) -> 0
D16: Adjustment correcting for FX | E16: Sch. B1; f | F16: n/a | G16: $m | I16: =Inputs!I149 -> -0.9805776098 | J16: =Inputs!J149 -> -1.032432473 | K16: =Inputs!K149 -> -0.5071124474 | L16: =Inputs!L149 -> -0.05935187593 | M16: =Inputs!M149 -> 0 | N16: =Inputs!N149 -> 0 | O16: =Inputs!O149 -> 0 | P16: =Inputs!P149 -> 0 | Q16: =Inputs!Q149 -> 0 | R16: =Inputs!R149 -> 0 | S16: =Inputs!S149 -> 0 | T16: =Inputs!T149 -> 0 | U16: =Inputs!U149 -> 0 | V16: =Inputs!V149 -> 0 | W16: =Inputs!W149 -> 0
D17: Adjustment for base capex no longer subject to allowance | E17: Sch. B1; g | F17: n/a | G17: $m | I17: =Inputs!I148 -> -2.965280099 | J17: =Inputs!J148 -> -3.131309674 | K17: =Inputs!K148 -> -3.192908009 | L17: =Inputs!L148 -> 23.54681207 | M17: =Inputs!M148 -> 3.192908009 | N17: =Inputs!N148 -> 0 | O17: =Inputs!O148 -> 0 | P17: =Inputs!P148 -> 0 | Q17: =Inputs!Q148 -> 0 | R17: =Inputs!R148 -> 0 | S17: =Inputs!S148 -> 0 | T17: =Inputs!T148 -> 0 | U17: =Inputs!U148 -> 0 | V17: =Inputs!V148 -> 0 | W17: =Inputs!W148 -> 0
D18: Adjustment for base capex subject to the allowance adjustment mechanism | E18: Sch. B1; h | F18: n/a | G18: $m | I18: =-Inputs!I150 -> 0 | J18: =-Inputs!J150 -> 0 | K18: =-Inputs!K150 -> 0 | L18: =-Inputs!L150 -> 0 | M18: =-Inputs!M150 -> 0 | N18: =-Inputs!N150 -> 0 | O18: =-Inputs!O150 -> 0 | P18: =-Inputs!P150 -> 0 | Q18: =-Inputs!Q150 -> 0 | R18: =-Inputs!R150 -> 0 | S18: =-Inputs!S150 -> 0 | T18: =-Inputs!T150 -> 0 | U18: =-Inputs!U150 -> 0 | V18: =-Inputs!V150 -> 0 | W18: =-Inputs!W150 -> 0
D19: Net standard incentive rate base capex | E19: n/a | F19: n/a | G19: $m | I19: =I12-I13-I17 -> -40.21991221 | J19: =J12-J13-J17 -> 73.42536663 | K19: 50.92487237 | L19: -73.10178204 | M19: -110.390976 | N19: 1.136868377e-13 | O19: 1.136868377e-13 | P19: 1.136868377e-13 | Q19: 0 | R19: 0 | S19: 1.136868377e-13 | T19: 0 | U19: 0 | V19: 0 | W19: 0
D20: Standard incentive rate base capex expenditure adjustment | E20: Sch. B1 (2) | F20: n/a | G20: $m | I20: =I19*I11 -> -9.459052418 | J20: =J19*J11 -> 17.26842138 | K20: 11.97668047 | L20: -17.19231968 | M20: -25.96211605 | N20: 3.656900912e-14 | O20: 3.656900912e-14 | P20: 3.656900912e-14 | Q20: 0 | R20: 0 | S20: 3.656900912e-14 | T20: 0 | U20: 0 | V20: 0 | W20: 0
C22: Low incentive rate base capex expenditure adjustment
D24: Base capex low incentive rate | E24: Sch. B1; a* | F24: n/a | G24: % | I24: =Inputs!I151 -> 0.15 | J24: =Inputs!J151 -> 0.15 | K24: =Inputs!K151 -> 0.15 | L24: =Inputs!L151 -> 0.15 | M24: =Inputs!M151 -> 0.15 | N24: =Inputs!N151 -> 0.15 | O24: =Inputs!O151 -> 0.15 | P24: =Inputs!P151 -> 0.15 | Q24: =Inputs!Q151 -> 0.15 | R24: =Inputs!R151 -> 0.15 | S24: =Inputs!S151 -> 0.15 | T24: =Inputs!T151 -> 0.15 | U24: =Inputs!U151 -> 0.15 | V24: =Inputs!V151 -> 0.15 | W24: =Inputs!W151 -> 0.15
D25: Adjusted low incentive rate base capex allowance | E25: Sch. B1; b* | F25: n/a | G25: $m | I25: =SUM(I27:I29) -> 0 | J25: =SUM(J27:J29) -> 0 | K25: 0 | L25: 0 | M25: 0 | N25: 0 | O25: 0 | P25: 0 | Q25: 0 | R25: 0 | S25: 0 | T25: 0 | U25: 0 | V25: 0 | W25: 0
D26: Base capex subject to the low incentive rate | E26: Sch. B1; c* | F26: n/a | G26: $m | I26: =Inputs!I106 -> 0 | J26: =Inputs!J106 -> 0 | K26: =Inputs!K106 -> 0 | L26: =Inputs!L106 -> 0 | M26: =Inputs!M106 -> 0 | N26: =Inputs!N106 -> 0 | O26: =Inputs!O106 -> 0 | P26: =Inputs!P106 -> 0 | Q26: =Inputs!Q106 -> 0 | R26: =Inputs!R106 -> 0 | S26: =Inputs!S106 -> 0 | T26: =Inputs!T106 -> 0 | U26: =Inputs!U106 -> 0 | V26: =Inputs!V106 -> 0 | W26: =Inputs!W106 -> 0
D27: Low incentive rate base capex allowance | E27: Sch. B1; d*/d'* | F27: n/a | G27: $m | I27: =Inputs!I68 -> 0 | J27: =Inputs!J68 -> 0 | K27: =Inputs!K68 -> 0 | L27: =Inputs!L68 -> 0 | M27: =Inputs!M68 -> 0 | N27: =Inputs!N68 -> 0 | O27: =Inputs!O68 -> 0 | P27: =Inputs!P68 -> 0 | Q27: =Inputs!Q68 -> 0 | R27: =Inputs!R68 -> 0 | S27: =Inputs!S68 -> 0 | T27: =Inputs!T68 -> 0 | U27: =Inputs!U68 -> 0 | V27: =Inputs!V68 -> 0 | W27: =Inputs!W68 -> 0
D28: Adjustment correcting for CPI | E28: Sch. B1; e* | F28: n/a | G28: $m | I28: =I27*(SUM('WACC & CPI'!I41,'WACC & CPI'!I46,'WACC & CPI'!I51)-1) -> 0 | J28: =J27*(SUM('WACC & CPI'!J41,'WACC & CPI'!J46,'WACC & CPI'!J51)-1) -> 0 | K28: =K27*(SUM('WACC & CPI'!K41,'WACC & CPI'!K46,'WACC & CPI'!K51)-1) -> 0 | L28: =L27*(SUM('WACC & CPI'!L41,'WACC & CPI'!L46,'WACC & CPI'!L51)-1) -> 0 | M28: =M27*(SUM('WACC & CPI'!M41,'WACC & CPI'!M46,'WACC & CPI'!M51)-1) -> 0 | N28: =N27*(SUM('WACC & CPI'!N41,'WACC & CPI'!N46,'WACC & CPI'!N51)-1) -> 0 | O28: =O27*(SUM('WACC & CPI'!O41,'WACC & CPI'!O46,'WACC & CPI'!O51)-1) -> 0 | P28: =P27*(SUM('WACC & CPI'!P41,'WACC & CPI'!P46,'WACC & CPI'!P51)-1) -> 0 | Q28: =Q27*(SUM('WACC & CPI'!Q41,'WACC & CPI'!Q46,'WACC & CPI'!Q51)-1) -> 0 | R28: =R27*(SUM('WACC & CPI'!R41,'WACC & CPI'!R46,'WACC & CPI'!R51)-1) -> 0 | S28: =S27*(SUM('WACC & CPI'!S41,'WACC & CPI'!S46,'WACC & CPI'!S51)-1) -> 0 | T28: =T27*(SUM('WACC & CPI'!T41,'WACC & CPI'!T46,'WACC & CPI'!T51)-1) -> 0 | U28: =U27*(SUM('WACC & CPI'!U41,'WACC & CPI'!U46,'WACC & CPI'!U51)-1) -> 0 | V28: =V27*(SUM('WACC & CPI'!V41,'WACC & CPI'!V46,'WACC & CPI'!V51)-1) -> 0 | W28: =W27*(SUM('WACC & CPI'!W41,'WACC & CPI'!W46,'WACC & CPI'!W51)-1) -> 0
D29: Adjustment correcting for FX | E29: Sch. B1; f* | F29: n/a | G29: $m | I29: =Inputs!I153 -> 0 | J29: =Inputs!J153 -> 0 | K29: =Inputs!K153 -> 0 | L29: =Inputs!L153 -> 0 | M29: =Inputs!M153 -> 0 | N29: =Inputs!N153 -> 0 | O29: =Inputs!O153 -> 0 | P29: =Inputs!P153 -> 0 | Q29: =Inputs!Q153 -> 0 | R29: =Inputs!R153 -> 0 | S29: =Inputs!S153 -> 0 | T29: =Inputs!T153 -> 0 | U29: =Inputs!U153 -> 0 | V29: =Inputs!V153 -> 0 | W29: =Inputs!W153 -> 0
D30: Adjustment for base capex no longer subject to allowance | E30: Sch. B1; g* | F30: n/a | G30: $m | I30: =Inputs!I152 -> 0 | J30: =Inputs!J152 -> 0 | K30: =Inputs!K152 -> 0 | L30: =Inputs!L152 -> 0 | M30: =Inputs!M152 -> 0 | N30: =Inputs!N152 -> 0 | O30: =Inputs!O152 -> 0 | P30: =Inputs!P152 -> 0 | Q30: =Inputs!Q152 -> 0 | R30: =Inputs!R152 -> 0 | S30: =Inputs!S152 -> 0 | T30: =Inputs!T152 -> 0 | U30: =Inputs!U152 -> 0 | V30: =Inputs!V152 -> 0 | W30: =Inputs!W152 -> 0
D31: Net low incentive rate base capex | E31: n/a | F31: n/a | G31: $m | I31: =I25-I26-I30 -> 0 | J31: 0 | K31: 0 | L31: 0 | M31: 0 | N31: 0 | O31: 0 | P31: 0 | Q31: 0 | R31: 0 | S31: 0 | T31: 0 | U31: 0 | V31: 0 | W31: 0
D32: Low incentive rate base capex expenditure adjustment | E32: Sch. B1 (3) | F32: n/a | G32: $m | I32: =I31*I24 -> 0 | J32: 0 | K32: 0 | L32: 0 | M32: 0 | N32: 0 | O32: 0 | P32: 0 | Q32: 0 | R32: 0 | S32: 0 | T32: 0 | U32: 0 | V32: 0 | W32: 0
B34: Major capex incentive adjustment
B35: Note: For MCPs notified from 1 April 2025, any major capex incentive adjustment is only to be calculated should total capex sit outside of the P30-P70 deadband.
C37: MCP1
D39: Major capex incentive rate | E39: Sch. B3; a | F39: n/a | G39: % | I39: =Inputs!I158 -> 0 | J39: =Inputs!J158 -> 0 | K39: =Inputs!K158 -> 0 | L39: =Inputs!L158 -> 0 | M39: =Inputs!M158 -> 0 | N39: =Inputs!N158 -> 0 | O39: =Inputs!O158 -> 0 | P39: =Inputs!P158 -> 0 | Q39: =Inputs!Q158 -> 0 | R39: =Inputs!R158 -> 0 | S39: =Inputs!S158 -> 0 | T39: =Inputs!T158 -> 0 | U39: =Inputs!U158 -> 0 | V39: =Inputs!V158 -> 0 | W39: =Inputs!W158 -> 0
D40: Adjusted major capex allowance | E40: Sch. B3; b | F40: n/a | G40: $m | I40: =I42+I43+I44 -> 0 | J40: =J42+J43+J44 -> 0 | K40: 0 | L40: 0 | M40: 0 | N40: 0 | O40: 0 | P40: 0 | Q40: 0 | R40: 0 | S40: 0 | T40: 0 | U40: 0 | V40: 0 | W40: 0
D41: Amount of capex less exempt major capex | E41: Sch. B3; c | F41: n/a | G41: $m | I41: =Inputs!I159 -> 0 | J41: =Inputs!J159 -> 0 | K41: =Inputs!K159 -> 0 | L41: =Inputs!L159 -> 0 | M41: =Inputs!M159 -> 0 | N41: =Inputs!N159 -> 0 | O41: =Inputs!O159 -> 0 | P41: =Inputs!P159 -> 0 | Q41: =Inputs!Q159 -> 0 | R41: =Inputs!R159 -> 0 | S41: =Inputs!S159 -> 0 | T41: =Inputs!T159 -> 0 | U41: =Inputs!U159 -> 0 | V41: =Inputs!V159 -> 0 | W41: =Inputs!W159 -> 0
D42: Major capex allowance less exempt major capex | E42: Sch. B3; d | F42: n/a | G42: $m | I42: =Inputs!I160 -> 0 | J42: =Inputs!J160 -> 0 | K42: =Inputs!K160 -> 0 | L42: =Inputs!L160 -> 0 | M42: =Inputs!M160 -> 0 | N42: =Inputs!N160 -> 0 | O42: =Inputs!O160 -> 0 | P42: =Inputs!P160 -> 0 | Q42: =Inputs!Q160 -> 0 | R42: =Inputs!R160 -> 0 | S42: =Inputs!S160 -> 0 | T42: =Inputs!T160 -> 0 | U42: =Inputs!U160 -> 0 | V42: =Inputs!V160 -> 0 | W42: =Inputs!W160 -> 0
D43: Adjustment correcting for CPI | E43: Sch. B3; e | F43: n/a | G43: $m | I43: =Inputs!I161 -> 0 | J43: =Inputs!J161 -> 0 | K43: =Inputs!K161 -> 0 | L43: =Inputs!L161 -> 0 | M43: =Inputs!M161 -> 0 | N43: =Inputs!N161 -> 0 | O43: =Inputs!O161 -> 0 | P43: =Inputs!P161 -> 0 | Q43: =Inputs!Q161 -> 0 | R43: =Inputs!R161 -> 0 | S43: =Inputs!S161 -> 0 | T43: =Inputs!T161 -> 0 | U43: =Inputs!U161 -> 0 | V43: =Inputs!V161 -> 0 | W43: =Inputs!W161 -> 0
D44: Adjustment correcting for FX | E44: Sch. B3; f | F44: n/a | G44: $m | I44: =Inputs!I162 -> 0 | J44: =Inputs!J162 -> 0 | K44: =Inputs!K162 -> 0 | L44: =Inputs!L162 -> 0 | M44: =Inputs!M162 -> 0 | N44: =Inputs!N162 -> 0 | O44: =Inputs!O162 -> 0 | P44: =Inputs!P162 -> 0 | Q44: =Inputs!Q162 -> 0 | R44: =Inputs!R162 -> 0 | S44: =Inputs!S162 -> 0 | T44: =Inputs!T162 -> 0 | U44: =Inputs!U162 -> 0 | V44: =Inputs!V162 -> 0 | W44: =Inputs!W162 -> 0
D45: Est. part of allowance relating to outputs not delivered | E45: Sch. B3; t | F45: n/a | G45: $m | I45: =Inputs!I163 -> 0 | J45: =Inputs!J163 -> 0 | K45: =Inputs!K163 -> 0 | L45: =Inputs!L163 -> 0 | M45: =Inputs!M163 -> 0 | N45: =Inputs!N163 -> 0 | O45: =Inputs!O163 -> 0 | P45: =Inputs!P163 -> 0 | Q45: =Inputs!Q163 -> 0 | R45: =Inputs!R163 -> 0 | S45: =Inputs!S163 -> 0 | T45: =Inputs!T163 -> 0 | U45: =Inputs!U163 -> 0 | V45: =Inputs!V163 -> 0 | W45: =Inputs!W163 -> 0
D46: Net major capex | E46: n/a | F46: n/a | G46: $m | I46: =I40-I41-I45 -> 0 | J46: =J40-J41-J45 -> 0 | K46: 0 | L46: 0 | M46: 0 | N46: 0 | O46: 0 | P46: 0 | Q46: 0 | R46: 0 | S46: 0 | T46: 0 | U46: 0 | V46: 0 | W46: 0
D47: Major capex expenditure and output adjustment | E47: Sch. B3 (3) | F47: n/a | G47: $m | I47: =I46*I39 -> 0 | J47: =J46*J39 -> 0 | K47: 0 | L47: 0 | M47: 0 | N47: 0 | O47: 0 | P47: 0 | Q47: 0 | R47: 0 | S47: 0 | T47: 0 | U47: 0 | V47: 0 | W47: 0
C49: MCP2
D51: Major capex incentive rate | E51: Sch. B3; a | F51: n/a | G51: % | I51: =Inputs!I164 -> 0 | J51: =Inputs!J164 -> 0 | K51: =Inputs!K164 -> 0 | L51: =Inputs!L164 -> 0 | M51: =Inputs!M164 -> 0 | N51: =Inputs!N164 -> 0 | O51: =Inputs!O164 -> 0 | P51: =Inputs!P164 -> 0 | Q51: =Inputs!Q164 -> 0 | R51: =Inputs!R164 -> 0 | S51: =Inputs!S164 -> 0 | T51: =Inputs!T164 -> 0 | U51: =Inputs!U164 -> 0 | V51: =Inputs!V164 -> 0 | W51: =Inputs!W164 -> 0
D52: Adjusted major capex allowance | E52: Sch. B3; b | F52: n/a | G52: $m | I52: =I54+I55+I56 -> 0 | J52: =J54+J55+J56 -> 0 | K52: 0 | L52: 0 | M52: =M54+M55+M56 -> 0 | N52: 0 | O52: 0 | P52: 0 | Q52: 0 | R52: 0 | S52: 0 | T52: 0 | U52: 0 | V52: 0 | W52: 0
D53: Amount of capex less exempt major capex | E53: Sch. B3; c | F53: n/a | G53: $m | I53: =Inputs!I165 -> 0 | J53: =Inputs!J165 -> 0 | K53: =Inputs!K165 -> 0 | L53: =Inputs!L165 -> 0 | M53: =Inputs!M165 -> 0 | N53: =Inputs!N165 -> 0 | O53: =Inputs!O165 -> 0 | P53: =Inputs!P165 -> 0 | Q53: =Inputs!Q165 -> 0 | R53: =Inputs!R165 -> 0 | S53: =Inputs!S165 -> 0 | T53: =Inputs!T165 -> 0 | U53: =Inputs!U165 -> 0 | V53: =Inputs!V165 -> 0 | W53: =Inputs!W165 -> 0
D54: Major capex allowance less exempt major capex | E54: Sch. B3; d | F54: n/a | G54: $m | I54: =Inputs!I166 -> 0 | J54: =Inputs!J166 -> 0 | K54: =Inputs!K166 -> 0 | L54: =Inputs!L166 -> 0 | M54: =Inputs!M166 -> 0 | N54: =Inputs!N166 -> 0 | O54: =Inputs!O166 -> 0 | P54: =Inputs!P166 -> 0 | Q54: =Inputs!Q166 -> 0 | R54: =Inputs!R166 -> 0 | S54: =Inputs!S166 -> 0 | T54: =Inputs!T166 -> 0 | U54: =Inputs!U166 -> 0 | V54: =Inputs!V166 -> 0 | W54: =Inputs!W166 -> 0
D55: Adjustment correcting for CPI | E55: Sch. B3; e | F55: n/a | G55: $m | I55: =Inputs!I167 -> 0 | J55: =Inputs!J167 -> 0 | K55: =Inputs!K167 -> 0 | L55: =Inputs!L167 -> 0 | M55: =Inputs!M167 -> 0 | N55: =Inputs!N167 -> 0 | O55: =Inputs!O167 -> 0 | P55: =Inputs!P167 -> 0 | Q55: =Inputs!Q167 -> 0 | R55: =Inputs!R167 -> 0 | S55: =Inputs!S167 -> 0 | T55: =Inputs!T167 -> 0 | U55: =Inputs!U167 -> 0 | V55: =Inputs!V167 -> 0 | W55: =Inputs!W167 -> 0
D56: Adjustment correcting for FX | E56: Sch. B3; f | F56: n/a | G56: $m | I56: =Inputs!I168 -> 0 | J56: =Inputs!J168 -> 0 | K56: =Inputs!K168 -> 0 | L56: =Inputs!L168 -> 0 | M56: =Inputs!M168 -> 0 | N56: =Inputs!N168 -> 0 | O56: =Inputs!O168 -> 0 | P56: =Inputs!P168 -> 0 | Q56: =Inputs!Q168 -> 0 | R56: =Inputs!R168 -> 0 | S56: =Inputs!S168 -> 0 | T56: =Inputs!T168 -> 0 | U56: =Inputs!U168 -> 0 | V56: =Inputs!V168 -> 0 | W56: =Inputs!W168 -> 0
D57: Est. part of allowance relating to outputs not delivered | E57: Sch. B3; t | F57: n/a | G57: $m | I57: =Inputs!I169 -> 0 | J57: =Inputs!J169 -> 0 | K57: =Inputs!K169 -> 0 | L57: =Inputs!L169 -> 0 | M57: =Inputs!M169 -> 0 | N57: =Inputs!N169 -> 0 | O57: =Inputs!O169 -> 0 | P57: =Inputs!P169 -> 0 | Q57: =Inputs!Q169 -> 0 | R57: =Inputs!R169 -> 0 | S57: =Inputs!S169 -> 0 | T57: =Inputs!T169 -> 0 | U57: =Inputs!U169 -> 0 | V57: =Inputs!V169 -> 0 | W57: =Inputs!W169 -> 0
D58: Net major capex | E58: n/a | F58: n/a | G58: $m | I58: =I52-I53-I57 -> 0 | J58: 0 | K58: 0 | L58: 0 | M58: 0 | N58: 0 | O58: 0 | P58: 0 | Q58: 0 | R58: 0 | S58: 0 | T58: 0 | U58: 0 | V58: 0 | W58: 0
D59: Major capex expenditure and output adjustment | E59: Sch. B3 (3) | F59: n/a | G59: $m | I59: =I58*I51 -> 0 | J59: 0 | K59: 0 | L59: 0 | M59: 0 | N59: 0 | O59: 0 | P59: 0 | Q59: 0 | R59: 0 | S59: 0 | T59: 0 | U59: 0 | V59: 0 | W59: 0
C61: MCP3
D63: Major capex incentive rate | E63: Sch. B3; a | F63: n/a | G63: % | I63: =Inputs!I170 -> 0 | J63: =Inputs!J170 -> 0 | K63: =Inputs!K170 -> 0 | L63: =Inputs!L170 -> 0 | M63: =Inputs!M170 -> 0 | N63: =Inputs!N170 -> 0 | O63: =Inputs!O170 -> 0 | P63: =Inputs!P170 -> 0 | Q63: =Inputs!Q170 -> 0 | R63: =Inputs!R170 -> 0 | S63: =Inputs!S170 -> 0 | T63: =Inputs!T170 -> 0 | U63: =Inputs!U170 -> 0 | V63: =Inputs!V170 -> 0 | W63: =Inputs!W170 -> 0
D64: Adjusted major capex allowance | E64: Sch. B3; b | F64: n/a | G64: $m | I64: =I66+I67+I68 -> 0 | J64: =J66+J67+J68 -> 0 | K64: 0 | L64: 0 | M64: 0 | N64: 0 | O64: 0 | P64: 0 | Q64: 0 | R64: 0 | S64: 0 | T64: 0 | U64: 0 | V64: 0 | W64: 0
D65: Amount of capex less exempt major capex | E65: Sch. B3; c | F65: n/a | G65: $m | I65: =Inputs!I171 -> 0 | J65: =Inputs!J171 -> 0 | K65: =Inputs!K171 -> 0 | L65: =Inputs!L171 -> 0 | M65: =Inputs!M171 -> 0 | N65: =Inputs!N171 -> 0 | O65: =Inputs!O171 -> 0 | P65: =Inputs!P171 -> 0 | Q65: =Inputs!Q171 -> 0 | R65: =Inputs!R171 -> 0 | S65: =Inputs!S171 -> 0 | T65: =Inputs!T171 -> 0 | U65: =Inputs!U171 -> 0 | V65: =Inputs!V171 -> 0 | W65: =Inputs!W171 -> 0
D66: Major capex allowance less exempt major capex | E66: Sch. B3; d | F66: n/a | G66: $m | I66: =Inputs!I172 -> 0 | J66: =Inputs!J172 -> 0 | K66: =Inputs!K172 -> 0 | L66: =Inputs!L172 -> 0 | M66: =Inputs!M172 -> 0 | N66: =Inputs!N172 -> 0 | O66: =Inputs!O172 -> 0 | P66: =Inputs!P172 -> 0 | Q66: =Inputs!Q172 -> 0 | R66: =Inputs!R172 -> 0 | S66: =Inputs!S172 -> 0 | T66: =Inputs!T172 -> 0 | U66: =Inputs!U172 -> 0 | V66: =Inputs!V172 -> 0 | W66: =Inputs!W172 -> 0
D67: Adjustment correcting for CPI | E67: Sch. B3; e | F67: n/a | G67: $m | I67: =Inputs!I173 -> 0 | J67: =Inputs!J173 -> 0 | K67: =Inputs!K173 -> 0 | L67: =Inputs!L173 -> 0 | M67: =Inputs!M173 -> 0 | N67: =Inputs!N173 -> 0 | O67: =Inputs!O173 -> 0 | P67: =Inputs!P173 -> 0 | Q67: =Inputs!Q173 -> 0 | R67: =Inputs!R173 -> 0 | S67: =Inputs!S173 -> 0 | T67: =Inputs!T173 -> 0 | U67: =Inputs!U173 -> 0 | V67: =Inputs!V173 -> 0 | W67: =Inputs!W173 -> 0
D68: Adjustment correcting for FX | E68: Sch. B3; f | F68: n/a | G68: $m | I68: =Inputs!I174 -> 0 | J68: =Inputs!J174 -> 0 | K68: =Inputs!K174 -> 0 | L68: =Inputs!L174 -> 0 | M68: =Inputs!M174 -> 0 | N68: =Inputs!N174 -> 0 | O68: =Inputs!O174 -> 0 | P68: =Inputs!P174 -> 0 | Q68: =Inputs!Q174 -> 0 | R68: =Inputs!R174 -> 0 | S68: =Inputs!S174 -> 0 | T68: =Inputs!T174 -> 0 | U68: =Inputs!U174 -> 0 | V68: =Inputs!V174 -> 0 | W68: =Inputs!W174 -> 0
D69: Est. part of allowance relating to outputs not delivered | E69: Sch. B3; t | F69: n/a | G69: $m | I69: =Inputs!I175 -> 0 | J69: =Inputs!J175 -> 0 | K69: =Inputs!K175 -> 0 | L69: =Inputs!L175 -> 0 | M69: =Inputs!M175 -> 0 | N69: =Inputs!N175 -> 0 | O69: =Inputs!O175 -> 0 | P69: =Inputs!P175 -> 0 | Q69: =Inputs!Q175 -> 0 | R69: =Inputs!R175 -> 0 | S69: =Inputs!S175 -> 0 | T69: =Inputs!T175 -> 0 | U69: =Inputs!U175 -> 0 | V69: =Inputs!V175 -> 0 | W69: =Inputs!W175 -> 0
D70: Net major capex | E70: n/a | F70: n/a | G70: $m | I70: =I64-I65-I69 -> 0 | J70: 0 | K70: 0 | L70: 0 | M70: 0 | N70: 0 | O70: 0 | P70: 0 | Q70: 0 | R70: 0 | S70: 0 | T70: 0 | U70: 0 | V70: 0 | W70: 0
D71: Major capex expenditure and output adjustment | E71: Sch. B3 (3) | F71: n/a | G71: $m | I71: =I70*I63 -> 0 | J71: 0 | K71: 0 | L71: 0 | M71: 0 | N71: 0 | O71: 0 | P71: 0 | Q71: 0 | R71: 0 | S71: 0 | T71: 0 | U71: 0 | V71: 0 | W71: 0
C73: MCP4
D75: Major capex incentive rate | E75: Sch. B3; a | F75: n/a | G75: % | I75: =Inputs!I176 -> 0 | J75: =Inputs!J176 -> 0 | K75: =Inputs!K176 -> 0 | L75: =Inputs!L176 -> 0 | M75: =Inputs!M176 -> 0 | N75: =Inputs!N176 -> 0 | O75: =Inputs!O176 -> 0 | P75: =Inputs!P176 -> 0 | Q75: =Inputs!Q176 -> 0 | R75: =Inputs!R176 -> 0 | S75: =Inputs!S176 -> 0 | T75: =Inputs!T176 -> 0 | U75: =Inputs!U176 -> 0 | V75: =Inputs!V176 -> 0 | W75: =Inputs!W176 -> 0
D76: Adjusted major capex allowance | E76: Sch. B3; b | F76: n/a | G76: $m | I76: =I78+I79+I80 -> 0 | J76: =J78+J79+J80 -> 0 | K76: 0 | L76: 0 | M76: 0 | N76: 0 | O76: 0 | P76: 0 | Q76: 0 | R76: 0 | S76: 0 | T76: 0 | U76: 0 | V76: 0 | W76: 0
D77: Amount of capex less exempt major capex | E77: Sch. B3; c | F77: n/a | G77: $m | I77: =Inputs!I177 -> 0 | J77: =Inputs!J177 -> 0 | K77: =Inputs!K177 -> 0 | L77: =Inputs!L177 -> 0 | M77: =Inputs!M177 -> 0 | N77: =Inputs!N177 -> 0 | O77: =Inputs!O177 -> 0 | P77: =Inputs!P177 -> 0 | Q77: =Inputs!Q177 -> 0 | R77: =Inputs!R177 -> 0 | S77: =Inputs!S177 -> 0 | T77: =Inputs!T177 -> 0 | U77: =Inputs!U177 -> 0 | V77: =Inputs!V177 -> 0 | W77: =Inputs!W177 -> 0
D78: Major capex allowance less exempt major capex | E78: Sch. B3; d | F78: n/a | G78: $m | I78: =Inputs!I178 -> 0 | J78: =Inputs!J178 -> 0 | K78: =Inputs!K178 -> 0 | L78: =Inputs!L178 -> 0 | M78: =Inputs!M178 -> 0 | N78: =Inputs!N178 -> 0 | O78: =Inputs!O178 -> 0 | P78: =Inputs!P178 -> 0 | Q78: =Inputs!Q178 -> 0 | R78: =Inputs!R178 -> 0 | S78: =Inputs!S178 -> 0 | T78: =Inputs!T178 -> 0 | U78: =Inputs!U178 -> 0 | V78: =Inputs!V178 -> 0 | W78: =Inputs!W178 -> 0
D79: Adjustment correcting for CPI | E79: Sch. B3; e | F79: n/a | G79: $m | I79: =Inputs!I179 -> 0 | J79: =Inputs!J179 -> 0 | K79: =Inputs!K179 -> 0 | L79: =Inputs!L179 -> 0 | M79: =Inputs!M179 -> 0 | N79: =Inputs!N179 -> 0 | O79: =Inputs!O179 -> 0 | P79: =Inputs!P179 -> 0 | Q79: =Inputs!Q179 -> 0 | R79: =Inputs!R179 -> 0 | S79: =Inputs!S179 -> 0 | T79: =Inputs!T179 -> 0 | U79: =Inputs!U179 -> 0 | V79: =Inputs!V179 -> 0 | W79: =Inputs!W179 -> 0
D80: Adjustment correcting for FX | E80: Sch. B3; f | F80: n/a | G80: $m | I80: =Inputs!I180 -> 0 | J80: =Inputs!J180 -> 0 | K80: =Inputs!K180 -> 0 | L80: =Inputs!L180 -> 0 | M80: =Inputs!M180 -> 0 | N80: =Inputs!N180 -> 0 | O80: =Inputs!O180 -> 0 | P80: =Inputs!P180 -> 0 | Q80: =Inputs!Q180 -> 0 | R80: =Inputs!R180 -> 0 | S80: =Inputs!S180 -> 0 | T80: =Inputs!T180 -> 0 | U80: =Inputs!U180 -> 0 | V80: =Inputs!V180 -> 0 | W80: =Inputs!W180 -> 0
D81: Est. part of allowance relating to outputs not delivered | E81: Sch. B3; t | F81: n/a | G81: $m | I81: =Inputs!I181 -> 0 | J81: =Inputs!J181 -> 0 | K81: =Inputs!K181 -> 0 | L81: =Inputs!L181 -> 0 | M81: =Inputs!M181 -> 0 | N81: =Inputs!N181 -> 0 | O81: =Inputs!O181 -> 0 | P81: =Inputs!P181 -> 0 | Q81: =Inputs!Q181 -> 0 | R81: =Inputs!R181 -> 0 | S81: =Inputs!S181 -> 0 | T81: =Inputs!T181 -> 0 | U81: =Inputs!U181 -> 0 | V81: =Inputs!V181 -> 0 | W81: =Inputs!W181 -> 0
D82: Net major capex | E82: n/a | F82: n/a | G82: $m | I82: =I76-I77-I81 -> 0 | J82: 0 | K82: 0 | L82: 0 | M82: 0 | N82: 0 | O82: 0 | P82: 0 | Q82: 0 | R82: 0 | S82: 0 | T82: 0 | U82: 0 | V82: 0 | W82: 0
D83: Major capex expenditure and output adjustment | E83: Sch. B3 (3) | F83: n/a | G83: $m | I83: =I82*I75 -> 0 | J83: 0 | K83: 0 | L83: 0 | M83: 0 | N83: 0 | O83: 0 | P83: 0 | Q83: 0 | R83: 0 | S83: 0 | T83: 0 | U83: 0 | V83: 0 | W83: 0
C85: MCP5
D87: Major capex incentive rate | E87: Sch. B3; a | F87: n/a | G87: % | I87: =Inputs!I182 -> 0 | J87: =Inputs!J182 -> 0 | K87: =Inputs!K182 -> 0 | L87: =Inputs!L182 -> 0 | M87: =Inputs!M182 -> 0 | N87: =Inputs!N182 -> 0 | O87: =Inputs!O182 -> 0 | P87: =Inputs!P182 -> 0 | Q87: =Inputs!Q182 -> 0 | R87: =Inputs!R182 -> 0 | S87: =Inputs!S182 -> 0 | T87: =Inputs!T182 -> 0 | U87: =Inputs!U182 -> 0 | V87: =Inputs!V182 -> 0 | W87: =Inputs!W182 -> 0
D88: Adjusted major capex allowance | E88: Sch. B3; b | F88: n/a | G88: $m | I88: =I90+I91+I92 -> 0 | J88: =J90+J91+J92 -> 0 | K88: 0 | L88: 0 | M88: 0 | N88: 0 | O88: 0 | P88: 0 | Q88: 0 | R88: 0 | S88: 0 | T88: 0 | U88: 0 | V88: 0 | W88: 0
D89: Amount of capex less exempt major capex | E89: Sch. B3; c | F89: n/a | G89: $m | I89: =Inputs!I183 -> 0 | J89: =Inputs!J183 -> 0 | K89: =Inputs!K183 -> 0 | L89: =Inputs!L183 -> 0 | M89: =Inputs!M183 -> 0 | N89: =Inputs!N183 -> 0 | O89: =Inputs!O183 -> 0 | P89: =Inputs!P183 -> 0 | Q89: =Inputs!Q183 -> 0 | R89: =Inputs!R183 -> 0 | S89: =Inputs!S183 -> 0 | T89: =Inputs!T183 -> 0 | U89: =Inputs!U183 -> 0 | V89: =Inputs!V183 -> 0 | W89: =Inputs!W183 -> 0
D90: Major capex allowance less exempt major capex | E90: Sch. B3; d | F90: n/a | G90: $m | I90: =Inputs!I184 -> 0 | J90: =Inputs!J184 -> 0 | K90: =Inputs!K184 -> 0 | L90: =Inputs!L184 -> 0 | M90: =Inputs!M184 -> 0 | N90: =Inputs!N184 -> 0 | O90: =Inputs!O184 -> 0 | P90: =Inputs!P184 -> 0 | Q90: =Inputs!Q184 -> 0 | R90: =Inputs!R184 -> 0 | S90: =Inputs!S184 -> 0 | T90: =Inputs!T184 -> 0 | U90: =Inputs!U184 -> 0 | V90: =Inputs!V184 -> 0 | W90: =Inputs!W184 -> 0
D91: Adjustment correcting for CPI | E91: Sch. B3; e | F91: n/a | G91: $m | I91: =Inputs!I185 -> 0 | J91: =Inputs!J185 -> 0 | K91: =Inputs!K185 -> 0 | L91: =Inputs!L185 -> 0 | M91: =Inputs!M185 -> 0 | N91: =Inputs!N185 -> 0 | O91: =Inputs!O185 -> 0 | P91: =Inputs!P185 -> 0 | Q91: =Inputs!Q185 -> 0 | R91: =Inputs!R185 -> 0 | S91: =Inputs!S185 -> 0 | T91: =Inputs!T185 -> 0 | U91: =Inputs!U185 -> 0 | V91: =Inputs!V185 -> 0 | W91: =Inputs!W185 -> 0
D92: Adjustment correcting for FX | E92: Sch. B3; f | F92: n/a | G92: $m | I92: =Inputs!I186 -> 0 | J92: =Inputs!J186 -> 0 | K92: =Inputs!K186 -> 0 | L92: =Inputs!L186 -> 0 | M92: =Inputs!M186 -> 0 | N92: =Inputs!N186 -> 0 | O92: =Inputs!O186 -> 0 | P92: =Inputs!P186 -> 0 | Q92: =Inputs!Q186 -> 0 | R92: =Inputs!R186 -> 0 | S92: =Inputs!S186 -> 0 | T92: =Inputs!T186 -> 0 | U92: =Inputs!U186 -> 0 | V92: =Inputs!V186 -> 0 | W92: =Inputs!W186 -> 0
D93: Est. part of allowance relating to outputs not delivered | E93: Sch. B3; t | F93: n/a | G93: $m | I93: =Inputs!I187 -> 0 | J93: =Inputs!J187 -> 0 | K93: =Inputs!K187 -> 0 | L93: =Inputs!L187 -> 0 | M93: =Inputs!M187 -> 0 | N93: =Inputs!N187 -> 0 | O93: =Inputs!O187 -> 0 | P93: =Inputs!P187 -> 0 | Q93: =Inputs!Q187 -> 0 | R93: =Inputs!R187 -> 0 | S93: =Inputs!S187 -> 0 | T93: =Inputs!T187 -> 0 | U93: =Inputs!U187 -> 0 | V93: =Inputs!V187 -> 0 | W93: =Inputs!W187 -> 0
D94: Net major capex | E94: n/a | F94: n/a | G94: $m | I94: =I88-I89-I93 -> 0 | J94: 0 | K94: 0 | L94: 0 | M94: 0 | N94: 0 | O94: 0 | P94: 0 | Q94: 0 | R94: 0 | S94: 0 | T94: 0 | U94: 0 | V94: 0 | W94: 0
D95: Major capex expenditure and output adjustment | E95: Sch. B3 (3) | F95: n/a | G95: $m | I95: =I94*I87 -> 0 | J95: 0 | K95: 0 | L95: 0 | M95: 0 | N95: 0 | O95: 0 | P95: 0 | Q95: 0 | R95: 0 | S95: 0 | T95: 0 | U95: 0 | V95: 0 | W95: 0
C97: Total major capex expenditure and output adjustment
D99: Total major capex expenditure and output adjustment | E99: n/a | F99: n/a | G99: $m | I99: =SUM(I47,I59,I71,I83,I95) -> 0 | J99: =SUM(J47,J59,J71,J83,J95) -> 0 | K99: 0 | L99: 0 | M99: 0 | N99: 0 | O99: 0 | P99: 0 | Q99: 0 | R99: 0 | S99: 0 | T99: 0 | U99: 0 | V99: 0 | W99: 0
A101: End of sheet

Sheet Service inc
A1: Transpower revenue model - Services measures incentive
A2: =Cover!A2 -> Incremental update determined in 2025
H3: Global | I3: 2021 | J3: 2022 | K3: 2023 | L3: 2024 | M3: 2025 | N3: 2026 | O3: 2027 | P3: 2028 | Q3: 2029 | R3: 2030 | S3: 2031 | T3: 2032 | U3: 2033 | V3: 2034 | W3: 2035
D4: Parameter | E4: Capex IM ref | F4: IPP ref | G4: Units | H4: n/a | I4: RCP3 | J4: RCP3 | K4: RCP3 | L4: RCP3 | M4: RCP3 | N4: RCP4 | O4: RCP4 | P4: RCP4 | Q4: RCP4 | R4: RCP4 | S4: RCP5 | T4: RCP5 | U4: RCP5 | V4: RCP5 | W4: RCP5
I5: =Inputs!I5 -> Actual | J5: =Inputs!J5 -> Actual | K5: =Inputs!K5 -> Actual | L5: =Inputs!L5 -> Actual | M5: =Inputs!M5 -> Forecast | N5: =Inputs!N5 -> Forecast | O5: =Inputs!O5 -> Forecast | P5: =Inputs!P5 -> Forecast | Q5: =Inputs!Q5 -> Forecast | R5: =Inputs!R5 -> Forecast | S5: =Inputs!S5 -> Forecast | T5: =Inputs!T5 -> Forecast | U5: =Inputs!U5 -> Forecast | V5: =Inputs!V5 -> Forecast | W5: =Inputs!W5 -> Forecast
B6: Service measures incentive calculation
B7: Note: The formulae used to calculate the grid output adjustments for GP1, GP2, AP1 and AP2 are different from the formula prescribed in the Capex IM. This is to ensure the incentive rate can be reported as a positive integer regardless of whether the cap is higher or lower than the target.
C9: GP1: number of interruptions per annum
D11: N-1 security high economic consequence | E11: B2 (1); i | F11: 20.1 | G11: $m | I11: =(Inputs!I211 -MAX(MIN(Inputs!I217,Inputs!I235),Inputs!I205)) *Inputs!I229/1000000 -> 2.014284 | J11: =(Inputs!J211 -MAX(MIN(Inputs!J217,Inputs!J235),Inputs!J205)) *Inputs!J229/1000000 -> 2.349998 | K11: =(Inputs!K211 -MAX(MIN(Inputs!K217,Inputs!K235),Inputs!K205)) *Inputs!K229/1000000 -> 0.671428 | L11: =(Inputs!L211 -MAX(MIN(Inputs!L217,Inputs!L235),Inputs!L205)) *Inputs!L229/1000000 -> 0.671428 | M11: =(Inputs!M211 -MAX(MIN(Inputs!M217,Inputs!M235),Inputs!M205)) *Inputs!M229/1000000 -> 0 | N11: =(Inputs!N211 -MAX(MIN(Inputs!N217,Inputs!N235),Inputs!N205)) *Inputs!N229/1000000 -> 0 | O11: =(Inputs!O211 -MAX(MIN(Inputs!O217,Inputs!O235),Inputs!O205)) *Inputs!O229/1000000 -> 0 | P11: =(Inputs!P211 -MAX(MIN(Inputs!P217,Inputs!P235),Inputs!P205)) *Inputs!P229/1000000 -> 0 | Q11: =(Inputs!Q211 -MAX(MIN(Inputs!Q217,Inputs!Q235),Inputs!Q205)) *Inputs!Q229/1000000 -> 0 | R11: =(Inputs!R211 -MAX(MIN(Inputs!R217,Inputs!R235),Inputs!R205)) *Inputs!R229/1000000 -> 0 | S11: =(Inputs!S211 -MAX(MIN(Inputs!S217,Inputs!S235),Inputs!S205)) *Inputs!S229/1000000 -> 0 | T11: =(Inputs!T211 -MAX(MIN(Inputs!T217,Inputs!T235),Inputs!T205)) *Inputs!T229/1000000 -> 0 | U11: =(Inputs!U211 -MAX(MIN(Inputs!U217,Inputs!U235),Inputs!U205)) *Inputs!U229/1000000 -> 0 | V11: =(Inputs!V211 -MAX(MIN(Inputs!V217,Inputs!V235),Inputs!V205)) *Inputs!V229/1000000 -> 0 | W11: =(Inputs!W211 -MAX(MIN(Inputs!W217,Inputs!W235),Inputs!W205)) *Inputs!W229/1000000 -> 0
D12: N-1 security material economic consequence | E12: " | F12: " | G12: $m | I12: =(Inputs!I212 -MAX(MIN(Inputs!I218,Inputs!I236),Inputs!I206)) *Inputs!I230/1000000 -> 0.564116 | J12: =(Inputs!J212 -MAX(MIN(Inputs!J218,Inputs!J236),Inputs!J206)) *Inputs!J230/1000000 -> 0.282058 | K12: =(Inputs!K212 -MAX(MIN(Inputs!K218,Inputs!K236),Inputs!K206)) *Inputs!K230/1000000 -> 0.523822 | L12: =(Inputs!L212 -MAX(MIN(Inputs!L218,Inputs!L236),Inputs!L206)) *Inputs!L230/1000000 -> 0.564116 | M12: =(Inputs!M212 -MAX(MIN(Inputs!M218,Inputs!M236),Inputs!M206)) *Inputs!M230/1000000 -> 0 | N12: =(Inputs!N212 -MAX(MIN(Inputs!N218,Inputs!N236),Inputs!N206)) *Inputs!N230/1000000 -> 0 | O12: =(Inputs!O212 -MAX(MIN(Inputs!O218,Inputs!O236),Inputs!O206)) *Inputs!O230/1000000 -> 0 | P12: =(Inputs!P212 -MAX(MIN(Inputs!P218,Inputs!P236),Inputs!P206)) *Inputs!P230/1000000 -> 0 | Q12: =(Inputs!Q212 -MAX(MIN(Inputs!Q218,Inputs!Q236),Inputs!Q206)) *Inputs!Q230/1000000 -> 0 | R12: =(Inputs!R212 -MAX(MIN(Inputs!R218,Inputs!R236),Inputs!R206)) *Inputs!R230/1000000 -> 0 | S12: =(Inputs!S212 -MAX(MIN(Inputs!S218,Inputs!S236),Inputs!S206)) *Inputs!S230/1000000 -> 0 | T12: =(Inputs!T212 -MAX(MIN(Inputs!T218,Inputs!T236),Inputs!T206)) *Inputs!T230/1000000 -> 0 | U12: =(Inputs!U212 -MAX(MIN(Inputs!U218,Inputs!U236),Inputs!U206)) *Inputs!U230/1000000 -> 0 | V12: =(Inputs!V212 -MAX(MIN(Inputs!V218,Inputs!V236),Inputs!V206)) *Inputs!V230/1000000 -> 0 | W12: =(Inputs!W212 -MAX(MIN(Inputs!W218,Inputs!W236),Inputs!W206)) *Inputs!W230/1000000 -> 0
D13: N security high economic consequence | E13: " | F13: " | G13: $m | I13: =(Inputs!I213 -MAX(MIN(Inputs!I219,Inputs!I237),Inputs!I207)) *Inputs!I231/1000000 -> -0.25 | J13: =(Inputs!J213 -MAX(MIN(Inputs!J219,Inputs!J237),Inputs!J207)) *Inputs!J231/1000000 -> 0.5 | K13: =(Inputs!K213 -MAX(MIN(Inputs!K219,Inputs!K237),Inputs!K207)) *Inputs!K231/1000000 -> 0.5 | L13: =(Inputs!L213 -MAX(MIN(Inputs!L219,Inputs!L237),Inputs!L207)) *Inputs!L231/1000000 -> 0.5 | M13: =(Inputs!M213 -MAX(MIN(Inputs!M219,Inputs!M237),Inputs!M207)) *Inputs!M231/1000000 -> 0 | N13: =(Inputs!N213 -MAX(MIN(Inputs!N219,Inputs!N237),Inputs!N207)) *Inputs!N231/1000000 -> 0 | O13: =(Inputs!O213 -MAX(MIN(Inputs!O219,Inputs!O237),Inputs!O207)) *Inputs!O231/1000000 -> 0 | P13: =(Inputs!P213 -MAX(MIN(Inputs!P219,Inputs!P237),Inputs!P207)) *Inputs!P231/1000000 -> 0 | Q13: =(Inputs!Q213 -MAX(MIN(Inputs!Q219,Inputs!Q237),Inputs!Q207)) *Inputs!Q231/1000000 -> 0 | R13: =(Inputs!R213 -MAX(MIN(Inputs!R219,Inputs!R237),Inputs!R207)) *Inputs!R231/1000000 -> 0 | S13: =(Inputs!S213 -MAX(MIN(Inputs!S219,Inputs!S237),Inputs!S207)) *Inputs!S231/1000000 -> 0 | T13: =(Inputs!T213 -MAX(MIN(Inputs!T219,Inputs!T237),Inputs!T207)) *Inputs!T231/1000000 -> 0 | U13: =(Inputs!U213 -MAX(MIN(Inputs!U219,Inputs!U237),Inputs!U207)) *Inputs!U231/1000000 -> 0 | V13: =(Inputs!V213 -MAX(MIN(Inputs!V219,Inputs!V237),Inputs!V207)) *Inputs!V231/1000000 -> 0 | W13: =(Inputs!W213 -MAX(MIN(Inputs!W219,Inputs!W237),Inputs!W207)) *Inputs!W231/1000000 -> 0
D14: N security material economic consequence | E14: " | F14: " | G14: $m | I14: =(Inputs!I214 -MAX(MIN(Inputs!I220,Inputs!I238),Inputs!I208)) *Inputs!I232/1000000 -> 0.41786 | J14: =(Inputs!J214 -MAX(MIN(Inputs!J220,Inputs!J238),Inputs!J208)) *Inputs!J232/1000000 -> 0.459646 | K14: =(Inputs!K214 -MAX(MIN(Inputs!K220,Inputs!K238),Inputs!K208)) *Inputs!K232/1000000 -> 0.292502 | L14: =(Inputs!L214 -MAX(MIN(Inputs!L220,Inputs!L238),Inputs!L208)) *Inputs!L232/1000000 -> 0.459646 | M14: =(Inputs!M214 -MAX(MIN(Inputs!M220,Inputs!M238),Inputs!M208)) *Inputs!M232/1000000 -> 0 | N14: =(Inputs!N214 -MAX(MIN(Inputs!N220,Inputs!N238),Inputs!N208)) *Inputs!N232/1000000 -> 0 | O14: =(Inputs!O214 -MAX(MIN(Inputs!O220,Inputs!O238),Inputs!O208)) *Inputs!O232/1000000 -> 0 | P14: =(Inputs!P214 -MAX(MIN(Inputs!P220,Inputs!P238),Inputs!P208)) *Inputs!P232/1000000 -> 0 | Q14: =(Inputs!Q214 -MAX(MIN(Inputs!Q220,Inputs!Q238),Inputs!Q208)) *Inputs!Q232/1000000 -> 0 | R14: =(Inputs!R214 -MAX(MIN(Inputs!R220,Inputs!R238),Inputs!R208)) *Inputs!R232/1000000 -> 0 | S14: =(Inputs!S214 -MAX(MIN(Inputs!S220,Inputs!S238),Inputs!S208)) *Inputs!S232/1000000 -> 0 | T14: =(Inputs!T214 -MAX(MIN(Inputs!T220,Inputs!T238),Inputs!T208)) *Inputs!T232/1000000 -> 0 | U14: =(Inputs!U214 -MAX(MIN(Inputs!U220,Inputs!U238),Inputs!U208)) *Inputs!U232/1000000 -> 0 | V14: =(Inputs!V214 -MAX(MIN(Inputs!V220,Inputs!V238),Inputs!V208)) *Inputs!V232/1000000 -> 0 | W14: =(Inputs!W214 -MAX(MIN(Inputs!W220,Inputs!W238),Inputs!W208)) *Inputs!W232/1000000 -> 0
D15: N-1 security generator | E15: " | F15: " | G15: $m | I15: =(Inputs!I215 -MAX(MIN(Inputs!I221,Inputs!I239),Inputs!I209)) *Inputs!I233/1000000 -> -0.125 | J15: =(Inputs!J215 -MAX(MIN(Inputs!J221,Inputs!J239),Inputs!J209)) *Inputs!J233/1000000 -> 0.125 | K15: =(Inputs!K215 -MAX(MIN(Inputs!K221,Inputs!K239),Inputs!K209)) *Inputs!K233/1000000 -> 0 | L15: =(Inputs!L215 -MAX(MIN(Inputs!L221,Inputs!L239),Inputs!L209)) *Inputs!L233/1000000 -> 0.25 | M15: =(Inputs!M215 -MAX(MIN(Inputs!M221,Inputs!M239),Inputs!M209)) *Inputs!M233/1000000 -> 0 | N15: =(Inputs!N215 -MAX(MIN(Inputs!N221,Inputs!N239),Inputs!N209)) *Inputs!N233/1000000 -> 0 | O15: =(Inputs!O215 -MAX(MIN(Inputs!O221,Inputs!O239),Inputs!O209)) *Inputs!O233/1000000 -> 0 | P15: =(Inputs!P215 -MAX(MIN(Inputs!P221,Inputs!P239),Inputs!P209)) *Inputs!P233/1000000 -> 0 | Q15: =(Inputs!Q215 -MAX(MIN(Inputs!Q221,Inputs!Q239),Inputs!Q209)) *Inputs!Q233/1000000 -> 0 | R15: =(Inputs!R215 -MAX(MIN(Inputs!R221,Inputs!R239),Inputs!R209)) *Inputs!R233/1000000 -> 0 | S15: =(Inputs!S215 -MAX(MIN(Inputs!S221,Inputs!S239),Inputs!S209)) *Inputs!S233/1000000 -> 0 | T15: =(Inputs!T215 -MAX(MIN(Inputs!T221,Inputs!T239),Inputs!T209)) *Inputs!T233/1000000 -> 0 | U15: =(Inputs!U215 -MAX(MIN(Inputs!U221,Inputs!U239),Inputs!U209)) *Inputs!U233/1000000 -> 0 | V15: =(Inputs!V215 -MAX(MIN(Inputs!V221,Inputs!V239),Inputs!V209)) *Inputs!V233/1000000 -> 0 | W15: =(Inputs!W215 -MAX(MIN(Inputs!W221,Inputs!W239),Inputs!W209)) *Inputs!W233/1000000 -> 0
